Workbook

Sheet Process data log-S1
A1: E:\PhD\Experiment\2018_11_08_Sucrose and NaCl solutions study (Tg' and collapse)
C4: Start apply vaccum | E4: 11.23 | F4: h | G4: Temperature ramp up at primary drying | L4: h
C5: Start liquid phase | F5: h
C6: End liquid phase | F6: h
B9: 1 | C9: 2 | D9: 3 | E9: 4 | F9: 5 | G9: 6 | H9: 7 | I9: 8 | J9: 9 | K9: 10 | L9: 11 | M9: 12 | N9: 13 | O9: 14 | P9: 15 | Q9: 16 | R9: 17 | S9: 18 | T9: 19 | U9: 20 | V9: 21 | W9: 22 | X9: 23 | Y9: 24 | Z9: 25 | AA9: 26 | AB9: 27 | AC9: 28 | AD9: 29
S10: TC1 | U10: 0% NaCl | W10: 0.13% NaCl | Y10: 0.55% NaCl | AA10: 0.41% NaCl | AC10: 0.26% NaCl
S11: USED | U11: S1 (TC1) | W11: S2 (TC2) | Y11: S5 (TC4) | AA11: S4 (TC3 used S4) | AC11: S3 (TC3 used S4)
C12: Paste the Process data log here (in C8) | U12: IMG for CH1 | W12: IMG for CH2 | Y12: IMG for CH3 | AA12: IMG for CH4 | AC12: IMG for CH5
A13: Time /min | B13: Time/hr. | C13: Product temperature 1 | D13: Product temperature 2 | E13: Product temperature 3 | F13: Product temperature 4 | G13: Tave | H13: Shelf temperature | I13: Condenser temperature | J13: Vacuum | K13: Vacuum | N13: Vaccum mbar | O13: Time/h (Primary drying) | P13: Time/h (Primary drying) | S13: Product temperature | U13: IMG | V13: Time | W13: IMG | X13: Time | Y13: IMG | Z13: Time | AA13: IMG | AB13: Time | AC13: IMG | AD13: Time
A14: 0 | B14: =ROUND(A14/60,3) -> 0 | C14: 23.3 | D14: 23.4 | E14: 23.3 | F14: 23.2 | G14: 23.2 | H14: 24.7 | I14: 24.1 | J14: 9999 | K14: ---- | L14: 38018 | M14: 1 | N14: =IF(J14=9999,#N/A,J14/1000) ->  | O14: =IF(B14>=$E$2,B14-$E$2,#N/A) -> 0 | P14: =IF(B14>=$E$2,B14,#N/A) -> 0 | S14: =C14 -> 23.3 | U14: 0017 | V14: 0 | W14: 0017 | X14: 0 | Y14: 5890 | Z14: 0 | AA14: 5890 | AB14: 0 | AC14: 5890 | AD14: 0
A15: 2 | B15: =ROUND(A15/60,3) -> 0.033 | C15: 23.4 | D15: 23.6 | E15: 23.5 | F15: 22.4 | G15: 23.2 | H15: 24.9 | I15: 25.9 | J15: 9999 | K15: ---- | L15: 38018 | M15: 10 | O15: 0.033 | P15: 0.033 | S15: =C15 -> 23.4 | U15: 0047 | V15: 1 | W15: 0047 | X15: 1 | Y15: 5920 | Z15: 1 | AA15: 5920 | AB15: 1 | AC15: 5920 | AD15: 1
A16: 4 | B16: 0.067 | C16: 22.3 | D16: 22.1 | E16: 21.6 | F16: 21.5 | G16: 21.8 | H16: 19.9 | I16: -21.8 | J16: 9999 | K16: ---- | L16: 38018 | M16: 10 | O16: 0.067 | P16: 0.067 | S16: 22.3 | U16: 0061 | V16: 1.5 | W16: 0061 | X16: 1.5 | Y16: 5935 | Z16: 1.5 | AA16: 5935 | AB16: 1.5 | AC16: 5935 | AD16: 1.5
A17: 6 | B17: 0.1 | C17: 22.1 | D17: 21.6 | E17: 21.1 | F17: 21.2 | G17: 21.5 | H17: 20 | I17: -32.3 | J17: 9999 | K17: ---- | L17: 38018 | M17: 1 | O17: 0.1 | P17: 0.1 | S17: 22.1 | U17: 0073 | V17: 1.9 | W17: 0065 | X17: 1.63 | Y17: 5939 | Z17: 1.63 | AA17: 5939 | AB17: 1.63 | AC17: 5939 | AD17: 1.63
A18: 8 | B18: 0.133 | C18: 21.7 | D18: 21.3 | E18: 20.8 | F18: 20.6 | G18: 21.1 | H18: 20.2 | I18: -43.2 | J18: 9999 | K18: ---- | L18: 38018 | M18: 12 | O18: 0.133 | P18: 0.133 | S18: 21.7 | U18: 0075 | V18: 1.97 | W18: 0067 | X18: 1.7 | Y18: 5940 | Z18: 1.67 | AA18: 5940 | AB18: 1.67 | AC18: 5940 | AD18: 1.67
A19: 10 | B19: 0.167 | C19: 21.4 | D19: 20.9 | E19: 20.3 | F19: 20.4 | G19: 20.7 | H19: 19.9 | I19: -51.4 | J19: 9999 | K19: ---- | L19: 38018 | M19: 12 | O19: 0.167 | P19: 0.167 | S19: 21.4 | U19: 0076 | V19: 2 | W19: 0068 | X19: 1.73 | Y19: 5942 | Z19: 1.73 | AA19: 5942 | AB19: 1.73 | AC19: 5942 | AD19: 1.73
A20: 12 | B20: 0.2 | C20: 21.1 | D20: 20.5 | E20: 20 | F20: 20 | G20: 20.3 | H20: 19.9 | I20: -55.4 | J20: 9999 | K20: ---- | L20: 38018 | M20: 7 | O20: 0.2 | P20: 0.2 | S20: 21.1 | U20: 0081 | V20: 2.17 | W20: 0073 | X20: 1.9 | Y20: 5943 | Z20: 1.77 | AA20: 5943 | AB20: 1.77 | AC20: 5943 | AD20: 1.77
A21: 14 | B21: 0.233 | C21: 20.9 | D21: 20.4 | E21: 19.8 | F21: 19.8 | G21: 20.2 | H21: 20 | I21: -59.7 | J21: 9999 | K21: ---- | L21: 38018 | M21: 1 | O21: 0.233 | P21: 0.233 | S21: 20.9 | U21: 0083 | V21: 2.23 | W21: 0075 | X21: 1.97 | Y21: 5944 | Z21: 1.8 | AA21: 5944 | AB21: 1.8 | AC21: 5944 | AD21: 1.8
A22: 16 | B22: 0.267 | C22: 20.7 | D22: 20.2 | E22: 19.8 | F22: 19.7 | G22: 20.1 | H22: 20.2 | I22: -62.2 | J22: 9999 | K22: ---- | L22: 38018 | M22: 12 | O22: 0.267 | P22: 0.267 | S22: 20.7 | U22: 0084 | V22: 2.27 | W22: 0076 | X22: 2 | Y22: 5949 | Z22: 1.97 | AA22: 5945 | AB22: 1.83 | AC22: 5945 | AD22: 1.83
A23: 18 | B23: 0.3 | C23: 20.6 | D23: 20.1 | E23: 19.7 | F23: 19.7 | G23: 20 | H23: 20 | I23: -63.3 | J23: 9999 | K23: ---- | L23: 38018 | M23: 10 | O23: 0.3 | P23: 0.3 | S23: 20.6 | U23: 0087 | V23: 2.37 | W23: 0078 | X23: 2.07 | Y23: 5950 | Z23: 2 | AA23: 5947 | AB23: 1.9 | AC23: 5947 | AD23: 1.9
A24: 20 | B24: 0.333 | C24: 20.3 | D24: 19.9 | E24: 19.5 | F24: 19.6 | G24: 19.8 | H24: 20.3 | I24: -61.7 | J24: 9999 | K24: ---- | L24: 38018 | M24: 7 | O24: 0.333 | P24: 0.333 | S24: 20.3 | U24: 0100 | V24: 2.8 | W24: 0080 | X24: 2.13 | Y24: 5951 | Z24: 2.03 | AA24: 5949 | AB24: 1.97 | AC24: 5949 | AD24: 1.97
A25: 22 | B25: 0.367 | C25: 20.2 | D25: 19.8 | E25: 19.5 | F25: 19.6 | G25: 19.7 | H25: 20.1 | I25: -65 | J25: 9999 | K25: ---- | L25: 38018 | M25: 1 | O25: 0.367 | P25: 0.367 | S25: 20.2 | U25: 0121 | V25: 3.5 | W25: 0081 | X25: 2.17 | Y25: 5954 | Z25: 2.13 | AA25: 5950 | AB25: 2 | AC25: 5950 | AD25: 2
A26: 24 | B26: 0.4 | C26: 20 | D26: 19.8 | E26: 19.5 | F26: 19.3 | G26: 19.6 | H26: 19.8 | I26: -63.2 | J26: 9999 | K26: ---- | L26: 38018 | M26: 12 | O26: 0.4 | P26: 0.4 | S26: 20 | U26: 0135 | V26: 4 | W26: 0083 | X26: 2.23 | Y26: 5955 | Z26: 2.17 | AA26: 5951 | AB26: 2.03 | AC26: 5951 | AD26: 2.03
A27: 26 | B27: 0.433 | C27: 20 | D27: 19.8 | E27: 19.3 | F27: 19.3 | G27: 19.6 | H27: 20 | I27: -63.7 | J27: 9999 | K27: ---- | L27: 38018 | M27: 10 | O27: 0.433 | P27: 0.433 | S27: 20 | U27: 0150 | V27: 4.5 | W27: 0084 | X27: 2.27 | Y27: 5959 | Z27: 2.3 | AA27: 5954 | AB27: 2.13 | AC27: 5954 | AD27: 2.13
A28: 28 | B28: 0.467 | C28: 19.9 | D28: 19.6 | E28: 19.3 | F28: 19.3 | G28: 19.5 | H28: 20 | I28: -61.7 | J28: 9999 | K28: ---- | L28: 38018 | M28: 7 | O28: 0.467 | P28: 0.467 | S28: 19.9 | W28: 0086 | X28: 2.33 | Y28: 5962 | Z28: 2.4 | AA28: 5955 | AB28: 2.17 | AC28: 5955 | AD28: 2.17
A29: 30 | B29: 0.5 | C29: 19.9 | D29: 19.7 | E29: 19.3 | F29: 19.3 | G29: 19.5 | H29: 20.1 | I29: -65.1 | J29: 9999 | K29: ---- | L29: 38018 | M29: 1 | O29: 0.5 | P29: 0.5 | S29: 19.9 | W29: 0087 | X29: 2.37 | Y29: 5966 | Z29: 2.53 | AA29: 5956 | AB29: 2.2 | AC29: 5956 | AD29: 2.2
A30: 32 | B30: 0.533 | C30: 19.8 | D30: 19.5 | E30: 19.2 | F30: 19.3 | G30: 19.4 | H30: 20 | I30: -58.8 | J30: 9999 | K30: ---- | L30: 38018 | M30: 12 | O30: 0.533 | P30: 0.533 | S30: 19.8 | W30: 0100 | X30: 2.8 | Y30: 5974 | Z30: 2.8 | AA30: 5959 | AB30: 2.3 | AC30: 5959 | AD30: 2.3
A31: 34 | B31: 0.567 | C31: 19.7 | D31: 19.3 | E31: 18.9 | F31: 19 | G31: 19.2 | H31: 18.4 | I31: -63.5 | J31: 9999 | K31: ---- | L31: 38018 | M31: 10 | O31: 0.567 | P31: 0.567 | S31: 19.7 | W31: 0121 | X31: 3.5 | Y31: 5980 | Z31: 3 | AA31: 5961 | AB31: 2.37 | AC31: 5961 | AD31: 2.37
A32: 36 | B32: 0.6 | C32: 19.3 | D32: 18.8 | E32: 18.4 | F32: 18.6 | G32: 18.7 | H32: 17.4 | I32: -61.4 | J32: 9999 | K32: ---- | L32: 38018 | M32: 7 | O32: 0.6 | P32: 0.6 | S32: 19.3 | W32: 0135 | X32: 4 | Y32: 5995 | Z32: 3.5 | AA32: 5962 | AB32: 2.4 | AC32: 5962 | AD32: 2.4
A33: 38 | B33: 0.633 | C33: 19 | D33: 18.5 | E33: 18 | F33: 18 | G33: 18.3 | H33: 16.5 | I33: -62 | J33: 9999 | K33: ---- | L33: 38018 | M33: 1 | O33: 0.633 | P33: 0.633 | S33: 19 | W33: 0150 | X33: 4.5 | Y33: 6010 | Z33: 4 | AA33: 5963 | AB33: 2.43 | AC33: 5963 | AD33: 2.43
A34: 40 | B34: 0.667 | C34: 18.7 | D34: 18 | E34: 17.4 | F34: 17.4 | G34: 17.8 | H34: 16.3 | I34: -55.2 | J34: 9999 | K34: ---- | L34: 38018 | M34: 12 | O34: 0.667 | P34: 0.667 | S34: 18.7 | Y34: 6025 | Z34: 4.5 | AA34: 5966 | AB34: 2.53 | AC34: 5966 | AD34: 2.53
A35: 42 | B35: 0.7 | C35: 18.2 | D35: 17.4 | E35: 16.6 | F35: 16.7 | G35: 17.2 | H35: 14.4 | I35: -60.5 | J35: 9999 | K35: ---- | L35: 38018 | M35: 10 | O35: 0.7 | P35: 0.7 | S35: 18.2 | AA35: 5967 | AB35: 2.57 | AC35: 5967 | AD35: 2.57
A36: 44 | B36: 0.733 | C36: 17.8 | D36: 16.8 | E36: 16.1 | F36: 16.1 | G36: 16.6 | H36: 13.9 | I36: -57.4 | J36: 9999 | K36: ---- | L36: 38018 | M36: 7 | O36: 0.733 | P36: 0.733 | S36: 17.8 | AA36: 5974 | AB36: 2.8 | AC36: 5970 | AD36: 2.67
A37: 46 | B37: 0.767 | C37: 17.2 | D37: 16 | E37: 15.2 | F37: 15.3 | G37: 15.9 | H37: 12.6 | I37: -59.6 | J37: 9999 | K37: ---- | L37: 38018 | M37: 1 | O37: 0.767 | P37: 0.767 | S37: 17.2 | AA37: 5980 | AB37: 3 | AC37: 5974 | AD37: 2.8
A38: 48 | B38: 0.8 | C38: 16.6 | D38: 15.4 | E38: 14.5 | F38: 14.6 | G38: 15.2 | H38: 12 | I38: -56.5 | J38: 9999 | K38: ---- | L38: 38018 | M38: 10 | O38: 0.8 | P38: 0.8 | S38: 16.6 | AA38: 5995 | AB38: 3.5 | AC38: 5980 | AD38: 3
A39: 50 | B39: 0.833 | C39: 15.9 | D39: 14.6 | E39: 13.6 | F39: 13.7 | G39: 14.4 | H39: 10.2 | I39: -57.8 | J39: 9999 | K39: ---- | L39: 38018 | M39: 7 | O39: 0.833 | P39: 0.833 | S39: 15.9 | AA39: 6010 | AB39: 4 | AC39: 5995 | AD39: 3.5
A40: 52 | B40: 0.867 | C40: 15.3 | D40: 13.8 | E40: 12.8 | F40: 13 | G40: 13.7 | H40: 9.5 | I40: -58.6 | J40: 9999 | K40: ---- | L40: 38018 | M40: 1 | O40: 0.867 | P40: 0.867 | S40: 15.3 | AA40: 6025 | AB40: 4.5 | AC40: 6010 | AD40: 4
A41: 54 | B41: 0.9 | C41: 14.7 | D41: 13 | E41: 12 | F41: 12.1 | G41: 12.9 | H41: 8.4 | I41: -58.3 | J41: 9999 | K41: ---- | L41: 38018 | M41: 12 | O41: 0.9 | P41: 0.9 | S41: 14.7 | AC41: 6025 | AD41: 4.5
A42: 56 | B42: 0.933 | C42: 13.9 | D42: 12.2 | E42: 11.2 | F42: 11.2 | G42: 12.1 | H42: 7.4 | I42: -57.8 | J42: 9999 | K42: ---- | L42: 38018 | M42: 10 | O42: 0.933 | P42: 0.933 | S42: 13.9
A43: 58 | B43: 0.967 | C43: 13.2 | D43: 11.5 | E43: 10.4 | F43: 10.4 | G43: 11.3 | H43: 6.5 | I43: -58.2 | J43: 9999 | K43: ---- | L43: 38018 | M43: 7 | O43: 0.967 | P43: 0.967 | S43: 13.2
A44: 60 | B44: 1 | C44: 12.5 | D44: 10.7 | E44: 9.4 | F44: 9.5 | G44: 10.5 | H44: 5.3 | I44: -57.8 | J44: 9999 | K44: ---- | L44: 38018 | M44: 1 | O44: 1 | P44: 1 | S44: 12.5
A45: 62 | B45: 1.033 | C45: 11.8 | D45: 9.9 | E45: 8.6 | F45: 8.7 | G45: 9.7 | H45: 4.6 | I45: -55.5 | J45: 9999 | K45: ---- | L45: 38018 | M45: 12 | O45: 1.033 | P45: 1.033 | S45: 11.8
A46: 64 | B46: 1.067 | C46: 10.9 | D46: 9 | E46: 7.7 | F46: 7.8 | G46: 8.8 | H46: 3.5 | I46: -58.2 | J46: 9999 | K46: ---- | L46: 38018 | M46: 10 | O46: 1.067 | P46: 1.067 | S46: 10.9
A47: 66 | B47: 1.1 | C47: 10.3 | D47: 8.2 | E47: 6.9 | F47: 6.9 | G47: 8 | H47: 2.6 | I47: -55 | J47: 9999 | K47: ---- | L47: 38018 | M47: 7 | O47: 1.1 | P47: 1.1 | S47: 10.3
A48: 68 | B48: 1.133 | C48: 9.4 | D48: 7.3 | E48: 6 | F48: 6.1 | G48: 7.1 | H48: 1.5 | I48: -57.6 | J48: 9999 | K48: ---- | L48: 38018 | M48: 1 | O48: 1.133 | P48: 1.133 | S48: 9.4
A49: 70 | B49: 1.167 | C49: 8.6 | D49: 6.5 | E49: 5.1 | F49: 5.1 | G49: 6.3 | H49: 0.5 | I49: -51.9 | J49: 9999 | K49: ---- | L49: 38018 | M49: 12 | O49: 1.167 | P49: 1.167 | S49: 8.6
A50: 72 | B50: 1.2 | C50: 7.9 | D50: 5.6 | E50: 4.2 | F50: 4.3 | G50: 5.5 | H50: -0.5 | I50: -56.6 | J50: 9999 | K50: ---- | L50: 38018 | M50: 7 | O50: 1.2 | P50: 1.2 | S50: 7.9
A51: 74 | B51: 1.233 | C51: 7 | D51: 4.8 | E51: 3.4 | F51: 3.4 | G51: 4.6 | H51: -1.5 | I51: -51.7 | J51: 9999 | K51: ---- | L51: 38018 | M51: 1 | O51: 1.233 | P51: 1.233 | S51: 7
A52: 76 | B52: 1.267 | C52: 6.2 | D52: 3.9 | E52: 2.5 | F52: 2.6 | G52: 3.7 | H52: -2.7 | I52: -56 | J52: 9999 | K52: ---- | L52: 38018 | M52: 12 | O52: 1.267 | P52: 1.267 | S52: 6.2
A53: 78 | B53: 1.3 | C53: 5.4 | D53: 3.1 | E53: 1.8 | F53: 1.8 | G53: 3 | H53: -3.3 | I53: -52 | J53: 9999 | K53: ---- | L53: 38018 | M53: 10 | O53: 1.3 | P53: 1.3 | S53: 5.4
A54: 80 | B54: 1.333 | C54: 4.7 | D54: 2.4 | E54: 0.9 | F54: 1 | G54: 2.2 | H54: -4.4 | I54: -56.4 | J54: 9999 | K54: ---- | L54: 38018 | M54: 7 | O54: 1.333 | P54: 1.333 | S54: 4.7
A55: 82 | B55: 1.367 | C55: 3.9 | D55: 1.6 | E55: 0.2 | F55: 0.2 | G55: 1.4 | H55: -5.2 | I55: -50.3 | J55: 9999 | K55: ---- | L55: 38018 | M55: 1 | O55: 1.367 | P55: 1.367 | S55: 3.9
A56: 84 | B56: 1.4 | C56: 3.2 | D56: 0.9 | E56: -0.5 | F56: -0.5 | G56: 0.7 | H56: -6.4 | I56: -55.5 | J56: 9999 | K56: ---- | L56: 38018 | M56: 12 | O56: 1.4 | P56: 1.4 | S56: 3.2
A57: 86 | B57: 1.433 | C57: 2.4 | D57: 0.2 | E57: -1.3 | F57: -1.3 | G57: 0 | H57: -7.2 | I57: -50.6 | J57: 9999 | K57: ---- | L57: 38018 | M57: 10 | O57: 1.433 | P57: 1.433 | S57: 2.4
A58: 88 | B58: 1.467 | C58: 1.8 | D58: -0.5 | E58: -2.4 | F58: -2.4 | G58: -0.9 | H58: -8.3 | I58: -53.5 | J58: 9999 | K58: ---- | L58: 38018 | M58: 7 | O58: 1.467 | P58: 1.467 | S58: 1.8
A59: 90 | B59: 1.5 | C59: 1.1 | D59: -1.7 | E59: -3.5 | F59: -3.6 | G59: -2 | H59: -9.2 | I59: -48.4 | J59: 9999 | K59: ---- | L59: 38018 | M59: 1 | O59: 1.5 | P59: 1.5 | S59: 1.1
A60: 92 | B60: 1.533 | C60: 0.3 | D60: -2.7 | E60: -4.6 | F60: -4.7 | G60: -3 | H60: -10.2 | I60: -54.9 | J60: 9999 | K60: ---- | L60: 38018 | M60: 12 | O60: 1.533 | P60: 1.533 | S60: 0.3
A61: 94 | B61: 1.567 | C61: -0.7 | D61: -3.7 | E61: -5.7 | F61: -5.8 | G61: -4 | H61: -11.3 | I61: -46.5 | J61: 9999 | K61: ---- | L61: 38018 | M61: 10 | O61: 1.567 | P61: 1.567 | S61: -0.7
A62: 96 | B62: 1.6 | C62: -1.8 | D62: -4.7 | E62: -6.8 | F62: -6.7 | G62: -5 | H62: -12.1 | I62: -54.4 | J62: 9999 | K62: ---- | L62: 38018 | M62: 7 | O62: 1.6 | P62: 1.6 | S62: -1.8
A63: 98 | B63: 1.633 | C63: -2.7 | D63: -5.6 | E63: -7.7 | F63: -7.7 | G63: -6 | H63: -13 | I63: -46.6 | J63: 9999 | K63: ---- | L63: 38018 | M63: 1 | O63: 1.633 | P63: 1.633 | S63: -2.7
A64: 100 | B64: 1.667 | C64: -3.7 | D64: -6.6 | E64: -1.5 | F64: -8.7 | G64: -5.2 | H64: -14.3 | I64: -53.6 | J64: 9999 | K64: ---- | L64: 38018 | M64: 12 | O64: 1.667 | P64: 1.667 | S64: -3.7
A65: 102 | B65: 1.7 | C65: -4.6 | D65: -7.5 | E65: -1.3 | F65: -9.7 | G65: -5.8 | H65: -15.1 | I65: -44.7 | J65: 9999 | K65: ---- | L65: 38018 | M65: 10 | O65: 1.7 | P65: 1.7 | S65: -4.6
A66: 104 | B66: 1.733 | C66: -5.6 | D66: -8.5 | E66: -1.4 | F66: -10.6 | G66: -6.6 | H66: -16.1 | I66: -50.6 | J66: 9999 | K66: ---- | L66: 38018 | M66: 7 | O66: 1.733 | P66: 1.733 | S66: -5.6
A67: 106 | B67: 1.767 | C67: -6.4 | D67: -1.3 | E67: -1.4 | F67: -1.6 | G67: -2.7 | H67: -17 | I67: -44.2 | J67: 9999 | K67: ---- | L67: 38018 | M67: 1 | O67: 1.767 | P67: 1.767 | S67: -6.4
A68: 108 | B68: 1.8 | C68: -7.3 | D68: -1.2 | E68: -1.4 | F68: -1.6 | G68: -2.9 | H68: -18 | I68: -51.6 | J68: 9999 | K68: ---- | L68: 38018 | M68: 10 | O68: 1.8 | P68: 1.8 | S68: -7.3
A69: 110 | B69: 1.833 | C69: -8 | D69: -1.1 | E69: -1.9 | F69: -1.6 | G69: -3.2 | H69: -19.1 | I69: -39.6 | J69: 9999 | K69: ---- | L69: 38018 | M69: 7 | O69: 1.833 | P69: 1.833 | S69: -8
A70: 112 | B70: 1.867 | C70: -8.7 | D70: -1.1 | E70: -2.5 | F70: -1.6 | G70: -3.5 | H70: -19.9 | I70: -47.4 | J70: 9999 | K70: ---- | L70: 38018 | M70: 1 | O70: 1.867 | P70: 1.867 | S70: -8.7
A71: 114 | B71: 1.9 | C71: -9.5 | D71: -1.1 | E71: -3.4 | F71: -2.1 | G71: -4.1 | H71: -20.8 | I71: -34.3 | J71: 9999 | K71: ---- | L71: 38018 | M71: 12 | O71: 1.9 | P71: 1.9 | S71: -9.5
A72: 116 | B72: 1.933 | C72: -1.2 | D72: -1.3 | E72: -4.3 | F72: -2.8 | G72: -2.5 | H72: -21.5 | I72: -32.2 | J72: 9999 | K72: ---- | L72: 38018 | M72: 10 | O72: 1.933 | P72: 1.933 | S72: -1.2
A73: 118 | B73: 1.967 | C73: -1.2 | D73: -1.5 | E73: -5 | F73: -3.6 | G73: -2.9 | H73: -22.3 | I73: -22.5 | J73: 9999 | K73: ---- | L73: 38018 | M73: 7 | O73: 1.967 | P73: 1.967 | S73: -1.2
A74: 120 | B74: 2 | C74: -1.2 | D74: -2 | E74: -6.7 | F74: -4.9 | G74: -3.7 | H74: -23 | I74: -15.9 | J74: 9999 | K74: ---- | L74: 38018 | M74: 7 | O74: 2 | P74: 2 | S74: -1.2
A75: 122 | B75: 2.033 | C75: -1.3 | D75: -2.6 | E75: -10.2 | F75: -6.1 | G75: -5.1 | H75: -24.3 | I75: -27.5 | J75: 9999 | K75: ---- | L75: 38018 | M75: 12 | O75: 2.033 | P75: 2.033 | S75: -1.3
A76: 124 | B76: 2.067 | C76: -1.3 | D76: -3.2 | E76: -13.7 | F76: -8.8 | G76: -6.8 | H76: -25.3 | I76: -31.9 | J76: 9999 | K76: ---- | L76: 38018 | M76: 10 | O76: 2.067 | P76: 2.067 | S76: -1.3
A77: 126 | B77: 2.1 | C77: -1.3 | D77: -3.8 | E77: -16.4 | F77: -13.5 | G77: -8.8 | H77: -26.6 | I77: -30.2 | J77: 9999 | K77: ---- | L77: 38018 | M77: 7 | O77: 2.1 | P77: 2.1 | S77: -1.3
A78: 128 | B78: 2.133 | C78: -1.3 | D78: -4.4 | E78: -18.5 | F78: -17 | G78: -10.4 | H78: -27.4 | I78: -24.2 | J78: 9999 | K78: ---- | L78: 38018 | M78: 1 | N78: =IF(J78=9999,#N/A,J78/1000) ->  | O78: =IF(B78>=$E$2,B78-$E$2,#N/A) -> 2.133 | P78: =IF(B78>=$E$2,B78,#N/A) -> 2.133 | S78: -1.3
A79: 130 | B79: =ROUND(A79/60,3) -> 2.167 | C79: -1.4 | D79: -5.3 | E79: -20.4 | F79: -19.5 | G79: -11.7 | H79: -28.6 | I79: -16.6 | J79: 9999 | K79: ---- | L79: 38018 | M79: 12 | O79: 2.167 | P79: 2.167 | S79: =C79 -> -1.4
A80: 132 | B80: 2.2 | C80: -1.4 | D80: -7.6 | E80: -21.8 | F80: -21.5 | G80: -13.1 | H80: -29.5 | I80: -12.4 | J80: 9999 | K80: ---- | L80: 38018 | M80: 10 | O80: 2.2 | P80: 2.2 | S80: -1.4
A81: 134 | B81: 2.233 | C81: -1.4 | D81: -11.3 | E81: -23.3 | F81: -23.2 | G81: -14.9 | H81: -30.4 | I81: -9.4 | J81: 9999 | K81: ---- | L81: 38018 | M81: 7 | O81: 2.233 | P81: 2.233 | S81: -1.4
A82: 136 | B82: 2.267 | C82: -1.6 | D82: -15 | E82: -24.6 | F82: -24.6 | G82: -16.5 | H82: -31.2 | I82: -7.4 | J82: 9999 | K82: ---- | L82: 38018 | M82: 7 | O82: 2.267 | P82: 2.267 | S82: -1.6
A83: 138 | B83: 2.3 | C83: -1.7 | D83: -17.9 | E83: -26 | F83: -25.8 | G83: -17.9 | H83: -32.1 | I83: -5.9 | J83: 9999 | K83: ---- | L83: 38018 | M83: 1 | O83: 2.3 | P83: 2.3 | S83: -1.7
A84: 140 | B84: 2.333 | C84: -2.1 | D84: -20.3 | E84: -27.4 | F84: -27 | G84: -19.3 | H84: -33 | I84: -4.7 | J84: 9999 | K84: ---- | L84: 38018 | M84: 12 | O84: 2.333 | P84: 2.333 | S84: -2.1
A85: 142 | B85: 2.367 | C85: -2.7 | D85: -22.2 | E85: -28.8 | F85: -28.2 | G85: -20.5 | H85: -33.9 | I85: -3.9 | J85: 9999 | K85: ---- | L85: 38018 | M85: 10 | O85: 2.367 | P85: 2.367 | S85: -2.7
A86: 144 | B86: 2.4 | C86: -4.5 | D86: -23.8 | E86: -30 | F86: -29.3 | G86: -21.9 | H86: -34.9 | I86: -3.1 | J86: 9999 | K86: ---- | L86: 38018 | M86: 7 | O86: 2.4 | P86: 2.4 | S86: -4.5
A87: 146 | B87: 2.433 | C87: -7.4 | D87: -25.3 | E87: -31.1 | F87: -30.4 | G87: -23.6 | H87: -35.6 | I87: -2.6 | J87: 9999 | K87: ---- | L87: 38018 | M87: 1 | O87: 2.433 | P87: 2.433 | S87: -7.4
A88: 148 | B88: 2.467 | C88: -12.1 | D88: -26.7 | E88: -32.1 | F88: -31.4 | G88: -25.6 | H88: -36.6 | I88: -2.2 | J88: 9999 | K88: ---- | L88: 38018 | M88: 12 | O88: 2.467 | P88: 2.467 | S88: -12.1
A89: 150 | B89: 2.5 | C89: -16.8 | D89: -27.9 | E89: -33.1 | F89: -32.4 | G89: -27.6 | H89: -37.4 | I89: -1.9 | J89: 9999 | K89: ---- | L89: 38018 | M89: 10 | O89: 2.5 | P89: 2.5 | S89: -16.8
A90: 152 | B90: 2.533 | C90: -20.4 | D90: -29.3 | E90: -34.1 | F90: -33.4 | G90: -29.4 | H90: -38.3 | I90: -1.5 | J90: 9999 | K90: ---- | L90: 38018 | M90: 10 | O90: 2.533 | P90: 2.533 | S90: -20.4
A91: 154 | B91: 2.567 | C91: -23.1 | D91: -30.4 | E91: -35 | F91: -34.3 | G91: -30.8 | H91: -39 | I91: -1.3 | J91: 9999 | K91: ---- | L91: 38018 | M91: 7 | O91: 2.567 | P91: 2.567 | S91: -23.1
A92: 156 | B92: 2.6 | C92: -25.4 | D92: -31.6 | E92: -35.9 | F92: -35 | G92: -32 | H92: -39.8 | I92: -6.2 | J92: 9999 | K92: ---- | L92: 38018 | M92: 1 | O92: 2.6 | P92: 2.6 | S92: -25.4
A93: 158 | B93: 2.633 | C93: -27.1 | D93: -32.4 | E93: -36.5 | F93: -35.8 | G93: -33 | H93: -40.1 | I93: -2.8 | J93: 9999 | K93: ---- | L93: 38018 | M93: 12 | O93: 2.633 | P93: 2.633 | S93: -27.1
A94: 160 | B94: 2.667 | C94: -28.6 | D94: -33.3 | E94: -37.1 | F94: -36.6 | G94: -34 | H94: -40.7 | I94: -1.9 | J94: 9999 | K94: ---- | L94: 38018 | M94: 10 | O94: 2.667 | P94: 2.667 | S94: -28.6
A95: 162 | B95: 2.7 | C95: -29.9 | D95: -34.2 | E95: -37.9 | F95: -37.2 | G95: -34.8 | H95: -41.5 | I95: -1.4 | J95: 9999 | K95: ---- | L95: 38018 | M95: 7 | O95: 2.7 | P95: 2.7 | S95: -29.9
A96: 164 | B96: 2.733 | C96: -30.9 | D96: -35 | E96: -38.6 | F96: -37.9 | G96: -35.6 | H96: -42 | I96: -1.1 | J96: 9999 | K96: ---- | L96: 38018 | M96: 1 | O96: 2.733 | P96: 2.733 | S96: -30.9
A97: 166 | B97: 2.767 | C97: -31.9 | D97: -35.7 | E97: -39 | F97: -38.2 | G97: -36.3 | H97: -42.6 | I97: -5.2 | J97: 9999 | K97: ---- | L97: 38018 | M97: 12 | O97: 2.767 | P97: 2.767 | S97: -31.9
A98: 168 | B98: 2.8 | C98: -32.6 | D98: -36 | E98: -39.4 | F98: -38.7 | G98: -36.7 | H98: -42.8 | I98: -3 | J98: 9999 | K98: ---- | L98: 38018 | M98: 10 | O98: 2.8 | P98: 2.8 | S98: -32.6
A99: 170 | B99: 2.833 | C99: -33.3 | D99: -36.7 | E99: -39.8 | F99: -39.1 | G99: -37.3 | H99: -42.9 | I99: -2 | J99: 9999 | K99: ---- | L99: 38018 | M99: 7 | O99: 2.833 | P99: 2.833 | S99: -33.3
A100: 172 | B100: 2.867 | C100: -33.8 | D100: -37.1 | E100: -40.2 | F100: -39.6 | G100: -37.7 | H100: -43.2 | I100: -1.2 | J100: 9999 | K100: ---- | L100: 38018 | M100: 1 | O100: 2.867 | P100: 2.867 | S100: -33.8
A101: 174 | B101: 2.9 | C101: -34.4 | D101: -37.8 | E101: -40.6 | F101: -40 | G101: -38.3 | H101: -43.4 | I101: -1 | J101: 9999 | K101: ---- | L101: 38018 | M101: 1 | O101: 2.9 | P101: 2.9 | S101: -34.4
A102: 176 | B102: 2.933 | C102: -35 | D102: -38.2 | E102: -40.8 | F102: -40.3 | G102: -38.6 | H102: -43.6 | I102: -0.9 | J102: 9999 | K102: ---- | L102: 38018 | M102: 12 | O102: 2.933 | P102: 2.933 | S102: -35
A103: 178 | B103: 2.967 | C103: -35.5 | D103: -38.6 | E103: -41.2 | F103: -40.6 | G103: -39 | H103: -43.9 | I103: -0.6 | J103: 9999 | K103: ---- | L103: 38018 | M103: 10 | O103: 2.967 | P103: 2.967 | S103: -35.5
A104: 180 | B104: 3 | C104: -35.8 | D104: -38.9 | E104: -41.5 | F104: -41.1 | G104: -39.4 | H104: -43.9 | I104: -7.3 | J104: 9999 | K104: ---- | L104: 38018 | M104: 7 | O104: 3 | P104: 3 | S104: -35.8
A105: 182 | B105: 3.033 | C105: -36.5 | D105: -39.2 | E105: -41.7 | F105: -41.4 | G105: -39.7 | H105: -44 | I105: -12.1 | J105: 9999 | K105: ---- | L105: 38018 | M105: 1 | O105: 3.033 | P105: 3.033 | S105: -36.5
A106: 184 | B106: 3.067 | C106: -36.8 | D106: -39.6 | E106: -42 | F106: -41.5 | G106: -40 | H106: -44.3 | I106: -26.9 | J106: 9999 | K106: ---- | L106: 38018 | M106: 10 | O106: 3.067 | P106: 3.067 | S106: -36.8
A107: 186 | B107: 3.1 | C107: -37.2 | D107: -40 | E107: -42.3 | F107: -41.8 | G107: -40.4 | H107: -44.5 | I107: -37.1 | J107: 9999 | K107: ---- | L107: 38018 | M107: 10 | O107: 3.1 | P107: 3.1 | S107: -37.2
A108: 188 | B108: 3.133 | C108: -37.4 | D108: -40.2 | E108: -42.3 | F108: -42 | G108: -40.5 | H108: -44.4 | I108: -33.9 | J108: 9999 | K108: ---- | L108: 38018 | M108: 7 | O108: 3.133 | P108: 3.133 | S108: -37.4
A109: 190 | B109: 3.167 | C109: -37.6 | D109: -40.4 | E109: -42.6 | F109: -42.1 | G109: -40.7 | H109: -44.6 | I109: -41.5 | J109: 9999 | K109: ---- | L109: 38018 | M109: 1 | O109: 3.167 | P109: 3.167 | S109: -37.6
A110: 192 | B110: 3.2 | C110: -37.9 | D110: -40.6 | E110: -42.7 | F110: -42.3 | G110: -40.9 | H110: -44.6 | I110: -36.9 | J110: 9999 | K110: ---- | L110: 38018 | M110: 12 | O110: 3.2 | P110: 3.2 | S110: -37.9
A111: 194 | B111: 3.233 | C111: -38.2 | D111: -40.8 | E111: -42.8 | F111: -42.3 | G111: -41.1 | H111: -44.6 | I111: -45.1 | J111: 9999 | K111: ---- | L111: 38018 | M111: 10 | O111: 3.233 | P111: 3.233 | S111: -38.2
A112: 196 | B112: 3.267 | C112: -38.3 | D112: -41 | E112: -43 | F112: -42.7 | G112: -41.3 | H112: -44.8 | I112: -43 | J112: 9999 | K112: ---- | L112: 38018 | M112: 1 | O112: 3.267 | P112: 3.267 | S112: -38.3
A113: 198 | B113: 3.3 | C113: -38.5 | D113: -41.1 | E113: -43 | F113: -42.7 | G113: -41.4 | H113: -44.7 | I113: -46.3 | J113: 9999 | K113: ---- | L113: 38018 | M113: 12 | O113: 3.3 | P113: 3.3 | S113: -38.5
A114: 200 | B114: 3.333 | C114: -38.5 | D114: -41.3 | E114: -43.1 | F114: -42.8 | G114: -41.5 | H114: -44.8 | I114: -49.7 | J114: 9999 | K114: ---- | L114: 38018 | M114: 10 | O114: 3.333 | P114: 3.333 | S114: -38.5
A115: 202 | B115: 3.367 | C115: -38.7 | D115: -41.4 | E115: -43.1 | F115: -42.7 | G115: -41.5 | H115: -44.6 | I115: -48.8 | J115: 9999 | K115: ---- | L115: 38018 | M115: 7 | O115: 3.367 | P115: 3.367 | S115: -38.7
A116: 204 | B116: 3.4 | C116: -38.9 | D116: -41.5 | E116: -43.2 | F116: -42.9 | G116: -41.7 | H116: -44.9 | I116: -46 | J116: 9999 | K116: ---- | L116: 38018 | M116: 1 | O116: 3.4 | P116: 3.4 | S116: -38.9
A117: 206 | B117: 3.433 | C117: -39 | D117: -41.6 | E117: -43.3 | F117: -43 | G117: -41.8 | H117: -44.8 | I117: -49.6 | J117: 9999 | K117: ---- | L117: 38018 | M117: 12 | O117: 3.433 | P117: 3.433 | S117: -39
A118: 208 | B118: 3.467 | C118: -39.2 | D118: -41.8 | E118: -43.4 | F118: -43.1 | G118: -41.9 | H118: -45 | I118: -58.1 | J118: 9999 | K118: ---- | L118: 38018 | M118: 10 | O118: 3.467 | P118: 3.467 | S118: -39.2
A119: 210 | B119: 3.5 | C119: -39.2 | D119: -41.8 | E119: -43.4 | F119: -43.2 | G119: -42 | H119: -45 | I119: -49.8 | J119: 9999 | K119: ---- | L119: 38018 | M119: 7 | O119: 3.5 | P119: 3.5 | S119: -39.2
A120: 212 | B120: 3.533 | C120: -39.4 | D120: -42 | E120: -43.4 | F120: -43.2 | G120: -42 | H120: -45 | I120: -59.3 | J120: 9999 | K120: ---- | L120: 38018 | M120: 1 | O120: 3.533 | P120: 3.533 | S120: -39.4
A121: 214 | B121: 3.567 | C121: -39.5 | D121: -42 | E121: -43.5 | F121: -43.2 | G121: -42.1 | H121: -44.9 | I121: -52.4 | J121: 9999 | K121: ---- | L121: 38018 | M121: 12 | O121: 3.567 | P121: 3.567 | S121: -39.5
A122: 216 | B122: 3.6 | C122: -39.6 | D122: -42.1 | E122: -43.5 | F122: -43.3 | G122: -42.2 | H122: -45.1 | I122: -58.6 | J122: 9999 | K122: ---- | L122: 38018 | M122: 10 | O122: 3.6 | P122: 3.6 | S122: -39.6
A123: 218 | B123: 3.633 | C123: -39.7 | D123: -42.1 | E123: -43.6 | F123: -43.3 | G123: -42.2 | H123: -44.9 | I123: -52.4 | J123: 9999 | K123: ---- | L123: 38018 | M123: 7 | O123: 3.633 | P123: 3.633 | S123: -39.7
A124: 220 | B124: 3.667 | C124: -39.8 | D124: -42.2 | E124: -43.5 | F124: -43.4 | G124: -42.3 | H124: -45 | I124: -55.2 | J124: 9999 | K124: ---- | L124: 38018 | M124: 1 | O124: 3.667 | P124: 3.667 | S124: -39.8
A125: 222 | B125: 3.7 | C125: -39.8 | D125: -42.3 | E125: -43.6 | F125: -43.4 | G125: -42.3 | H125: -45 | I125: -52.6 | J125: 9999 | K125: ---- | L125: 38018 | M125: 10 | O125: 3.7 | P125: 3.7 | S125: -39.8
A126: 224 | B126: 3.733 | C126: -39.8 | D126: -42.3 | E126: -43.7 | F126: -43.4 | G126: -42.3 | H126: -45.2 | I126: -59.6 | J126: 9999 | K126: ---- | L126: 38018 | M126: 7 | O126: 3.733 | P126: 3.733 | S126: -39.8
A127: 226 | B127: 3.767 | C127: -39.9 | D127: -42.4 | E127: -43.7 | F127: -43.5 | G127: -42.4 | H127: -45.1 | I127: -51.3 | J127: 9999 | K127: ---- | L127: 38018 | M127: 7 | O127: 3.767 | P127: 3.767 | S127: -39.9
A128: 228 | B128: 3.8 | C128: -40 | D128: -42.4 | E128: -43.8 | F128: -43.5 | G128: -42.5 | H128: -45.1 | I128: -57.1 | J128: 9999 | K128: ---- | L128: 38018 | M128: 12 | O128: 3.8 | P128: 3.8 | S128: -40
A129: 230 | B129: 3.833 | C129: -40 | D129: -42.4 | E129: -43.8 | F129: -43.6 | G129: -42.5 | H129: -45.1 | I129: -52.5 | J129: 9999 | K129: ---- | L129: 38018 | M129: 10 | O129: 3.833 | P129: 3.833 | S129: -40
A130: 232 | B130: 3.867 | C130: -40.1 | D130: -42.7 | E130: -43.8 | F130: -43.6 | G130: -42.6 | H130: -45.1 | I130: -56.2 | J130: 9999 | K130: ---- | L130: 38018 | M130: 7 | O130: 3.867 | P130: 3.867 | S130: -40.1
A131: 234 | B131: 3.9 | C131: -40.1 | D131: -42.6 | E131: -43.8 | F131: -43.6 | G131: -42.6 | H131: -45.1 | I131: -52.1 | J131: 9999 | K131: ---- | L131: 38018 | M131: 1 | O131: 3.9 | P131: 3.9 | S131: -40.1
A132: 236 | B132: 3.933 | C132: -40.2 | D132: -42.6 | E132: -43.9 | F132: -43.7 | G132: -42.7 | H132: -45 | I132: -57.1 | J132: 9999 | K132: ---- | L132: 38018 | M132: 12 | O132: 3.933 | P132: 3.933 | S132: -40.2
A133: 238 | B133: 3.967 | C133: -40.1 | D133: -42.7 | E133: -43.8 | F133: -43.6 | G133: -42.6 | H133: -45.1 | I133: -57.7 | J133: 9999 | K133: ---- | L133: 38018 | M133: 10 | O133: 3.967 | P133: 3.967 | S133: -40.1
A134: 240 | B134: 4 | C134: -40.2 | D134: -42.8 | E134: -43.9 | F134: -43.7 | G134: -42.7 | H134: -45 | I134: -56.8 | J134: 9999 | K134: ---- | L134: 38018 | M134: 7 | O134: 4 | P134: 4 | S134: -40.2
A135: 242 | B135: 4.033 | C135: -40.3 | D135: -42.8 | E135: -43.9 | F135: -43.6 | G135: -42.7 | H135: -45.2 | I135: -58.4 | J135: 9999 | K135: ---- | L135: 38018 | M135: 1 | O135: 4.033 | P135: 4.033 | S135: -40.3
A136: 244 | B136: 4.067 | C136: -40.2 | D136: -42.8 | E136: -43.9 | F136: -43.7 | G136: -42.7 | H136: -45 | I136: -56.1 | J136: 9999 | K136: ---- | L136: 38018 | M136: 12 | O136: 4.067 | P136: 4.067 | S136: -40.2
A137: 246 | B137: 4.1 | C137: -40.3 | D137: -42.8 | E137: -44 | F137: -43.7 | G137: -42.8 | H137: -45.2 | I137: -62.3 | J137: 9999 | K137: ---- | L137: 38018 | M137: 10 | O137: 4.1 | P137: 4.1 | S137: -40.3
A138: 248 | B138: 4.133 | C138: -40.4 | D138: -42.8 | E138: -44 | F138: -43.8 | G138: -42.8 | H138: -45 | I138: -57.7 | J138: 9999 | K138: ---- | L138: 38018 | M138: 1 | O138: 4.133 | P138: 4.133 | S138: -40.4
A139: 250 | B139: 4.167 | C139: -40.4 | D139: -42.9 | E139: -44 | F139: -43.7 | G139: -42.8 | H139: -45.3 | I139: -62 | J139: 9999 | K139: ---- | L139: 38018 | M139: 1 | O139: 4.167 | P139: 4.167 | S139: -40.4
A140: 252 | B140: 4.2 | C140: -40.4 | D140: -42.9 | E140: -43.9 | F140: -43.8 | G140: -42.8 | H140: -45 | I140: -56.2 | J140: 9999 | K140: ---- | L140: 38018 | M140: 12 | O140: 4.2 | P140: 4.2 | S140: -40.4
A141: 254 | B141: 4.233 | C141: -40.4 | D141: -42.9 | E141: -43.9 | F141: -43.7 | G141: -42.8 | H141: -45.1 | I141: -63.4 | J141: 9999 | K141: ---- | L141: 38018 | M141: 10 | O141: 4.233 | P141: 4.233 | S141: -40.4
A142: 256 | B142: 4.267 | C142: -40.4 | D142: -42.9 | E142: -43.9 | F142: -43.8 | G142: -42.8 | H142: -45.1 | I142: -55.5 | J142: 9999 | K142: ---- | L142: 38018 | M142: 7 | N142: =IF(J142=9999,#N/A,J142/1000) ->  | O142: =IF(B142>=$E$2,B142-$E$2,#N/A) -> 4.267 | P142: =IF(B142>=$E$2,B142,#N/A) -> 4.267 | S142: -40.4
A143: 258 | B143: =ROUND(A143/60,3) -> 4.3 | C143: -40.4 | D143: -42.9 | E143: -43.9 | F143: -43.8 | G143: -42.8 | H143: -45 | I143: -63.3 | J143: 9999 | K143: ---- | L143: 38018 | M143: 12 | O143: 4.3 | P143: 4.3 | S143: =C143 -> -40.4
A144: 260 | B144: 4.333 | C144: -40.4 | D144: -43 | E144: -43.9 | F144: -43.7 | G144: -42.8 | H144: -44.9 | I144: -55.8 | J144: 9999 | K144: ---- | L144: 38018 | M144: 10 | O144: 4.333 | P144: 4.333 | S144: -40.4
A145: 262 | B145: 4.367 | C145: -40.5 | D145: -42.9 | E145: -44 | F145: -43.8 | G145: -42.8 | H145: -45 | I145: -61.7 | J145: 9999 | K145: ---- | L145: 38018 | M145: 7 | O145: 4.367 | P145: 4.367 | S145: -40.5
A146: 264 | B146: 4.4 | C146: -40.5 | D146: -43 | E146: -43.9 | F146: -43.8 | G146: -42.8 | H146: -44.9 | I146: -55.1 | J146: 9999 | K146: ---- | L146: 38018 | M146: 1 | O146: 4.4 | P146: 4.4 | S146: -40.5
A147: 266 | B147: 4.433 | C147: -40.5 | D147: -43 | E147: -44 | F147: -43.8 | G147: -42.9 | H147: -45.2 | I147: -63 | J147: 9999 | K147: ---- | L147: 38018 | M147: 12 | O147: 4.433 | P147: 4.433 | S147: -40.5
A148: 268 | B148: 4.467 | C148: -40.6 | D148: -43 | E148: -44 | F148: -43.8 | G148: -42.9 | H148: -45.1 | I148: -55.8 | J148: 9999 | K148: ---- | L148: 38018 | M148: 10 | O148: 4.467 | P148: 4.467 | S148: -40.6
A149: 270 | B149: 4.5 | C149: -40.5 | D149: -43 | E149: -44 | F149: -43.9 | G149: -42.9 | H149: -45 | I149: -61.6 | J149: 9999 | K149: ---- | L149: 38018 | M149: 7 | O149: 4.5 | P149: 4.5 | S149: -40.5
A150: 272 | B150: 4.533 | C150: -40.6 | D150: -43.1 | E150: -44.2 | F150: -43.9 | G150: -43 | H150: -45.1 | I150: -59.8 | J150: 9999 | K150: ---- | L150: 38018 | M150: 1 | O150: 4.533 | P150: 4.533 | S150: -40.6
A151: 274 | B151: 4.567 | C151: -40.6 | D151: -43 | E151: -44 | F151: -43.8 | G151: -42.9 | H151: -45.2 | I151: -63.7 | J151: 9999 | K151: ---- | L151: 38018 | M151: 10 | O151: 4.567 | P151: 4.567 | S151: -40.6
A152: 276 | B152: 4.6 | C152: -40.7 | D152: -43 | E152: -43.9 | F152: -43.8 | G152: -42.9 | H152: -45 | I152: -55.4 | J152: 9999 | K152: ---- | L152: 38018 | M152: 10 | O152: 4.6 | P152: 4.6 | S152: -40.7
A153: 278 | B153: 4.633 | C153: -40.6 | D153: -43 | E153: -44 | F153: -43.9 | G153: -42.9 | H153: -45 | I153: -59.9 | J153: 9999 | K153: ---- | L153: 38018 | M153: 7 | O153: 4.633 | P153: 4.633 | S153: -40.6
A154: 280 | B154: 4.667 | C154: -40.6 | D154: -43 | E154: -44 | F154: -43.7 | G154: -42.9 | H154: -45.1 | I154: -59.6 | J154: 9999 | K154: ---- | L154: 38018 | M154: 1 | O154: 4.667 | P154: 4.667 | S154: -40.6
A155: 282 | B155: 4.7 | C155: -40.7 | D155: -43 | E155: -44.2 | F155: -43.9 | G155: -43 | H155: -45.1 | I155: -59.8 | J155: 9999 | K155: ---- | L155: 38018 | M155: 12 | O155: 4.7 | P155: 4.7 | S155: -40.7
A156: 284 | B156: 4.733 | C156: -40.7 | D156: -43 | E156: -44.2 | F156: -43.9 | G156: -43 | H156: -45.2 | I156: -62.1 | J156: 9999 | K156: ---- | L156: 38018 | M156: 10 | O156: 4.733 | P156: 4.733 | S156: -40.7
A157: 286 | B157: 4.767 | C157: -40.6 | D157: -43.1 | E157: -44.2 | F157: -43.9 | G157: -43 | H157: -45 | I157: -58.8 | J157: 9999 | K157: ---- | L157: 38018 | M157: 1 | O157: 4.767 | P157: 4.767 | S157: -40.6
A158: 288 | B158: 4.8 | C158: -40.7 | D158: -43.1 | E158: -44.2 | F158: -43.9 | G158: -43 | H158: -45.2 | I158: -62.2 | J158: 9999 | K158: ---- | L158: 38018 | M158: 12 | O158: 4.8 | P158: 4.8 | S158: -40.7
A159: 290 | B159: 4.833 | C159: -40.7 | D159: -43.1 | E159: -44.2 | F159: -44 | G159: -43 | H159: -45 | I159: -58 | J159: 9999 | K159: ---- | L159: 38018 | M159: 10 | O159: 4.833 | P159: 4.833 | S159: -40.7
A160: 292 | B160: 4.867 | C160: -40.7 | D160: -43 | E160: -44.2 | F160: -43.9 | G160: -43 | H160: -45.1 | I160: -63.2 | J160: 9999 | K160: ---- | L160: 38018 | M160: 7 | O160: 4.867 | P160: 4.867 | S160: -40.7
A161: 294 | B161: 4.9 | C161: -40.7 | D161: -43.1 | E161: -44 | F161: -43.7 | G161: -42.9 | H161: -44.4 | I161: -59.7 | J161: 9999 | K161: ---- | L161: 38018 | M161: 1 | O161: 4.9 | P161: 4.9 | S161: -40.7
A162: 296 | B162: 4.933 | C162: -40.6 | D162: -43 | E162: -43.7 | F162: -43.6 | G162: -42.8 | H162: -44.4 | I162: -65 | J162: 9999 | K162: ---- | L162: 38018 | M162: 12 | O162: 4.933 | P162: 4.933 | S162: -40.6
A163: 298 | B163: 4.967 | C163: -40.6 | D163: -42.8 | E163: -43.5 | F163: -43.4 | G163: -42.6 | H163: -43.9 | I163: -58.6 | J163: 9999 | K163: ---- | L163: 38018 | M163: 10 | O163: 4.967 | P163: 4.967 | S163: -40.6
A164: 300 | B164: 5 | C164: -40.4 | D164: -42.6 | E164: -43.3 | F164: -43.2 | G164: -42.4 | H164: -43.4 | I164: -65.6 | J164: 9999 | K164: ---- | L164: 38018 | M164: 7 | O164: 5 | P164: 5 | S164: -40.4
A165: 302 | B165: 5.033 | C165: -40.2 | D165: -42.2 | E165: -42.9 | F165: -42.9 | G165: -42.1 | H165: -43 | I165: -59.2 | J165: 9999 | K165: ---- | L165: 38018 | M165: 1 | O165: 5.033 | P165: 5.033 | S165: -40.2
A166: 304 | B166: 5.067 | C166: -40 | D166: -42.1 | E166: -42.8 | F166: -42.6 | G166: -41.9 | H166: -42.8 | I166: -66.2 | J166: 9999 | K166: ---- | L166: 38018 | M166: 12 | O166: 5.067 | P166: 5.067 | S166: -40
A167: 306 | B167: 5.1 | C167: -39.9 | D167: -41.8 | E167: -42.3 | F167: -42.2 | G167: -41.6 | H167: -42.2 | I167: -63 | J167: 9999 | K167: ---- | L167: 38018 | M167: 10 | O167: 5.1 | P167: 5.1 | S167: -39.9
A168: 308 | B168: 5.133 | C168: -39.6 | D168: -41.6 | E168: -42 | F168: -42 | G168: -41.3 | H168: -41.9 | I168: -64.4 | J168: 9999 | K168: ---- | L168: 38018 | M168: 7 | O168: 5.133 | P168: 5.133 | S168: -39.6
A169: 310 | B169: 5.167 | C169: -39.4 | D169: -41.2 | E169: -41.7 | F169: -41.6 | G169: -41 | H169: -41.4 | I169: -63.3 | J169: 9999 | K169: ---- | L169: 38018 | M169: 1 | O169: 5.167 | P169: 5.167 | S169: -39.4
A170: 312 | B170: 5.2 | C170: -39.1 | D170: -41 | E170: -41.4 | F170: -41.3 | G170: -40.8 | H170: -41 | I170: -64.6 | J170: 9999 | K170: ---- | L170: 38018 | M170: 12 | O170: 5.2 | P170: 5.2 | S170: -39.1
A171: 314 | B171: 5.233 | C171: -38.8 | D171: -40.5 | E171: -41 | F171: -41 | G171: -40.4 | H171: -40.8 | I171: -65.1 | J171: 9999 | K171: ---- | L171: 38018 | M171: 10 | O171: 5.233 | P171: 5.233 | S171: -38.8
A172: 316 | B172: 5.267 | C172: -38.5 | D172: -40.3 | E172: -40.6 | F172: -40.6 | G172: -40 | H172: -40.2 | I172: -63.1 | J172: 9999 | K172: ---- | L172: 38018 | M172: 7 | O172: 5.267 | P172: 5.267 | S172: -38.5
A173: 318 | B173: 5.3 | C173: -38.2 | D173: -39.9 | E173: -40.2 | F173: -40.2 | G173: -39.7 | H173: -40 | I173: -66 | J173: 9999 | K173: ---- | L173: 38018 | M173: 1 | O173: 5.3 | P173: 5.3 | S173: -38.2
A174: 320 | B174: 5.333 | C174: -37.9 | D174: -39.6 | E174: -39.9 | F174: -39.9 | G174: -39.4 | H174: -39.2 | I174: -63.3 | J174: 9999 | K174: ---- | L174: 38018 | M174: 10 | O174: 5.333 | P174: 5.333 | S174: -37.9
A175: 322 | B175: 5.367 | C175: -37.6 | D175: -39.2 | E175: -39.6 | F175: -39.5 | G175: -39 | H175: -39.2 | I175: -65.5 | J175: 9999 | K175: ---- | L175: 38018 | M175: 7 | O175: 5.367 | P175: 5.367 | S175: -37.6
A176: 324 | B176: 5.4 | C176: -37.2 | D176: -38.9 | E176: -39.1 | F176: -39 | G176: -38.6 | H176: -38.3 | I176: -63.7 | J176: 9999 | K176: ---- | L176: 38018 | M176: 1 | O176: 5.4 | P176: 5.4 | S176: -37.2
A177: 326 | B177: 5.433 | C177: -37 | D177: -38.5 | E177: -38.8 | F177: -38.7 | G177: -38.3 | H177: -38.2 | I177: -66.5 | J177: 9999 | K177: ---- | L177: 38018 | M177: 12 | O177: 5.433 | P177: 5.433 | S177: -37
A178: 328 | B178: 5.467 | C178: -36.7 | D178: -38.1 | E178: -38.3 | F178: -38.4 | G178: -37.9 | H178: -37.6 | I178: -63.4 | J178: 9999 | K178: ---- | L178: 38018 | M178: 10 | O178: 5.467 | P178: 5.467 | S178: -36.7
A179: 330 | B179: 5.5 | C179: -36.3 | D179: -37.8 | E179: -38 | F179: -38 | G179: -37.6 | H179: -37.5 | I179: -66.1 | J179: 9999 | K179: ---- | L179: 38018 | M179: 7 | O179: 5.5 | P179: 5.5 | S179: -36.3
A180: 332 | B180: 5.533 | C180: -35.8 | D180: -37.3 | E180: -37.5 | F180: -37.5 | G180: -37.1 | H180: -36.7 | I180: -65.1 | J180: 9999 | K180: ---- | L180: 38018 | M180: 1 | O180: 5.533 | P180: 5.533 | S180: -35.8
A181: 334 | B181: 5.567 | C181: -35.6 | D181: -37 | E181: -37.1 | F181: -37.2 | G181: -36.8 | H181: -36.6 | I181: -66.7 | J181: 9999 | K181: ---- | L181: 38018 | M181: 12 | O181: 5.567 | P181: 5.567 | S181: -35.6
A182: 336 | B182: 5.6 | C182: -35.2 | D182: -36.7 | E182: -36.8 | F182: -36.8 | G182: -36.4 | H182: -36 | I182: -62.8 | J182: 9999 | K182: ---- | L182: 38018 | M182: 10 | O182: 5.6 | P182: 5.6 | S182: -35.2
A183: 338 | B183: 5.633 | C183: -34.9 | D183: -36.4 | E183: -36.5 | F183: -36.5 | G183: -36.1 | H183: -35.7 | I183: -67.4 | J183: 9999 | K183: ---- | L183: 38018 | M183: 7 | O183: 5.633 | P183: 5.633 | S183: -34.9
A184: 340 | B184: 5.667 | C184: -34.6 | D184: -35.9 | E184: -36 | F184: -36 | G184: -35.7 | H184: -35.3 | I184: -64.6 | J184: 9999 | K184: ---- | L184: 38018 | M184: 1 | O184: 5.667 | P184: 5.667 | S184: -34.6
A185: 342 | B185: 5.7 | C185: -34.1 | D185: -35.6 | E185: -35.7 | F185: -35.7 | G185: -35.3 | H185: -34.9 | I185: -67.1 | J185: 9999 | K185: ---- | L185: 38018 | M185: 12 | O185: 5.7 | P185: 5.7 | S185: -34.1
A186: 344 | B186: 5.733 | C186: -33.8 | D186: -35.2 | E186: -35.2 | F186: -35.4 | G186: -34.9 | H186: -34.4 | I186: -63.9 | J186: 9999 | K186: ---- | L186: 38018 | M186: 7 | O186: 5.733 | P186: 5.733 | S186: -33.8
A187: 346 | B187: 5.767 | C187: -33.5 | D187: -34.9 | E187: -35 | F187: -34.9 | G187: -34.6 | H187: -34 | I187: -67.7 | J187: 9999 | K187: ---- | L187: 38018 | M187: 7 | O187: 5.767 | P187: 5.767 | S187: -33.5
A188: 348 | B188: 5.8 | C188: -33.1 | D188: -34.3 | E188: -34.4 | F188: -34.6 | G188: -34.2 | H188: -33.8 | I188: -65.6 | J188: 9999 | K188: ---- | L188: 38018 | M188: 12 | O188: 5.8 | P188: 5.8 | S188: -33.1
A189: 350 | B189: 5.833 | C189: -32.7 | D189: -34 | E189: -34 | F189: -34 | G189: -33.7 | H189: -33.2 | I189: -67.1 | J189: 9999 | K189: ---- | L189: 38018 | M189: 10 | O189: 5.833 | P189: 5.833 | S189: -32.7
A190: 352 | B190: 5.867 | C190: -32.4 | D190: -33.6 | E190: -33.7 | F190: -33.7 | G190: -33.4 | H190: -32.8 | I190: -66.1 | J190: 9999 | K190: ---- | L190: 38018 | M190: 7 | O190: 5.867 | P190: 5.867 | S190: -32.4
A191: 354 | B191: 5.9 | C191: -32 | D191: -33.3 | E191: -33.4 | F191: -33.4 | G191: -33.1 | H191: -32.3 | I191: -66.4 | J191: 9999 | K191: ---- | L191: 38018 | M191: 1 | O191: 5.9 | P191: 5.9 | S191: -32
A192: 356 | B192: 5.933 | C192: -31.7 | D192: -32.8 | E192: -33 | F192: -32.8 | G192: -32.6 | H192: -32.3 | I192: -66.3 | J192: 9999 | K192: ---- | L192: 38018 | M192: 12 | O192: 5.933 | P192: 5.933 | S192: -31.7
A193: 358 | B193: 5.967 | C193: -31.4 | D193: -32.5 | E193: -32.5 | F193: -32.5 | G193: -32.3 | H193: -31.6 | I193: -66.4 | J193: 9999 | K193: ---- | L193: 38018 | M193: 10 | O193: 5.967 | P193: 5.967 | S193: -31.4
A194: 360 | B194: 6 | C194: -30.9 | D194: -32 | E194: -32.1 | F194: -32.2 | G194: -31.8 | H194: -31.4 | I194: -67 | J194: 9999 | K194: ---- | L194: 38018 | M194: 7 | O194: 6 | P194: 6 | S194: -30.9
A195: 362 | B195: 6.033 | C195: -30.6 | D195: -31.7 | E195: -31.8 | F195: -31.8 | G195: -31.5 | H195: -30.6 | I195: -64.7 | J195: 9999 | K195: ---- | L195: 38018 | M195: 1 | O195: 6.033 | P195: 6.033 | S195: -30.6
A196: 364 | B196: 6.067 | C196: -30.2 | D196: -31.4 | E196: -31.5 | F196: -31.5 | G196: -31.2 | H196: -30.6 | I196: -66.9 | J196: 9999 | K196: ---- | L196: 38018 | M196: 12 | O196: 6.067 | P196: 6.067 | S196: -30.2
A197: 366 | B197: 6.1 | C197: -29.9 | D197: -30.9 | E197: -30.9 | F197: -31 | G197: -30.7 | H197: -29.9 | I197: -64.6 | J197: 9999 | K197: ---- | L197: 38018 | M197: 10 | O197: 6.1 | P197: 6.1 | S197: -29.9
A198: 368 | B198: 6.133 | C198: -29.4 | D198: -30.6 | E198: -30.5 | F198: -30.6 | G198: -30.3 | H198: -29.5 | I198: -67.2 | J198: 9999 | K198: ---- | L198: 38018 | M198: 7 | O198: 6.133 | P198: 6.133 | S198: -29.4
A199: 370 | B199: 6.167 | C199: -29.1 | D199: -30.2 | E199: -30.2 | F199: -30.2 | G199: -30 | H199: -29.2 | I199: -65.5 | J199: 9999 | K199: ---- | L199: 38018 | M199: 1 | O199: 6.167 | P199: 6.167 | S199: -29.1
A200: 372 | B200: 6.2 | C200: -28.8 | D200: -29.8 | E200: -29.9 | F200: -29.9 | G200: -29.7 | H200: -28.8 | I200: -68 | J200: 9999 | K200: ---- | L200: 38018 | M200: 12 | O200: 6.2 | P200: 6.2 | S200: -28.8
A201: 374 | B201: 6.233 | C201: -28.4 | D201: -29.3 | E201: -29.4 | F201: -29.4 | G201: -29.2 | H201: -28.3 | I201: -64.8 | J201: 9999 | K201: ---- | L201: 38018 | M201: 7 | O201: 6.233 | P201: 6.233 | S201: -28.4
A202: 376 | B202: 6.267 | C202: -27.9 | D202: -28.9 | E202: -29 | F202: -29 | G202: -28.8 | H202: -27.9 | I202: -67.8 | J202: 9999 | K202: ---- | L202: 38018 | M202: 1 | O202: 6.267 | P202: 6.267 | S202: -27.9
A203: 378 | B203: 6.3 | C203: -27.6 | D203: -28.5 | E203: -28.5 | F203: -28.7 | G203: -28.4 | H203: -27.6 | I203: -66.1 | J203: 9999 | K203: ---- | L203: 38018 | M203: 1 | O203: 6.3 | P203: 6.3 | S203: -27.6
A204: 380 | B204: 6.333 | C204: -27.3 | D204: -28.2 | E204: -28.4 | F204: -28.3 | G204: -28.1 | H204: -27.3 | I204: -68.1 | J204: 9999 | K204: ---- | L204: 38018 | M204: 10 | O204: 6.333 | P204: 6.333 | S204: -27.3
... 2477 more rows

Sheet Process data log-ppt-S1
K13: Order | L13: 2 | M13: 1 | N13: 0
K14: Trend 1 TC | L14: =LINEST('Process data log-S1'!$S$60:$S$71, 'Process data log-S1'!$B$60:$B$71^{1,2}, TRUE) -> 15.48681618 | M14: -79.9429008 | N14: 86.49968668
K15: Nucleation time | L15: 1.967
K16: Tn | L16: =$L$14*L15^$L$13+$M$14*L15^$M$13+$N$14*L15^$N$13 -> -10.82812906

Sheet Data from RelaxIS-S1
A1: 0z to 150z (0-5 h) 5%Sucrose
A3: RelaxIS 3.0 Spectrum export
A4: Date: 30/01/2019 10:44:18
A5: Data: Frequency | B5: Data: C' | C5: Data: C'' | D5: Data: Frequency | E5: Data: C' | F5: Data: C'' | G5: Data: Frequency | H5: Data: C' | I5: Data: C'' | J5: Data: Frequency | K5: Data: C' | L5: Data: C'' | M5: Data: Frequency | N5: Data: C' | O5: Data: C'' | P5: Data: Frequency | Q5: Data: C' | R5: Data: C'' | S5: Data: Frequency | T5: Data: C' | U5: Data: C'' | V5: Data: Frequency | W5: Data: C' | X5: Data: C'' | Y5: Data: Frequency | Z5: Data: C' | AA5: Data: C'' | AB5: Data: Frequency | AC5: Data: C' | AD5: Data: C'' | AE5: Data: Frequency | AF5: Data: C' | AG5: Data: C'' | AH5: Data: Frequency | AI5: Data: C' | AJ5: Data: C'' | AK5: Data: Frequency | AL5: Data: C' | AM5: Data: C'' | AN5: Data: Frequency | AO5: Data: C' | AP5: Data: C'' | AQ5: Data: Frequency | AR5: Data: C' | AS5: Data: C'' | AT5: Data: Frequency | AU5: Data: C' | AV5: Data: C'' | AW5: Data: Frequency | AX5: Data: C' | AY5: Data: C'' | AZ5: Data: Frequency | BA5: Data: C' | BB5: Data: C'' | BC5: Data: Frequency | BD5: Data: C' | BE5: Data: C'' | BF5: Data: Frequency | BG5: Data: C' | BH5: Data: C'' | BI5: Data: Frequency | BJ5: Data: C' | BK5: Data: C'' | BL5: Data: Frequency | BM5: Data: C' | BN5: Data: C'' | BO5: Data: Frequency | BP5: Data: C' | BQ5: Data: C'' | BR5: Data: Frequency | BS5: Data: C' | BT5: Data: C'' | BU5: Data: Frequency | BV5: Data: C' | BW5: Data: C'' | BX5: Data: Frequency | BY5: Data: C' | BZ5: Data: C'' | CA5: Data: Frequency | CB5: Data: C' | CC5: Data: C'' | CD5: Data: Frequency | CE5: Data: C' | CF5: Data: C'' | CG5: Data: Frequency | CH5: Data: C' | CI5: Data: C'' | CJ5: Data: Frequency | CK5: Data: C' | CL5: Data: C'' | CM5: Data: Frequency | CN5: Data: C' | CO5: Data: C'' | CP5: Data: Frequency | CQ5: Data: C' | CR5: Data: C'' | CS5: Data: Frequency | CT5: Data: C' | CU5: Data: C'' | CV5: Data: Frequency | CW5: Data: C' | CX5: Data: C'' | CY5: Data: Frequency | CZ5: Data: C' | DA5: Data: C'' | DB5: Data: Frequency | DC5: Data: C' | DD5: Data: C'' | DE5: Data: Frequency | DF5: Data: C' | DG5: Data: C'' | DH5: Data: Frequency | DI5: Data: C' | DJ5: Data: C'' | DK5: Data: Frequency | DL5: Data: C' | DM5: Data: C'' | DN5: Data: Frequency | DO5: Data: C' | DP5: Data: C'' | DQ5: Data: Frequency | DR5: Data: C' | DS5: Data: C'' | DT5: Data: Frequency | DU5: Data: C' | DV5: Data: C'' | DW5: Data: Frequency | DX5: Data: C' | DY5: Data: C'' | DZ5: Data: Frequency | EA5: Data: C' | EB5: Data: C'' | EC5: Data: Frequency | ED5: Data: C' | EE5: Data: C'' | EF5: Data: Frequency | EG5: Data: C' | EH5: Data: C'' | EI5: Data: Frequency | EJ5: Data: C' | EK5: Data: C'' | EL5: Data: Frequency | EM5: Data: C' | EN5: Data: C'' | EO5: Data: Frequency | EP5: Data: C' | EQ5: Data: C'' | ER5: Data: Frequency | ES5: Data: C' | ET5: Data: C'' | EU5: Data: Frequency | EV5: Data: C' | EW5: Data: C'' | EX5: Data: Frequency | EY5: Data: C' | EZ5: Data: C'' | FA5: Data: Frequency | FB5: Data: C' | FC5: Data: C'' | FD5: Data: Frequency | FE5: Data: C' | FF5: Data: C'' | FG5: Data: Frequency | FH5: Data: C' | FI5: Data: C'' | FJ5: Data: Frequency | FK5: Data: C' | FL5: Data: C'' | FM5: Data: Frequency | FN5: Data: C' | FO5: Data: C'' | FP5: Data: Frequency | FQ5: Data: C' | FR5: Data: C'' | FS5: Data: Frequency | FT5: Data: C' | FU5: Data: C'' | FV5: Data: Frequency | FW5: Data: C' | FX5: Data: C'' | FY5: Data: Frequency | FZ5: Data: C' | GA5: Data: C'' | GB5: Data: Frequency | GC5: Data: C' | GD5: Data: C'' | GE5: Data: Frequency | GF5: Data: C' | GG5: Data: C'' | GH5: Data: Frequency | GI5: Data: C' | GJ5: Data: C'' | GK5: Data: Frequency | GL5: Data: C' | GM5: Data: C'' | GN5: Data: Frequency | GO5: Data: C' | GP5: Data: C'' | GQ5: Data: Frequency | GR5: Data: C' | GS5: Data: C'' | GT5: Data: Frequency | GU5: Data: C' | GV5: Data: C'' | GW5: Data: Frequency | GX5: Data: C' | GY5: Data: C'' | GZ5: Data: Frequency | HA5: Data: C' | HB5: Data: C'' | HC5: Data: Frequency | HD5: Data: C' | HE5: Data: C'' | HF5: Data: Frequency | HG5: Data: C' | HH5: Data: C'' | HI5: Data: Frequency | HJ5: Data: C' | HK5: Data: C'' | HL5: Data: Frequency | HM5: Data: C' | HN5: Data: C'' | HO5: Data: Frequency | HP5: Data: C' | HQ5: Data: C'' | HR5: Data: Frequency | HS5: Data: C' | HT5: Data: C'' | HU5: Data: Frequency | HV5: Data: C' | HW5: Data: C'' | HX5: Data: Frequency | HY5: Data: C' | HZ5: Data: C'' | IA5: Data: Frequency | IB5: Data: C' | IC5: Data: C'' | ID5: Data: Frequency | IE5: Data: C' | IF5: Data: C'' | IG5: Data: Frequency | IH5: Data: C' | II5: Data: C'' | IJ5: Data: Frequency | IK5: Data: C' | IL5: Data: C'' | IM5: Data: Frequency | IN5: Data: C' | IO5: Data: C'' | IP5: Data: Frequency | IQ5: Data: C' | IR5: Data: C'' | IS5: Data: Frequency | IT5: Data: C' | IU5: Data: C'' | IV5: Data: Frequency | IW5: Data: C' | IX5: Data: C'' | IY5: Data: Frequency | IZ5: Data: C' | JA5: Data: C'' | JB5: Data: Frequency | JC5: Data: C' | JD5: Data: C'' | JE5: Data: Frequency | JF5: Data: C' | JG5: Data: C'' | JH5: Data: Frequency | JI5: Data: C' | JJ5: Data: C'' | JK5: Data: Frequency | JL5: Data: C' | JM5: Data: C'' | JN5: Data: Frequency | JO5: Data: C' | JP5: Data: C'' | JQ5: Data: Frequency | JR5: Data: C' | JS5: Data: C'' | JT5: Data: Frequency | JU5: Data: C' | JV5: Data: C'' | JW5: Data: Frequency | JX5: Data: C' | JY5: Data: C'' | JZ5: Data: Frequency | KA5: Data: C' | KB5: Data: C'' | KC5: Data: Frequency | KD5: Data: C' | KE5: Data: C'' | KF5: Data: Frequency | KG5: Data: C' | KH5: Data: C'' | KI5: Data: Frequency | KJ5: Data: C' | KK5: Data: C'' | KL5: Data: Frequency | KM5: Data: C' | KN5: Data: C'' | KO5: Data: Frequency | KP5: Data: C' | KQ5: Data: C'' | KR5: Data: Frequency | KS5: Data: C' | KT5: Data: C'' | KU5: Data: Frequency | KV5: Data: C' | KW5: Data: C'' | KX5: Data: Frequency | KY5: Data: C' | KZ5: Data: C'' | LA5: Data: Frequency | LB5: Data: C' | LC5: Data: C'' | LD5: Data: Frequency | LE5: Data: C' | LF5: Data: C'' | LG5: Data: Frequency | LH5: Data: C' | LI5: Data: C'' | LJ5: Data: Frequency | LK5: Data: C' | LL5: Data: C'' | LM5: Data: Frequency | LN5: Data: C' | LO5: Data: C'' | LP5: Data: Frequency | LQ5: Data: C' | LR5: Data: C'' | LS5: Data: Frequency | LT5: Data: C' | LU5: Data: C'' | LV5: Data: Frequency | LW5: Data: C' | LX5: Data: C'' | LY5: Data: Frequency | LZ5: Data: C' | MA5: Data: C'' | MB5: Data: Frequency | MC5: Data: C' | MD5: Data: C'' | ME5: Data: Frequency | MF5: Data: C' | MG5: Data: C'' | MH5: Data: Frequency | MI5: Data: C' | MJ5: Data: C'' | MK5: Data: Frequency | ML5: Data: C' | MM5: Data: C'' | MN5: Data: Frequency | MO5: Data: C' | MP5: Data: C'' | MQ5: Data: Frequency | MR5: Data: C' | MS5: Data: C'' | MT5: Data: Frequency | MU5: Data: C' | MV5: Data: C'' | MW5: Data: Frequency | MX5: Data: C' | MY5: Data: C'' | MZ5: Data: Frequency | NA5: Data: C' | NB5: Data: C'' | NC5: Data: Frequency | ND5: Data: C' | NE5: Data: C'' | NF5: Data: Frequency | NG5: Data: C' | NH5: Data: C'' | NI5: Data: Frequency | NJ5: Data: C' | NK5: Data: C'' | NL5: Data: Frequency | NM5: Data: C' | NN5: Data: C'' | NO5: Data: Frequency | NP5: Data: C' | NQ5: Data: C'' | NR5: Data: Frequency | NS5: Data: C' | NT5: Data: C'' | NU5: Data: Frequency | NV5: Data: C' | NW5: Data: C'' | NX5: Data: Frequency | NY5: Data: C' | NZ5: Data: C'' | OA5: Data: Frequency | OB5: Data: C' | OC5: Data: C'' | OD5: Data: Frequency | OE5: Data: C' | OF5: Data: C'' | OG5: Data: Frequency | OH5: Data: C' | OI5: Data: C'' | OJ5: Data: Frequency | OK5: Data: C' | OL5: Data: C'' | OM5: Data: Frequency | ON5: Data: C' | OO5: Data: C'' | OP5: Data: Frequency | OQ5: Data: C' | OR5: Data: C'' | OS5: Data: Frequency | OT5: Data: C' | OU5: Data: C'' | OV5: Data: Frequency | OW5: Data: C' | OX5: Data: C'' | OY5: Data: Frequency | OZ5: Data: C' | PA5: Data: C'' | PB5: Data: Frequency | PC5: Data: C' | PD5: Data: C'' | PE5: Data: Frequency | PF5: Data: C' | PG5: Data: C'' | PH5: Data: Frequency | PI5: Data: C' | PJ5: Data: C'' | PK5: Data: Frequency | PL5: Data: C' | PM5: Data: C'' | PN5: Data: Frequency | PO5: Data: C' | PP5: Data: C'' | PQ5: Data: Frequency | PR5: Data: C' | PS5: Data: C'' | PT5: Data: Frequency | PU5: Data: C' | PV5: Data: C'' | PW5: Data: Frequency | PX5: Data: C' | PY5: Data: C'' | PZ5: Data: Frequency | QA5: Data: C' | QB5: Data: C'' | QC5: Data: Frequency | QD5: Data: C' | QE5: Data: C'' | QF5: Data: Frequency | QG5: Data: C' | QH5: Data: C'' | QI5: Data: Frequency | QJ5: Data: C' | QK5: Data: C''
A6: Glass transition and colllapse of Sucrose-NaCl_221118_Ch1_0.z_1 | B6: DC=0 | D6: Glass transition and colllapse of Sucrose-NaCl_221118_Ch1_1.z_1 | E6: DC=0 | G6: Glass transition and colllapse of Sucrose-NaCl_221118_Ch1_2.z_1 | H6: DC=0 | J6: Glass transition and colllapse of Sucrose-NaCl_221118_Ch1_3.z_1 | K6: DC=0 | M6: Glass transition and colllapse of Sucrose-NaCl_221118_Ch1_4.z_1 | N6: DC=0 | P6: Glass transition and colllapse of Sucrose-NaCl_221118_Ch1_5.z_1 | Q6: DC=0 | S6: Glass transition and colllapse of Sucrose-NaCl_221118_Ch1_6.z_1 | T6: DC=0 | V6: Glass transition and colllapse of Sucrose-NaCl_221118_Ch1_7.z_1 | W6: DC=0 | Y6: Glass transition and colllapse of Sucrose-NaCl_221118_Ch1_8.z_1 | Z6: DC=0 | AB6: Glass transition and colllapse of Sucrose-NaCl_221118_Ch1_9.z_1 | AC6: DC=0 | AE6: Glass transition and colllapse of Sucrose-NaCl_221118_Ch1_10.z_1 | AF6: DC=0 | AH6: Glass transition and colllapse of Sucrose-NaCl_221118_Ch1_11.z_1 | AI6: DC=0 | AK6: Glass transition and colllapse of Sucrose-NaCl_221118_Ch1_12.z_1 | AL6: DC=0 | AN6: Glass transition and colllapse of Sucrose-NaCl_221118_Ch1_13.z_1 | AO6: DC=0 | AQ6: Glass transition and colllapse of Sucrose-NaCl_221118_Ch1_14.z_1 | AR6: DC=0 | AT6: Glass transition and colllapse of Sucrose-NaCl_221118_Ch1_15.z_1 | AU6: DC=0 | AW6: Glass transition and colllapse of Sucrose-NaCl_221118_Ch1_16.z_1 | AX6: DC=0 | AZ6: Glass transition and colllapse of Sucrose-NaCl_221118_Ch1_17.z_1 | BA6: DC=0 | BC6: Glass transition and colllapse of Sucrose-NaCl_221118_Ch1_18.z_1 | BD6: DC=0 | BF6: Glass transition and colllapse of Sucrose-NaCl_221118_Ch1_19.z_1 | BG6: DC=0 | BI6: Glass transition and colllapse of Sucrose-NaCl_221118_Ch1_20.z_1 | BJ6: DC=0 | BL6: Glass transition and colllapse of Sucrose-NaCl_221118_Ch1_21.z_1 | BM6: DC=0 | BO6: Glass transition and colllapse of Sucrose-NaCl_221118_Ch1_22.z_1 | BP6: DC=0 | BR6: Glass transition and colllapse of Sucrose-NaCl_221118_Ch1_23.z_1 | BS6: DC=0 | BU6: Glass transition and colllapse of Sucrose-NaCl_221118_Ch1_24.z_1 | BV6: DC=0 | BX6: Glass transition and colllapse of Sucrose-NaCl_221118_Ch1_25.z_1 | BY6: DC=0 | CA6: Glass transition and colllapse of Sucrose-NaCl_221118_Ch1_26.z_1 | CB6: DC=0 | CD6: Glass transition and colllapse of Sucrose-NaCl_221118_Ch1_27.z_1 | CE6: DC=0 | CG6: Glass transition and colllapse of Sucrose-NaCl_221118_Ch1_28.z_1 | CH6: DC=0 | CJ6: Glass transition and colllapse of Sucrose-NaCl_221118_Ch1_29.z_1 | CK6: DC=0 | CM6: Glass transition and colllapse of Sucrose-NaCl_221118_Ch1_30.z_1 | CN6: DC=0 | CP6: Glass transition and colllapse of Sucrose-NaCl_221118_Ch1_31.z_1 | CQ6: DC=0 | CS6: Glass transition and colllapse of Sucrose-NaCl_221118_Ch1_32.z_1 | CT6: DC=0 | CV6: Glass transition and colllapse of Sucrose-NaCl_221118_Ch1_33.z_1 | CW6: DC=0 | CY6: Glass transition and colllapse of Sucrose-NaCl_221118_Ch1_34.z_1 | CZ6: DC=0 | DB6: Glass transition and colllapse of Sucrose-NaCl_221118_Ch1_35.z_1 | DC6: DC=0 | DE6: Glass transition and colllapse of Sucrose-NaCl_221118_Ch1_36.z_1 | DF6: DC=0 | DH6: Glass transition and colllapse of Sucrose-NaCl_221118_Ch1_37.z_1 | DI6: DC=0 | DK6: Glass transition and colllapse of Sucrose-NaCl_221118_Ch1_38.z_1 | DL6: DC=0 | DN6: Glass transition and colllapse of Sucrose-NaCl_221118_Ch1_39.z_1 | DO6: DC=0 | DQ6: Glass transition and colllapse of Sucrose-NaCl_221118_Ch1_40.z_1 | DR6: DC=0 | DT6: Glass transition and colllapse of Sucrose-NaCl_221118_Ch1_41.z_1 | DU6: DC=0 | DW6: Glass transition and colllapse of Sucrose-NaCl_221118_Ch1_42.z_1 | DX6: DC=0 | DZ6: Glass transition and colllapse of Sucrose-NaCl_221118_Ch1_43.z_1 | EA6: DC=0 | EC6: Glass transition and colllapse of Sucrose-NaCl_221118_Ch1_44.z_1 | ED6: DC=0 | EF6: Glass transition and colllapse of Sucrose-NaCl_221118_Ch1_45.z_1 | EG6: DC=0 | EI6: Glass transition and colllapse of Sucrose-NaCl_221118_Ch1_46.z_1 | EJ6: DC=0 | EL6: Glass transition and colllapse of Sucrose-NaCl_221118_Ch1_47.z_1 | EM6: DC=0 | EO6: Glass transition and colllapse of Sucrose-NaCl_221118_Ch1_48.z_1 | EP6: DC=0 | ER6: Glass transition and colllapse of Sucrose-NaCl_221118_Ch1_49.z_1 | ES6: DC=0 | EU6: Glass transition and colllapse of Sucrose-NaCl_221118_Ch1_50.z_1 | EV6: DC=0 | EX6: Glass transition and colllapse of Sucrose-NaCl_221118_Ch1_51.z_1 | EY6: DC=0 | FA6: Glass transition and colllapse of Sucrose-NaCl_221118_Ch1_52.z_1 | FB6: DC=0 | FD6: Glass transition and colllapse of Sucrose-NaCl_221118_Ch1_53.z_1 | FE6: DC=0 | FG6: Glass transition and colllapse of Sucrose-NaCl_221118_Ch1_54.z_1 | FH6: DC=0 | FJ6: Glass transition and colllapse of Sucrose-NaCl_221118_Ch1_55.z_1 | FK6: DC=0 | FM6: Glass transition and colllapse of Sucrose-NaCl_221118_Ch1_56.z_1 | FN6: DC=0 | FP6: Glass transition and colllapse of Sucrose-NaCl_221118_Ch1_57.z_1 | FQ6: DC=0 | FS6: Glass transition and colllapse of Sucrose-NaCl_221118_Ch1_58.z_1 | FT6: DC=0 | FV6: Glass transition and colllapse of Sucrose-NaCl_221118_Ch1_59.z_1 | FW6: DC=0 | FY6: Glass transition and colllapse of Sucrose-NaCl_221118_Ch1_60.z_1 | FZ6: DC=0 | GB6: Glass transition and colllapse of Sucrose-NaCl_221118_Ch1_61.z_1 | GC6: DC=0 | GE6: Glass transition and colllapse of Sucrose-NaCl_221118_Ch1_62.z_1 | GF6: DC=0 | GH6: Glass transition and colllapse of Sucrose-NaCl_221118_Ch1_63.z_1 | GI6: DC=0 | GK6: Glass transition and colllapse of Sucrose-NaCl_221118_Ch1_64.z_1 | GL6: DC=0 | GN6: Glass transition and colllapse of Sucrose-NaCl_221118_Ch1_65.z_1 | GO6: DC=0 | GQ6: Glass transition and colllapse of Sucrose-NaCl_221118_Ch1_66.z_1 | GR6: DC=0 | GT6: Glass transition and colllapse of Sucrose-NaCl_221118_Ch1_67.z_1 | GU6: DC=0 | GW6: Glass transition and colllapse of Sucrose-NaCl_221118_Ch1_68.z_1 | GX6: DC=0 | GZ6: Glass transition and colllapse of Sucrose-NaCl_221118_Ch1_69.z_1 | HA6: DC=0 | HC6: Glass transition and colllapse of Sucrose-NaCl_221118_Ch1_70.z_1 | HD6: DC=0 | HF6: Glass transition and colllapse of Sucrose-NaCl_221118_Ch1_71.z_1 | HG6: DC=0 | HI6: Glass transition and colllapse of Sucrose-NaCl_221118_Ch1_72.z_1 | HJ6: DC=0 | HL6: Glass transition and colllapse of Sucrose-NaCl_221118_Ch1_73.z_1 | HM6: DC=0 | HO6: Glass transition and colllapse of Sucrose-NaCl_221118_Ch1_74.z_1 | HP6: DC=0 | HR6: Glass transition and colllapse of Sucrose-NaCl_221118_Ch1_75.z_1 | HS6: DC=0 | HU6: Glass transition and colllapse of Sucrose-NaCl_221118_Ch1_76.z_1 | HV6: DC=0 | HX6: Glass transition and colllapse of Sucrose-NaCl_221118_Ch1_77.z_1 | HY6: DC=0 | IA6: Glass transition and colllapse of Sucrose-NaCl_221118_Ch1_78.z_1 | IB6: DC=0 | ID6: Glass transition and colllapse of Sucrose-NaCl_221118_Ch1_79.z_1 | IE6: DC=0 | IG6: Glass transition and colllapse of Sucrose-NaCl_221118_Ch1_80.z_1 | IH6: DC=0 | IJ6: Glass transition and colllapse of Sucrose-NaCl_221118_Ch1_81.z_1 | IK6: DC=0 | IM6: Glass transition and colllapse of Sucrose-NaCl_221118_Ch1_82.z_1 | IN6: DC=0 | IP6: Glass transition and colllapse of Sucrose-NaCl_221118_Ch1_83.z_1 | IQ6: DC=0 | IS6: Glass transition and colllapse of Sucrose-NaCl_221118_Ch1_84.z_1 | IT6: DC=0 | IV6: Glass transition and colllapse of Sucrose-NaCl_221118_Ch1_85.z_1 | IW6: DC=0 | IY6: Glass transition and colllapse of Sucrose-NaCl_221118_Ch1_86.z_1 | IZ6: DC=0 | JB6: Glass transition and colllapse of Sucrose-NaCl_221118_Ch1_87.z_1 | JC6: DC=0 | JE6: Glass transition and colllapse of Sucrose-NaCl_221118_Ch1_88.z_1 | JF6: DC=0 | JH6: Glass transition and colllapse of Sucrose-NaCl_221118_Ch1_89.z_1 | JI6: DC=0 | JK6: Glass transition and colllapse of Sucrose-NaCl_221118_Ch1_90.z_1 | JL6: DC=0 | JN6: Glass transition and colllapse of Sucrose-NaCl_221118_Ch1_91.z_1 | JO6: DC=0 | JQ6: Glass transition and colllapse of Sucrose-NaCl_221118_Ch1_92.z_1 | JR6: DC=0 | JT6: Glass transition and colllapse of Sucrose-NaCl_221118_Ch1_93.z_1 | JU6: DC=0 | JW6: Glass transition and colllapse of Sucrose-NaCl_221118_Ch1_94.z_1 | JX6: DC=0 | JZ6: Glass transition and colllapse of Sucrose-NaCl_221118_Ch1_95.z_1 | KA6: DC=0 | KC6: Glass transition and colllapse of Sucrose-NaCl_221118_Ch1_96.z_1 | KD6: DC=0 | KF6: Glass transition and colllapse of Sucrose-NaCl_221118_Ch1_97.z_1 | KG6: DC=0 | KI6: Glass transition and colllapse of Sucrose-NaCl_221118_Ch1_98.z_1 | KJ6: DC=0 | KL6: Glass transition and colllapse of Sucrose-NaCl_221118_Ch1_99.z_1 | KM6: DC=0 | KO6: Glass transition and colllapse of Sucrose-NaCl_221118_Ch1_100.z_1 | KP6: DC=0 | KR6: Glass transition and colllapse of Sucrose-NaCl_221118_Ch1_101.z_1 | KS6: DC=0 | KU6: Glass transition and colllapse of Sucrose-NaCl_221118_Ch1_102.z_1 | KV6: DC=0 | KX6: Glass transition and colllapse of Sucrose-NaCl_221118_Ch1_103.z_1 | KY6: DC=0 | LA6: Glass transition and colllapse of Sucrose-NaCl_221118_Ch1_104.z_1 | LB6: DC=0 | LD6: Glass transition and colllapse of Sucrose-NaCl_221118_Ch1_105.z_1 | LE6: DC=0 | LG6: Glass transition and colllapse of Sucrose-NaCl_221118_Ch1_106.z_1 | LH6: DC=0 | LJ6: Glass transition and colllapse of Sucrose-NaCl_221118_Ch1_107.z_1 | LK6: DC=0 | LM6: Glass transition and colllapse of Sucrose-NaCl_221118_Ch1_108.z_1 | LN6: DC=0 | LP6: Glass transition and colllapse of Sucrose-NaCl_221118_Ch1_109.z_1 | LQ6: DC=0 | LS6: Glass transition and colllapse of Sucrose-NaCl_221118_Ch1_110.z_1 | LT6: DC=0 | LV6: Glass transition and colllapse of Sucrose-NaCl_221118_Ch1_111.z_1 | LW6: DC=0 | LY6: Glass transition and colllapse of Sucrose-NaCl_221118_Ch1_112.z_1 | LZ6: DC=0 | MB6: Glass transition and colllapse of Sucrose-NaCl_221118_Ch1_113.z_1 | MC6: DC=0 | ME6: Glass transition and colllapse of Sucrose-NaCl_221118_Ch1_114.z_1 | MF6: DC=0 | MH6: Glass transition and colllapse of Sucrose-NaCl_221118_Ch1_115.z_1 | MI6: DC=0 | MK6: Glass transition and colllapse of Sucrose-NaCl_221118_Ch1_116.z_1 | ML6: DC=0 | MN6: Glass transition and colllapse of Sucrose-NaCl_221118_Ch1_117.z_1 | MO6: DC=0 | MQ6: Glass transition and colllapse of Sucrose-NaCl_221118_Ch1_118.z_1 | MR6: DC=0 | MT6: Glass transition and colllapse of Sucrose-NaCl_221118_Ch1_119.z_1 | MU6: DC=0 | MW6: Glass transition and colllapse of Sucrose-NaCl_221118_Ch1_120.z_1 | MX6: DC=0 | MZ6: Glass transition and colllapse of Sucrose-NaCl_221118_Ch1_121.z_1 | NA6: DC=0 | NC6: Glass transition and colllapse of Sucrose-NaCl_221118_Ch1_122.z_1 | ND6: DC=0 | NF6: Glass transition and colllapse of Sucrose-NaCl_221118_Ch1_123.z_1 | NG6: DC=0 | NI6: Glass transition and colllapse of Sucrose-NaCl_221118_Ch1_124.z_1 | NJ6: DC=0 | NL6: Glass transition and colllapse of Sucrose-NaCl_221118_Ch1_125.z_1 | NM6: DC=0 | NO6: Glass transition and colllapse of Sucrose-NaCl_221118_Ch1_126.z_1 | NP6: DC=0 | NR6: Glass transition and colllapse of Sucrose-NaCl_221118_Ch1_127.z_1 | NS6: DC=0 | NU6: Glass transition and colllapse of Sucrose-NaCl_221118_Ch1_128.z_1 | NV6: DC=0 | NX6: Glass transition and colllapse of Sucrose-NaCl_221118_Ch1_129.z_1 | NY6: DC=0 | OA6: Glass transition and colllapse of Sucrose-NaCl_221118_Ch1_130.z_1 | OB6: DC=0 | OD6: Glass transition and colllapse of Sucrose-NaCl_221118_Ch1_131.z_1 | OE6: DC=0 | OG6: Glass transition and colllapse of Sucrose-NaCl_221118_Ch1_132.z_1 | OH6: DC=0 | OJ6: Glass transition and colllapse of Sucrose-NaCl_221118_Ch1_133.z_1 | OK6: DC=0 | OM6: Glass transition and colllapse of Sucrose-NaCl_221118_Ch1_134.z_1 | ON6: DC=0 | OP6: Glass transition and colllapse of Sucrose-NaCl_221118_Ch1_135.z_1 | OQ6: DC=0 | OS6: Glass transition and colllapse of Sucrose-NaCl_221118_Ch1_136.z_1 | OT6: DC=0 | OV6: Glass transition and colllapse of Sucrose-NaCl_221118_Ch1_137.z_1 | OW6: DC=0 | OY6: Glass transition and colllapse of Sucrose-NaCl_221118_Ch1_138.z_1 | OZ6: DC=0 | PB6: Glass transition and colllapse of Sucrose-NaCl_221118_Ch1_139.z_1 | PC6: DC=0 | PE6: Glass transition and colllapse of Sucrose-NaCl_221118_Ch1_140.z_1 | PF6: DC=0 | PH6: Glass transition and colllapse of Sucrose-NaCl_221118_Ch1_141.z_1 | PI6: DC=0 | PK6: Glass transition and colllapse of Sucrose-NaCl_221118_Ch1_142.z_1 | PL6: DC=0 | PN6: Glass transition and colllapse of Sucrose-NaCl_221118_Ch1_143.z_1 | PO6: DC=0 | PQ6: Glass transition and colllapse of Sucrose-NaCl_221118_Ch1_144.z_1 | PR6: DC=0 | PT6: Glass transition and colllapse of Sucrose-NaCl_221118_Ch1_145.z_1 | PU6: DC=0 | PW6: Glass transition and colllapse of Sucrose-NaCl_221118_Ch1_146.z_1 | PX6: DC=0 | PZ6: Glass transition and colllapse of Sucrose-NaCl_221118_Ch1_147.z_1 | QA6: DC=0 | QC6: Glass transition and colllapse of Sucrose-NaCl_221118_Ch1_148.z_1 | QD6: DC=0 | QF6: Glass transition and colllapse of Sucrose-NaCl_221118_Ch1_149.z_1 | QG6: DC=0 | QI6: Glass transition and colllapse of Sucrose-NaCl_221118_Ch1_150.z_1 | QJ6: DC=0
A7: 10 | B7: 3.303193e-12 | C7: -5.17242e-13 | D7: 10 | E7: 3.233121e-12 | F7: -4.713319e-13 | G7: 10 | H7: 3.232012e-12 | I7: -4.712955e-13 | J7: 10 | K7: 3.213444e-12 | L7: -4.783823e-13 | M7: 10 | N7: 3.202871e-12 | O7: -4.808525e-13 | P7: 10 | Q7: 3.193915e-12 | R7: -4.822405e-13 | S7: 10 | T7: 3.186456e-12 | U7: -4.828891e-13 | V7: 10 | W7: -1.930944e-16 | X7: 1.829704e-16 | Y7: 10 | Z7: 3.17467e-12 | AA7: -4.839956e-13 | AB7: 10 | AC7: 3.171039e-12 | AD7: -4.843324e-13 | AE7: 10 | AF7: 3.167977e-12 | AG7: -4.843828e-13 | AH7: 10 | AI7: 3.164884e-12 | AJ7: -4.849808e-13 | AK7: 10 | AL7: 3.16455e-12 | AM7: -4.851863e-13 | AN7: 10 | AO7: 3.161382e-12 | AP7: -4.858226e-13 | AQ7: 10 | AR7: 3.158785e-12 | AS7: -4.863712e-13 | AT7: 10 | AU7: 3.15652e-12 | AV7: -4.865171e-13 | AW7: 10 | AX7: 3.153388e-12 | AY7: -4.875011e-13 | AZ7: 10 | BA7: 3.151148e-12 | BB7: -4.877971e-13 | BC7: 10 | BD7: 3.141867e-12 | BE7: -4.886029e-13 | BF7: 10 | BG7: 3.129757e-12 | BH7: -4.878339e-13 | BI7: 10 | BJ7: 3.112675e-12 | BK7: -4.860834e-13 | BL7: 10 | BM7: 3.097709e-12 | BN7: -4.827634e-13 | BO7: 10 | BP7: 3.076934e-12 | BQ7: -4.784588e-13 | BR7: 10 | BS7: 3.058925e-12 | BT7: -4.7294e-13 | BU7: 10 | BV7: 3.036257e-12 | BW7: -4.669504e-13 | BX7: 10 | BY7: 3.018616e-12 | BZ7: -4.605696e-13 | CA7: 10 | CB7: 2.994773e-12 | CC7: -4.530923e-13 | CD7: 10 | CE7: 2.974988e-12 | CF7: -4.453697e-13 | CG7: 10 | CH7: 2.951637e-12 | CI7: -4.364834e-13 | CJ7: 10 | CK7: 2.930946e-12 | CL7: -4.281561e-13 | CM7: 10 | CN7: 2.907915e-12 | CO7: -4.18313e-13 | CP7: 10 | CQ7: 2.886523e-12 | CR7: -4.093949e-13 | CS7: 10 | CT7: 2.864163e-12 | CU7: -3.987791e-13 | CV7: 10 | CW7: 2.845411e-12 | CX7: -3.895163e-13 | CY7: 10 | CZ7: 2.823465e-12 | DA7: -3.782194e-13 | DB7: 10 | DC7: 2.803598e-12 | DD7: -3.683135e-13 | DE7: 10 | DF7: 2.783198e-12 | DG7: -3.567203e-13 | DH7: 10 | DI7: 2.763852e-12 | DJ7: -3.459884e-13 | DK7: 10 | DL7: 2.744684e-12 | DM7: -3.344942e-13 | DN7: 10 | DO7: 2.726568e-12 | DP7: -3.234158e-13 | DQ7: 10 | DR7: 2.709228e-12 | DS7: -3.119184e-13 | DT7: 10 | DU7: 2.693122e-12 | DV7: -3.005205e-13 | DW7: 10 | DX7: 2.674186e-12 | DY7: -2.860519e-13 | DZ7: 10 | EA7: 2.651318e-12 | EB7: -2.656448e-13 | EC7: 10 | ED7: 2.632588e-12 | EE7: -2.51021e-13 | EF7: 10 | EG7: 2.616915e-12 | EH7: -2.396409e-13 | EI7: 10 | EJ7: 2.602543e-12 | EK7: -2.28947e-13 | EL7: 10 | EM7: 2.589571e-12 | EN7: -2.193849e-13 | EO7: 10 | EP7: 2.575612e-12 | EQ7: -2.094744e-13 | ER7: 10 | ES7: 2.564464e-12 | ET7: -2.011967e-13 | EU7: 10 | EV7: 2.552519e-12 | EW7: -1.929067e-13 | EX7: 10 | EY7: 2.542278e-12 | EZ7: -1.854289e-13 | FA7: 10 | FB7: 2.532931e-12 | FC7: -1.784403e-13 | FD7: 10 | FE7: 2.524518e-12 | FF7: -1.712311e-13 | FG7: 10 | FH7: 2.519279e-12 | FI7: -1.671268e-13 | FJ7: 10 | FK7: 2.513846e-12 | FL7: -1.630814e-13 | FM7: 10 | FN7: 2.507896e-12 | FO7: -1.591465e-13 | FP7: 10 | FQ7: 2.502229e-12 | FR7: -1.559969e-13 | FS7: 10 | FT7: 2.497451e-12 | FU7: -1.515982e-13 | FV7: 10 | FW7: 2.494358e-12 | FX7: -1.487042e-13 | FY7: 10 | FZ7: 2.796292e-12 | GA7: -3.266955e-13 | GB7: 10 | GC7: 2.746928e-12 | GD7: -3.19477e-13 | GE7: 10 | GF7: 2.745984e-12 | GG7: -3.209619e-13 | GH7: 10 | GI7: 2.763915e-12 | GJ7: -3.258017e-13 | GK7: 10 | GL7: 2.783441e-12 | GM7: -3.265286e-13 | GN7: 10 | GO7: 2.778147e-12 | GP7: -3.213061e-13 | GQ7: 10 | GR7: 2.70946e-12 | GS7: -3.029841e-13 | GT7: 10 | GU7: 2.589608e-12 | GV7: -2.516791e-13 | GW7: 10 | GX7: 2.471117e-12 | GY7: -2.773222e-13 | GZ7: 10 | HA7: 2.162297e-12 | HB7: -4.967268e-13 | HC7: 10 | HD7: 1.741301e-12 | HE7: -4.767657e-13 | HF7: 10 | HG7: 1.528723e-12 | HH7: -3.350858e-13 | HI7: 10 | HJ7: 1.442145e-12 | HK7: -2.253243e-13 | HL7: 10 | HM7: 1.407135e-12 | HN7: -1.555606e-13 | HO7: 10 | HP7: 1.391778e-12 | HQ7: -1.133638e-13 | HR7: 10 | HS7: 1.383787e-12 | HT7: -8.807433e-14 | HU7: 10 | HV7: 1.378241e-12 | HW7: -7.454521e-14 | HX7: 10 | HY7: 1.37268e-12 | HZ7: -6.689662e-14 | IA7: 10 | IB7: 1.367782e-12 | IC7: -6.216741e-14 | ID7: 10 | IE7: 1.364473e-12 | IF7: -5.959752e-14 | IG7: 10 | IH7: 1.36225e-12 | II7: -5.813451e-14 | IJ7: 10 | IK7: 1.359861e-12 | IL7: -5.733228e-14 | IM7: 10 | IN7: 1.357777e-12 | IO7: -5.715287e-14 | IP7: 10 | IQ7: 1.355683e-12 | IR7: -5.716564e-14 | IS7: 10 | IT7: 1.354151e-12 | IU7: -5.744755e-14 | IV7: 10 | IW7: 1.352938e-12 | IX7: -5.80996e-14 | IY7: 10 | IZ7: 1.351857e-12 | JA7: -5.857815e-14 | JB7: 10 | JC7: 1.35098e-12 | JD7: -5.936476e-14 | JE7: 10 | JF7: 1.350127e-12 | JG7: -5.988185e-14 | JH7: 10 | JI7: 1.34927e-12 | JJ7: -6.045126e-14 | JK7: 10 | JL7: 1.348607e-12 | JM7: -6.142193e-14 | JN7: 10 | JO7: 1.347979e-12 | JP7: -6.200339e-14 | JQ7: 10 | JR7: 1.347588e-12 | JS7: -6.250249e-14 | JT7: 10 | JU7: 1.346951e-12 | JV7: -6.318558e-14 | JW7: 10 | JX7: 1.346552e-12 | JY7: -6.376396e-14 | JZ7: 10 | KA7: 1.345931e-12 | KB7: -6.426654e-14 | KC7: 10 | KD7: 1.345555e-12 | KE7: -6.459714e-14 | KF7: 10 | KG7: 1.345412e-12 | KH7: -6.48926e-14 | KI7: 10 | KJ7: 1.344898e-12 | KK7: -6.547122e-14 | KL7: 10 | KM7: 1.344764e-12 | KN7: -6.566873e-14 | KO7: 10 | KP7: 1.344159e-12 | KQ7: -6.600627e-14 | KR7: 10 | KS7: 1.344116e-12 | KT7: -6.644679e-14 | KU7: 10 | KV7: 1.343868e-12 | KW7: -6.663602e-14 | KX7: 10 | KY7: 1.344133e-12 | KZ7: -6.741606e-14 | LA7: 10 | LB7: 1.343465e-12 | LC7: -6.724146e-14 | LD7: 10 | LE7: 1.343327e-12 | LF7: -6.747666e-14 | LG7: 10 | LH7: 1.343417e-12 | LI7: -6.771541e-14 | LJ7: 10 | LK7: 1.343053e-12 | LL7: -6.792305e-14 | LM7: 10 | LN7: 1.34282e-12 | LO7: -6.796906e-14 | LP7: 10 | LQ7: 1.342663e-12 | LR7: -6.839032e-14 | LS7: 10 | LT7: 1.342537e-12 | LU7: -6.850868e-14 | LV7: 10 | LW7: 1.342899e-12 | LX7: -6.831621e-14 | LY7: 10 | LZ7: 1.342257e-12 | MA7: -6.901511e-14 | MB7: 10 | MC7: 1.342056e-12 | MD7: -6.875143e-14 | ME7: 10 | MF7: 1.342015e-12 | MG7: -6.914532e-14 | MH7: 10 | MI7: 1.342114e-12 | MJ7: -6.929583e-14 | MK7: 10 | ML7: 1.341866e-12 | MM7: -6.94891e-14 | MN7: 10 | MO7: 1.341627e-12 | MP7: -6.958636e-14 | MQ7: 10 | MR7: 1.341488e-12 | MS7: -6.982498e-14 | MT7: 10 | MU7: 1.341725e-12 | MV7: -6.97391e-14 | MW7: 10 | MX7: 1.341599e-12 | MY7: -6.985818e-14 | MZ7: 10 | NA7: 1.341587e-12 | NB7: -6.997547e-14 | NC7: 10 | ND7: 1.341109e-12 | NE7: -7.018076e-14 | NF7: 10 | NG7: 1.341458e-12 | NH7: -7.011477e-14 | NI7: 10 | NJ7: 1.341215e-12 | NK7: -7.02636e-14 | NL7: 10 | NM7: 1.341318e-12 | NN7: -7.036337e-14 | NO7: 10 | NP7: 1.34167e-12 | NQ7: -7.026813e-14 | NR7: 10 | NS7: 1.341326e-12 | NT7: -7.028446e-14 | NU7: 10 | NV7: 1.340867e-12 | NW7: -7.031708e-14 | NX7: 10 | NY7: 1.340973e-12 | NZ7: -7.038978e-14 | OA7: 10 | OB7: 1.341198e-12 | OC7: -7.042365e-14 | OD7: 10 | OE7: 1.341184e-12 | OF7: -7.055214e-14 | OG7: 10 | OH7: 1.340845e-12 | OI7: -7.053e-14 | OJ7: 10 | OK7: 1.340721e-12 | OL7: -7.062737e-14 | OM7: 10 | ON7: 1.340655e-12 | OO7: -7.12434e-14 | OP7: 10 | OQ7: 1.340572e-12 | OR7: -7.095216e-14 | OS7: 10 | OT7: 1.340595e-12 | OU7: -7.073371e-14 | OV7: 10 | OW7: 1.340587e-12 | OX7: -7.081253e-14 | OY7: 10 | OZ7: 1.340588e-12 | PA7: -7.080803e-14 | PB7: 10 | PC7: 1.340448e-12 | PD7: -7.104716e-14 | PE7: 10 | PF7: 1.34058e-12 | PG7: -7.088122e-14 | PH7: 10 | PI7: 1.340657e-12 | PJ7: -7.122764e-14 | PK7: 10 | PL7: 1.340566e-12 | PM7: -7.101296e-14 | PN7: 10 | PO7: 1.340672e-12 | PP7: -7.108236e-14 | PQ7: 10 | PR7: 1.340782e-12 | PS7: -7.111799e-14 | PT7: 10 | PU7: 1.340555e-12 | PV7: -7.111881e-14 | PW7: 10 | PX7: 1.340307e-12 | PY7: -7.130195e-14 | PZ7: 10 | QA7: 1.340328e-12 | QB7: -7.110611e-14 | QC7: 10 | QD7: 1.340477e-12 | QE7: -7.077921e-14 | QF7: 10 | QG7: 1.34044e-12 | QH7: -7.005018e-14 | QI7: 10 | QJ7: 1.340618e-12 | QK7: -6.943134e-14
A8: 12.589 | B8: 3.23081e-12 | C8: -5.026249e-13 | D8: 12.589 | E8: 3.164676e-12 | F8: -4.619464e-13 | G8: 12.589 | H8: 3.163643e-12 | I8: -4.628618e-13 | J8: 12.589 | K8: 3.140995e-12 | L8: -4.686723e-13 | M8: 12.589 | N8: 3.128831e-12 | O8: -4.703897e-13 | P8: 12.589 | Q8: 3.118906e-12 | R8: -4.709642e-13 | S8: 12.589 | T8: 3.110747e-12 | U8: -4.710436e-13 | V8: 12.589 | W8: -1.850462e-16 | X8: 2.296412e-16 | Y8: 12.589 | Z8: 3.098537e-12 | AA8: -4.706504e-13 | AB8: 12.589 | AC8: 3.094133e-12 | AD8: -4.707018e-13 | AE8: 12.589 | AF8: 3.090804e-12 | AG8: -4.704591e-13 | AH8: 12.589 | AI8: 3.087864e-12 | AJ8: -4.702869e-13 | AK8: 12.589 | AL8: 3.08733e-12 | AM8: -4.70961e-13 | AN8: 12.589 | AO8: 3.084032e-12 | AP8: -4.706651e-13 | AQ8: 12.589 | AR8: 3.081425e-12 | AS8: -4.710105e-13 | AT8: 12.589 | AU8: 3.079411e-12 | AV8: -4.707584e-13 | AW8: 12.589 | AX8: 3.076136e-12 | AY8: -4.712104e-13 | AZ8: 12.589 | BA8: 3.073754e-12 | BB8: -4.713855e-13 | BC8: 12.589 | BD8: 3.064132e-12 | BE8: -4.709733e-13 | BF8: 12.589 | BG8: 3.052145e-12 | BH8: -4.689544e-13 | BI8: 12.589 | BJ8: 3.035691e-12 | BK8: -4.657616e-13 | BL8: 12.589 | BM8: 3.021152e-12 | BN8: -4.617544e-13 | BO8: 12.589 | BP8: 3.001255e-12 | BQ8: -4.560452e-13 | BR8: 12.589 | BS8: 2.983607e-12 | BT8: -4.498419e-13 | BU8: 12.589 | BV8: 2.962744e-12 | BW8: -4.427683e-13 | BX8: 12.589 | BY8: 2.945909e-12 | BZ8: -4.360394e-13 | CA8: 12.589 | CB8: 2.92363e-12 | CC8: -4.272265e-13 | CD8: 12.589 | CE8: 2.90549e-12 | CF8: -4.191404e-13 | CG8: 12.589 | CH8: 2.883836e-12 | CI8: -4.095702e-13 | CJ8: 12.589 | CK8: 2.864201e-12 | CL8: -4.006984e-13 | CM8: 12.589 | CN8: 2.843469e-12 | CO8: -3.902822e-13 | CP8: 12.589 | CQ8: 2.823976e-12 | CR8: -3.804436e-13 | CS8: 12.589 | CT8: 2.804035e-12 | CU8: -3.697079e-13 | CV8: 12.589 | CW8: 2.786941e-12 | CX8: -3.603528e-13 | CY8: 12.589 | CZ8: 2.766942e-12 | DA8: -3.490685e-13 | DB8: 12.589 | DC8: 2.74897e-12 | DD8: -3.389047e-13 | DE8: 12.589 | DF8: 2.73066e-12 | DG8: -3.275943e-13 | DH8: 12.589 | DI8: 2.714287e-12 | DJ8: -3.171079e-13 | DK8: 12.589 | DL8: 2.696899e-12 | DM8: -3.061683e-13 | DN8: 12.589 | DO8: 2.681171e-12 | DP8: -2.951256e-13 | DQ8: 12.589 | DR8: 2.665806e-12 | DS8: -2.842784e-13 | DT8: 12.589 | DU8: 2.65165e-12 | DV8: -2.736469e-13 | DW8: 12.589 | DX8: 2.636022e-12 | DY8: -2.602833e-13 | DZ8: 12.589 | EA8: 2.616556e-12 | EB8: -2.417261e-13 | EC8: 12.589 | ED8: 2.600077e-12 | EE8: -2.286397e-13 | EF8: 12.589 | EG8: 2.58612e-12 | EH8: -2.185087e-13 | EI8: 12.589 | EJ8: 2.572756e-12 | EK8: -2.087696e-13 | EL8: 12.589 | EM8: 2.560959e-12 | EN8: -2.001855e-13 | EO8: 12.589 | EP8: 2.548876e-12 | EQ8: -1.913026e-13 | ER8: 12.589 | ES8: 2.538469e-12 | ET8: -1.839536e-13 | EU8: 12.589 | EV8: 2.528129e-12 | EW8: -1.762502e-13 | EX8: 12.589 | EY8: 2.518228e-12 | EZ8: -1.698958e-13 | FA8: 12.589 | FB8: 2.509748e-12 | FC8: -1.635889e-13 | FD8: 12.589 | FE8: 2.502017e-12 | FF8: -1.572348e-13 | FG8: 12.589 | FH8: 2.497839e-12 | FI8: -1.534381e-13 | FJ8: 12.589 | FK8: 2.492579e-12 | FL8: -1.500272e-13 | FM8: 12.589 | FN8: 2.486664e-12 | FO8: -1.464513e-13 | FP8: 12.589 | FQ8: 2.481586e-12 | FR8: -1.434897e-13 | FS8: 12.589 | FT8: 2.477148e-12 | FU8: -1.397991e-13 | FV8: 12.589 | FW8: 2.474701e-12 | FX8: -1.3718e-13 | FY8: 12.589 | FZ8: 2.740997e-12 | GA8: -3.136912e-13 | GB8: 12.589 | GC8: 2.694473e-12 | GD8: -3.003084e-13 | GE8: 12.589 | GF8: 2.693339e-12 | GG8: -3.011067e-13 | GH8: 12.589 | GI8: 2.708521e-12 | GJ8: -3.081178e-13 | GK8: 12.589 | GL8: 2.726031e-12 | GM8: -3.122287e-13 | GN8: 12.589 | GO8: 2.721663e-12 | GP8: -3.070927e-13 | GQ8: 12.589 | GR8: 2.66013e-12 | GS8: -2.82343e-13 | GT8: 12.589 | GU8: 2.558194e-12 | GV8: -2.30848e-13 | GW8: 12.589 | GX8: 2.440951e-12 | GY8: -2.920279e-13 | GZ8: 12.589 | HA8: 2.071012e-12 | HB8: -5.128022e-13 | HC8: 12.589 | HD8: 1.663432e-12 | HE8: -4.391414e-13 | HF8: 12.589 | HG8: 1.487249e-12 | HH8: -2.937268e-13 | HI8: 12.589 | HJ8: 1.420932e-12 | HK8: -1.956533e-13 | HL8: 12.589 | HM8: 1.39459e-12 | HN8: -1.367239e-13 | HO8: 12.589 | HP8: 1.382941e-12 | HQ8: -1.028284e-13 | HR8: 12.589 | HS8: 1.376383e-12 | HT8: -8.30501e-14 | HU8: 12.589 | HV8: 1.370968e-12 | HW8: -7.290408e-14 | HX8: 12.589 | HY8: 1.365478e-12 | HZ8: -6.676079e-14 | IA8: 12.589 | IB8: 1.361338e-12 | IC8: -6.297451e-14 | ID8: 12.589 | IE8: 1.358549e-12 | IF8: -6.128821e-14 | IG8: 12.589 | IH8: 1.356277e-12 | II8: -6.09527e-14 | IJ8: 12.589 | IK8: 1.354254e-12 | IL8: -6.085674e-14 | IM8: 12.589 | IN8: 1.352557e-12 | IO8: -6.140576e-14 | IP8: 12.589 | IQ8: 1.350371e-12 | IR8: -6.177458e-14 | IS8: 12.589 | IT8: 1.348821e-12 | IU8: -6.255212e-14 | IV8: 12.589 | IW8: 1.347367e-12 | IX8: -6.35517e-14 | IY8: 12.589 | IZ8: 1.346606e-12 | JA8: -6.455998e-14 | JB8: 12.589 | JC8: 1.345571e-12 | JD8: -6.541237e-14 | JE8: 12.589 | JF8: 1.344584e-12 | JG8: -6.665006e-14 | JH8: 12.589 | JI8: 1.343898e-12 | JJ8: -6.789026e-14 | JK8: 12.589 | JL8: 1.343373e-12 | JM8: -6.866426e-14 | JN8: 12.589 | JO8: 1.342638e-12 | JP8: -6.965255e-14 | JQ8: 12.589 | JR8: 1.342056e-12 | JS8: -7.054717e-14 | JT8: 12.589 | JU8: 1.34131e-12 | JV8: -7.135255e-14 | JW8: 12.589 | JX8: 1.341212e-12 | JY8: -7.226915e-14 | JZ8: 12.589 | KA8: 1.340713e-12 | KB8: -7.276888e-14 | KC8: 12.589 | KD8: 1.340411e-12 | KE8: -7.342578e-14 | KF8: 12.589 | KG8: 1.340171e-12 | KH8: -7.417071e-14 | KI8: 12.589 | KJ8: 1.339613e-12 | KK8: -7.467752e-14 | KL8: 12.589 | KM8: 1.339176e-12 | KN8: -7.49995e-14 | KO8: 12.589 | KP8: 1.339216e-12 | KQ8: -7.553247e-14 | KR8: 12.589 | KS8: 1.338929e-12 | KT8: -7.60412e-14 | KU8: 12.589 | KV8: 1.338583e-12 | KW8: -7.606896e-14 | KX8: 12.589 | KY8: 1.338592e-12 | KZ8: -7.698603e-14 | LA8: 12.589 | LB8: 1.338229e-12 | LC8: -7.71587e-14 | LD8: 12.589 | LE8: 1.338075e-12 | LF8: -7.749852e-14 | LG8: 12.589 | LH8: 1.337919e-12 | LI8: -7.772789e-14 | LJ8: 12.589 | LK8: 1.337835e-12 | LL8: -7.808275e-14 | LM8: 12.589 | LN8: 1.337615e-12 | LO8: -7.837016e-14 | LP8: 12.589 | LQ8: 1.33745e-12 | LR8: -7.843653e-14 | LS8: 12.589 | LT8: 1.337268e-12 | LU8: -7.864805e-14 | LV8: 12.589 | LW8: 1.337193e-12 | LX8: -7.904502e-14 | LY8: 12.589 | LZ8: 1.336818e-12 | MA8: -7.931339e-14 | MB8: 12.589 | MC8: 1.336913e-12 | MD8: -7.947474e-14 | ME8: 12.589 | MF8: 1.336738e-12 | MG8: -7.986101e-14 | MH8: 12.589 | MI8: 1.336617e-12 | MJ8: -7.979935e-14 | MK8: 12.589 | ML8: 1.336512e-12 | MM8: -8.019526e-14 | MN8: 12.589 | MO8: 1.336359e-12 | MP8: -8.015972e-14 | MQ8: 12.589 | MR8: 1.335867e-12 | MS8: -8.045012e-14 | MT8: 12.589 | MU8: 1.336358e-12 | MV8: -8.052654e-14 | MW8: 12.589 | MX8: 1.336e-12 | MY8: -8.053324e-14 | MZ8: 12.589 | NA8: 1.336e-12 | NB8: -8.065591e-14 | NC8: 12.589 | ND8: 1.335598e-12 | NE8: -8.126202e-14 | NF8: 12.589 | NG8: 1.335961e-12 | NH8: -8.096959e-14 | NI8: 12.589 | NJ8: 1.336036e-12 | NK8: -8.106145e-14 | NL8: 12.589 | NM8: 1.335717e-12 | NN8: -8.133653e-14 | NO8: 12.589 | NP8: 1.335978e-12 | NQ8: -8.118291e-14 | NR8: 12.589 | NS8: 1.335821e-12 | NT8: -8.129934e-14 | NU8: 12.589 | NV8: 1.33588e-12 | NW8: -8.128934e-14 | NX8: 12.589 | NY8: 1.335399e-12 | NZ8: -8.124923e-14 | OA8: 12.589 | OB8: 1.335634e-12 | OC8: -8.119938e-14 | OD8: 12.589 | OE8: 1.335311e-12 | OF8: -8.150795e-14 | OG8: 12.589 | OH8: 1.33552e-12 | OI8: -8.142805e-14 | OJ8: 12.589 | OK8: 1.335476e-12 | OL8: -8.155813e-14 | OM8: 12.589 | ON8: 1.335659e-12 | OO8: -8.169332e-14 | OP8: 12.589 | OQ8: 1.335222e-12 | OR8: -8.165107e-14 | OS8: 12.589 | OT8: 1.335277e-12 | OU8: -8.177912e-14 | OV8: 12.589 | OW8: 1.335374e-12 | OX8: -8.180949e-14 | OY8: 12.589 | OZ8: 1.335201e-12 | PA8: -8.182387e-14 | PB8: 12.589 | PC8: 1.335115e-12 | PD8: -8.194025e-14 | PE8: 12.589 | PF8: 1.335111e-12 | PG8: -8.173873e-14 | PH8: 12.589 | PI8: 1.335073e-12 | PJ8: -8.193787e-14 | PK8: 12.589 | PL8: 1.33536e-12 | PM8: -8.214738e-14 | PN8: 12.589 | PO8: 1.335455e-12 | PP8: -8.219045e-14 | PQ8: 12.589 | PR8: 1.335112e-12 | PS8: -8.231346e-14 | PT8: 12.589 | PU8: 1.335371e-12 | PV8: -8.229418e-14 | PW8: 12.589 | PX8: 1.335174e-12 | PY8: -8.238678e-14 | PZ8: 12.589 | QA8: 1.335096e-12 | QB8: -8.209757e-14 | QC8: 12.589 | QD8: 1.335211e-12 | QE8: -8.162125e-14 | QF8: 12.589 | QG8: 1.335045e-12 | QH8: -8.041059e-14 | QI8: 12.589 | QJ8: 1.33501e-12 | QK8: -8.011135e-14
A9: 15.849 | B9: 3.158828e-12 | C9: -4.873594e-13 | D9: 15.849 | E9: 3.095367e-12 | F9: -4.515108e-13 | G9: 15.849 | H9: 3.094522e-12 | I9: -4.529769e-13 | J9: 15.849 | K9: 3.068683e-12 | L9: -4.560038e-13 | M9: 15.849 | N9: 3.056133e-12 | O9: -4.562521e-13 | P9: 15.849 | Q9: 3.045362e-12 | R9: -4.558318e-13 | S9: 15.849 | T9: 3.03724e-12 | U9: -4.550177e-13 | V9: 15.849 | W9: -1.76221e-16 | X9: 2.865931e-16 | Y9: 15.849 | Z9: 3.025089e-12 | AA9: -4.53796e-13 | AB9: 15.849 | AC9: 3.021195e-12 | AD9: -4.528447e-13 | AE9: 15.849 | AF9: 3.017836e-12 | AG9: -4.527171e-13 | AH9: 15.849 | AI9: 3.015079e-12 | AJ9: -4.519101e-13 | AK9: 15.849 | AL9: 3.014074e-12 | AM9: -4.52347e-13 | AN9: 15.849 | AO9: 3.011383e-12 | AP9: -4.516659e-13 | AQ9: 15.849 | AR9: 3.007985e-12 | AS9: -4.517322e-13 | AT9: 15.849 | AU9: 3.006236e-12 | AV9: -4.511562e-13 | AW9: 15.849 | AX9: 3.002569e-12 | AY9: -4.508857e-13 | AZ9: 15.849 | BA9: 3.001255e-12 | BB9: -4.50789e-13 | BC9: 15.849 | BD9: 2.991297e-12 | BE9: -4.492686e-13 | BF9: 15.849 | BG9: 2.980413e-12 | BH9: -4.466775e-13 | BI9: 15.849 | BJ9: 2.964685e-12 | BK9: -4.4243e-13 | BL9: 15.849 | BM9: 2.950263e-12 | BN9: -4.3753e-13 | BO9: 15.849 | BP9: 2.93227e-12 | BQ9: -4.307305e-13 | BR9: 15.849 | BS9: 2.915372e-12 | BT9: -4.241123e-13 | BU9: 15.849 | BV9: 2.896925e-12 | BW9: -4.159446e-13 | BX9: 15.849 | BY9: 2.880026e-12 | BZ9: -4.087852e-13 | CA9: 15.849 | CB9: 2.860158e-12 | CC9: -3.994737e-13 | CD9: 15.849 | CE9: 2.843646e-12 | CF9: -3.908198e-13 | CG9: 15.849 | CH9: 2.823735e-12 | CI9: -3.809419e-13 | CJ9: 15.849 | CK9: 2.805425e-12 | CL9: -3.714727e-13 | CM9: 15.849 | CN9: 2.787588e-12 | CO9: -3.611929e-13 | CP9: 15.849 | CQ9: 2.769733e-12 | CR9: -3.513048e-13 | CS9: 15.849 | CT9: 2.751856e-12 | CU9: -3.402801e-13 | CV9: 15.849 | CW9: 2.737104e-12 | CX9: -3.311412e-13 | CY9: 15.849 | CZ9: 2.718425e-12 | DA9: -3.204674e-13 | DB9: 15.849 | DC9: 2.702782e-12 | DD9: -3.099075e-13 | DE9: 15.849 | DF9: 2.68686e-12 | DG9: -2.993786e-13 | DH9: 15.849 | DI9: 2.671519e-12 | DJ9: -2.890466e-13 | DK9: 15.849 | DL9: 2.656482e-12 | DM9: -2.787565e-13 | DN9: 15.849 | DO9: 2.643179e-12 | DP9: -2.688236e-13 | DQ9: 15.849 | DR9: 2.62916e-12 | DS9: -2.584471e-13 | DT9: 15.849 | DU9: 2.616499e-12 | DV9: -2.489646e-13 | DW9: 15.849 | DX9: 2.603157e-12 | DY9: -2.365975e-13 | DZ9: 15.849 | EA9: 2.587749e-12 | EB9: -2.201135e-13 | EC9: 15.849 | ED9: 2.57219e-12 | EE9: -2.083497e-13 | EF9: 15.849 | EG9: 2.560124e-12 | EH9: -1.9939e-13 | EI9: 15.849 | EJ9: 2.54844e-12 | EK9: -1.906598e-13 | EL9: 15.849 | EM9: 2.536543e-12 | EN9: -1.830659e-13 | EO9: 15.849 | EP9: 2.525732e-12 | EQ9: -1.752973e-13 | ER9: 15.849 | ES9: 2.516634e-12 | ET9: -1.686203e-13 | EU9: 15.849 | EV9: 2.506809e-12 | EW9: -1.615699e-13 | EX9: 15.849 | EY9: 2.498766e-12 | EZ9: -1.558171e-13 | FA9: 15.849 | FB9: 2.490215e-12 | FC9: -1.504455e-13 | FD9: 15.849 | FE9: 2.48329e-12 | FF9: -1.448468e-13 | FG9: 15.849 | FH9: 2.479231e-12 | FI9: -1.413923e-13 | FJ9: 15.849 | FK9: 2.475039e-12 | FL9: -1.380923e-13 | FM9: 15.849 | FN9: 2.469245e-12 | FO9: -1.349568e-13 | FP9: 15.849 | FQ9: 2.464316e-12 | FR9: -1.324952e-13 | FS9: 15.849 | FT9: 2.460453e-12 | FU9: -1.293187e-13 | FV9: 15.849 | FW9: 2.45819e-12 | FX9: -1.271511e-13 | FY9: 15.849 | FZ9: 2.690885e-12 | GA9: -2.974221e-13 | GB9: 15.849 | GC9: 2.648518e-12 | GD9: -2.790836e-13 | GE9: 15.849 | GF9: 2.646858e-12 | GG9: -2.794223e-13 | GH9: 15.849 | GI9: 2.660185e-12 | GJ9: -2.879205e-13 | GK9: 15.849 | GL9: 2.675942e-12 | GM9: -2.940729e-13 | GN9: 15.849 | GO9: 2.671759e-12 | GP9: -2.889593e-13 | GQ9: 15.849 | GR9: 2.618745e-12 | GS9: -2.603986e-13 | GT9: 15.849 | GU9: 2.534111e-12 | GV9: -2.130511e-13 | GW9: 15.849 | GX9: 2.40955e-12 | GY9: -3.13479e-13 | GZ9: 15.849 | HA9: 1.975301e-12 | HB9: -5.175344e-13 | HC9: 15.849 | HD9: 1.59725e-12 | HE9: -3.979363e-13 | HF9: 15.849 | HG9: 1.455596e-12 | HH9: -2.568749e-13 | HI9: 15.849 | HJ9: 1.404694e-12 | HK9: -1.711344e-13 | HL9: 15.849 | HM9: 1.385121e-12 | HN9: -1.225113e-13 | HO9: 15.849 | HP9: 1.375886e-12 | HQ9: -9.528367e-14 | HR9: 15.849 | HS9: 1.369674e-12 | HT9: -8.033959e-14 | HU9: 15.849 | HV9: 1.365355e-12 | HW9: -7.276742e-14 | HX9: 15.849 | HY9: 1.360233e-12 | HZ9: -6.803844e-14 | IA9: 15.849 | IB9: 1.355891e-12 | IC9: -6.535764e-14 | ID9: 15.849 | IE9: 1.353859e-12 | IF9: -6.466887e-14 | IG9: 15.849 | IH9: 1.351637e-12 | II9: -6.50645e-14 | IJ9: 15.849 | IK9: 1.349271e-12 | IL9: -6.606881e-14 | IM9: 15.849 | IN9: 1.347955e-12 | IO9: -6.702226e-14 | IP9: 15.849 | IQ9: 1.345877e-12 | IR9: -6.831291e-14 | IS9: 15.849 | IT9: 1.344213e-12 | IU9: -6.94875e-14 | IV9: 15.849 | IW9: 1.343293e-12 | IX9: -7.134159e-14 | IY9: 15.849 | IZ9: 1.342006e-12 | JA9: -7.252878e-14 | JB9: 15.849 | JC9: 1.341325e-12 | JD9: -7.396255e-14 | JE9: 15.849 | JF9: 1.340907e-12 | JG9: -7.559353e-14 | JH9: 15.849 | JI9: 1.339582e-12 | JJ9: -7.707313e-14 | JK9: 15.849 | JL9: 1.339398e-12 | JM9: -7.865083e-14 | JN9: 15.849 | JO9: 1.338707e-12 | JP9: -7.976148e-14 | JQ9: 15.849 | JR9: 1.337644e-12 | JS9: -8.109883e-14 | JT9: 15.849 | JU9: 1.337082e-12 | JV9: -8.216099e-14 | JW9: 15.849 | JX9: 1.336661e-12 | JY9: -8.322854e-14 | JZ9: 15.849 | KA9: 1.336743e-12 | KB9: -8.415694e-14 | KC9: 15.849 | KD9: 1.335699e-12 | KE9: -8.50068e-14 | KF9: 15.849 | KG9: 1.335107e-12 | KH9: -8.583683e-14 | KI9: 15.849 | KJ9: 1.335348e-12 | KK9: -8.674726e-14 | KL9: 15.849 | KM9: 1.335075e-12 | KN9: -8.70478e-14 | KO9: 15.849 | KP9: 1.334468e-12 | KQ9: -8.77012e-14 | KR9: 15.849 | KS9: 1.33391e-12 | KT9: -8.825756e-14 | KU9: 15.849 | KV9: 1.334269e-12 | KW9: -8.906168e-14 | KX9: 15.849 | KY9: 1.334009e-12 | KZ9: -8.926028e-14 | LA9: 15.849 | LB9: 1.33347e-12 | LC9: -8.992731e-14 | LD9: 15.849 | LE9: 1.333234e-12 | LF9: -9.02147e-14 | LG9: 15.849 | LH9: 1.333534e-12 | LI9: -9.064163e-14 | LJ9: 15.849 | LK9: 1.333244e-12 | LL9: -9.131643e-14 | LM9: 15.849 | LN9: 1.332857e-12 | LO9: -9.152503e-14 | LP9: 15.849 | LQ9: 1.332529e-12 | LR9: -9.168965e-14 | LS9: 15.849 | LT9: 1.332531e-12 | LU9: -9.219567e-14 | LV9: 15.849 | LW9: 1.332048e-12 | LX9: -9.244052e-14 | LY9: 15.849 | LZ9: 1.332261e-12 | MA9: -9.258498e-14 | MB9: 15.849 | MC9: 1.331782e-12 | MD9: -9.319188e-14 | ME9: 15.849 | MF9: 1.332121e-12 | MG9: -9.370949e-14 | MH9: 15.849 | MI9: 1.331931e-12 | MJ9: -9.340471e-14 | MK9: 15.849 | ML9: 1.331667e-12 | MM9: -9.362204e-14 | MN9: 15.849 | MO9: 1.331828e-12 | MP9: -9.400865e-14 | MQ9: 15.849 | MR9: 1.331375e-12 | MS9: -9.416311e-14 | MT9: 15.849 | MU9: 1.331849e-12 | MV9: -9.43596e-14 | MW9: 15.849 | MX9: 1.331662e-12 | MY9: -9.45409e-14 | MZ9: 15.849 | NA9: 1.331454e-12 | NB9: -9.44915e-14 | NC9: 15.849 | ND9: 1.33114e-12 | NE9: -9.493749e-14 | NF9: 15.849 | NG9: 1.330726e-12 | NH9: -9.495156e-14 | NI9: 15.849 | NJ9: 1.331233e-12 | NK9: -9.528772e-14 | NL9: 15.849 | NM9: 1.330753e-12 | NN9: -9.538524e-14 | NO9: 15.849 | NP9: 1.330592e-12 | NQ9: -9.501112e-14 | NR9: 15.849 | NS9: 1.331071e-12 | NT9: -9.554036e-14 | NU9: 15.849 | NV9: 1.330864e-12 | NW9: -9.535829e-14 | NX9: 15.849 | NY9: 1.330987e-12 | NZ9: -9.550137e-14 | OA9: 15.849 | OB9: 1.330708e-12 | OC9: -9.544685e-14 | OD9: 15.849 | OE9: 1.33051e-12 | OF9: -9.55794e-14 | OG9: 15.849 | OH9: 1.330727e-12 | OI9: -9.581311e-14 | OJ9: 15.849 | OK9: 1.330518e-12 | OL9: -9.577212e-14 | OM9: 15.849 | ON9: 1.330704e-12 | OO9: -9.597274e-14 | OP9: 15.849 | OQ9: 1.330679e-12 | OR9: -9.626823e-14 | OS9: 15.849 | OT9: 1.3305e-12 | OU9: -9.626377e-14 | OV9: 15.849 | OW9: 1.330136e-12 | OX9: -9.618218e-14 | OY9: 15.849 | OZ9: 1.330233e-12 | PA9: -9.600656e-14 | PB9: 15.849 | PC9: 1.330728e-12 | PD9: -9.617335e-14 | PE9: 15.849 | PF9: 1.330422e-12 | PG9: -9.618614e-14 | PH9: 15.849 | PI9: 1.330105e-12 | PJ9: -9.664471e-14 | PK9: 15.849 | PL9: 1.330775e-12 | PM9: -9.634319e-14 | PN9: 15.849 | PO9: 1.330574e-12 | PP9: -9.662012e-14 | PQ9: 15.849 | PR9: 1.329943e-12 | PS9: -9.66462e-14 | PT9: 15.849 | PU9: 1.330458e-12 | PV9: -9.692374e-14 | PW9: 15.849 | PX9: 1.329719e-12 | PY9: -9.695689e-14 | PZ9: 15.849 | QA9: 1.329992e-12 | QB9: -9.643675e-14 | QC9: 15.849 | QD9: 1.330152e-12 | QE9: -9.58248e-14 | QF9: 15.849 | QG9: 1.330265e-12 | QH9: -9.429504e-14 | QI9: 15.849 | QJ9: 1.330731e-12 | QK9: -9.352742e-14
A10: 19.953 | B10: 3.08584e-12 | C10: -4.698567e-13 | D10: 19.953 | E10: 3.027112e-12 | F10: -4.375127e-13 | G10: 19.953 | H10: 3.02441e-12 | I10: -4.396214e-13 | J10: 19.953 | K10: 2.998125e-12 | L10: -4.391978e-13 | M10: 19.953 | N10: 2.985612e-12 | O10: -4.382239e-13 | P10: 19.953 | Q10: 2.974945e-12 | R10: -4.365679e-13 | S10: 19.953 | T10: 2.966358e-12 | U10: -4.353017e-13 | V10: 19.953 | W10: -1.608861e-16 | X10: 3.59134e-16 | Y10: 19.953 | Z10: 2.955049e-12 | AA10: -4.323717e-13 | AB10: 19.953 | AC10: 2.950752e-12 | AD10: -4.315416e-13 | AE10: 19.953 | AF10: 2.947086e-12 | AG10: -4.305859e-13 | AH10: 19.953 | AI10: 2.944878e-12 | AJ10: -4.298228e-13 | AK10: 19.953 | AL10: 2.944489e-12 | AM10: -4.299616e-13 | AN10: 19.953 | AO10: 2.942254e-12 | AP10: -4.293064e-13 | AQ10: 19.953 | AR10: 2.939394e-12 | AS10: -4.288234e-13 | AT10: 19.953 | AU10: 2.93727e-12 | AV10: -4.278217e-13 | AW10: 19.953 | AX10: 2.934739e-12 | AY10: -4.274255e-13 | AZ10: 19.953 | BA10: 2.931549e-12 | BB10: -4.269473e-13 | BC10: 19.953 | BD10: 2.923212e-12 | BE10: -4.249608e-13 | BF10: 19.953 | BG10: 2.912686e-12 | BH10: -4.217384e-13 | BI10: 19.953 | BJ10: 2.898105e-12 | BK10: -4.161829e-13 | BL10: 19.953 | BM10: 2.884509e-12 | BN10: -4.108534e-13 | BO10: 19.953 | BP10: 2.867844e-12 | BQ10: -4.033635e-13 | BR10: 19.953 | BS10: 2.85345e-12 | BT10: -3.966258e-13 | BU10: 19.953 | BV10: 2.835559e-12 | BW10: -3.876996e-13 | BX10: 19.953 | BY10: 2.821275e-12 | BZ10: -3.803357e-13 | CA10: 19.953 | CB10: 2.802578e-12 | CC10: -3.702673e-13 | CD10: 19.953 | CE10: 2.78723e-12 | CF10: -3.61714e-13 | CG10: 19.953 | CH10: 2.769511e-12 | CI10: -3.516997e-13 | CJ10: 19.953 | CK10: 2.753707e-12 | CL10: -3.425408e-13 | CM10: 19.953 | CN10: 2.737443e-12 | CO10: -3.320374e-13 | CP10: 19.953 | CQ10: 2.72227e-12 | CR10: -3.226402e-13 | CS10: 19.953 | CT10: 2.70623e-12 | CU10: -3.12379e-13 | CV10: 19.953 | CW10: 2.692545e-12 | CX10: -3.025443e-13 | CY10: 19.953 | CZ10: 2.676771e-12 | DA10: -2.922105e-13 | DB10: 19.953 | DC10: 2.662752e-12 | DD10: -2.826713e-13 | DE10: 19.953 | DF10: 2.648863e-12 | DG10: -2.723e-13 | DH10: 19.953 | DI10: 2.635198e-12 | DJ10: -2.632297e-13 | DK10: 19.953 | DL10: 2.622489e-12 | DM10: -2.535723e-13 | DN10: 19.953 | DO10: 2.610024e-12 | DP10: -2.445643e-13 | DQ10: 19.953 | DR10: 2.598329e-12 | DS10: -2.352227e-13 | DT10: 19.953 | DU10: 2.587382e-12 | DV10: -2.26491e-13 | DW10: 19.953 | DX10: 2.575786e-12 | DY10: -2.159821e-13 | DZ10: 19.953 | EA10: 2.561641e-12 | EB10: -2.013587e-13 | EC10: 19.953 | ED10: 2.548476e-12 | EE10: -1.90581e-13 | EF10: 19.953 | EG10: 2.537036e-12 | EH10: -1.826977e-13 | EI10: 19.953 | EJ10: 2.526196e-12 | EK10: -1.751793e-13 | EL10: 19.953 | EM10: 2.516753e-12 | EN10: -1.679883e-13 | EO10: 19.953 | EP10: 2.505752e-12 | EQ10: -1.609113e-13 | ER10: 19.953 | ES10: 2.497463e-12 | ET10: -1.548904e-13 | EU10: 19.953 | EV10: 2.488868e-12 | EW10: -1.491419e-13 | EX10: 19.953 | EY10: 2.480498e-12 | EZ10: -1.438734e-13 | FA10: 19.953 | FB10: 2.473202e-12 | FC10: -1.39084e-13 | FD10: 19.953 | FE10: 2.466892e-12 | FF10: -1.340381e-13 | FG10: 19.953 | FH10: 2.46329e-12 | FI10: -1.310983e-13 | FJ10: 19.953 | FK10: 2.458912e-12 | FL10: -1.283231e-13 | FM10: 19.953 | FN10: 2.45423e-12 | FO10: -1.256718e-13 | FP10: 19.953 | FQ10: 2.449171e-12 | FR10: -1.231446e-13 | FS10: 19.953 | FT10: 2.44591e-12 | FU10: -1.201866e-13 | FV10: 19.953 | FW10: 2.443668e-12 | FX10: -1.184201e-13 | FY10: 19.953 | FZ10: 2.645652e-12 | GA10: -2.793564e-13 | GB10: 19.953 | GC10: 2.609464e-12 | GD10: -2.573951e-13 | GE10: 19.953 | GF10: 2.607768e-12 | GG10: -2.575313e-13 | GH10: 19.953 | GI10: 2.617868e-12 | GJ10: -2.660229e-13 | GK10: 19.953 | GL10: 2.631001e-12 | GM10: -2.735915e-13 | GN10: 19.953 | GO10: 2.627735e-12 | GP10: -2.690891e-13 | GQ10: 19.953 | GR10: 2.583605e-12 | GS10: -2.387885e-13 | GT10: 19.953 | GU10: 2.512756e-12 | GV10: -1.990706e-13 | GW10: 19.953 | GX10: 2.372147e-12 | GY10: -3.404466e-13 | GZ10: 19.953 | HA10: 1.879739e-12 | HB10: -5.102433e-13 | HC10: 19.953 | HD10: 1.542401e-12 | HE10: -3.562963e-13 | HF10: 19.953 | HG10: 1.430325e-12 | HH10: -2.250278e-13 | HI10: 19.953 | HJ10: 1.39169e-12 | HK10: -1.516012e-13 | HL10: 19.953 | HM10: 1.376591e-12 | HN10: -1.121108e-13 | HO10: 19.953 | HP10: 1.36997e-12 | HQ10: -9.119033e-14 | HR10: 19.953 | HS10: 1.36382e-12 | HT10: -7.99676e-14 | HU10: 19.953 | HV10: 1.359295e-12 | HW10: -7.436554e-14 | HX10: 19.953 | HY10: 1.354533e-12 | HZ10: -7.100655e-14 | IA10: 19.953 | IB10: 1.351291e-12 | IC10: -6.948227e-14 | ID10: 19.953 | IE10: 1.34942e-12 | IF10: -7.019612e-14 | IG10: 19.953 | IH10: 1.347557e-12 | II10: -7.15169e-14 | IJ10: 19.953 | IK10: 1.345401e-12 | IL10: -7.322638e-14 | IM10: 19.953 | IN10: 1.343511e-12 | IO10: -7.542264e-14 | IP10: 19.953 | IQ10: 1.341682e-12 | IR10: -7.744999e-14 | IS10: 19.953 | IT10: 1.3403e-12 | IU10: -7.932192e-14 | IV10: 19.953 | IW10: 1.339015e-12 | IX10: -8.131191e-14 | IY10: 19.953 | IZ10: 1.337739e-12 | JA10: -8.33688e-14 | JB10: 19.953 | JC10: 1.336768e-12 | JD10: -8.547382e-14 | JE10: 19.953 | JF10: 1.336106e-12 | JG10: -8.742849e-14 | JH10: 19.953 | JI10: 1.335228e-12 | JJ10: -8.943279e-14 | JK10: 19.953 | JL10: 1.334303e-12 | JM10: -9.124081e-14 | JN10: 19.953 | JO10: 1.333579e-12 | JP10: -9.302771e-14 | JQ10: 19.953 | JR10: 1.333074e-12 | JS10: -9.48405e-14 | JT10: 19.953 | JU10: 1.332423e-12 | JV10: -9.637707e-14 | JW10: 19.953 | JX10: 1.331856e-12 | JY10: -9.777469e-14 | JZ10: 19.953 | KA10: 1.331239e-12 | KB10: -9.888953e-14 | KC10: 19.953 | KD10: 1.330687e-12 | KE10: -9.985457e-14 | KF10: 19.953 | KG10: 1.330509e-12 | KH10: -1.010309e-13 | KI10: 19.953 | KJ10: 1.330069e-12 | KK10: -1.021328e-13 | KL10: 19.953 | KM10: 1.32955e-12 | KN10: -1.028558e-13 | KO10: 19.953 | KP10: 1.329656e-12 | KQ10: -1.036238e-13 | KR10: 19.953 | KS10: 1.328971e-12 | KT10: -1.041028e-13 | KU10: 19.953 | KV10: 1.328954e-12 | KW10: -1.049278e-13 | KX10: 19.953 | KY10: 1.328594e-12 | KZ10: -1.056283e-13 | LA10: 19.953 | LB10: 1.328352e-12 | LC10: -1.062931e-13 | LD10: 19.953 | LE10: 1.328336e-12 | LF10: -1.070889e-13 | LG10: 19.953 | LH10: 1.32796e-12 | LI10: -1.075939e-13 | LJ10: 19.953 | LK10: 1.327572e-12 | LL10: -1.080376e-13 | LM10: 19.953 | LN10: 1.327459e-12 | LO10: -1.084518e-13 | LP10: 19.953 | LQ10: 1.327198e-12 | LR10: -1.08668e-13 | LS10: 19.953 | LT10: 1.327202e-12 | LU10: -1.093266e-13 | LV10: 19.953 | LW10: 1.326924e-12 | LX10: -1.09508e-13 | LY10: 19.953 | LZ10: 1.32661e-12 | MA10: -1.101765e-13 | MB10: 19.953 | MC10: 1.326398e-12 | MD10: -1.105013e-13 | ME10: 19.953 | MF10: 1.326524e-12 | MG10: -1.108221e-13 | MH10: 19.953 | MI10: 1.326248e-12 | MJ10: -1.112554e-13 | MK10: 19.953 | ML10: 1.326083e-12 | MM10: -1.114324e-13 | MN10: 19.953 | MO10: 1.326007e-12 | MP10: -1.114847e-13 | MQ10: 19.953 | MR10: 1.326104e-12 | MS10: -1.12107e-13 | MT10: 19.953 | MU10: 1.325669e-12 | MV10: -1.121456e-13 | MW10: 19.953 | MX10: 1.325767e-12 | MY10: -1.12232e-13 | MZ10: 19.953 | NA10: 1.325562e-12 | NB10: -1.125121e-13 | NC10: 19.953 | ND10: 1.325793e-12 | NE10: -1.128736e-13 | NF10: 19.953 | NG10: 1.325524e-12 | NH10: -1.131269e-13 | NI10: 19.953 | NJ10: 1.325322e-12 | NK10: -1.132521e-13 | NL10: 19.953 | NM10: 1.325346e-12 | NN10: -1.135082e-13 | NO10: 19.953 | NP10: 1.324996e-12 | NQ10: -1.134479e-13 | NR10: 19.953 | NS10: 1.32525e-12 | NT10: -1.135412e-13 | NU10: 19.953 | NV10: 1.32512e-12 | NW10: -1.136425e-13 | NX10: 19.953 | NY10: 1.325273e-12 | NZ10: -1.135362e-13 | OA10: 19.953 | OB10: 1.325267e-12 | OC10: -1.134407e-13 | OD10: 19.953 | OE10: 1.324992e-12 | OF10: -1.137351e-13 | OG10: 19.953 | OH10: 1.325088e-12 | OI10: -1.136978e-13 | OJ10: 19.953 | OK10: 1.325201e-12 | OL10: -1.139559e-13 | OM10: 19.953 | ON10: 1.324764e-12 | OO10: -1.141389e-13 | OP10: 19.953 | OQ10: 1.3248e-12 | OR10: -1.143184e-13 | OS10: 19.953 | OT10: 1.324604e-12 | OU10: -1.142821e-13 | OV10: 19.953 | OW10: 1.324779e-12 | OX10: -1.145712e-13 | OY10: 19.953 | OZ10: 1.324518e-12 | PA10: -1.145212e-13 | PB10: 19.953 | PC10: 1.324524e-12 | PD10: -1.144863e-13 | PE10: 19.953 | PF10: 1.324661e-12 | PG10: -1.147307e-13 | PH10: 19.953 | PI10: 1.324471e-12 | PJ10: -1.146593e-13 | PK10: 19.953 | PL10: 1.324627e-12 | PM10: -1.147989e-13 | PN10: 19.953 | PO10: 1.324456e-12 | PP10: -1.150052e-13 | PQ10: 19.953 | PR10: 1.324408e-12 | PS10: -1.150172e-13 | PT10: 19.953 | PU10: 1.324321e-12 | PV10: -1.150041e-13 | PW10: 19.953 | PX10: 1.324283e-12 | PY10: -1.15092e-13 | PZ10: 19.953 | QA10: 1.324179e-12 | QB10: -1.146556e-13 | QC10: 19.953 | QD10: 1.324541e-12 | QE10: -1.136077e-13 | QF10: 19.953 | QG10: 1.324781e-12 | QH10: -1.123449e-13 | QI10: 19.953 | QJ10: 1.324969e-12 | QK10: -1.108392e-13
A11: 25.119 | B11: 3.014305e-12 | C11: -4.478074e-13 | D11: 25.119 | E11: 2.959832e-12 | F11: -4.190957e-13 | G11: 25.119 | H11: 2.955524e-12 | I11: -4.213075e-13 | J11: 25.119 | K11: 2.930816e-12 | L11: -4.178502e-13 | M11: 25.119 | N11: 2.917935e-12 | O11: -4.152947e-13 | P11: 25.119 | Q11: 2.907697e-12 | R11: -4.13318e-13 | S11: 25.119 | T11: 2.899674e-12 | U11: -4.107679e-13 | V11: 25.119 | W11: -1.275771e-16 | X11: 4.405634e-16 | Y11: 25.119 | Z11: 2.888909e-12 | AA11: -4.072146e-13 | AB11: 25.119 | AC11: 2.885667e-12 | AD11: -4.058644e-13 | AE11: 25.119 | AF11: 2.88284e-12 | AG11: -4.045526e-13 | AH11: 25.119 | AI11: 2.880586e-12 | AJ11: -4.041714e-13 | AK11: 25.119 | AL11: 2.879695e-12 | AM11: -4.038886e-13 | AN11: 25.119 | AO11: 2.876824e-12 | AP11: -4.027766e-13 | AQ11: 25.119 | AR11: 2.874458e-12 | AS11: -4.023364e-13 | AT11: 25.119 | AU11: 2.872855e-12 | AV11: -4.016579e-13 | AW11: 25.119 | AX11: 2.870518e-12 | AY11: -4.006607e-13 | AZ11: 25.119 | BA11: 2.868298e-12 | BB11: -4.002353e-13 | BC11: 25.119 | BD11: 2.860377e-12 | BE11: -3.976834e-13 | BF11: 25.119 | BG11: 2.849937e-12 | BH11: -3.936429e-13 | BI11: 25.119 | BJ11: 2.836776e-12 | BK11: -3.876082e-13 | BL11: 25.119 | BM11: 2.824974e-12 | BN11: -3.819601e-13 | BO11: 25.119 | BP11: 2.809806e-12 | BQ11: -3.74087e-13 | BR11: 25.119 | BS11: 2.796357e-12 | BT11: -3.672526e-13 | BU11: 25.119 | BV11: 2.780869e-12 | BW11: -3.579657e-13 | BX11: 25.119 | BY11: 2.767846e-12 | BZ11: -3.50643e-13 | CA11: 25.119 | CB11: 2.750938e-12 | CC11: -3.403717e-13 | CD11: 25.119 | CE11: 2.737448e-12 | CF11: -3.326367e-13 | CG11: 25.119 | CH11: 2.721951e-12 | CI11: -3.226618e-13 | CJ11: 25.119 | CK11: 2.707718e-12 | CL11: -3.131858e-13 | CM11: 25.119 | CN11: 2.693977e-12 | CO11: -3.032449e-13 | CP11: 25.119 | CQ11: 2.679597e-12 | CR11: -2.941203e-13 | CS11: 25.119 | CT11: 2.665597e-12 | CU11: -2.8448e-13 | CV11: 25.119 | CW11: 2.653176e-12 | CX11: -2.756154e-13 | CY11: 25.119 | CZ11: 2.640198e-12 | DA11: -2.666649e-13 | DB11: 25.119 | DC11: 2.627318e-12 | DD11: -2.572433e-13 | DE11: 25.119 | DF11: 2.615742e-12 | DG11: -2.479545e-13 | DH11: 25.119 | DI11: 2.60329e-12 | DJ11: -2.390907e-13 | DK11: 25.119 | DL11: 2.591871e-12 | DM11: -2.304942e-13 | DN11: 25.119 | DO11: 2.580999e-12 | DP11: -2.223103e-13 | DQ11: 25.119 | DR11: 2.570674e-12 | DS11: -2.138413e-13 | DT11: 25.119 | DU11: 2.560716e-12 | DV11: -2.060843e-13 | DW11: 25.119 | DX11: 2.55017e-12 | DY11: -1.971121e-13 | DZ11: 25.119 | EA11: 2.537819e-12 | EB11: -1.839398e-13 | EC11: 25.119 | ED11: 2.525867e-12 | EE11: -1.748327e-13 | EF11: 25.119 | EG11: 2.515579e-12 | EH11: -1.675114e-13 | EI11: 25.119 | EJ11: 2.50599e-12 | EK11: -1.607198e-13 | EL11: 25.119 | EM11: 2.496679e-12 | EN11: -1.54545e-13 | EO11: 25.119 | EP11: 2.486851e-12 | EQ11: -1.481943e-13 | ER11: 25.119 | ES11: 2.478894e-12 | ET11: -1.431385e-13 | EU11: 25.119 | EV11: 2.47098e-12 | EW11: -1.380682e-13 | EX11: 25.119 | EY11: 2.463849e-12 | EZ11: -1.332675e-13 | FA11: 25.119 | FB11: 2.456393e-12 | FC11: -1.291175e-13 | FD11: 25.119 | FE11: 2.451121e-12 | FF11: -1.245287e-13 | FG11: 25.119 | FH11: 2.447766e-12 | FI11: -1.218432e-13 | FJ11: 25.119 | FK11: 2.443906e-12 | FL11: -1.195306e-13 | FM11: 25.119 | FN11: 2.439429e-12 | FO11: -1.168411e-13 | FP11: 25.119 | FQ11: 2.435188e-12 | FR11: -1.147852e-13 | FS11: 25.119 | FT11: 2.431677e-12 | FU11: -1.12096e-13 | FV11: 25.119 | FW11: 2.430302e-12 | FX11: -1.10712e-13 | FY11: 25.119 | FZ11: 2.605046e-12 | GA11: -2.596068e-13 | GB11: 25.119 | GC11: 2.57441e-12 | GD11: -2.357125e-13 | GE11: 25.119 | GF11: 2.572458e-12 | GG11: -2.346774e-13 | GH11: 25.119 | GI11: 2.580488e-12 | GJ11: -2.434694e-13 | GK11: 25.119 | GL11: 2.590886e-12 | GM11: -2.513995e-13 | GN11: 25.119 | GO11: 2.589818e-12 | GP11: -2.479358e-13 | GQ11: 25.119 | GR11: 2.553646e-12 | GS11: -2.187462e-13 | GT11: 25.119 | GU11: 2.49281e-12 | GV11: -1.896414e-13 | GW11: 25.119 | GX11: 2.326375e-12 | GY11: -3.73296e-13 | GZ11: 25.119 | HA11: 1.788204e-12 | HB11: -4.906112e-13 | HC11: 25.119 | HD11: 1.497327e-12 | HE11: -3.161205e-13 | HF11: 25.119 | HG11: 1.410296e-12 | HH11: -1.977155e-13 | HI11: 25.119 | HJ11: 1.381156e-12 | HK11: -1.365226e-13 | HL11: 25.119 | HM11: 1.369721e-12 | HN11: -1.05316e-13 | HO11: 25.119 | HP11: 1.363244e-12 | HQ11: -8.953968e-14 | HR11: 25.119 | HS11: 1.358088e-12 | HT11: -8.166759e-14 | HU11: 25.119 | HV11: 1.353419e-12 | HW11: -7.776626e-14 | HX11: 25.119 | HY11: 1.349339e-12 | HZ11: -7.57733e-14 | IA11: 25.119 | IB11: 1.346344e-12 | IC11: -7.588972e-14 | ID11: 25.119 | IE11: 1.344648e-12 | IF11: -7.785061e-14 | IG11: 25.119 | IH11: 1.342717e-12 | II11: -8.006727e-14 | IJ11: 25.119 | IK11: 1.340627e-12 | IL11: -8.306982e-14 | IM11: 25.119 | IN11: 1.3386e-12 | IO11: -8.616363e-14 | IP11: 25.119 | IQ11: 1.336731e-12 | IR11: -8.906723e-14 | IS11: 25.119 | IT11: 1.335087e-12 | IU11: -9.17079e-14 | IV11: 25.119 | IW11: 1.333848e-12 | IX11: -9.46399e-14 | IY11: 25.119 | IZ11: 1.33255e-12 | JA11: -9.731254e-14 | JB11: 25.119 | JC11: 1.331751e-12 | JD11: -9.999816e-14 | JE11: 25.119 | JF11: 1.33074e-12 | JG11: -1.02513e-13 | JH11: 25.119 | JI11: 1.329781e-12 | JJ11: -1.049991e-13 | JK11: 25.119 | JL11: 1.328726e-12 | JM11: -1.078452e-13 | JN11: 25.119 | JO11: 1.327832e-12 | JP11: -1.099849e-13 | JQ11: 25.119 | JR11: 1.327226e-12 | JS11: -1.122374e-13 | JT11: 25.119 | JU11: 1.326391e-12 | JV11: -1.141214e-13 | JW11: 25.119 | JX11: 1.325824e-12 | JY11: -1.158989e-13 | JZ11: 25.119 | KA11: 1.324981e-12 | KB11: -1.174519e-13 | KC11: 25.119 | KD11: 1.324503e-12 | KE11: -1.186907e-13 | KF11: 25.119 | KG11: 1.324135e-12 | KH11: -1.202461e-13 | KI11: 25.119 | KJ11: 1.323613e-12 | KK11: -1.215452e-13 | KL11: 25.119 | KM11: 1.323207e-12 | KN11: -1.226578e-13 | KO11: 25.119 | KP11: 1.322949e-12 | KQ11: -1.234261e-13 | KR11: 25.119 | KS11: 1.322593e-12 | KT11: -1.242603e-13 | KU11: 25.119 | KV11: 1.322232e-12 | KW11: -1.252631e-13 | KX11: 25.119 | KY11: 1.321901e-12 | KZ11: -1.261037e-13 | LA11: 25.119 | LB11: 1.321647e-12 | LC11: -1.271258e-13 | LD11: 25.119 | LE11: 1.321381e-12 | LF11: -1.279101e-13 | LG11: 25.119 | LH11: 1.320749e-12 | LI11: -1.285287e-13 | LJ11: 25.119 | LK11: 1.320659e-12 | LL11: -1.292729e-13 | LM11: 25.119 | LN11: 1.320488e-12 | LO11: -1.297092e-13 | LP11: 25.119 | LQ11: 1.320011e-12 | LR11: -1.302545e-13 | LS11: 25.119 | LT11: 1.320179e-12 | LU11: -1.306929e-13 | LV11: 25.119 | LW11: 1.319844e-12 | LX11: -1.312347e-13 | LY11: 25.119 | LZ11: 1.319503e-12 | MA11: -1.31942e-13 | MB11: 25.119 | MC11: 1.319557e-12 | MD11: -1.322333e-13 | ME11: 25.119 | MF11: 1.319294e-12 | MG11: -1.32834e-13 | MH11: 25.119 | MI11: 1.319053e-12 | MJ11: -1.331814e-13 | MK11: 25.119 | ML11: 1.318772e-12 | MM11: -1.335882e-13 | MN11: 25.119 | MO11: 1.318504e-12 | MP11: -1.339267e-13 | MQ11: 25.119 | MR11: 1.318398e-12 | MS11: -1.341708e-13 | MT11: 25.119 | MU11: 1.318362e-12 | MV11: -1.343418e-13 | MW11: 25.119 | MX11: 1.318442e-12 | MY11: -1.346413e-13 | MZ11: 25.119 | NA11: 1.318167e-12 | NB11: -1.348787e-13 | NC11: 25.119 | ND11: 1.318169e-12 | NE11: -1.351423e-13 | NF11: 25.119 | NG11: 1.317903e-12 | NH11: -1.354664e-13 | NI11: 25.119 | NJ11: 1.318243e-12 | NK11: -1.356021e-13 | NL11: 25.119 | NM11: 1.318109e-12 | NN11: -1.359734e-13 | NO11: 25.119 | NP11: 1.317762e-12 | NQ11: -1.361471e-13 | NR11: 25.119 | NS11: 1.317715e-12 | NT11: -1.360978e-13 | NU11: 25.119 | NV11: 1.317628e-12 | NW11: -1.362437e-13 | NX11: 25.119 | NY11: 1.31762e-12 | NZ11: -1.362844e-13 | OA11: 25.119 | OB11: 1.317707e-12 | OC11: -1.361358e-13 | OD11: 25.119 | OE11: 1.317578e-12 | OF11: -1.364823e-13 | OG11: 25.119 | OH11: 1.317662e-12 | OI11: -1.362169e-13 | OJ11: 25.119 | OK11: 1.317364e-12 | OL11: -1.366948e-13 | OM11: 25.119 | ON11: 1.31716e-12 | OO11: -1.368584e-13 | OP11: 25.119 | OQ11: 1.317124e-12 | OR11: -1.371648e-13 | OS11: 25.119 | OT11: 1.317309e-12 | OU11: -1.372237e-13 | OV11: 25.119 | OW11: 1.317212e-12 | OX11: -1.372824e-13 | OY11: 25.119 | OZ11: 1.31717e-12 | PA11: -1.373498e-13 | PB11: 25.119 | PC11: 1.317116e-12 | PD11: -1.373384e-13 | PE11: 25.119 | PF11: 1.31699e-12 | PG11: -1.372611e-13 | PH11: 25.119 | PI11: 1.31691e-12 | PJ11: -1.375072e-13 | PK11: 25.119 | PL11: 1.316921e-12 | PM11: -1.375887e-13 | PN11: 25.119 | PO11: 1.316843e-12 | PP11: -1.378239e-13 | PQ11: 25.119 | PR11: 1.316587e-12 | PS11: -1.379675e-13 | PT11: 25.119 | PU11: 1.316617e-12 | PV11: -1.382228e-13 | PW11: 25.119 | PX11: 1.31639e-12 | PY11: -1.383611e-13 | PZ11: 25.119 | QA11: 1.316813e-12 | QB11: -1.378317e-13 | QC11: 25.119 | QD11: 1.316734e-12 | QE11: -1.361925e-13 | QF11: 25.119 | QG11: 1.317454e-12 | QH11: -1.346324e-13 | QI11: 25.119 | QJ11: 1.317647e-12 | QK11: -1.327279e-13
A12: 31.623 | B12: 2.946609e-12 | C12: -4.21359e-13 | D12: 31.623 | E12: 2.893653e-12 | F12: -3.966908e-13 | G12: 31.623 | H12: 2.889463e-12 | I12: -3.984696e-13 | J12: 31.623 | K12: 2.867274e-12 | L12: -3.943479e-13 | M12: 31.623 | N12: 2.854844e-12 | O12: -3.908027e-13 | P12: 31.623 | Q12: 2.844175e-12 | R12: -3.862348e-13 | S12: 31.623 | T12: 2.837243e-12 | U12: -3.831198e-13 | V12: 31.623 | W12: -4.093426e-17 | X12: 4.849373e-16 | Y12: 31.623 | Z12: 2.830296e-12 | AA12: -3.795818e-13 | AB12: 31.623 | AC12: 2.825068e-12 | AD12: -3.77854e-13 | AE12: 31.623 | AF12: 2.8221e-12 | AG12: -3.764787e-13 | AH12: 31.623 | AI12: 2.819561e-12 | AJ12: -3.760057e-13 | AK12: 31.623 | AL12: 2.819375e-12 | AM12: -3.766883e-13 | AN12: 31.623 | AO12: 2.817084e-12 | AP12: -3.759322e-13 | AQ12: 31.623 | AR12: 2.817512e-12 | AS12: -3.749673e-13 | AT12: 31.623 | AU12: 2.814479e-12 | AV12: -3.726694e-13 | AW12: 31.623 | AX12: 2.812687e-12 | AY12: -3.719381e-13 | AZ12: 31.623 | BA12: 2.809407e-12 | BB12: -3.730556e-13 | BC12: 31.623 | BD12: 2.801792e-12 | BE12: -3.688966e-13 | BF12: 31.623 | BG12: 2.793767e-12 | BH12: -3.658351e-13 | BI12: 31.623 | BJ12: 2.7824e-12 | BK12: -3.590597e-13 | BL12: 31.623 | BM12: 2.772489e-12 | BN12: -3.519889e-13 | BO12: 31.623 | BP12: 2.756399e-12 | BQ12: -3.445575e-13 | BR12: 31.623 | BS12: 2.746686e-12 | BT12: -3.380934e-13 | BU12: 31.623 | BV12: 2.733476e-12 | BW12: -3.290745e-13 | BX12: 31.623 | BY12: 2.719225e-12 | BZ12: -3.210962e-13 | CA12: 31.623 | CB12: 2.705016e-12 | CC12: -3.116617e-13 | CD12: 31.623 | CE12: 2.691782e-12 | CF12: -3.044931e-13 | CG12: 31.623 | CH12: 2.680644e-12 | CI12: -2.945081e-13 | CJ12: 31.623 | CK12: 2.668051e-12 | CL12: -2.86162e-13 | CM12: 31.623 | CN12: 2.654303e-12 | CO12: -2.762835e-13 | CP12: 31.623 | CQ12: 2.644223e-12 | CR12: -2.679872e-13 | CS12: 31.623 | CT12: 2.628807e-12 | CU12: -2.590542e-13 | CV12: 31.623 | CW12: 2.619453e-12 | CX12: -2.507735e-13 | CY12: 31.623 | CZ12: 2.606249e-12 | DA12: -2.418261e-13 | DB12: 31.623 | DC12: 2.595604e-12 | DD12: -2.337852e-13 | DE12: 31.623 | DF12: 2.584497e-12 | DG12: -2.256855e-13 | DH12: 31.623 | DI12: 2.57642e-12 | DJ12: -2.176461e-13 | DK12: 31.623 | DL12: 2.565674e-12 | DM12: -2.097464e-13 | DN12: 31.623 | DO12: 2.554844e-12 | DP12: -2.020045e-13 | DQ12: 31.623 | DR12: 2.544896e-12 | DS12: -1.95812e-13 | DT12: 31.623 | DU12: 2.537715e-12 | DV12: -1.880899e-13 | DW12: 31.623 | DX12: 2.527814e-12 | DY12: -1.796266e-13 | DZ12: 31.623 | EA12: 2.516138e-12 | EB12: -1.686102e-13 | EC12: 31.623 | ED12: 2.504893e-12 | EE12: -1.61543e-13 | EF12: 31.623 | EG12: 2.496228e-12 | EH12: -1.53507e-13 | EI12: 31.623 | EJ12: 2.486017e-12 | EK12: -1.482885e-13 | EL12: 31.623 | EM12: 2.478148e-12 | EN12: -1.426386e-13 | EO12: 31.623 | EP12: 2.470928e-12 | EQ12: -1.369804e-13 | ER12: 31.623 | ES12: 2.462628e-12 | ET12: -1.336879e-13 | EU12: 31.623 | EV12: 2.455711e-12 | EW12: -1.292498e-13 | EX12: 31.623 | EY12: 2.448753e-12 | EZ12: -1.231484e-13 | FA12: 31.623 | FB12: 2.441902e-12 | FC12: -1.210381e-13 | FD12: 31.623 | FE12: 2.437665e-12 | FF12: -1.156151e-13 | FG12: 31.623 | FH12: 2.434828e-12 | FI12: -1.142297e-13 | FJ12: 31.623 | FK12: 2.429536e-12 | FL12: -1.113494e-13 | FM12: 31.623 | FN12: 2.424838e-12 | FO12: -1.099073e-13 | FP12: 31.623 | FQ12: 2.42108e-12 | FR12: -1.073318e-13 | FS12: 31.623 | FT12: 2.418914e-12 | FU12: -1.053387e-13 | FV12: 31.623 | FW12: 2.415953e-12 | FX12: -1.044775e-13 | FY12: 31.623 | FZ12: 2.566874e-12 | GA12: -2.393883e-13 | GB12: 31.623 | GC12: 2.543552e-12 | GD12: -2.153591e-13 | GE12: 31.623 | GF12: 2.541774e-12 | GG12: -2.142428e-13 | GH12: 31.623 | GI12: 2.549269e-12 | GJ12: -2.211534e-13 | GK12: 31.623 | GL12: 2.557683e-12 | GM12: -2.297591e-13 | GN12: 31.623 | GO12: 2.554816e-12 | GP12: -2.264775e-13 | GQ12: 31.623 | GR12: 2.526812e-12 | GS12: -1.99934e-13 | GT12: 31.623 | GU12: 2.474501e-12 | GV12: -1.841287e-13 | GW12: 31.623 | GX12: 2.270626e-12 | GY12: -4.076722e-13 | GZ12: 31.623 | HA12: 1.703997e-12 | HB12: -4.615414e-13 | HC12: 31.623 | HD12: 1.461437e-12 | HE12: -2.794692e-13 | HF12: 31.623 | HG12: 1.394286e-12 | HH12: -1.763736e-13 | HI12: 31.623 | HJ12: 1.372254e-12 | HK12: -1.254655e-13 | HL12: 31.623 | HM12: 1.362482e-12 | HN12: -1.023048e-13 | HO12: 31.623 | HP12: 1.35747e-12 | HQ12: -9.089276e-14 | HR12: 31.623 | HS12: 1.351431e-12 | HT12: -8.570138e-14 | HU12: 31.623 | HV12: 1.347189e-12 | HW12: -8.363323e-14 | HX12: 31.623 | HY12: 1.343907e-12 | HZ12: -8.339172e-14 | IA12: 31.623 | IB12: 1.341874e-12 | IC12: -8.542304e-14 | ID12: 31.623 | IE12: 1.340206e-12 | IF12: -8.796355e-14 | IG12: 31.623 | IH12: 1.337662e-12 | II12: -9.13075e-14 | IJ12: 31.623 | IK12: 1.334878e-12 | IL12: -9.574394e-14 | IM12: 31.623 | IN12: 1.333435e-12 | IO12: -1.003976e-13 | IP12: 31.623 | IQ12: 1.331551e-12 | IR12: -1.042251e-13 | IS12: 31.623 | IT12: 1.330018e-12 | IU12: -1.0753e-13 | IV12: 31.623 | IW12: 1.327685e-12 | IX12: -1.110213e-13 | IY12: 31.623 | IZ12: 1.326332e-12 | JA12: -1.145403e-13 | JB12: 31.623 | JC12: 1.325139e-12 | JD12: -1.184498e-13 | JE12: 31.623 | JF12: 1.324424e-12 | JG12: -1.221612e-13 | JH12: 31.623 | JI12: 1.323212e-12 | JJ12: -1.253641e-13 | JK12: 31.623 | JL12: 1.322302e-12 | JM12: -1.287687e-13 | JN12: 31.623 | JO12: 1.321048e-12 | JP12: -1.311243e-13 | JQ12: 31.623 | JR12: 1.319123e-12 | JS12: -1.342738e-13 | JT12: 31.623 | JU12: 1.318791e-12 | JV12: -1.369054e-13 | JW12: 31.623 | JX12: 1.317772e-12 | JY12: -1.385204e-13 | JZ12: 31.623 | KA12: 1.317719e-12 | KB12: -1.405965e-13 | KC12: 31.623 | KD12: 1.316852e-12 | KE12: -1.422889e-13 | KF12: 31.623 | KG12: 1.316221e-12 | KH12: -1.446655e-13 | KI12: 31.623 | KJ12: 1.314624e-12 | KK12: -1.460628e-13 | KL12: 31.623 | KM12: 1.315307e-12 | KN12: -1.471441e-13 | KO12: 31.623 | KP12: 1.31361e-12 | KQ12: -1.481804e-13 | KR12: 31.623 | KS12: 1.313534e-12 | KT12: -1.497486e-13 | KU12: 31.623 | KV12: 1.313811e-12 | KW12: -1.505578e-13 | KX12: 31.623 | KY12: 1.312555e-12 | KZ12: -1.515092e-13 | LA12: 31.623 | LB12: 1.312203e-12 | LC12: -1.528551e-13 | LD12: 31.623 | LE12: 1.312157e-12 | LF12: -1.537994e-13 | LG12: 31.623 | LH12: 1.311846e-12 | LI12: -1.551047e-13 | LJ12: 31.623 | LK12: 1.310908e-12 | LL12: -1.555957e-13 | LM12: 31.623 | LN12: 1.311616e-12 | LO12: -1.562083e-13 | LP12: 31.623 | LQ12: 1.310296e-12 | LR12: -1.566549e-13 | LS12: 31.623 | LT12: 1.310323e-12 | LU12: -1.578617e-13 | LV12: 31.623 | LW12: 1.310086e-12 | LX12: -1.586803e-13 | LY12: 31.623 | LZ12: 1.310352e-12 | MA12: -1.590487e-13 | MB12: 31.623 | MC12: 1.310414e-12 | MD12: -1.595204e-13 | ME12: 31.623 | MF12: 1.309558e-12 | MG12: -1.603849e-13 | MH12: 31.623 | MI12: 1.308619e-12 | MJ12: -1.605786e-13 | MK12: 31.623 | ML12: 1.309003e-12 | MM12: -1.616077e-13 | MN12: 31.623 | MO12: 1.308918e-12 | MP12: -1.618038e-13 | MQ12: 31.623 | MR12: 1.308739e-12 | MS12: -1.618086e-13 | MT12: 31.623 | MU12: 1.308336e-12 | MV12: -1.622772e-13 | MW12: 31.623 | MX12: 1.308663e-12 | MY12: -1.626767e-13 | MZ12: 31.623 | NA12: 1.308327e-12 | NB12: -1.624564e-13 | NC12: 31.623 | ND12: 1.308116e-12 | NE12: -1.634291e-13 | NF12: 31.623 | NG12: 1.30748e-12 | NH12: -1.632711e-13 | NI12: 31.623 | NJ12: 1.308068e-12 | NK12: -1.640402e-13 | NL12: 31.623 | NM12: 1.307655e-12 | NN12: -1.641204e-13 | NO12: 31.623 | NP12: 1.307351e-12 | NQ12: -1.639181e-13 | NR12: 31.623 | NS12: 1.306965e-12 | NT12: -1.643144e-13 | NU12: 31.623 | NV12: 1.307635e-12 | NW12: -1.639194e-13 | NX12: 31.623 | NY12: 1.308024e-12 | NZ12: -1.64628e-13 | OA12: 31.623 | OB12: 1.307141e-12 | OC12: -1.644625e-13 | OD12: 31.623 | OE12: 1.307397e-12 | OF12: -1.649911e-13 | OG12: 31.623 | OH12: 1.307445e-12 | OI12: -1.649428e-13 | OJ12: 31.623 | OK12: 1.306911e-12 | OL12: -1.649413e-13 | OM12: 31.623 | ON12: 1.307017e-12 | OO12: -1.654989e-13 | OP12: 31.623 | OQ12: 1.306237e-12 | OR12: -1.653515e-13 | OS12: 31.623 | OT12: 1.307277e-12 | OU12: -1.657334e-13 | OV12: 31.623 | OW12: 1.306849e-12 | OX12: -1.661501e-13 | OY12: 31.623 | OZ12: 1.307062e-12 | PA12: -1.654641e-13 | PB12: 31.623 | PC12: 1.30737e-12 | PD12: -1.659282e-13 | PE12: 31.623 | PF12: 1.306859e-12 | PG12: -1.652838e-13 | PH12: 31.623 | PI12: 1.30629e-12 | PJ12: -1.661089e-13 | PK12: 31.623 | PL12: 1.306755e-12 | PM12: -1.663751e-13 | PN12: 31.623 | PO12: 1.305954e-12 | PP12: -1.6631e-13 | PQ12: 31.623 | PR12: 1.305965e-12 | PS12: -1.664019e-13 | PT12: 31.623 | PU12: 1.306572e-12 | PV12: -1.670826e-13 | PW12: 31.623 | PX12: 1.30628e-12 | PY12: -1.665617e-13 | PZ12: 31.623 | QA12: 1.306881e-12 | QB12: -1.660266e-13 | QC12: 31.623 | QD12: 1.306748e-12 | QE12: -1.640491e-13 | QF12: 31.623 | QG12: 1.307797e-12 | QH12: -1.624369e-13 | QI12: 31.623 | QJ12: 1.308361e-12 | QK12: -1.598989e-13
A13: 39.811 | B13: 2.885581e-12 | C13: -3.945608e-13 | D13: 39.811 | E13: 2.836192e-12 | F13: -3.729052e-13 | G13: 39.811 | H13: 2.831239e-12 | I13: -3.732283e-13 | J13: 39.811 | K13: 2.808988e-12 | L13: -3.671377e-13 | M13: 39.811 | N13: 2.798608e-12 | O13: -3.633727e-13 | P13: 39.811 | Q13: 2.789697e-12 | R13: -3.582202e-13 | S13: 39.811 | T13: 2.783774e-12 | U13: -3.55108e-13 | V13: 39.811 | W13: 8.671099e-17 | X13: 4.506611e-16 | Y13: 39.811 | Z13: 2.775042e-12 | AA13: -3.50442e-13 | AB13: 39.811 | AC13: 2.77145e-12 | AD13: -3.502864e-13 | AE13: 39.811 | AF13: 2.768268e-12 | AG13: -3.48565e-13 | AH13: 39.811 | AI13: 2.767894e-12 | AJ13: -3.468821e-13 | AK13: 39.811 | AL13: 2.766961e-12 | AM13: -3.466044e-13 | AN13: 39.811 | AO13: 2.76614e-12 | AP13: -3.466763e-13 | AQ13: 39.811 | AR13: 2.765458e-12 | AS13: -3.46202e-13 | AT13: 39.811 | AU13: 2.763115e-12 | AV13: -3.443858e-13 | AW13: 39.811 | AX13: 2.758945e-12 | AY13: -3.427123e-13 | AZ13: 39.811 | BA13: 2.758094e-12 | BB13: -3.413421e-13 | BC13: 39.811 | BD13: 2.752236e-12 | BE13: -3.401293e-13 | BF13: 39.811 | BG13: 2.743058e-12 | BH13: -3.3653e-13 | BI13: 39.811 | BJ13: 2.733656e-12 | BK13: -3.277467e-13 | BL13: 39.811 | BM13: 2.723788e-12 | BN13: -3.235498e-13 | BO13: 39.811 | BP13: 2.7101e-12 | BQ13: -3.163924e-13 | BR13: 39.811 | BS13: 2.700774e-12 | BT13: -3.090243e-13 | BU13: 39.811 | BV13: 2.688278e-12 | BW13: -3.001434e-13 | BX13: 39.811 | BY13: 2.678508e-12 | BZ13: -2.937133e-13 | CA13: 39.811 | CB13: 2.666509e-12 | CC13: -2.834324e-13 | CD13: 39.811 | CE13: 2.655368e-12 | CF13: -2.772865e-13 | CG13: 39.811 | CH13: 2.642973e-12 | CI13: -2.680573e-13 | CJ13: 39.811 | CK13: 2.631583e-12 | CL13: -2.5966e-13 | CM13: 39.811 | CN13: 2.620872e-12 | CO13: -2.509378e-13 | CP13: 39.811 | CQ13: 2.611387e-12 | CR13: -2.444304e-13 | CS13: 39.811 | CT13: 2.60082e-12 | CU13: -2.356534e-13 | CV13: 39.811 | CW13: 2.587101e-12 | CX13: -2.304783e-13 | CY13: 39.811 | CZ13: 2.578854e-12 | DA13: -2.22055e-13 | DB13: 39.811 | DC13: 2.570276e-12 | DD13: -2.117246e-13 | DE13: 39.811 | DF13: 2.559482e-12 | DG13: -2.048575e-13 | DH13: 39.811 | DI13: 2.55044e-12 | DJ13: -1.978838e-13 | DK13: 39.811 | DL13: 2.541276e-12 | DM13: -1.920335e-13 | DN13: 39.811 | DO13: 2.532302e-12 | DP13: -1.852904e-13 | DQ13: 39.811 | DR13: 2.523642e-12 | DS13: -1.789381e-13 | DT13: 39.811 | DU13: 2.515897e-12 | DV13: -1.72101e-13 | DW13: 39.811 | DX13: 2.508284e-12 | DY13: -1.656805e-13 | DZ13: 39.811 | EA13: 2.497801e-12 | EB13: -1.571819e-13 | EC13: 39.811 | ED13: 2.488531e-12 | EE13: -1.494735e-13 | EF13: 39.811 | EG13: 2.479052e-12 | EH13: -1.425906e-13 | EI13: 39.811 | EJ13: 2.470424e-12 | EK13: -1.382163e-13 | EL13: 39.811 | EM13: 2.462241e-12 | EN13: -1.33065e-13 | EO13: 39.811 | EP13: 2.454156e-12 | EQ13: -1.288322e-13 | ER13: 39.811 | ES13: 2.448495e-12 | ET13: -1.234907e-13 | EU13: 39.811 | EV13: 2.442173e-12 | EW13: -1.204083e-13 | EX13: 39.811 | EY13: 2.433572e-12 | EZ13: -1.164833e-13 | FA13: 39.811 | FB13: 2.428731e-12 | FC13: -1.125837e-13 | FD13: 39.811 | FE13: 2.423488e-12 | FF13: -1.099844e-13 | FG13: 39.811 | FH13: 2.421624e-12 | FI13: -1.077238e-13 | FJ13: 39.811 | FK13: 2.417241e-12 | FL13: -1.056516e-13 | FM13: 39.811 | FN13: 2.414324e-12 | FO13: -1.037423e-13 | FP13: 39.811 | FQ13: 2.409922e-12 | FR13: -1.021717e-13 | FS13: 39.811 | FT13: 2.40747e-12 | FU13: -1.001009e-13 | FV13: 39.811 | FW13: 2.405134e-12 | FX13: -9.842006e-14 | FY13: 39.811 | FZ13: 2.536076e-12 | GA13: -2.189061e-13 | GB13: 39.811 | GC13: 2.516773e-12 | GD13: -1.957118e-13 | GE13: 39.811 | GF13: 2.516556e-12 | GG13: -1.940005e-13 | GH13: 39.811 | GI13: 2.521651e-12 | GJ13: -2.02667e-13 | GK13: 39.811 | GL13: 2.527516e-12 | GM13: -2.105137e-13 | GN13: 39.811 | GO13: 2.527193e-12 | GP13: -2.075569e-13 | GQ13: 39.811 | GR13: 2.506503e-12 | GS13: -1.851554e-13 | GT13: 39.811 | GU13: 2.45951e-12 | GV13: -1.828086e-13 | GW13: 39.811 | GX13: 2.20408e-12 | GY13: -4.429146e-13 | GZ13: 39.811 | HA13: 1.631608e-12 | HB13: -4.264803e-13 | HC13: 39.811 | HD13: 1.43297e-12 | HE13: -2.475458e-13 | HF13: 39.811 | HG13: 1.381714e-12 | HH13: -1.592596e-13 | HI13: 39.811 | HJ13: 1.364343e-12 | HK13: -1.194076e-13 | HL13: 39.811 | HM13: 1.357247e-12 | HN13: -1.021608e-13 | HO13: 39.811 | HP13: 1.351274e-12 | HQ13: -9.487835e-14 | HR13: 39.811 | HS13: 1.346111e-12 | HT13: -9.184753e-14 | HU13: 39.811 | HV13: 1.342551e-12 | HW13: -9.105851e-14 | HX13: 39.811 | HY13: 1.339028e-12 | HZ13: -9.279866e-14 | IA13: 39.811 | IB13: 1.336749e-12 | IC13: -9.667405e-14 | ID13: 39.811 | IE13: 1.334739e-12 | IF13: -1.019275e-13 | IG13: 39.811 | IH13: 1.331485e-12 | II13: -1.070517e-13 | IJ13: 39.811 | IK13: 1.32948e-12 | IL13: -1.12589e-13 | IM13: 39.811 | IN13: 1.327452e-12 | IO13: -1.174858e-13 | IP13: 39.811 | IQ13: 1.324978e-12 | IR13: -1.228821e-13 | IS13: 39.811 | IT13: 1.32287e-12 | IU13: -1.275552e-13 | IV13: 39.811 | IW13: 1.320854e-12 | IX13: -1.324953e-13 | IY13: 39.811 | IZ13: 1.318964e-12 | JA13: -1.370736e-13 | JB13: 39.811 | JC13: 1.317823e-12 | JD13: -1.415726e-13 | JE13: 39.811 | JF13: 1.316383e-12 | JG13: -1.460527e-13 | JH13: 39.811 | JI13: 1.314666e-12 | JJ13: -1.50036e-13 | JK13: 39.811 | JL13: 1.314121e-12 | JM13: -1.54087e-13 | JN13: 39.811 | JO13: 1.311558e-12 | JP13: -1.574455e-13 | JQ13: 39.811 | JR13: 1.310683e-12 | JS13: -1.613555e-13 | JT13: 39.811 | JU13: 1.309118e-12 | JV13: -1.641742e-13 | JW13: 39.811 | JX13: 1.308282e-12 | JY13: -1.670739e-13 | JZ13: 39.811 | KA13: 1.307093e-12 | KB13: -1.695541e-13 | KC13: 39.811 | KD13: 1.306107e-12 | KE13: -1.717456e-13 | KF13: 39.811 | KG13: 1.305425e-12 | KH13: -1.741059e-13 | KI13: 39.811 | KJ13: 1.304269e-12 | KK13: -1.761989e-13 | KL13: 39.811 | KM13: 1.303831e-12 | KN13: -1.777814e-13 | KO13: 39.811 | KP13: 1.302895e-12 | KQ13: -1.790437e-13 | KR13: 39.811 | KS13: 1.302551e-12 | KT13: -1.804254e-13 | KU13: 39.811 | KV13: 1.301842e-12 | KW13: -1.819727e-13 | KX13: 39.811 | KY13: 1.301546e-12 | KZ13: -1.830073e-13 | LA13: 39.811 | LB13: 1.300805e-12 | LC13: -1.847985e-13 | LD13: 39.811 | LE13: 1.299856e-12 | LF13: -1.860505e-13 | LG13: 39.811 | LH13: 1.29952e-12 | LI13: -1.868911e-13 | LJ13: 39.811 | LK13: 1.299021e-12 | LL13: -1.882767e-13 | LM13: 39.811 | LN13: 1.298903e-12 | LO13: -1.892801e-13 | LP13: 39.811 | LQ13: 1.298132e-12 | LR13: -1.897558e-13 | LS13: 39.811 | LT13: 1.298318e-12 | LU13: -1.903372e-13 | LV13: 39.811 | LW13: 1.2978e-12 | LX13: -1.916113e-13 | LY13: 39.811 | LZ13: 1.297215e-12 | MA13: -1.920594e-13 | MB13: 39.811 | MC13: 1.296735e-12 | MD13: -1.928981e-13 | ME13: 39.811 | MF13: 1.296475e-12 | MG13: -1.936052e-13 | MH13: 39.811 | MI13: 1.296275e-12 | MJ13: -1.942586e-13 | MK13: 39.811 | ML13: 1.295567e-12 | MM13: -1.948094e-13 | MN13: 39.811 | MO13: 1.295845e-12 | MP13: -1.952187e-13 | MQ13: 39.811 | MR13: 1.295565e-12 | MS13: -1.956896e-13 | MT13: 39.811 | MU13: 1.295754e-12 | MV13: -1.959504e-13 | MW13: 39.811 | MX13: 1.295172e-12 | MY13: -1.965209e-13 | MZ13: 39.811 | NA13: 1.295049e-12 | NB13: -1.970624e-13 | NC13: 39.811 | ND13: 1.294996e-12 | NE13: -1.972304e-13 | NF13: 39.811 | NG13: 1.294391e-12 | NH13: -1.975853e-13 | NI13: 39.811 | NJ13: 1.294354e-12 | NK13: -1.981353e-13 | NL13: 39.811 | NM13: 1.294546e-12 | NN13: -1.986679e-13 | NO13: 39.811 | NP13: 1.29391e-12 | NQ13: -1.985486e-13 | NR13: 39.811 | NS13: 1.293807e-12 | NT13: -1.98732e-13 | NU13: 39.811 | NV13: 1.294238e-12 | NW13: -1.986474e-13 | NX13: 39.811 | NY13: 1.294094e-12 | NZ13: -1.989618e-13 | OA13: 39.811 | OB13: 1.293804e-12 | OC13: -1.990276e-13 | OD13: 39.811 | OE13: 1.293687e-12 | OF13: -1.991122e-13 | OG13: 39.811 | OH13: 1.293767e-12 | OI13: -1.990025e-13 | OJ13: 39.811 | OK13: 1.293418e-12 | OL13: -1.991125e-13 | OM13: 39.811 | ON13: 1.293463e-12 | OO13: -1.998232e-13 | OP13: 39.811 | OQ13: 1.293251e-12 | OR13: -2.003494e-13 | OS13: 39.811 | OT13: 1.293439e-12 | OU13: -2.003236e-13 | OV13: 39.811 | OW13: 1.293076e-12 | OX13: -2.006173e-13 | OY13: 39.811 | OZ13: 1.292709e-12 | PA13: -2.005006e-13 | PB13: 39.811 | PC13: 1.293119e-12 | PD13: -2.004826e-13 | PE13: 39.811 | PF13: 1.293e-12 | PG13: -2.004315e-13 | PH13: 39.811 | PI13: 1.292985e-12 | PJ13: -2.010425e-13 | PK13: 39.811 | PL13: 1.292957e-12 | PM13: -2.008492e-13 | PN13: 39.811 | PO13: 1.292209e-12 | PP13: -2.012219e-13 | PQ13: 39.811 | PR13: 1.292532e-12 | PS13: -2.016171e-13 | PT13: 39.811 | PU13: 1.292129e-12 | PV13: -2.016139e-13 | PW13: 39.811 | PX13: 1.292032e-12 | PY13: -2.019154e-13 | PZ13: 39.811 | QA13: 1.292402e-12 | QB13: -2.010408e-13 | QC13: 39.811 | QD13: 1.292918e-12 | QE13: -1.985602e-13 | QF13: 39.811 | QG13: 1.293734e-12 | QH13: -1.963795e-13 | QI13: 39.811 | QJ13: 1.294823e-12 | QK13: -1.937239e-13
A14: 50.119 | B14: 2.826593e-12 | C14: -3.800724e-13 | D14: 50.119 | E14: 2.780921e-12 | F14: -3.367548e-13 | G14: 50.119 | H14: 2.789742e-12 | I14: -3.584961e-13 | J14: 50.119 | K14: 2.759163e-12 | L14: -3.488412e-13 | M14: 50.119 | N14: 2.744773e-12 | O14: -3.415487e-13 | P14: 50.119 | Q14: 2.744414e-12 | R14: -3.248995e-13 | S14: 50.119 | T14: 2.73403e-12 | U14: -3.380256e-13 | V14: 50.119 | W14: 2.025982e-16 | X14: 3.563378e-16 | Y14: 50.119 | Z14: 2.72412e-12 | AA14: -3.153235e-13 | AB14: 50.119 | AC14: 2.717814e-12 | AD14: -3.173574e-13 | AE14: 50.119 | AF14: 2.710861e-12 | AG14: -3.120034e-13 | AH14: 50.119 | AI14: 2.713746e-12 | AJ14: -3.321273e-13 | AK14: 50.119 | AL14: 2.721219e-12 | AM14: -3.333771e-13 | AN14: 50.119 | AO14: 2.71801e-12 | AP14: -3.071662e-13 | AQ14: 50.119 | AR14: 2.715509e-12 | AS14: -3.137895e-13 | AT14: 50.119 | AU14: 2.712788e-12 | AV14: -3.281587e-13 | AW14: 50.119 | AX14: 2.724499e-12 | AY14: -3.219389e-13 | AZ14: 50.119 | BA14: 2.708949e-12 | BB14: -3.150213e-13 | BC14: 50.119 | BD14: 2.700788e-12 | BE14: -3.037136e-13 | BF14: 50.119 | BG14: 2.71098e-12 | BH14: -3.020505e-13 | BI14: 50.119 | BJ14: 2.695875e-12 | BK14: -2.927209e-13 | BL14: 50.119 | BM14: 2.686465e-12 | BN14: -2.988796e-13 | BO14: 50.119 | BP14: 2.676646e-12 | BQ14: -2.826984e-13 | BR14: 50.119 | BS14: 2.666811e-12 | BT14: -2.946776e-13 | BU14: 50.119 | BV14: 2.657346e-12 | BW14: -2.776489e-13 | BX14: 50.119 | BY14: 2.630895e-12 | BZ14: -2.715045e-13 | CA14: 50.119 | CB14: 2.621798e-12 | CC14: -2.612398e-13 | CD14: 50.119 | CE14: 2.618729e-12 | CF14: -2.587764e-13 | CG14: 50.119 | CH14: 2.624367e-12 | CI14: -2.469671e-13 | CJ14: 50.119 | CK14: 2.610768e-12 | CL14: -2.307055e-13 | CM14: 50.119 | CN14: 2.593711e-12 | CO14: -2.426595e-13 | CP14: 50.119 | CQ14: 2.583433e-12 | CR14: -2.20554e-13 | CS14: 50.119 | CT14: 2.565096e-12 | CU14: -2.241484e-13 | CV14: 50.119 | CW14: 2.553871e-12 | CX14: -2.109063e-13 | CY14: 50.119 | CZ14: 2.560995e-12 | DA14: -2.059003e-13 | DB14: 50.119 | DC14: 2.536192e-12 | DD14: -1.980655e-13 | DE14: 50.119 | DF14: 2.535738e-12 | DG14: -1.86174e-13 | DH14: 50.119 | DI14: 2.536222e-12 | DJ14: -1.785554e-13 | DK14: 50.119 | DL14: 2.520162e-12 | DM14: -1.706991e-13 | DN14: 50.119 | DO14: 2.508892e-12 | DP14: -1.818473e-13 | DQ14: 50.119 | DR14: 2.495752e-12 | DS14: -1.595434e-13 | DT14: 50.119 | DU14: 2.492351e-12 | DV14: -1.518893e-13 | DW14: 50.119 | DX14: 2.481254e-12 | DY14: -1.57148e-13 | DZ14: 50.119 | EA14: 2.48445e-12 | EB14: -1.567286e-13 | EC14: 50.119 | ED14: 2.481578e-12 | EE14: -1.431859e-13 | EF14: 50.119 | EG14: 2.466804e-12 | EH14: -1.308115e-13 | EI14: 50.119 | EJ14: 2.455199e-12 | EK14: -1.277925e-13 | EL14: 50.119 | EM14: 2.442335e-12 | EN14: -1.214501e-13 | EO14: 50.119 | EP14: 2.445239e-12 | EQ14: -1.20818e-13 | ER14: 50.119 | ES14: 2.436443e-12 | ET14: -1.099968e-13 | EU14: 50.119 | EV14: 2.427422e-12 | EW14: -1.123152e-13 | EX14: 50.119 | EY14: 2.419842e-12 | EZ14: -1.156933e-13 | FA14: 50.119 | FB14: 2.409421e-12 | FC14: -1.022337e-13 | FD14: 50.119 | FE14: 2.407983e-12 | FF14: -1.141203e-13 | FG14: 50.119 | FH14: 2.404897e-12 | FI14: -1.014943e-13 | FJ14: 50.119 | FK14: 2.408093e-12 | FL14: -9.606948e-14 | FM14: 50.119 | FN14: 2.405911e-12 | FO14: -1.087482e-13 | FP14: 50.119 | FQ14: 2.397684e-12 | FR14: -1.067494e-13 | FS14: 50.119 | FT14: 2.406536e-12 | FU14: -1.016128e-13 | FV14: 50.119 | FW14: 2.40607e-12 | FX14: -9.614239e-14 | FY14: 50.119 | FZ14: 2.516885e-12 | GA14: -2.084449e-13 | GB14: 50.119 | GC14: 2.49827e-12 | GD14: -1.924198e-13 | GE14: 50.119 | GF14: 2.490336e-12 | GG14: -1.908563e-13 | GH14: 50.119 | GI14: 2.494415e-12 | GJ14: -1.862831e-13 | GK14: 50.119 | GL14: 2.503794e-12 | GM14: -1.877528e-13 | GN14: 50.119 | GO14: 2.496323e-12 | GP14: -2.021473e-13 | GQ14: 50.119 | GR14: 2.491712e-12 | GS14: -1.817041e-13 | GT14: 50.119 | GU14: 2.435954e-12 | GV14: -1.927704e-13 | GW14: 50.119 | GX14: 2.118595e-12 | GY14: -4.789866e-13 | GZ14: 50.119 | HA14: 1.57322e-12 | HB14: -3.875759e-13 | HC14: 50.119 | HD14: 1.407701e-12 | HE14: -2.246704e-13 | HF14: 50.119 | HG14: 1.373476e-12 | HH14: -1.471779e-13 | HI14: 50.119 | HJ14: 1.356824e-12 | HK14: -1.181818e-13 | HL14: 50.119 | HM14: 1.355639e-12 | HN14: -1.098049e-13 | HO14: 50.119 | HP14: 1.350053e-12 | HQ14: -9.852037e-14 | HR14: 50.119 | HS14: 1.345735e-12 | HT14: -1.005774e-13 | HU14: 50.119 | HV14: 1.33343e-12 | HW14: -1.06813e-13 | HX14: 50.119 | HY14: 1.334791e-12 | HZ14: -1.029002e-13 | IA14: 50.119 | IB14: 1.334131e-12 | IC14: -1.13929e-13 | ID14: 50.119 | IE14: 1.325382e-12 | IF14: -1.195722e-13 | IG14: 50.119 | IH14: 1.325159e-12 | II14: -1.274037e-13 | IJ14: 50.119 | IK14: 1.32266e-12 | IL14: -1.288624e-13 | IM14: 50.119 | IN14: 1.324895e-12 | IO14: -1.425378e-13 | IP14: 50.119 | IQ14: 1.321348e-12 | IR14: -1.443918e-13 | IS14: 50.119 | IT14: 1.311389e-12 | IU14: -1.527383e-13 | IV14: 50.119 | IW14: 1.310782e-12 | IX14: -1.621874e-13 | IY14: 50.119 | IZ14: 1.309934e-12 | JA14: -1.637513e-13 | JB14: 50.119 | JC14: 1.305613e-12 | JD14: -1.701566e-13 | JE14: 50.119 | JF14: 1.306895e-12 | JG14: -1.808121e-13 | JH14: 50.119 | JI14: 1.304107e-12 | JJ14: -1.857748e-13 | JK14: 50.119 | JL14: 1.302448e-12 | JM14: -1.865874e-13 | JN14: 50.119 | JO14: 1.297701e-12 | JP14: -1.877116e-13 | JQ14: 50.119 | JR14: 1.297114e-12 | JS14: -1.971122e-13 | JT14: 50.119 | JU14: 1.295452e-12 | JV14: -1.966237e-13 | JW14: 50.119 | JX14: 1.293304e-12 | JY14: -2.084515e-13 | JZ14: 50.119 | KA14: 1.296238e-12 | KB14: -2.064638e-13 | KC14: 50.119 | KD14: 1.294569e-12 | KE14: -2.056398e-13 | KF14: 50.119 | KG14: 1.29139e-12 | KH14: -2.104425e-13 | KI14: 50.119 | KJ14: 1.286659e-12 | KK14: -2.150183e-13 | KL14: 50.119 | KM14: 1.284523e-12 | KN14: -2.159572e-13 | KO14: 50.119 | KP14: 1.287501e-12 | KQ14: -2.184842e-13 | KR14: 50.119 | KS14: 1.288166e-12 | KT14: -2.230582e-13 | KU14: 50.119 | KV14: 1.282046e-12 | KW14: -2.242487e-13 | KX14: 50.119 | KY14: 1.28456e-12 | KZ14: -2.267243e-13 | LA14: 50.119 | LB14: 1.281696e-12 | LC14: -2.290974e-13 | LD14: 50.119 | LE14: 1.281871e-12 | LF14: -2.318462e-13 | LG14: 50.119 | LH14: 1.283381e-12 | LI14: -2.230608e-13 | LJ14: 50.119 | LK14: 1.276551e-12 | LL14: -2.273765e-13 | LM14: 50.119 | LN14: 1.285118e-12 | LO14: -2.2723e-13 | LP14: 50.119 | LQ14: 1.280544e-12 | LR14: -2.332531e-13 | LS14: 50.119 | LT14: 1.283417e-12 | LU14: -2.310697e-13 | LV14: 50.119 | LW14: 1.282081e-12 | LX14: -2.311316e-13 | LY14: 50.119 | LZ14: 1.277853e-12 | MA14: -2.310321e-13 | MB14: 50.119 | MC14: 1.280677e-12 | MD14: -2.363637e-13 | ME14: 50.119 | MF14: 1.276061e-12 | MG14: -2.388706e-13 | MH14: 50.119 | MI14: 1.27722e-12 | MJ14: -2.388189e-13 | MK14: 50.119 | ML14: 1.276144e-12 | MM14: -2.395352e-13 | MN14: 50.119 | MO14: 1.278217e-12 | MP14: -2.326327e-13 | MQ14: 50.119 | MR14: 1.281285e-12 | MS14: -2.383602e-13 | MT14: 50.119 | MU14: 1.281925e-12 | MV14: -2.384863e-13 | MW14: 50.119 | MX14: 1.274675e-12 | MY14: -2.419793e-13 | MZ14: 50.119 | NA14: 1.275629e-12 | NB14: -2.424523e-13 | NC14: 50.119 | ND14: 1.27316e-12 | NE14: -2.4293e-13 | NF14: 50.119 | NG14: 1.273853e-12 | NH14: -2.39723e-13 | NI14: 50.119 | NJ14: 1.277835e-12 | NK14: -2.376709e-13 | NL14: 50.119 | NM14: 1.271492e-12 | NN14: -2.406822e-13 | NO14: 50.119 | NP14: 1.270661e-12 | NQ14: -2.412107e-13 | NR14: 50.119 | NS14: 1.272719e-12 | NT14: -2.426075e-13 | NU14: 50.119 | NV14: 1.274315e-12 | NW14: -2.44614e-13 | NX14: 50.119 | NY14: 1.274938e-12 | NZ14: -2.440514e-13 | OA14: 50.119 | OB14: 1.277171e-12 | OC14: -2.466321e-13 | OD14: 50.119 | OE14: 1.274428e-12 | OF14: -2.392657e-13 | OG14: 50.119 | OH14: 1.278249e-12 | OI14: -2.418941e-13 | OJ14: 50.119 | OK14: 1.278853e-12 | OL14: -2.43416e-13 | OM14: 50.119 | ON14: 1.277255e-12 | OO14: -2.385815e-13 | OP14: 50.119 | OQ14: 1.274203e-12 | OR14: -2.458941e-13 | OS14: 50.119 | OT14: 1.273622e-12 | OU14: -2.471975e-13 | OV14: 50.119 | OW14: 1.275397e-12 | OX14: -2.430399e-13 | OY14: 50.119 | OZ14: 1.268283e-12 | PA14: -2.45055e-13 | PB14: 50.119 | PC14: 1.273107e-12 | PD14: -2.433526e-13 | PE14: 50.119 | PF14: 1.27207e-12 | PG14: -2.396397e-13 | PH14: 50.119 | PI14: 1.270768e-12 | PJ14: -2.480457e-13 | PK14: 50.119 | PL14: 1.272578e-12 | PM14: -2.487867e-13 | PN14: 50.119 | PO14: 1.272415e-12 | PP14: -2.455141e-13 | PQ14: 50.119 | PR14: 1.270719e-12 | PS14: -2.470409e-13 | PT14: 50.119 | PU14: 1.275993e-12 | PV14: -2.487005e-13 | PW14: 50.119 | PX14: 1.270127e-12 | PY14: -2.454041e-13 | PZ14: 50.119 | QA14: 1.273207e-12 | QB14: -2.403567e-13 | QC14: 50.119 | QD14: 1.275184e-12 | QE14: -2.401004e-13 | QF14: 50.119 | QG14: 1.270703e-12 | QH14: -2.376318e-13 | QI14: 50.119 | QJ14: 1.278922e-12 | QK14: -2.31966e-13
A15: 63.096 | B15: 2.777993e-12 | C15: -3.337949e-13 | D15: 63.096 | E15: 2.732864e-12 | F15: -3.221138e-13 | G15: 63.096 | H15: 2.727426e-12 | I15: -3.18695e-13 | J15: 63.096 | K15: 2.710424e-12 | L15: -3.102854e-13 | M15: 63.096 | N15: 2.700972e-12 | O15: -3.09781e-13 | P15: 63.096 | Q15: 2.693233e-12 | R15: -3.05384e-13 | S15: 63.096 | T15: 2.690219e-12 | U15: -3.02516e-13 | V15: 63.096 | W15: 2.684862e-16 | X15: 2.602226e-16 | Y15: 63.096 | Z15: 2.682024e-12 | AA15: -2.968641e-13 | AB15: 63.096 | AC15: 2.682647e-12 | AD15: -2.940745e-13 | AE15: 63.096 | AF15: 2.680431e-12 | AG15: -2.952663e-13 | AH15: 63.096 | AI15: 2.677637e-12 | AJ15: -2.904311e-13 | AK15: 63.096 | AL15: 2.678133e-12 | AM15: -2.901864e-13 | AN15: 63.096 | AO15: 2.675955e-12 | AP15: -2.939157e-13 | AQ15: 63.096 | AR15: 2.674516e-12 | AS15: -2.885716e-13 | AT15: 63.096 | AU15: 2.673612e-12 | AV15: -2.888144e-13 | AW15: 63.096 | AX15: 2.673679e-12 | AY15: -2.894455e-13 | AZ15: 63.096 | BA15: 2.66933e-12 | BB15: -2.86417e-13 | BC15: 63.096 | BD15: 2.663687e-12 | BE15: -2.867365e-13 | BF15: 63.096 | BG15: 2.657383e-12 | BH15: -2.813764e-13 | BI15: 63.096 | BJ15: 2.650148e-12 | BK15: -2.767183e-13 | BL15: 63.096 | BM15: 2.643294e-12 | BN15: -2.691627e-13 | BO15: 63.096 | BP15: 2.635672e-12 | BQ15: -2.647912e-13 | BR15: 63.096 | BS15: 2.625776e-12 | BT15: -2.554974e-13 | BU15: 63.096 | BV15: 2.615382e-12 | BW15: -2.493502e-13 | BX15: 63.096 | BY15: 2.610172e-12 | BZ15: -2.453358e-13 | CA15: 63.096 | CB15: 2.598175e-12 | CC15: -2.34354e-13 | CD15: 63.096 | CE15: 2.590907e-12 | CF15: -2.322162e-13 | CG15: 63.096 | CH15: 2.580817e-12 | CI15: -2.214694e-13 | CJ15: 63.096 | CK15: 2.572151e-12 | CL15: -2.160073e-13 | CM15: 63.096 | CN15: 2.564305e-12 | CO15: -2.079778e-13 | CP15: 63.096 | CQ15: 2.553847e-12 | CR15: -2.048844e-13 | CS15: 63.096 | CT15: 2.547804e-12 | CU15: -1.970856e-13 | CV15: 63.096 | CW15: 2.539056e-12 | CX15: -1.904813e-13 | CY15: 63.096 | CZ15: 2.528943e-12 | DA15: -1.840077e-13 | DB15: 63.096 | DC15: 2.523521e-12 | DD15: -1.797512e-13 | DE15: 63.096 | DF15: 2.515066e-12 | DG15: -1.737939e-13 | DH15: 63.096 | DI15: 2.504629e-12 | DJ15: -1.697552e-13 | DK15: 63.096 | DL15: 2.49659e-12 | DM15: -1.622275e-13 | DN15: 63.096 | DO15: 2.491794e-12 | DP15: -1.568053e-13 | DQ15: 63.096 | DR15: 2.484759e-12 | DS15: -1.514833e-13 | DT15: 63.096 | DU15: 2.478791e-12 | DV15: -1.498056e-13 | DW15: 63.096 | DX15: 2.471192e-12 | DY15: -1.435419e-13 | DZ15: 63.096 | EA15: 2.463693e-12 | EB15: -1.344267e-13 | EC15: 63.096 | ED15: 2.453335e-12 | EE15: -1.296154e-13 | EF15: 63.096 | EG15: 2.447464e-12 | EH15: -1.237493e-13 | EI15: 63.096 | EJ15: 2.440032e-12 | EK15: -1.217508e-13 | EL15: 63.096 | EM15: 2.433846e-12 | EN15: -1.195525e-13 | EO15: 63.096 | EP15: 2.42428e-12 | EQ15: -1.137114e-13 | ER15: 63.096 | ES15: 2.419097e-12 | ET15: -1.115761e-13 | EU15: 63.096 | EV15: 2.413667e-12 | EW15: -1.072497e-13 | EX15: 63.096 | EY15: 2.408799e-12 | EZ15: -1.046095e-13 | FA15: 63.096 | FB15: 2.402637e-12 | FC15: -1.038322e-13 | FD15: 63.096 | FE15: 2.397407e-12 | FF15: -1.005391e-13 | FG15: 63.096 | FH15: 2.396481e-12 | FI15: -9.790496e-14 | FJ15: 63.096 | FK15: 2.391897e-12 | FL15: -9.810684e-14 | FM15: 63.096 | FN15: 2.390613e-12 | FO15: -9.424711e-14 | FP15: 63.096 | FQ15: 2.386246e-12 | FR15: -9.198633e-14 | FS15: 63.096 | FT15: 2.382875e-12 | FU15: -9.166064e-14 | FV15: 63.096 | FW15: 2.381415e-12 | FX15: -9.006014e-14 | FY15: 63.096 | FZ15: 2.483095e-12 | GA15: -1.82187e-13 | GB15: 63.096 | GC15: 2.473373e-12 | GD15: -1.615498e-13 | GE15: 63.096 | GF15: 2.473277e-12 | GG15: -1.604002e-13 | GH15: 63.096 | GI15: 2.473611e-12 | GJ15: -1.671314e-13 | GK15: 63.096 | GL15: 2.478286e-12 | GM15: -1.74312e-13 | GN15: 63.096 | GO15: 2.481883e-12 | GP15: -1.751258e-13 | GQ15: 63.096 | GR15: 2.468253e-12 | GS15: -1.631885e-13 | GT15: 63.096 | GU15: 2.427488e-12 | GV15: -1.942202e-13 | GW15: 63.096 | GX15: 2.039129e-12 | GY15: -4.937537e-13 | GZ15: 63.096 | HA15: 1.517157e-12 | HB15: -3.510679e-13 | HC15: 63.096 | HD15: 1.391704e-12 | HE15: -1.994384e-13 | HF15: 63.096 | HG15: 1.360986e-12 | HH15: -1.409972e-13 | HI15: 63.096 | HJ15: 1.350815e-12 | HK15: -1.200619e-13 | HL15: 63.096 | HM15: 1.344019e-12 | HN15: -1.125869e-13 | HO15: 63.096 | HP15: 1.336645e-12 | HQ15: -1.110281e-13 | HR15: 63.096 | HS15: 1.333629e-12 | HT15: -1.130733e-13 | HU15: 63.096 | HV15: 1.328711e-12 | HW15: -1.169729e-13 | HX15: 63.096 | HY15: 1.326848e-12 | HZ15: -1.24025e-13 | IA15: 63.096 | IB15: 1.323535e-12 | IC15: -1.325499e-13 | ID15: 63.096 | IE15: 1.319432e-12 | IF15: -1.405565e-13 | IG15: 63.096 | IH15: 1.316742e-12 | II15: -1.503565e-13 | IJ15: 63.096 | IK15: 1.312824e-12 | IL15: -1.601504e-13 | IM15: 63.096 | IN15: 1.308917e-12 | IO15: -1.676602e-13 | IP15: 63.096 | IQ15: 1.304837e-12 | IR15: -1.767575e-13 | IS15: 63.096 | IT15: 1.301927e-12 | IU15: -1.855155e-13 | IV15: 63.096 | IW15: 1.299279e-12 | IX15: -1.920366e-13 | IY15: 63.096 | IZ15: 1.295136e-12 | JA15: -1.998906e-13 | JB15: 63.096 | JC15: 1.293011e-12 | JD15: -2.056164e-13 | JE15: 63.096 | JF15: 1.290135e-12 | JG15: -2.11912e-13 | JH15: 63.096 | JI15: 1.285578e-12 | JJ15: -2.189217e-13 | JK15: 63.096 | JL15: 1.283095e-12 | JM15: -2.250865e-13 | JN15: 63.096 | JO15: 1.280374e-12 | JP15: -2.313169e-13 | JQ15: 63.096 | JR15: 1.278462e-12 | JS15: -2.36186e-13 | JT15: 63.096 | JU15: 1.275489e-12 | JV15: -2.407171e-13 | JW15: 63.096 | JX15: 1.274114e-12 | JY15: -2.4456e-13 | JZ15: 63.096 | KA15: 1.271091e-12 | KB15: -2.477956e-13 | KC15: 63.096 | KD15: 1.27012e-12 | KE15: -2.510535e-13 | KF15: 63.096 | KG15: 1.267476e-12 | KH15: -2.543101e-13 | KI15: 63.096 | KJ15: 1.266842e-12 | KK15: -2.575225e-13 | KL15: 63.096 | KM15: 1.26502e-12 | KN15: -2.606094e-13 | KO15: 63.096 | KP15: 1.263938e-12 | KQ15: -2.621148e-13 | KR15: 63.096 | KS15: 1.262038e-12 | KT15: -2.646555e-13 | KU15: 63.096 | KV15: 1.261349e-12 | KW15: -2.663829e-13 | KX15: 63.096 | KY15: 1.260582e-12 | KZ15: -2.677865e-13 | LA15: 63.096 | LB15: 1.259363e-12 | LC15: -2.695479e-13 | LD15: 63.096 | LE15: 1.258453e-12 | LF15: -2.718851e-13 | LG15: 63.096 | LH15: 1.257074e-12 | LI15: -2.723834e-13 | LJ15: 63.096 | LK15: 1.256308e-12 | LL15: -2.754736e-13 | LM15: 63.096 | LN15: 1.254707e-12 | LO15: -2.75817e-13 | LP15: 63.096 | LQ15: 1.254677e-12 | LR15: -2.769715e-13 | LS15: 63.096 | LT15: 1.252834e-12 | LU15: -2.776787e-13 | LV15: 63.096 | LW15: 1.252593e-12 | LX15: -2.78351e-13 | LY15: 63.096 | LZ15: 1.251719e-12 | MA15: -2.809762e-13 | MB15: 63.096 | MC15: 1.251219e-12 | MD15: -2.806605e-13 | ME15: 63.096 | MF15: 1.2515e-12 | MG15: -2.822008e-13 | MH15: 63.096 | MI15: 1.250737e-12 | MJ15: -2.83044e-13 | MK15: 63.096 | ML15: 1.250022e-12 | MM15: -2.83634e-13 | MN15: 63.096 | MO15: 1.249009e-12 | MP15: -2.852925e-13 | MQ15: 63.096 | MR15: 1.247791e-12 | MS15: -2.85124e-13 | MT15: 63.096 | MU15: 1.248395e-12 | MV15: -2.855165e-13 | MW15: 63.096 | MX15: 1.248984e-12 | MY15: -2.862418e-13 | MZ15: 63.096 | NA15: 1.24725e-12 | NB15: -2.871351e-13 | NC15: 63.096 | ND15: 1.247994e-12 | NE15: -2.870918e-13 | NF15: 63.096 | NG15: 1.246607e-12 | NH15: -2.884539e-13 | NI15: 63.096 | NJ15: 1.246053e-12 | NK15: -2.87815e-13 | NL15: 63.096 | NM15: 1.246838e-12 | NN15: -2.890153e-13 | NO15: 63.096 | NP15: 1.246559e-12 | NQ15: -2.901732e-13 | NR15: 63.096 | NS15: 1.245901e-12 | NT15: -2.89452e-13 | NU15: 63.096 | NV15: 1.246352e-12 | NW15: -2.895649e-13 | NX15: 63.096 | NY15: 1.245305e-12 | NZ15: -2.891953e-13 | OA15: 63.096 | OB15: 1.246145e-12 | OC15: -2.89102e-13 | OD15: 63.096 | OE15: 1.245529e-12 | OF15: -2.897677e-13 | OG15: 63.096 | OH15: 1.244969e-12 | OI15: -2.891456e-13 | OJ15: 63.096 | OK15: 1.244584e-12 | OL15: -2.900748e-13 | OM15: 63.096 | ON15: 1.244377e-12 | OO15: -2.899081e-13 | OP15: 63.096 | OQ15: 1.244764e-12 | OR15: -2.914643e-13 | OS15: 63.096 | OT15: 1.244668e-12 | OU15: -2.923862e-13 | OV15: 63.096 | OW15: 1.244045e-12 | OX15: -2.913105e-13 | OY15: 63.096 | OZ15: 1.244755e-12 | PA15: -2.922121e-13 | PB15: 63.096 | PC15: 1.243989e-12 | PD15: -2.911313e-13 | PE15: 63.096 | PF15: 1.24425e-12 | PG15: -2.922075e-13 | PH15: 63.096 | PI15: 1.244296e-12 | PJ15: -2.918251e-13 | PK15: 63.096 | PL15: 1.243184e-12 | PM15: -2.917356e-13 | PN15: 63.096 | PO15: 1.243369e-12 | PP15: -2.935402e-13 | PQ15: 63.096 | PR15: 1.243844e-12 | PS15: -2.931695e-13 | PT15: 63.096 | PU15: 1.242732e-12 | PV15: -2.927885e-13 | PW15: 63.096 | PX15: 1.243233e-12 | PY15: -2.938121e-13 | PZ15: 63.096 | QA15: 1.243265e-12 | QB15: -2.931698e-13 | QC15: 63.096 | QD15: 1.244445e-12 | QE15: -2.90064e-13 | QF15: 63.096 | QG15: 1.247488e-12 | QH15: -2.870917e-13 | QI15: 63.096 | QJ15: 1.249508e-12 | QK15: -2.818385e-13
A16: 79.433 | B16: 2.733309e-12 | C16: -3.127722e-13 | D16: 79.433 | E16: 2.687199e-12 | F16: -2.949007e-13 | G16: 79.433 | H16: 2.684409e-12 | I16: -2.980298e-13 | J16: 79.433 | K16: 2.669343e-12 | L16: -2.887372e-13 | M16: 79.433 | N16: 2.659258e-12 | O16: -2.831661e-13 | P16: 79.433 | Q16: 2.656534e-12 | R16: -2.752333e-13 | S16: 79.433 | T16: 2.649848e-12 | U16: -2.761402e-13 | V16: 79.433 | W16: 3.045473e-16 | X16: 1.766216e-16 | Y16: 79.433 | Z16: 2.645016e-12 | AA16: -2.696948e-13 | AB16: 79.433 | AC16: 2.641268e-12 | AD16: -2.697276e-13 | AE16: 79.433 | AF16: 2.640374e-12 | AG16: -2.71615e-13 | AH16: 79.433 | AI16: 2.640151e-12 | AJ16: -2.70093e-13 | AK16: 79.433 | AL16: 2.641412e-12 | AM16: -2.700701e-13 | AN16: 79.433 | AO16: 2.640464e-12 | AP16: -2.668234e-13 | AQ16: 79.433 | AR16: 2.638475e-12 | AS16: -2.693487e-13 | AT16: 79.433 | AU16: 2.635471e-12 | AV16: -2.65319e-13 | AW16: 79.433 | AX16: 2.636784e-12 | AY16: -2.66595e-13 | AZ16: 79.433 | BA16: 2.634333e-12 | BB16: -2.65648e-13 | BC16: 79.433 | BD16: 2.629116e-12 | BE16: -2.582965e-13 | BF16: 79.433 | BG16: 2.624154e-12 | BH16: -2.572245e-13 | BI16: 79.433 | BJ16: 2.6177e-12 | BK16: -2.491017e-13 | BL16: 79.433 | BM16: 2.611316e-12 | BN16: -2.472968e-13 | BO16: 79.433 | BP16: 2.600996e-12 | BQ16: -2.407706e-13 | BR16: 79.433 | BS16: 2.595428e-12 | BT16: -2.363153e-13 | BU16: 79.433 | BV16: 2.588624e-12 | BW16: -2.291202e-13 | BX16: 79.433 | BY16: 2.578906e-12 | BZ16: -2.225506e-13 | CA16: 79.433 | CB16: 2.569549e-12 | CC16: -2.189796e-13 | CD16: 79.433 | CE16: 2.561809e-12 | CF16: -2.10358e-13 | CG16: 79.433 | CH16: 2.556449e-12 | CI16: -2.052145e-13 | CJ16: 79.433 | CK16: 2.54768e-12 | CL16: -1.991361e-13 | CM16: 79.433 | CN16: 2.538442e-12 | CO16: -1.959994e-13 | CP16: 79.433 | CQ16: 2.533394e-12 | CR16: -1.862269e-13 | CS16: 79.433 | CT16: 2.523156e-12 | CU16: -1.835383e-13 | CV16: 79.433 | CW16: 2.5151e-12 | CX16: -1.769346e-13 | CY16: 79.433 | CZ16: 2.508926e-12 | DA16: -1.731046e-13 | DB16: 79.433 | DC16: 2.501922e-12 | DD16: -1.664559e-13 | DE16: 79.433 | DF16: 2.493019e-12 | DG16: -1.603009e-13 | DH16: 79.433 | DI16: 2.488943e-12 | DJ16: -1.548843e-13 | DK16: 79.433 | DL16: 2.480813e-12 | DM16: -1.53081e-13 | DN16: 79.433 | DO16: 2.472293e-12 | DP16: -1.488409e-13 | DQ16: 79.433 | DR16: 2.464631e-12 | DS16: -1.437529e-13 | DT16: 79.433 | DU16: 2.459007e-12 | DV16: -1.363e-13 | DW16: 79.433 | DX16: 2.452041e-12 | DY16: -1.353085e-13 | DZ16: 79.433 | EA16: 2.446642e-12 | EB16: -1.310734e-13 | EC16: 79.433 | ED16: 2.439853e-12 | EE16: -1.221267e-13 | EF16: 79.433 | EG16: 2.433926e-12 | EH16: -1.20776e-13 | EI16: 79.433 | EJ16: 2.423861e-12 | EK16: -1.172723e-13 | EL16: 79.433 | EM16: 2.417019e-12 | EN16: -1.137063e-13 | EO16: 79.433 | EP16: 2.412284e-12 | EQ16: -1.068893e-13 | ER16: 79.433 | ES16: 2.407388e-12 | ET16: -1.052243e-13 | EU16: 79.433 | EV16: 2.40209e-12 | EW16: -1.027192e-13 | EX16: 79.433 | EY16: 2.394726e-12 | EZ16: -1.034189e-13 | FA16: 79.433 | FB16: 2.390574e-12 | FC16: -9.816514e-14 | FD16: 79.433 | FE16: 2.387881e-12 | FF16: -9.428051e-14 | FG16: 79.433 | FH16: 2.386673e-12 | FI16: -9.509902e-14 | FJ16: 79.433 | FK16: 2.383211e-12 | FL16: -9.343875e-14 | FM16: 79.433 | FN16: 2.377611e-12 | FO16: -9.454436e-14 | FP16: 79.433 | FQ16: 2.375609e-12 | FR16: -9.443024e-14 | FS16: 79.433 | FT16: 2.37284e-12 | FU16: -9.226477e-14 | FV16: 79.433 | FW16: 2.37156e-12 | FX16: -9.131072e-14 | FY16: 79.433 | FZ16: 2.460064e-12 | GA16: -1.69218e-13 | GB16: 79.433 | GC16: 2.453889e-12 | GD16: -1.528371e-13 | GE16: 79.433 | GF16: 2.454563e-12 | GG16: -1.510842e-13 | GH16: 79.433 | GI16: 2.45614e-12 | GJ16: -1.521075e-13 | GK16: 79.433 | GL16: 2.461637e-12 | GM16: -1.600222e-13 | GN16: 79.433 | GO16: 2.460069e-12 | GP16: -1.63318e-13 | GQ16: 79.433 | GR16: 2.448994e-12 | GS16: -1.572028e-13 | GT16: 79.433 | GU16: 2.406465e-12 | GV16: -2.092217e-13 | GW16: 79.433 | GX16: 1.945893e-12 | GY16: -5.054614e-13 | GZ16: 79.433 | HA16: 1.474994e-12 | HB16: -3.19565e-13 | HC16: 79.433 | HD16: 1.378385e-12 | HE16: -1.867879e-13 | HF16: 79.433 | HG16: 1.354206e-12 | HH16: -1.400922e-13 | HI16: 79.433 | HJ16: 1.341844e-12 | HK16: -1.252467e-13 | HL16: 79.433 | HM16: 1.336252e-12 | HN16: -1.246989e-13 | HO16: 79.433 | HP16: 1.329823e-12 | HQ16: -1.249954e-13 | HR16: 79.433 | HS16: 1.326004e-12 | HT16: -1.311295e-13 | HU16: 79.433 | HV16: 1.322368e-12 | HW16: -1.387044e-13 | HX16: 79.433 | HY16: 1.317968e-12 | HZ16: -1.48064e-13 | IA16: 79.433 | IB16: 1.313914e-12 | IC16: -1.591053e-13 | ID16: 79.433 | IE16: 1.310053e-12 | IF16: -1.693324e-13 | IG16: 79.433 | IH16: 1.304448e-12 | II16: -1.796926e-13 | IJ16: 79.433 | IK16: 1.299173e-12 | IL16: -1.913344e-13 | IM16: 79.433 | IN16: 1.29525e-12 | IO16: -2.039107e-13 | IP16: 79.433 | IQ16: 1.289605e-12 | IR16: -2.135925e-13 | IS16: 79.433 | IT16: 1.284673e-12 | IU16: -2.220608e-13 | IV16: 79.433 | IW16: 1.279772e-12 | IX16: -2.324969e-13 | IY16: 79.433 | IZ16: 1.276079e-12 | JA16: -2.400191e-13 | JB16: 79.433 | JC16: 1.271921e-12 | JD16: -2.506432e-13 | JE16: 79.433 | JF16: 1.268169e-12 | JG16: -2.578967e-13 | JH16: 79.433 | JI16: 1.264228e-12 | JJ16: -2.647194e-13 | JK16: 79.433 | JL16: 1.259433e-12 | JM16: -2.716123e-13 | JN16: 79.433 | JO16: 1.254503e-12 | JP16: -2.781861e-13 | JQ16: 79.433 | JR16: 1.251012e-12 | JS16: -2.840341e-13 | JT16: 79.433 | JU16: 1.248692e-12 | JV16: -2.901339e-13 | JW16: 79.433 | JX16: 1.244883e-12 | JY16: -2.948593e-13 | JZ16: 79.433 | KA16: 1.24289e-12 | KB16: -2.977197e-13 | KC16: 79.433 | KD16: 1.240398e-12 | KE16: -3.015114e-13 | KF16: 79.433 | KG16: 1.237252e-12 | KH16: -3.052646e-13 | KI16: 79.433 | KJ16: 1.234072e-12 | KK16: -3.091924e-13 | KL16: 79.433 | KM16: 1.232379e-12 | KN16: -3.11829e-13 | KO16: 79.433 | KP16: 1.230458e-12 | KQ16: -3.150219e-13 | KR16: 79.433 | KS16: 1.228822e-12 | KT16: -3.161608e-13 | KU16: 79.433 | KV16: 1.227445e-12 | KW16: -3.188129e-13 | KX16: 79.433 | KY16: 1.225925e-12 | KZ16: -3.218515e-13 | LA16: 79.433 | LB16: 1.223931e-12 | LC16: -3.24072e-13 | LD16: 79.433 | LE16: 1.222023e-12 | LF16: -3.257983e-13 | LG16: 79.433 | LH16: 1.221861e-12 | LI16: -3.286367e-13 | LJ16: 79.433 | LK16: 1.219877e-12 | LL16: -3.283991e-13 | LM16: 79.433 | LN16: 1.219518e-12 | LO16: -3.304395e-13 | LP16: 79.433 | LQ16: 1.217478e-12 | LR16: -3.320286e-13 | LS16: 79.433 | LT16: 1.217905e-12 | LU16: -3.317728e-13 | LV16: 79.433 | LW16: 1.216806e-12 | LX16: -3.345679e-13 | LY16: 79.433 | LZ16: 1.214838e-12 | MA16: -3.346153e-13 | MB16: 79.433 | MC16: 1.214523e-12 | MD16: -3.373005e-13 | ME16: 79.433 | MF16: 1.212579e-12 | MG16: -3.383753e-13 | MH16: 79.433 | MI16: 1.211933e-12 | MJ16: -3.377629e-13 | MK16: 79.433 | ML16: 1.210906e-12 | MM16: -3.394577e-13 | MN16: 79.433 | MO16: 1.211158e-12 | MP16: -3.399536e-13 | MQ16: 79.433 | MR16: 1.210784e-12 | MS16: -3.414745e-13 | MT16: 79.433 | MU16: 1.209874e-12 | MV16: -3.411479e-13 | MW16: 79.433 | MX16: 1.20843e-12 | MY16: -3.418428e-13 | MZ16: 79.433 | NA16: 1.208829e-12 | NB16: -3.420971e-13 | NC16: 79.433 | ND16: 1.207358e-12 | NE16: -3.431319e-13 | NF16: 79.433 | NG16: 1.20755e-12 | NH16: -3.432693e-13 | NI16: 79.433 | NJ16: 1.208218e-12 | NK16: -3.442846e-13 | NL16: 79.433 | NM16: 1.206419e-12 | NN16: -3.452411e-13 | NO16: 79.433 | NP16: 1.206054e-12 | NQ16: -3.441911e-13 | NR16: 79.433 | NS16: 1.206106e-12 | NT16: -3.448518e-13 | NU16: 79.433 | NV16: 1.205786e-12 | NW16: -3.455131e-13 | NX16: 79.433 | NY16: 1.206444e-12 | NZ16: -3.466845e-13 | OA16: 79.433 | OB16: 1.206115e-12 | OC16: -3.463208e-13 | OD16: 79.433 | OE16: 1.205523e-12 | OF16: -3.465252e-13 | OG16: 79.433 | OH16: 1.206177e-12 | OI16: -3.451831e-13 | OJ16: 79.433 | OK16: 1.205569e-12 | OL16: -3.466001e-13 | OM16: 79.433 | ON16: 1.205468e-12 | OO16: -3.473525e-13 | OP16: 79.433 | OQ16: 1.204531e-12 | OR16: -3.475146e-13 | OS16: 79.433 | OT16: 1.203501e-12 | OU16: -3.484129e-13 | OV16: 79.433 | OW16: 1.204565e-12 | OX16: -3.484912e-13 | OY16: 79.433 | OZ16: 1.203591e-12 | PA16: -3.478303e-13 | PB16: 79.433 | PC16: 1.204489e-12 | PD16: -3.47729e-13 | PE16: 79.433 | PF16: 1.204063e-12 | PG16: -3.47229e-13 | PH16: 79.433 | PI16: 1.203478e-12 | PJ16: -3.488895e-13 | PK16: 79.433 | PL16: 1.203861e-12 | PM16: -3.487238e-13 | PN16: 79.433 | PO16: 1.203516e-12 | PP16: -3.488299e-13 | PQ16: 79.433 | PR16: 1.201837e-12 | PS16: -3.503051e-13 | PT16: 79.433 | PU16: 1.202512e-12 | PV16: -3.499739e-13 | PW16: 79.433 | PX16: 1.201662e-12 | PY16: -3.494152e-13 | PZ16: 79.433 | QA16: 1.203089e-12 | QB16: -3.486249e-13 | QC16: 79.433 | QD16: 1.205182e-12 | QE16: -3.444059e-13 | QF16: 79.433 | QG16: 1.208028e-12 | QH16: -3.405435e-13 | QI16: 79.433 | QJ16: 1.212085e-12 | QK16: -3.375127e-13
A17: 100 | B17: 2.693135e-12 | C17: -2.810194e-13 | D17: 100 | E17: 2.652535e-12 | F17: -2.674998e-13 | G17: 100 | H17: 2.644533e-12 | I17: -2.708251e-13 | J17: 100 | K17: 2.631901e-12 | L17: -2.595601e-13 | M17: 100 | N17: 2.626831e-12 | O17: -2.553568e-13 | P17: 100 | Q17: 2.622963e-12 | R17: -2.539623e-13 | S17: 100 | T17: 2.61844e-12 | U17: -2.502933e-13 | V17: 100 | W17: 3.183007e-16 | X17: 1.052411e-16 | Y17: 100 | Z17: 2.611489e-12 | AA17: -2.474088e-13 | AB17: 100 | AC17: 2.611174e-12 | AD17: -2.460594e-13 | AE17: 100 | AF17: 2.609211e-12 | AG17: -2.44127e-13 | AH17: 100 | AI17: 2.608377e-12 | AJ17: -2.427279e-13 | AK17: 100 | AL17: 2.608237e-12 | AM17: -2.4207e-13 | AN17: 100 | AO17: 2.60536e-12 | AP17: -2.440837e-13 | AQ17: 100 | AR17: 2.604125e-12 | AS17: -2.422801e-13 | AT17: 100 | AU17: 2.605503e-12 | AV17: -2.405255e-13 | AW17: 100 | AX17: 2.602808e-12 | AY17: -2.406789e-13 | AZ17: 100 | BA17: 2.600349e-12 | BB17: -2.40761e-13 | BC17: 100 | BD17: 2.59837e-12 | BE17: -2.389904e-13 | BF17: 100 | BG17: 2.59277e-12 | BH17: -2.340468e-13 | BI17: 100 | BJ17: 2.586534e-12 | BK17: -2.308161e-13 | BL17: 100 | BM17: 2.580132e-12 | BN17: -2.26035e-13 | BO17: 100 | BP17: 2.574452e-12 | BQ17: -2.204252e-13 | BR17: 100 | BS17: 2.566925e-12 | BT17: -2.135546e-13 | BU17: 100 | BV17: 2.560123e-12 | BW17: -2.113741e-13 | BX17: 100 | BY17: 2.553848e-12 | BZ17: -2.051781e-13 | CA17: 100 | CB17: 2.54609e-12 | CC17: -1.963488e-13 | CD17: 100 | CE17: 2.539252e-12 | CF17: -1.9538e-13 | CG17: 100 | CH17: 2.531455e-12 | CI17: -1.888419e-13 | CJ17: 100 | CK17: 2.523175e-12 | CL17: -1.833289e-13 | CM17: 100 | CN17: 2.518035e-12 | CO17: -1.770652e-13 | CP17: 100 | CQ17: 2.510381e-12 | CR17: -1.750367e-13 | CS17: 100 | CT17: 2.504193e-12 | CU17: -1.658012e-13 | CV17: 100 | CW17: 2.496676e-12 | CX17: -1.624464e-13 | CY17: 100 | CZ17: 2.487737e-12 | DA17: -1.58548e-13 | DB17: 100 | DC17: 2.483463e-12 | DD17: -1.538136e-13 | DE17: 100 | DF17: 2.477765e-12 | DG17: -1.492637e-13 | DH17: 100 | DI17: 2.46935e-12 | DJ17: -1.468614e-13 | DK17: 100 | DL17: 2.461608e-12 | DM17: -1.408117e-13 | DN17: 100 | DO17: 2.457039e-12 | DP17: -1.36087e-13 | DQ17: 100 | DR17: 2.451277e-12 | DS17: -1.322248e-13 | DT17: 100 | DU17: 2.445886e-12 | DV17: -1.307702e-13 | DW17: 100 | DX17: 2.437415e-12 | DY17: -1.258475e-13 | DZ17: 100 | EA17: 2.431938e-12 | EB17: -1.195109e-13 | EC17: 100 | ED17: 2.424964e-12 | EE17: -1.15238e-13 | EF17: 100 | EG17: 2.417168e-12 | EH17: -1.14164e-13 | EI17: 100 | EJ17: 2.412299e-12 | EK17: -1.081952e-13 | EL17: 100 | EM17: 2.407003e-12 | EN17: -1.058521e-13 | EO17: 100 | EP17: 2.399688e-12 | EQ17: -1.060055e-13 | ER17: 100 | ES17: 2.394771e-12 | ET17: -1.028455e-13 | EU17: 100 | EV17: 2.389267e-12 | EW17: -9.998875e-14 | EX17: 100 | EY17: 2.384817e-12 | EZ17: -9.634764e-14 | FA17: 100 | FB17: 2.377897e-12 | FC17: -9.557779e-14 | FD17: 100 | FE17: 2.375994e-12 | FF17: -9.394911e-14 | FG17: 100 | FH17: 2.372312e-12 | FI17: -9.236458e-14 | FJ17: 100 | FK17: 2.371135e-12 | FL17: -9.333747e-14 | FM17: 100 | FN17: 2.36825e-12 | FO17: -8.891922e-14 | FP17: 100 | FQ17: 2.363687e-12 | FR17: -8.806878e-14 | FS17: 100 | FT17: 2.361939e-12 | FU17: -8.741747e-14 | FV17: 100 | FW17: 2.360439e-12 | FX17: -8.677552e-14 | FY17: 100 | FZ17: 2.442195e-12 | GA17: -1.527054e-13 | GB17: 100 | GC17: 2.437319e-12 | GD17: -1.388367e-13 | GE17: 100 | GF17: 2.438902e-12 | GG17: -1.381799e-13 | GH17: 100 | GI17: 2.440974e-12 | GJ17: -1.44731e-13 | GK17: 100 | GL17: 2.44207e-12 | GM17: -1.488237e-13 | GN17: 100 | GO17: 2.444672e-12 | GP17: -1.52629e-13 | GQ17: 100 | GR17: 2.436062e-12 | GS17: -1.515478e-13 | GT17: 100 | GU17: 2.387244e-12 | GV17: -2.238167e-13 | GW17: 100 | GX17: 1.852129e-12 | GY17: -5.020067e-13 | GZ17: 100 | HA17: 1.44194e-12 | HB17: -2.884015e-13 | HC17: 100 | HD17: 1.364572e-12 | HE17: -1.781035e-13 | HF17: 100 | HG17: 1.344376e-12 | HH17: -1.446959e-13 | HI17: 100 | HJ17: 1.335028e-12 | HK17: -1.354488e-13 | HL17: 100 | HM17: 1.326746e-12 | HN17: -1.371794e-13 | HO17: 100 | HP17: 1.320197e-12 | HQ17: -1.427887e-13 | HR17: 100 | HS17: 1.316184e-12 | HT17: -1.50054e-13 | HU17: 100 | HV17: 1.311529e-12 | HW17: -1.618647e-13 | HX17: 100 | HY17: 1.306666e-12 | HZ17: -1.756638e-13 | IA17: 100 | IB17: 1.300811e-12 | IC17: -1.890421e-13 | ID17: 100 | IE17: 1.29477e-12 | IF17: -2.034331e-13 | IG17: 100 | IH17: 1.288862e-12 | II17: -2.173579e-13 | IJ17: 100 | IK17: 1.282231e-12 | IL17: -2.304368e-13 | IM17: 100 | IN17: 1.274736e-12 | IO17: -2.440139e-13 | IP17: 100 | IQ17: 1.268065e-12 | IR17: -2.577582e-13 | IS17: 100 | IT17: 1.262014e-12 | IU17: -2.687742e-13 | IV17: 100 | IW17: 1.25544e-12 | IX17: -2.786553e-13 | IY17: 100 | IZ17: 1.249156e-12 | JA17: -2.900988e-13 | JB17: 100 | JC17: 1.242722e-12 | JD17: -2.981302e-13 | JE17: 100 | JF17: 1.236581e-12 | JG17: -3.07727e-13 | JH17: 100 | JI17: 1.230762e-12 | JJ17: -3.167732e-13 | JK17: 100 | JL17: 1.224525e-12 | JM17: -3.24792e-13 | JN17: 100 | JO17: 1.219573e-12 | JP17: -3.327268e-13 | JQ17: 100 | JR17: 1.213757e-12 | JS17: -3.391395e-13 | JT17: 100 | JU17: 1.20932e-12 | JV17: -3.454136e-13 | JW17: 100 | JX17: 1.204845e-12 | JY17: -3.504823e-13 | JZ17: 100 | KA17: 1.201669e-12 | KB17: -3.554293e-13 | KC17: 100 | KD17: 1.197404e-12 | KE17: -3.599678e-13 | KF17: 100 | KG17: 1.194076e-12 | KH17: -3.637248e-13 | KI17: 100 | KJ17: 1.190956e-12 | KK17: -3.667706e-13 | KL17: 100 | KM17: 1.188241e-12 | KN17: -3.705575e-13 | KO17: 100 | KP17: 1.185901e-12 | KQ17: -3.71715e-13 | KR17: 100 | KS17: 1.183879e-12 | KT17: -3.75449e-13 | KU17: 100 | KV17: 1.181148e-12 | KW17: -3.777953e-13 | KX17: 100 | KY17: 1.178764e-12 | KZ17: -3.791389e-13 | LA17: 100 | LB17: 1.176557e-12 | LC17: -3.820325e-13 | LD17: 100 | LE17: 1.174529e-12 | LF17: -3.848102e-13 | LG17: 100 | LH17: 1.171898e-12 | LI17: -3.864422e-13 | LJ17: 100 | LK17: 1.171029e-12 | LL17: -3.87453e-13 | LM17: 100 | LN17: 1.16941e-12 | LO17: -3.89463e-13 | LP17: 100 | LQ17: 1.168429e-12 | LR17: -3.901344e-13 | LS17: 100 | LT17: 1.166679e-12 | LU17: -3.916652e-13 | LV17: 100 | LW17: 1.164952e-12 | LX17: -3.926824e-13 | LY17: 100 | LZ17: 1.163762e-12 | MA17: -3.950224e-13 | MB17: 100 | MC17: 1.162155e-12 | MD17: -3.950912e-13 | ME17: 100 | MF17: 1.161329e-12 | MG17: -3.963184e-13 | MH17: 100 | MI17: 1.160778e-12 | MJ17: -3.974945e-13 | MK17: 100 | ML17: 1.159515e-12 | MM17: -3.986559e-13 | MN17: 100 | MO17: 1.158252e-12 | MP17: -3.990467e-13 | MQ17: 100 | MR17: 1.157032e-12 | MS17: -4.004495e-13 | MT17: 100 | MU17: 1.156768e-12 | MV17: -4.00937e-13 | MW17: 100 | MX17: 1.156319e-12 | MY17: -4.00595e-13 | MZ17: 100 | NA17: 1.155657e-12 | NB17: -4.024947e-13 | NC17: 100 | ND17: 1.155242e-12 | NE17: -4.022615e-13 | NF17: 100 | NG17: 1.154231e-12 | NH17: -4.038353e-13 | NI17: 100 | NJ17: 1.153105e-12 | NK17: -4.040418e-13 | NL17: 100 | NM17: 1.153155e-12 | NN17: -4.035291e-13 | NO17: 100 | NP17: 1.152426e-12 | NQ17: -4.039909e-13 | NR17: 100 | NS17: 1.152895e-12 | NT17: -4.043056e-13 | NU17: 100 | NV17: 1.15259e-12 | NW17: -4.046863e-13 | NX17: 100 | NY17: 1.151689e-12 | NZ17: -4.046124e-13 | OA17: 100 | OB17: 1.15232e-12 | OC17: -4.050228e-13 | OD17: 100 | OE17: 1.151207e-12 | OF17: -4.058104e-13 | OG17: 100 | OH17: 1.151156e-12 | OI17: -4.060222e-13 | OJ17: 100 | OK17: 1.150689e-12 | OL17: -4.06006e-13 | OM17: 100 | ON17: 1.149854e-12 | OO17: -4.07039e-13 | OP17: 100 | OQ17: 1.14972e-12 | OR17: -4.064618e-13 | OS17: 100 | OT17: 1.149738e-12 | OU17: -4.068851e-13 | OV17: 100 | OW17: 1.148635e-12 | OX17: -4.070608e-13 | OY17: 100 | OZ17: 1.149425e-12 | PA17: -4.075691e-13 | PB17: 100 | PC17: 1.148697e-12 | PD17: -4.068353e-13 | PE17: 100 | PF17: 1.149165e-12 | PG17: -4.078883e-13 | PH17: 100 | PI17: 1.148348e-12 | PJ17: -4.075615e-13 | PK17: 100 | PL17: 1.147916e-12 | PM17: -4.083885e-13 | PN17: 100 | PO17: 1.147763e-12 | PP17: -4.091664e-13 | PQ17: 100 | PR17: 1.147561e-12 | PS17: -4.080868e-13 | PT17: 100 | PU17: 1.146657e-12 | PV17: -4.09635e-13 | PW17: 100 | PX17: 1.146325e-12 | PY17: -4.091586e-13 | PZ17: 100 | QA17: 1.147349e-12 | QB17: -4.08347e-13 | QC17: 100 | QD17: 1.15104e-12 | QE17: -4.058683e-13 | QF17: 100 | QG17: 1.155707e-12 | QH17: -4.013705e-13 | QI17: 100 | QJ17: 1.160161e-12 | QK17: -3.973633e-13
A18: 125.89 | B18: 2.658291e-12 | C18: -2.607727e-13 | D18: 125.89 | E18: 2.617021e-12 | F18: -2.51276e-13 | G18: 125.89 | H18: 2.613009e-12 | I18: -2.51032e-13 | J18: 125.89 | K18: 2.598996e-12 | L18: -2.426477e-13 | M18: 125.89 | N18: 2.596406e-12 | O18: -2.368541e-13 | P18: 125.89 | Q18: 2.591153e-12 | R18: -2.342612e-13 | S18: 125.89 | T18: 2.587949e-12 | U18: -2.327546e-13 | V18: 125.89 | W18: 3.16383e-16 | X18: 4.551182e-17 | Y18: 125.89 | Z18: 2.583306e-12 | AA18: -2.305672e-13 | AB18: 125.89 | AC18: 2.580781e-12 | AD18: -2.277828e-13 | AE18: 125.89 | AF18: 2.579791e-12 | AG18: -2.263729e-13 | AH18: 125.89 | AI18: 2.57866e-12 | AJ18: -2.263722e-13 | AK18: 125.89 | AL18: 2.579113e-12 | AM18: -2.265493e-13 | AN18: 125.89 | AO18: 2.577781e-12 | AP18: -2.252592e-13 | AQ18: 125.89 | AR18: 2.577178e-12 | AS18: -2.256262e-13 | AT18: 125.89 | AU18: 2.574728e-12 | AV18: -2.230698e-13 | AW18: 125.89 | AX18: 2.575744e-12 | AY18: -2.252282e-13 | AZ18: 125.89 | BA18: 2.573295e-12 | BB18: -2.235966e-13 | BC18: 125.89 | BD18: 2.569882e-12 | BE18: -2.192232e-13 | BF18: 125.89 | BG18: 2.565488e-12 | BH18: -2.181228e-13 | BI18: 125.89 | BJ18: 2.561107e-12 | BK18: -2.135893e-13 | BL18: 125.89 | BM18: 2.556456e-12 | BN18: -2.107349e-13 | BO18: 125.89 | BP18: 2.549506e-12 | BQ18: -2.04035e-13 | BR18: 125.89 | BS18: 2.542493e-12 | BT18: -2.011664e-13 | BU18: 125.89 | BV18: 2.536353e-12 | BW18: -1.972719e-13 | BX18: 125.89 | BY18: 2.531232e-12 | BZ18: -1.909318e-13 | CA18: 125.89 | CB18: 2.52327e-12 | CC18: -1.861362e-13 | CD18: 125.89 | CE18: 2.517118e-12 | CF18: -1.803878e-13 | CG18: 125.89 | CH18: 2.511065e-12 | CI18: -1.779926e-13 | CJ18: 125.89 | CK18: 2.504201e-12 | CL18: -1.72964e-13 | CM18: 125.89 | CN18: 2.497266e-12 | CO18: -1.675613e-13 | CP18: 125.89 | CQ18: 2.490724e-12 | CR18: -1.635283e-13 | CS18: 125.89 | CT18: 2.483845e-12 | CU18: -1.588914e-13 | CV18: 125.89 | CW18: 2.478178e-12 | CX18: -1.546197e-13 | CY18: 125.89 | CZ18: 2.471547e-12 | DA18: -1.511853e-13 | DB18: 125.89 | DC18: 2.464776e-12 | DD18: -1.45949e-13 | DE18: 125.89 | DF18: 2.459636e-12 | DG18: -1.418532e-13 | DH18: 125.89 | DI18: 2.454263e-12 | DJ18: -1.390958e-13 | DK18: 125.89 | DL18: 2.445998e-12 | DM18: -1.362944e-13 | DN18: 125.89 | DO18: 2.441313e-12 | DP18: -1.316564e-13 | DQ18: 125.89 | DR18: 2.435845e-12 | DS18: -1.286752e-13 | DT18: 125.89 | DU18: 2.43027e-12 | DV18: -1.251039e-13 | DW18: 125.89 | DX18: 2.425337e-12 | DY18: -1.227946e-13 | DZ18: 125.89 | EA18: 2.419192e-12 | EB18: -1.187902e-13 | EC18: 125.89 | ED18: 2.411594e-12 | EE18: -1.151898e-13 | EF18: 125.89 | EG18: 2.40634e-12 | EH18: -1.126077e-13 | EI18: 125.89 | EJ18: 2.399827e-12 | EK18: -1.079589e-13 | EL18: 125.89 | EM18: 2.393247e-12 | EN18: -1.05384e-13 | EO18: 125.89 | EP18: 2.38803e-12 | EQ18: -1.031686e-13 | ER18: 125.89 | ES18: 2.38361e-12 | ET18: -1.019277e-13 | EU18: 125.89 | EV18: 2.378355e-12 | EW18: -9.902194e-14 | EX18: 125.89 | EY18: 2.371395e-12 | EZ18: -9.697132e-14 | FA18: 125.89 | FB18: 2.367448e-12 | FC18: -9.612248e-14 | FD18: 125.89 | FE18: 2.365396e-12 | FF18: -9.340751e-14 | FG18: 125.89 | FH18: 2.362541e-12 | FI18: -9.467675e-14 | FJ18: 125.89 | FK18: 2.360673e-12 | FL18: -9.308745e-14 | FM18: 125.89 | FN18: 2.356146e-12 | FO18: -9.10672e-14 | FP18: 125.89 | FQ18: 2.353617e-12 | FR18: -9.015849e-14 | FS18: 125.89 | FT18: 2.349625e-12 | FU18: -9.177374e-14 | FV18: 125.89 | FW18: 2.349101e-12 | FX18: -9.004907e-14 | FY18: 125.89 | FZ18: 2.42458e-12 | GA18: -1.456801e-13 | GB18: 125.89 | GC18: 2.423011e-12 | GD18: -1.332496e-13 | GE18: 125.89 | GF18: 2.423904e-12 | GG18: -1.32382e-13 | GH18: 125.89 | GI18: 2.425825e-12 | GJ18: -1.366327e-13 | GK18: 125.89 | GL18: 2.428096e-12 | GM18: -1.438279e-13 | GN18: 125.89 | GO18: 2.42933e-12 | GP18: -1.472966e-13 | GQ18: 125.89 | GR18: 2.41977e-12 | GS18: -1.537956e-13 | GT18: 125.89 | GU18: 2.362918e-12 | GV18: -2.484954e-13 | GW18: 125.89 | GX18: 1.76274e-12 | GY18: -4.898309e-13 | GZ18: 125.89 | HA18: 1.413532e-12 | HB18: -2.661061e-13 | HC18: 125.89 | HD18: 1.353565e-12 | HE18: -1.769045e-13 | HF18: 125.89 | HG18: 1.33587e-12 | HH18: -1.549136e-13 | HI18: 125.89 | HJ18: 1.325106e-12 | HK18: -1.528996e-13 | HL18: 125.89 | HM18: 1.316718e-12 | HN18: -1.582043e-13 | HO18: 125.89 | HP18: 1.310503e-12 | HQ18: -1.67558e-13 | HR18: 125.89 | HS18: 1.305231e-12 | HT18: -1.795257e-13 | HU18: 125.89 | HV18: 1.299441e-12 | HW18: -1.944519e-13 | HX18: 125.89 | HY18: 1.292525e-12 | HZ18: -2.119605e-13 | IA18: 125.89 | IB18: 1.283808e-12 | IC18: -2.292725e-13 | ID18: 125.89 | IE18: 1.27621e-12 | IF18: -2.457134e-13 | IG18: 125.89 | IH18: 1.267089e-12 | II18: -2.619006e-13 | IJ18: 125.89 | IK18: 1.25743e-12 | IL18: -2.791519e-13 | IM18: 125.89 | IN18: 1.247081e-12 | IO18: -2.961789e-13 | IP18: 125.89 | IQ18: 1.237148e-12 | IR18: -3.107219e-13 | IS18: 125.89 | IT18: 1.228402e-12 | IU18: -3.231259e-13 | IV18: 125.89 | IW18: 1.219452e-12 | IX18: -3.354891e-13 | IY18: 125.89 | IZ18: 1.210704e-12 | JA18: -3.473335e-13 | JB18: 125.89 | JC18: 1.20205e-12 | JD18: -3.577435e-13 | JE18: 125.89 | JF18: 1.193399e-12 | JG18: -3.682057e-13 | JH18: 125.89 | JI18: 1.185051e-12 | JJ18: -3.783859e-13 | JK18: 125.89 | JL18: 1.176683e-12 | JM18: -3.86908e-13 | JN18: 125.89 | JO18: 1.169385e-12 | JP18: -3.945699e-13 | JQ18: 125.89 | JR18: 1.161936e-12 | JS18: -4.021162e-13 | JT18: 125.89 | JU18: 1.155928e-12 | JV18: -4.084886e-13 | JW18: 125.89 | JX18: 1.149628e-12 | JY18: -4.13485e-13 | JZ18: 125.89 | KA18: 1.144777e-12 | KB18: -4.1772e-13 | KC18: 125.89 | KD18: 1.139894e-12 | KE18: -4.226278e-13 | KF18: 125.89 | KG18: 1.134949e-12 | KH18: -4.264256e-13 | KI18: 125.89 | KJ18: 1.130333e-12 | KK18: -4.301487e-13 | KL18: 125.89 | KM18: 1.127185e-12 | KN18: -4.334707e-13 | KO18: 125.89 | KP18: 1.123428e-12 | KQ18: -4.3547e-13 | KR18: 125.89 | KS18: 1.120617e-12 | KT18: -4.380419e-13 | KU18: 125.89 | KV18: 1.117808e-12 | KW18: -4.405984e-13 | KX18: 125.89 | KY18: 1.114302e-12 | KZ18: -4.429504e-13 | LA18: 125.89 | LB18: 1.111611e-12 | LC18: -4.451096e-13 | LD18: 125.89 | LE18: 1.108047e-12 | LF18: -4.477285e-13 | LG18: 125.89 | LH18: 1.105973e-12 | LI18: -4.499307e-13 | LJ18: 125.89 | LK18: 1.103984e-12 | LL18: -4.509009e-13 | LM18: 125.89 | LN18: 1.10244e-12 | LO18: -4.526303e-13 | LP18: 125.89 | LQ18: 1.100088e-12 | LR18: -4.532844e-13 | LS18: 125.89 | LT18: 1.099007e-12 | LU18: -4.553684e-13 | LV18: 125.89 | LW18: 1.096846e-12 | LX18: -4.567318e-13 | LY18: 125.89 | LZ18: 1.094817e-12 | MA18: -4.574078e-13 | MB18: 125.89 | MC18: 1.093076e-12 | MD18: -4.587161e-13 | ME18: 125.89 | MF18: 1.09135e-12 | MG18: -4.593656e-13 | MH18: 125.89 | MI18: 1.090423e-12 | MJ18: -4.601459e-13 | MK18: 125.89 | ML18: 1.088577e-12 | MM18: -4.61152e-13 | MN18: 125.89 | MO18: 1.088122e-12 | MP18: -4.625751e-13 | MQ18: 125.89 | MR18: 1.08634e-12 | MS18: -4.63766e-13 | MT18: 125.89 | MU18: 1.086154e-12 | MV18: -4.636996e-13 | MW18: 125.89 | MX18: 1.085147e-12 | MY18: -4.640983e-13 | MZ18: 125.89 | NA18: 1.084307e-12 | NB18: -4.650208e-13 | NC18: 125.89 | ND18: 1.083227e-12 | NE18: -4.65258e-13 | NF18: 125.89 | NG18: 1.081865e-12 | NH18: -4.653694e-13 | NI18: 125.89 | NJ18: 1.081599e-12 | NK18: -4.665573e-13 | NL18: 125.89 | NM18: 1.080838e-12 | NN18: -4.66822e-13 | NO18: 125.89 | NP18: 1.080338e-12 | NQ18: -4.664504e-13 | NR18: 125.89 | NS18: 1.079949e-12 | NT18: -4.669964e-13 | NU18: 125.89 | NV18: 1.079702e-12 | NW18: -4.667332e-13 | NX18: 125.89 | NY18: 1.079194e-12 | NZ18: -4.678553e-13 | OA18: 125.89 | OB18: 1.079288e-12 | OC18: -4.673474e-13 | OD18: 125.89 | OE18: 1.079327e-12 | OF18: -4.682701e-13 | OG18: 125.89 | OH18: 1.07878e-12 | OI18: -4.684376e-13 | OJ18: 125.89 | OK18: 1.078062e-12 | OL18: -4.685987e-13 | OM18: 125.89 | ON18: 1.077589e-12 | OO18: -4.688604e-13 | OP18: 125.89 | OQ18: 1.076556e-12 | OR18: -4.698656e-13 | OS18: 125.89 | OT18: 1.076456e-12 | OU18: -4.692289e-13 | OV18: 125.89 | OW18: 1.076033e-12 | OX18: -4.702163e-13 | OY18: 125.89 | OZ18: 1.076064e-12 | PA18: -4.693995e-13 | PB18: 125.89 | PC18: 1.076178e-12 | PD18: -4.70052e-13 | PE18: 125.89 | PF18: 1.076013e-12 | PG18: -4.695211e-13 | PH18: 125.89 | PI18: 1.075305e-12 | PJ18: -4.704733e-13 | PK18: 125.89 | PL18: 1.074582e-12 | PM18: -4.704446e-13 | PN18: 125.89 | PO18: 1.073976e-12 | PP18: -4.703818e-13 | PQ18: 125.89 | PR18: 1.073828e-12 | PS18: -4.708144e-13 | PT18: 125.89 | PU18: 1.073131e-12 | PV18: -4.718239e-13 | PW18: 125.89 | PX18: 1.072576e-12 | PY18: -4.716846e-13 | PZ18: 125.89 | QA18: 1.074183e-12 | QB18: -4.709753e-13 | QC18: 125.89 | QD18: 1.079128e-12 | QE18: -4.672571e-13 | QF18: 125.89 | QG18: 1.08469e-12 | QH18: -4.636361e-13 | QI18: 125.89 | QJ18: 1.090136e-12 | QK18: -4.592965e-13
A19: 158.49 | B19: 2.628207e-12 | C19: -2.420653e-13 | D19: 158.49 | E19: 2.586433e-12 | F19: -2.333579e-13 | G19: 158.49 | H19: 2.585628e-12 | I19: -2.287384e-13 | J19: 158.49 | K19: 2.573507e-12 | L19: -2.255764e-13 | M19: 158.49 | N19: 2.567625e-12 | O19: -2.179936e-13 | P19: 158.49 | Q19: 2.562223e-12 | R19: -2.167032e-13 | S19: 158.49 | T19: 2.561469e-12 | U19: -2.144526e-13 | V19: 158.49 | W19: 3.021875e-16 | X19: -4.346083e-18 | Y19: 158.49 | Z19: 2.55631e-12 | AA19: -2.098703e-13 | AB19: 158.49 | AC19: 2.555677e-12 | AD19: -2.09686e-13 | AE19: 158.49 | AF19: 2.552679e-12 | AG19: -2.077677e-13 | AH19: 158.49 | AI19: 2.553684e-12 | AJ19: -2.113053e-13 | AK19: 158.49 | AL19: 2.553945e-12 | AM19: -2.097314e-13 | AN19: 158.49 | AO19: 2.550356e-12 | AP19: -2.090194e-13 | AQ19: 158.49 | AR19: 2.551621e-12 | AS19: -2.057363e-13 | AT19: 158.49 | AU19: 2.55028e-12 | AV19: -2.098792e-13 | AW19: 158.49 | AX19: 2.550412e-12 | AY19: -2.066696e-13 | AZ19: 158.49 | BA19: 2.547176e-12 | BB19: -2.042514e-13 | BC19: 158.49 | BD19: 2.543985e-12 | BE19: -2.048603e-13 | BF19: 158.49 | BG19: 2.540842e-12 | BH19: -2.036038e-13 | BI19: 158.49 | BJ19: 2.536579e-12 | BK19: -1.975115e-13 | BL19: 158.49 | BM19: 2.532093e-12 | BN19: -1.928449e-13 | BO19: 158.49 | BP19: 2.525579e-12 | BQ19: -1.9095e-13 | BR19: 158.49 | BS19: 2.521559e-12 | BT19: -1.863794e-13 | BU19: 158.49 | BV19: 2.516065e-12 | BW19: -1.827065e-13 | BX19: 158.49 | BY19: 2.508709e-12 | BZ19: -1.788335e-13 | CA19: 158.49 | CB19: 2.50147e-12 | CC19: -1.75761e-13 | CD19: 158.49 | CE19: 2.495023e-12 | CF19: -1.704433e-13 | CG19: 158.49 | CH19: 2.490346e-12 | CI19: -1.641933e-13 | CJ19: 158.49 | CK19: 2.482199e-12 | CL19: -1.607111e-13 | CM19: 158.49 | CN19: 2.476498e-12 | CO19: -1.57825e-13 | CP19: 158.49 | CQ19: 2.470807e-12 | CR19: -1.525825e-13 | CS19: 158.49 | CT19: 2.465316e-12 | CU19: -1.513454e-13 | CV19: 158.49 | CW19: 2.459148e-12 | CX19: -1.453201e-13 | CY19: 158.49 | CZ19: 2.45586e-12 | DA19: -1.41751e-13 | DB19: 158.49 | DC19: 2.450409e-12 | DD19: -1.396831e-13 | DE19: 158.49 | DF19: 2.442113e-12 | DG19: -1.375007e-13 | DH19: 158.49 | DI19: 2.437853e-12 | DJ19: -1.322119e-13 | DK19: 158.49 | DL19: 2.430656e-12 | DM19: -1.305102e-13 | DN19: 158.49 | DO19: 2.42574e-12 | DP19: -1.294139e-13 | DQ19: 158.49 | DR19: 2.420489e-12 | DS19: -1.260994e-13 | DT19: 158.49 | DU19: 2.41487e-12 | DV19: -1.236984e-13 | DW19: 158.49 | DX19: 2.409674e-12 | DY19: -1.196577e-13 | DZ19: 158.49 | EA19: 2.403394e-12 | EB19: -1.155689e-13 | EC19: 158.49 | ED19: 2.397614e-12 | EE19: -1.131795e-13 | EF19: 158.49 | EG19: 2.394465e-12 | EH19: -1.080378e-13 | EI19: 158.49 | EJ19: 2.385875e-12 | EK19: -1.06812e-13 | EL19: 158.49 | EM19: 2.382689e-12 | EN19: -1.055027e-13 | EO19: 158.49 | EP19: 2.374424e-12 | EQ19: -1.034775e-13 | ER19: 158.49 | ES19: 2.371054e-12 | ET19: -9.938932e-14 | EU19: 158.49 | EV19: 2.36705e-12 | EW19: -9.95582e-14 | EX19: 158.49 | EY19: 2.359793e-12 | EZ19: -9.808353e-14 | FA19: 158.49 | FB19: 2.357542e-12 | FC19: -9.497581e-14 | FD19: 158.49 | FE19: 2.354294e-12 | FF19: -9.598408e-14 | FG19: 158.49 | FH19: 2.352489e-12 | FI19: -9.29349e-14 | FJ19: 158.49 | FK19: 2.348628e-12 | FL19: -9.42136e-14 | FM19: 158.49 | FN19: 2.347629e-12 | FO19: -9.359841e-14 | FP19: 158.49 | FQ19: 2.344332e-12 | FR19: -9.142181e-14 | FS19: 158.49 | FT19: 2.339934e-12 | FU19: -9.221249e-14 | FV19: 158.49 | FW19: 2.339157e-12 | FX19: -9.164755e-14 | FY19: 158.49 | FZ19: 2.410125e-12 | GA19: -1.382736e-13 | GB19: 158.49 | GC19: 2.410404e-12 | GD19: -1.300249e-13 | GE19: 158.49 | GF19: 2.409319e-12 | GG19: -1.298084e-13 | GH19: 158.49 | GI19: 2.411018e-12 | GJ19: -1.313644e-13 | GK19: 158.49 | GL19: 2.413919e-12 | GM19: -1.378492e-13 | GN19: 158.49 | GO19: 2.414123e-12 | GP19: -1.441112e-13 | GQ19: 158.49 | GR19: 2.403504e-12 | GS19: -1.569849e-13 | GT19: 158.49 | GU19: 2.332977e-12 | GV19: -2.789105e-13 | GW19: 158.49 | GX19: 1.681711e-12 | GY19: -4.699185e-13 | GZ19: 158.49 | HA19: 1.391075e-12 | HB19: -2.49648e-13 | HC19: 158.49 | HD19: 1.343064e-12 | HE19: -1.810888e-13 | HF19: 158.49 | HG19: 1.325806e-12 | HH19: -1.697247e-13 | HI19: 158.49 | HJ19: 1.314098e-12 | HK19: -1.752318e-13 | HL19: 158.49 | HM19: 1.304245e-12 | HN19: -1.844276e-13 | HO19: 158.49 | HP19: 1.297223e-12 | HQ19: -1.966611e-13 | HR19: 158.49 | HS19: 1.290182e-12 | HT19: -2.133983e-13 | HU19: 158.49 | HV19: 1.281479e-12 | HW19: -2.335061e-13 | HX19: 158.49 | HY19: 1.271106e-12 | HZ19: -2.546631e-13 | IA19: 158.49 | IB19: 1.25986e-12 | IC19: -2.759107e-13 | ID19: 158.49 | IE19: 1.247986e-12 | IF19: -2.960645e-13 | IG19: 158.49 | IH19: 1.235942e-12 | II19: -3.155964e-13 | IJ19: 158.49 | IK19: 1.222878e-12 | IL19: -3.34215e-13 | IM19: 158.49 | IN19: 1.207968e-12 | IO19: -3.528366e-13 | IP19: 158.49 | IQ19: 1.194593e-12 | IR19: -3.695984e-13 | IS19: 158.49 | IT19: 1.181052e-12 | IU19: -3.834934e-13 | IV19: 158.49 | IW19: 1.168746e-12 | IX19: -3.979102e-13 | IY19: 158.49 | IZ19: 1.156967e-12 | JA19: -4.097788e-13 | JB19: 158.49 | JC19: 1.145187e-12 | JD19: -4.218087e-13 | JE19: 158.49 | JF19: 1.133529e-12 | JG19: -4.315542e-13 | JH19: 158.49 | JI19: 1.122067e-12 | JJ19: -4.409501e-13 | JK19: 158.49 | JL19: 1.111082e-12 | JM19: -4.511664e-13 | JN19: 158.49 | JO19: 1.101291e-12 | JP19: -4.579491e-13 | JQ19: 158.49 | JR19: 1.091829e-12 | JS19: -4.646416e-13 | JT19: 158.49 | JU19: 1.083373e-12 | JV19: -4.70409e-13 | JW19: 158.49 | JX19: 1.075942e-12 | JY19: -4.763136e-13 | JZ19: 158.49 | KA19: 1.068691e-12 | KB19: -4.812283e-13 | KC19: 158.49 | KD19: 1.062339e-12 | KE19: -4.852509e-13 | KF19: 158.49 | KG19: 1.056328e-12 | KH19: -4.877031e-13 | KI19: 158.49 | KJ19: 1.050935e-12 | KK19: -4.915668e-13 | KL19: 158.49 | KM19: 1.046598e-12 | KN19: -4.944655e-13 | KO19: 158.49 | KP19: 1.043062e-12 | KQ19: -4.969577e-13 | KR19: 158.49 | KS19: 1.038201e-12 | KT19: -4.995434e-13 | KU19: 158.49 | KV19: 1.034212e-12 | KW19: -5.011782e-13 | KX19: 158.49 | KY19: 1.030605e-12 | KZ19: -5.038552e-13 | LA19: 158.49 | LB19: 1.026811e-12 | LC19: -5.058966e-13 | LD19: 158.49 | LE19: 1.023278e-12 | LF19: -5.076628e-13 | LG19: 158.49 | LH19: 1.020324e-12 | LI19: -5.082728e-13 | LJ19: 158.49 | LK19: 1.017798e-12 | LL19: -5.094925e-13 | LM19: 158.49 | LN19: 1.015084e-12 | LO19: -5.10744e-13 | LP19: 158.49 | LQ19: 1.012969e-12 | LR19: -5.128968e-13 | LS19: 158.49 | LT19: 1.011557e-12 | LU19: -5.129459e-13 | LV19: 158.49 | LW19: 1.008808e-12 | LX19: -5.148854e-13 | LY19: 158.49 | LZ19: 1.006551e-12 | MA19: -5.153987e-13 | MB19: 158.49 | MC19: 1.004203e-12 | MD19: -5.162706e-13 | ME19: 158.49 | MF19: 1.002278e-12 | MG19: -5.178756e-13 | MH19: 158.49 | MI19: 1.000889e-12 | MJ19: -5.179291e-13 | MK19: 158.49 | ML19: 9.990899e-13 | MM19: -5.195672e-13 | MN19: 158.49 | MO19: 9.970789e-13 | MP19: -5.19421e-13 | MQ19: 158.49 | MR19: 9.960167e-13 | MS19: -5.207137e-13 | MT19: 158.49 | MU19: 9.959117e-13 | MV19: -5.206948e-13 | MW19: 158.49 | MX19: 9.941808e-13 | MY19: -5.207339e-13 | MZ19: 158.49 | NA19: 9.934496e-13 | NB19: -5.210873e-13 | NC19: 158.49 | ND19: 9.916902e-13 | NE19: -5.218435e-13 | NF19: 158.49 | NG19: 9.89995e-13 | NH19: -5.225962e-13 | NI19: 158.49 | NJ19: 9.895555e-13 | NK19: -5.225942e-13 | NL19: 158.49 | NM19: 9.895516e-13 | NN19: -5.235631e-13 | NO19: 158.49 | NP19: 9.888889e-13 | NQ19: -5.237421e-13 | NR19: 158.49 | NS19: 9.880037e-13 | NT19: -5.241467e-13 | NU19: 158.49 | NV19: 9.875476e-13 | NW19: -5.232078e-13 | NX19: 158.49 | NY19: 9.871234e-13 | NZ19: -5.241562e-13 | OA19: 158.49 | OB19: 9.870897e-13 | OC19: -5.242841e-13 | OD19: 158.49 | OE19: 9.868379e-13 | OF19: -5.242891e-13 | OG19: 158.49 | OH19: 9.869955e-13 | OI19: -5.241226e-13 | OJ19: 158.49 | OK19: 9.863105e-13 | OL19: -5.249747e-13 | OM19: 158.49 | ON19: 9.844338e-13 | OO19: -5.248752e-13 | OP19: 158.49 | OQ19: 9.838723e-13 | OR19: -5.260417e-13 | OS19: 158.49 | OT19: 9.841189e-13 | OU19: -5.253848e-13 | OV19: 158.49 | OW19: 9.830237e-13 | OX19: -5.257297e-13 | OY19: 158.49 | OZ19: 9.830844e-13 | PA19: -5.249301e-13 | PB19: 158.49 | PC19: 9.828967e-13 | PD19: -5.261416e-13 | PE19: 158.49 | PF19: 9.834795e-13 | PG19: -5.251421e-13 | PH19: 158.49 | PI19: 9.826667e-13 | PJ19: -5.263543e-13 | PK19: 158.49 | PL19: 9.822791e-13 | PM19: -5.261962e-13 | PN19: 158.49 | PO19: 9.807997e-13 | PP19: -5.259341e-13 | PQ19: 158.49 | PR19: 9.80628e-13 | PS19: -5.262553e-13 | PT19: 158.49 | PU19: 9.802899e-13 | PV19: -5.271746e-13 | PW19: 158.49 | PX19: 9.792959e-13 | PY19: -5.276383e-13 | PZ19: 158.49 | QA19: 9.80868e-13 | QB19: -5.260369e-13 | QC19: 158.49 | QD19: 9.863713e-13 | QE19: -5.235546e-13 | QF19: 158.49 | QG19: 9.932906e-13 | QH19: -5.203291e-13 | QI19: 158.49 | QJ19: 1.000221e-12 | QK19: -5.171169e-13
A20: 199.53 | B20: 2.598534e-12 | C20: -2.23856e-13 | D20: 199.53 | E20: 2.561427e-12 | F20: -2.14975e-13 | G20: 199.53 | H20: 2.555897e-12 | I20: -2.134725e-13 | J20: 199.53 | K20: 2.547097e-12 | L20: -2.07272e-13 | M20: 199.53 | N20: 2.542549e-12 | O20: -2.05205e-13 | P20: 199.53 | Q20: 2.537499e-12 | R20: -2.022623e-13 | S20: 199.53 | T20: 2.534522e-12 | U20: -1.992904e-13 | V20: 199.53 | W20: 2.782536e-16 | X20: -4.36102e-17 | Y20: 199.53 | Z20: 2.53236e-12 | AA20: -1.984488e-13 | AB20: 199.53 | AC20: 2.531992e-12 | AD20: -1.966227e-13 | AE20: 199.53 | AF20: 2.530386e-12 | AG20: -1.95383e-13 | AH20: 199.53 | AI20: 2.528823e-12 | AJ20: -1.938753e-13 | AK20: 199.53 | AL20: 2.528359e-12 | AM20: -1.942362e-13 | AN20: 199.53 | AO20: 2.528257e-12 | AP20: -1.948974e-13 | AQ20: 199.53 | AR20: 2.526721e-12 | AS20: -1.942845e-13 | AT20: 199.53 | AU20: 2.526391e-12 | AV20: -1.932562e-13 | AW20: 199.53 | AX20: 2.526165e-12 | AY20: -1.926107e-13 | AZ20: 199.53 | BA20: 2.524194e-12 | BB20: -1.922028e-13 | BC20: 199.53 | BD20: 2.520759e-12 | BE20: -1.902427e-13 | BF20: 199.53 | BG20: 2.517741e-12 | BH20: -1.882572e-13 | BI20: 199.53 | BJ20: 2.514128e-12 | BK20: -1.854423e-13 | BL20: 199.53 | BM20: 2.508002e-12 | BN20: -1.80657e-13 | BO20: 199.53 | BP20: 2.503235e-12 | BQ20: -1.77678e-13 | BR20: 199.53 | BS20: 2.499618e-12 | BT20: -1.75111e-13 | BU20: 199.53 | BV20: 2.493113e-12 | BW20: -1.711686e-13 | BX20: 199.53 | BY20: 2.489522e-12 | BZ20: -1.680027e-13 | CA20: 199.53 | CB20: 2.482086e-12 | CC20: -1.637399e-13 | CD20: 199.53 | CE20: 2.477446e-12 | CF20: -1.604212e-13 | CG20: 199.53 | CH20: 2.470646e-12 | CI20: -1.559049e-13 | CJ20: 199.53 | CK20: 2.467239e-12 | CL20: -1.54099e-13 | CM20: 199.53 | CN20: 2.459803e-12 | CO20: -1.495084e-13 | CP20: 199.53 | CQ20: 2.454392e-12 | CR20: -1.468027e-13 | CS20: 199.53 | CT20: 2.449354e-12 | CU20: -1.430444e-13 | CV20: 199.53 | CW20: 2.443388e-12 | CX20: -1.409095e-13 | CY20: 199.53 | CZ20: 2.438099e-12 | DA20: -1.377019e-13 | DB20: 199.53 | DC20: 2.434161e-12 | DD20: -1.346467e-13 | DE20: 199.53 | DF20: 2.427045e-12 | DG20: -1.313918e-13 | DH20: 199.53 | DI20: 2.422541e-12 | DJ20: -1.283281e-13 | DK20: 199.53 | DL20: 2.41674e-12 | DM20: -1.257929e-13 | DN20: 199.53 | DO20: 2.411591e-12 | DP20: -1.228749e-13 | DQ20: 199.53 | DR20: 2.406361e-12 | DS20: -1.20944e-13 | DT20: 199.53 | DU20: 2.401317e-12 | DV20: -1.180984e-13 | DW20: 199.53 | DX20: 2.39656e-12 | DY20: -1.15476e-13 | DZ20: 199.53 | EA20: 2.390996e-12 | EB20: -1.123848e-13 | EC20: 199.53 | ED20: 2.386326e-12 | EE20: -1.091789e-13 | EF20: 199.53 | EG20: 2.377962e-12 | EH20: -1.090482e-13 | EI20: 199.53 | EJ20: 2.374867e-12 | EK20: -1.046594e-13 | EL20: 199.53 | EM20: 2.368058e-12 | EN20: -1.03875e-13 | EO20: 199.53 | EP20: 2.365271e-12 | EQ20: -1.042439e-13 | ER20: 199.53 | ES20: 2.3579e-12 | ET20: -1.016803e-13 | EU20: 199.53 | EV20: 2.355318e-12 | EW20: -1.00772e-13 | EX20: 199.53 | EY20: 2.349088e-12 | EZ20: -9.774874e-14 | FA20: 199.53 | FB20: 2.345724e-12 | FC20: -9.894554e-14 | FD20: 199.53 | FE20: 2.342062e-12 | FF20: -9.551889e-14 | FG20: 199.53 | FH20: 2.339481e-12 | FI20: -9.585286e-14 | FJ20: 199.53 | FK20: 2.339491e-12 | FL20: -9.403323e-14 | FM20: 199.53 | FN20: 2.336006e-12 | FO20: -9.36979e-14 | FP20: 199.53 | FQ20: 2.332155e-12 | FR20: -9.379979e-14 | FS20: 199.53 | FT20: 2.330574e-12 | FU20: -9.387772e-14 | FV20: 199.53 | FW20: 2.328681e-12 | FX20: -9.276183e-14 | FY20: 199.53 | FZ20: 2.394872e-12 | GA20: -1.32441e-13 | GB20: 199.53 | GC20: 2.394508e-12 | GD20: -1.236642e-13 | GE20: 199.53 | GF20: 2.394939e-12 | GG20: -1.243975e-13 | GH20: 199.53 | GI20: 2.39707e-12 | GJ20: -1.289419e-13 | GK20: 199.53 | GL20: 2.39973e-12 | GM20: -1.33221e-13 | GN20: 199.53 | GO20: 2.399072e-12 | GP20: -1.433216e-13 | GQ20: 199.53 | GR20: 2.389025e-12 | GS20: -1.63191e-13 | GT20: 199.53 | GU20: 2.297336e-12 | GV20: -3.104348e-13 | GW20: 199.53 | GX20: 1.611559e-12 | GY20: -4.436971e-13 | GZ20: 199.53 | HA20: 1.372189e-12 | HB20: -2.410176e-13 | HC20: 199.53 | HD20: 1.331108e-12 | HE20: -1.931499e-13 | HF20: 199.53 | HG20: 1.313742e-12 | HH20: -1.915457e-13 | HI20: 199.53 | HJ20: 1.299619e-12 | HK20: -2.019888e-13 | HL20: 199.53 | HM20: 1.288422e-12 | HN20: -2.159067e-13 | HO20: 199.53 | HP20: 1.28047e-12 | HQ20: -2.338419e-13 | HR20: 199.53 | HS20: 1.268837e-12 | HT20: -2.56036e-13 | HU20: 199.53 | HV20: 1.2569e-12 | HW20: -2.806441e-13 | HX20: 199.53 | HY20: 1.242141e-12 | HZ20: -3.066413e-13 | IA20: 199.53 | IB20: 1.224973e-12 | IC20: -3.311948e-13 | ID20: 199.53 | IE20: 1.209115e-12 | IF20: -3.53422e-13 | IG20: 199.53 | IH20: 1.190575e-12 | II20: -3.752451e-13 | IJ20: 199.53 | IK20: 1.172055e-12 | IL20: -3.967506e-13 | IM20: 199.53 | IN20: 1.152599e-12 | IO20: -4.17132e-13 | IP20: 199.53 | IQ20: 1.134188e-12 | IR20: -4.33207e-13 | IS20: 199.53 | IT20: 1.116823e-12 | IU20: -4.489636e-13 | IV20: 199.53 | IW20: 1.10002e-12 | IX20: -4.613861e-13 | IY20: 199.53 | IZ20: 1.085032e-12 | JA20: -4.739699e-13 | JB20: 199.53 | JC20: 1.068275e-12 | JD20: -4.849507e-13 | JE20: 199.53 | JF20: 1.053893e-12 | JG20: -4.936495e-13 | JH20: 199.53 | JI20: 1.038554e-12 | JJ20: -5.031241e-13 | JK20: 199.53 | JL20: 1.024765e-12 | JM20: -5.115354e-13 | JN20: 199.53 | JO20: 1.012926e-12 | JP20: -5.184675e-13 | JQ20: 199.53 | JR20: 1.001019e-12 | JS20: -5.241023e-13 | JT20: 199.53 | JU20: 9.904657e-13 | JV20: -5.289807e-13 | JW20: 199.53 | JX20: 9.804543e-13 | JY20: -5.331451e-13 | JZ20: 199.53 | KA20: 9.720556e-13 | KB20: -5.375782e-13 | KC20: 199.53 | KD20: 9.647769e-13 | KE20: -5.408916e-13 | KF20: 199.53 | KG20: 9.566995e-13 | KH20: -5.432754e-13 | KI20: 199.53 | KJ20: 9.500638e-13 | KK20: -5.455591e-13 | KL20: 199.53 | KM20: 9.44804e-13 | KN20: -5.479402e-13 | KO20: 199.53 | KP20: 9.406345e-13 | KQ20: -5.492972e-13 | KR20: 199.53 | KS20: 9.358837e-13 | KT20: -5.51714e-13 | KU20: 199.53 | KV20: 9.313721e-13 | KW20: -5.53215e-13 | KX20: 199.53 | KY20: 9.264598e-13 | KZ20: -5.538398e-13 | LA20: 199.53 | LB20: 9.217793e-13 | LC20: -5.560838e-13 | LD20: 199.53 | LE20: 9.173646e-13 | LF20: -5.57396e-13 | LG20: 199.53 | LH20: 9.136647e-13 | LI20: -5.577665e-13 | LJ20: 199.53 | LK20: 9.115398e-13 | LL20: -5.591588e-13 | LM20: 199.53 | LN20: 9.084077e-13 | LO20: -5.597173e-13 | LP20: 199.53 | LQ20: 9.050897e-13 | LR20: -5.606293e-13 | LS20: 199.53 | LT20: 9.03349e-13 | LU20: -5.610807e-13 | LV20: 199.53 | LW20: 9.002563e-13 | LX20: -5.618448e-13 | LY20: 199.53 | LZ20: 8.976515e-13 | MA20: -5.625798e-13 | MB20: 199.53 | MC20: 8.953237e-13 | MD20: -5.628302e-13 | ME20: 199.53 | MF20: 8.932098e-13 | MG20: -5.634084e-13 | MH20: 199.53 | MI20: 8.91445e-13 | MJ20: -5.641856e-13 | MK20: 199.53 | ML20: 8.890025e-13 | MM20: -5.647213e-13 | MN20: 199.53 | MO20: 8.870423e-13 | MP20: -5.650866e-13 | MQ20: 199.53 | MR20: 8.856575e-13 | MS20: -5.653946e-13 | MT20: 199.53 | MU20: 8.851997e-13 | MV20: -5.655915e-13 | MW20: 199.53 | MX20: 8.842478e-13 | MY20: -5.657727e-13 | MZ20: 199.53 | NA20: 8.826306e-13 | NB20: -5.663191e-13 | NC20: 199.53 | ND20: 8.817406e-13 | NE20: -5.665598e-13 | NF20: 199.53 | NG20: 8.796061e-13 | NH20: -5.66716e-13 | NI20: 199.53 | NJ20: 8.782658e-13 | NK20: -5.667813e-13 | NL20: 199.53 | NM20: 8.78323e-13 | NN20: -5.67041e-13 | NO20: 199.53 | NP20: 8.777012e-13 | NQ20: -5.675618e-13 | NR20: 199.53 | NS20: 8.769729e-13 | NT20: -5.67544e-13 | NU20: 199.53 | NV20: 8.763989e-13 | NW20: -5.67367e-13 | NX20: 199.53 | NY20: 8.757126e-13 | NZ20: -5.674052e-13 | OA20: 199.53 | OB20: 8.759067e-13 | OC20: -5.674379e-13 | OD20: 199.53 | OE20: 8.752412e-13 | OF20: -5.679896e-13 | OG20: 199.53 | OH20: 8.752802e-13 | OI20: -5.682113e-13 | OJ20: 199.53 | OK20: 8.743036e-13 | OL20: -5.677953e-13 | OM20: 199.53 | ON20: 8.729766e-13 | OO20: -5.681611e-13 | OP20: 199.53 | OQ20: 8.718916e-13 | OR20: -5.683286e-13 | OS20: 199.53 | OT20: 8.717882e-13 | OU20: -5.683297e-13 | OV20: 199.53 | OW20: 8.713514e-13 | OX20: -5.683145e-13 | OY20: 199.53 | OZ20: 8.711984e-13 | PA20: -5.68708e-13 | PB20: 199.53 | PC20: 8.709654e-13 | PD20: -5.687511e-13 | PE20: 199.53 | PF20: 8.715134e-13 | PG20: -5.684804e-13 | PH20: 199.53 | PI20: 8.70175e-13 | PJ20: -5.685354e-13 | PK20: 199.53 | PL20: 8.693929e-13 | PM20: -5.685382e-13 | PN20: 199.53 | PO20: 8.687832e-13 | PP20: -5.689668e-13 | PQ20: 199.53 | PR20: 8.679847e-13 | PS20: -5.692996e-13 | PT20: 199.53 | PU20: 8.675062e-13 | PV20: -5.689775e-13 | PW20: 199.53 | PX20: 8.667263e-13 | PY20: -5.692129e-13 | PZ20: 199.53 | QA20: 8.691997e-13 | QB20: -5.691098e-13 | QC20: 199.53 | QD20: 8.753562e-13 | QE20: -5.673105e-13 | QF20: 199.53 | QG20: 8.831664e-13 | QH20: -5.654052e-13 | QI20: 199.53 | QJ20: 8.918767e-13 | QK20: -5.635329e-13
A21: 251.19 | B21: 2.573267e-12 | C21: -2.051715e-13 | D21: 251.19 | E21: 2.536295e-12 | F21: -2.007092e-13 | G21: 251.19 | H21: 2.531812e-12 | I21: -2.009751e-13 | J21: 251.19 | K21: 2.521302e-12 | L21: -1.953958e-13 | M21: 251.19 | N21: 2.520419e-12 | O21: -1.9186e-13 | P21: 251.19 | Q21: 2.517948e-12 | R21: -1.886725e-13 | S21: 251.19 | T21: 2.513034e-12 | U21: -1.882571e-13 | V21: 251.19 | W21: 2.499287e-16 | X21: -7.118741e-17 | Y21: 251.19 | Z21: 2.510217e-12 | AA21: -1.820005e-13 | AB21: 251.19 | AC21: 2.508914e-12 | AD21: -1.812454e-13 | AE21: 251.19 | AF21: 2.507726e-12 | AG21: -1.79692e-13 | AH21: 251.19 | AI21: 2.505295e-12 | AJ21: -1.811831e-13 | AK21: 251.19 | AL21: 2.506438e-12 | AM21: -1.850569e-13 | AN21: 251.19 | AO21: 2.50589e-12 | AP21: -1.791558e-13 | AQ21: 251.19 | AR21: 2.506437e-12 | AS21: -1.802514e-13 | AT21: 251.19 | AU21: 2.505681e-12 | AV21: -1.799106e-13 | AW21: 251.19 | AX21: 2.501899e-12 | AY21: -1.796561e-13 | AZ21: 251.19 | BA21: 2.50163e-12 | BB21: -1.808211e-13 | BC21: 251.19 | BD21: 2.497683e-12 | BE21: -1.79028e-13 | BF21: 251.19 | BG21: 2.498384e-12 | BH21: -1.776285e-13 | BI21: 251.19 | BJ21: 2.492587e-12 | BK21: -1.713284e-13 | BL21: 251.19 | BM21: 2.486279e-12 | BN21: -1.717447e-13 | BO21: 251.19 | BP21: 2.484433e-12 | BQ21: -1.700756e-13 | BR21: 251.19 | BS21: 2.478411e-12 | BT21: -1.628615e-13 | BU21: 251.19 | BV21: 2.475396e-12 | BW21: -1.589182e-13 | BX21: 251.19 | BY21: 2.470785e-12 | BZ21: -1.598071e-13 | CA21: 251.19 | CB21: 2.465643e-12 | CC21: -1.566436e-13 | CD21: 251.19 | CE21: 2.456089e-12 | CF21: -1.526525e-13 | CG21: 251.19 | CH21: 2.456042e-12 | CI21: -1.514814e-13 | CJ21: 251.19 | CK21: 2.446656e-12 | CL21: -1.458702e-13 | CM21: 251.19 | CN21: 2.442097e-12 | CO21: -1.441362e-13 | CP21: 251.19 | CQ21: 2.44097e-12 | CR21: -1.399557e-13 | CS21: 251.19 | CT21: 2.431368e-12 | CU21: -1.395504e-13 | CV21: 251.19 | CW21: 2.42608e-12 | CX21: -1.339436e-13 | CY21: 251.19 | CZ21: 2.423403e-12 | DA21: -1.310287e-13 | DB21: 251.19 | DC21: 2.417456e-12 | DD21: -1.273426e-13 | DE21: 251.19 | DF21: 2.412704e-12 | DG21: -1.257572e-13 | DH21: 251.19 | DI21: 2.407642e-12 | DJ21: -1.228679e-13 | DK21: 251.19 | DL21: 2.400704e-12 | DM21: -1.232865e-13 | DN21: 251.19 | DO21: 2.394807e-12 | DP21: -1.20126e-13 | DQ21: 251.19 | DR21: 2.394194e-12 | DS21: -1.189615e-13 | DT21: 251.19 | DU21: 2.387077e-12 | DV21: -1.136978e-13 | DW21: 251.19 | DX21: 2.383049e-12 | DY21: -1.113736e-13 | DZ21: 251.19 | EA21: 2.380282e-12 | EB21: -1.101246e-13 | EC21: 251.19 | ED21: 2.370556e-12 | EE21: -1.077162e-13 | EF21: 251.19 | EG21: 2.365116e-12 | EH21: -1.058446e-13 | EI21: 251.19 | EJ21: 2.35979e-12 | EK21: -1.059422e-13 | EL21: 251.19 | EM21: 2.359208e-12 | EN21: -1.045466e-13 | EO21: 251.19 | EP21: 2.351624e-12 | EQ21: -1.046468e-13 | ER21: 251.19 | ES21: 2.347488e-12 | ET21: -9.878567e-14 | EU21: 251.19 | EV21: 2.343704e-12 | EW21: -1.001752e-13 | EX21: 251.19 | EY21: 2.336723e-12 | EZ21: -9.846059e-14 | FA21: 251.19 | FB21: 2.332583e-12 | FC21: -1.003476e-13 | FD21: 251.19 | FE21: 2.330274e-12 | FF21: -1.001228e-13 | FG21: 251.19 | FH21: 2.32754e-12 | FI21: -9.475622e-14 | FJ21: 251.19 | FK21: 2.329428e-12 | FL21: -9.584849e-14 | FM21: 251.19 | FN21: 2.325308e-12 | FO21: -9.886343e-14 | FP21: 251.19 | FQ21: 2.323179e-12 | FR21: -9.768872e-14 | FS21: 251.19 | FT21: 2.317504e-12 | FU21: -9.401621e-14 | FV21: 251.19 | FW21: 2.319386e-12 | FX21: -9.602093e-14 | FY21: 251.19 | FZ21: 2.380875e-12 | GA21: -1.267641e-13 | GB21: 251.19 | GC21: 2.378533e-12 | GD21: -1.224629e-13 | GE21: 251.19 | GF21: 2.383873e-12 | GG21: -1.214058e-13 | GH21: 251.19 | GI21: 2.382262e-12 | GJ21: -1.281409e-13 | GK21: 251.19 | GL21: 2.384968e-12 | GM21: -1.307064e-13 | GN21: 251.19 | GO21: 2.38495e-12 | GP21: -1.43443e-13 | GQ21: 251.19 | GR21: 2.375077e-12 | GS21: -1.732439e-13 | GT21: 251.19 | GU21: 2.254808e-12 | GV21: -3.461841e-13 | GW21: 251.19 | GX21: 1.550847e-12 | GY21: -4.167311e-13 | GZ21: 251.19 | HA21: 1.354892e-12 | HB21: -2.409962e-13 | HC21: 251.19 | HD21: 1.316731e-12 | HE21: -2.099878e-13 | HF21: 251.19 | HG21: 1.297304e-12 | HH21: -2.186495e-13 | HI21: 251.19 | HJ21: 1.281393e-12 | HK21: -2.34965e-13 | HL21: 251.19 | HM21: 1.268778e-12 | HN21: -2.564504e-13 | HO21: 251.19 | HP21: 1.254807e-12 | HQ21: -2.798866e-13 | HR21: 251.19 | HS21: 1.238867e-12 | HT21: -3.055026e-13 | HU21: 251.19 | HV21: 1.222867e-12 | HW21: -3.353501e-13 | HX21: 251.19 | HY21: 1.20072e-12 | HZ21: -3.629402e-13 | IA21: 251.19 | IB21: 1.178033e-12 | IC21: -3.925723e-13 | ID21: 251.19 | IE21: 1.155479e-12 | IF21: -4.157668e-13 | IG21: 251.19 | IH21: 1.13098e-12 | II21: -4.396201e-13 | IJ21: 251.19 | IK21: 1.105023e-12 | IL21: -4.616201e-13 | IM21: 251.19 | IN21: 1.078282e-12 | IO21: -4.816039e-13 | IP21: 251.19 | IQ21: 1.053141e-12 | IR21: -4.971066e-13 | IS21: 251.19 | IT21: 1.032601e-12 | IU21: -5.097704e-13 | IV21: 251.19 | IW21: 1.011204e-12 | IX21: -5.232897e-13 | IY21: 251.19 | IZ21: 9.917683e-13 | JA21: -5.332978e-13 | JB21: 251.19 | JC21: 9.715104e-13 | JD21: -5.41168e-13 | JE21: 251.19 | JF21: 9.53338e-13 | JG21: -5.504588e-13 | JH21: 251.19 | JI21: 9.348759e-13 | JJ21: -5.573097e-13 | JK21: 251.19 | JL21: 9.185157e-13 | JM21: -5.620462e-13 | JN21: 251.19 | JO21: 9.034431e-13 | JP21: -5.679432e-13 | JQ21: 251.19 | JR21: 8.896504e-13 | JS21: -5.721805e-13 | JT21: 251.19 | JU21: 8.773046e-13 | JV21: -5.749774e-13 | JW21: 251.19 | JX21: 8.668147e-13 | JY21: -5.767017e-13 | JZ21: 251.19 | KA21: 8.575316e-13 | KB21: -5.790269e-13 | KC21: 251.19 | KD21: 8.478143e-13 | KE21: -5.80094e-13 | KF21: 251.19 | KG21: 8.388063e-13 | KH21: -5.817405e-13 | KI21: 251.19 | KJ21: 8.313267e-13 | KK21: -5.832553e-13 | KL21: 251.19 | KM21: 8.25949e-13 | KN21: -5.855676e-13 | KO21: 251.19 | KP21: 8.201729e-13 | KQ21: -5.84934e-13 | KR21: 251.19 | KS21: 8.147655e-13 | KT21: -5.863831e-13 | KU21: 251.19 | KV21: 8.106761e-13 | KW21: -5.860893e-13 | KX21: 251.19 | KY21: 8.056824e-13 | KZ21: -5.870716e-13 | LA21: 251.19 | LB21: 8.005541e-13 | LC21: -5.877019e-13 | LD21: 251.19 | LE21: 7.941353e-13 | LF21: -5.881799e-13 | LG21: 251.19 | LH21: 7.908844e-13 | LI21: -5.896575e-13 | LJ21: 251.19 | LK21: 7.883799e-13 | LL21: -5.892972e-13 | LM21: 251.19 | LN21: 7.85605e-13 | LO21: -5.896492e-13 | LP21: 251.19 | LQ21: 7.828733e-13 | LR21: -5.898846e-13 | LS21: 251.19 | LT21: 7.790689e-13 | LU21: -5.898818e-13 | LV21: 251.19 | LW21: 7.76378e-13 | LX21: -5.900881e-13 | LY21: 251.19 | LZ21: 7.736829e-13 | MA21: -5.894976e-13 | MB21: 251.19 | MC21: 7.705678e-13 | MD21: -5.914557e-13 | ME21: 251.19 | MF21: 7.696072e-13 | MG21: -5.901124e-13 | MH21: 251.19 | MI21: 7.665897e-13 | MJ21: -5.903493e-13 | MK21: 251.19 | ML21: 7.648351e-13 | MM21: -5.912825e-13 | MN21: 251.19 | MO21: 7.632374e-13 | MP21: -5.91696e-13 | MQ21: 251.19 | MR21: 7.60366e-13 | MS21: -5.900102e-13 | MT21: 251.19 | MU21: 7.607997e-13 | MV21: -5.907601e-13 | MW21: 251.19 | MX21: 7.594891e-13 | MY21: -5.914254e-13 | MZ21: 251.19 | NA21: 7.577272e-13 | NB21: -5.902299e-13 | NC21: 251.19 | ND21: 7.552355e-13 | NE21: -5.904497e-13 | NF21: 251.19 | NG21: 7.54857e-13 | NH21: -5.913356e-13 | NI21: 251.19 | NJ21: 7.531431e-13 | NK21: -5.917108e-13 | NL21: 251.19 | NM21: 7.527854e-13 | NN21: -5.916489e-13 | NO21: 251.19 | NP21: 7.523633e-13 | NQ21: -5.918109e-13 | NR21: 251.19 | NS21: 7.516131e-13 | NT21: -5.903143e-13 | NU21: 251.19 | NV21: 7.517647e-13 | NW21: -5.906929e-13 | NX21: 251.19 | NY21: 7.497263e-13 | NZ21: -5.909044e-13 | OA21: 251.19 | OB21: 7.515227e-13 | OC21: -5.912862e-13 | OD21: 251.19 | OE21: 7.495428e-13 | OF21: -5.918064e-13 | OG21: 251.19 | OH21: 7.497705e-13 | OI21: -5.902283e-13 | OJ21: 251.19 | OK21: 7.488188e-13 | OL21: -5.903246e-13 | OM21: 251.19 | ON21: 7.468577e-13 | OO21: -5.914981e-13 | OP21: 251.19 | OQ21: 7.46966e-13 | OR21: -5.906486e-13 | OS21: 251.19 | OT21: 7.464796e-13 | OU21: -5.901466e-13 | OV21: 251.19 | OW21: 7.462443e-13 | OX21: -5.903932e-13 | OY21: 251.19 | OZ21: 7.448203e-13 | PA21: -5.911383e-13 | PB21: 251.19 | PC21: 7.45221e-13 | PD21: -5.918515e-13 | PE21: 251.19 | PF21: 7.459475e-13 | PG21: -5.917556e-13 | PH21: 251.19 | PI21: 7.44233e-13 | PJ21: -5.904409e-13 | PK21: 251.19 | PL21: 7.428669e-13 | PM21: -5.913567e-13 | PN21: 251.19 | PO21: 7.424514e-13 | PP21: -5.901253e-13 | PQ21: 251.19 | PR21: 7.422429e-13 | PS21: -5.902318e-13 | PT21: 251.19 | PU21: 7.407939e-13 | PV21: -5.906375e-13 | PW21: 251.19 | PX21: 7.402799e-13 | PY21: -5.910597e-13 | PZ21: 251.19 | QA21: 7.423121e-13 | QB21: -5.905947e-13 | QC21: 251.19 | QD21: 7.493327e-13 | QE21: -5.915459e-13 | QF21: 251.19 | QG21: 7.580895e-13 | QH21: -5.912509e-13 | QI21: 251.19 | QJ21: 7.681702e-13 | QK21: -5.893319e-13
A22: 316.23 | B22: 2.549615e-12 | C22: -1.94992e-13 | D22: 316.23 | E22: 2.515051e-12 | F22: -1.870396e-13 | G22: 316.23 | H22: 2.509653e-12 | I22: -1.864749e-13 | J22: 316.23 | K22: 2.500602e-12 | L22: -1.82549e-13 | M22: 316.23 | N22: 2.497743e-12 | O22: -1.805428e-13 | P22: 316.23 | Q22: 2.494248e-12 | R22: -1.768845e-13 | S22: 316.23 | T22: 2.492147e-12 | U22: -1.757835e-13 | V22: 316.23 | W22: 2.202115e-16 | X22: -8.706738e-17 | Y22: 316.23 | Z22: 2.489322e-12 | AA22: -1.727469e-13 | AB22: 316.23 | AC22: 2.488157e-12 | AD22: -1.739324e-13 | AE22: 316.23 | AF22: 2.487829e-12 | AG22: -1.718151e-13 | AH22: 316.23 | AI22: 2.487912e-12 | AJ22: -1.712154e-13 | AK22: 316.23 | AL22: 2.486198e-12 | AM22: -1.727849e-13 | AN22: 316.23 | AO22: 2.484792e-12 | AP22: -1.72153e-13 | AQ22: 316.23 | AR22: 2.485009e-12 | AS22: -1.723824e-13 | AT22: 316.23 | AU22: 2.484994e-12 | AV22: -1.697917e-13 | AW22: 316.23 | AX22: 2.483364e-12 | AY22: -1.707859e-13 | AZ22: 316.23 | BA22: 2.482404e-12 | BB22: -1.705415e-13 | BC22: 316.23 | BD22: 2.479339e-12 | BE22: -1.675674e-13 | BF22: 316.23 | BG22: 2.475961e-12 | BH22: -1.669484e-13 | BI22: 316.23 | BJ22: 2.474842e-12 | BK22: -1.642561e-13 | BL22: 316.23 | BM22: 2.469154e-12 | BN22: -1.635477e-13 | BO22: 316.23 | BP22: 2.465358e-12 | BQ22: -1.588719e-13 | BR22: 316.23 | BS22: 2.461491e-12 | BT22: -1.566656e-13 | BU22: 316.23 | BV22: 2.456057e-12 | BW22: -1.534976e-13 | BX22: 316.23 | BY22: 2.45313e-12 | BZ22: -1.526949e-13 | CA22: 316.23 | CB22: 2.446557e-12 | CC22: -1.492764e-13 | CD22: 316.23 | CE22: 2.442863e-12 | CF22: -1.460791e-13 | CG22: 316.23 | CH22: 2.436889e-12 | CI22: -1.450529e-13 | CJ22: 316.23 | CK22: 2.431267e-12 | CL22: -1.412848e-13 | CM22: 316.23 | CN22: 2.427072e-12 | CO22: -1.376163e-13 | CP22: 316.23 | CQ22: 2.422977e-12 | CR22: -1.373157e-13 | CS22: 316.23 | CT22: 2.416389e-12 | CU22: -1.321648e-13 | CV22: 316.23 | CW22: 2.411566e-12 | CX22: -1.31403e-13 | CY22: 316.23 | CZ22: 2.40852e-12 | DA22: -1.294308e-13 | DB22: 316.23 | DC22: 2.401879e-12 | DD22: -1.275829e-13 | DE22: 316.23 | DF22: 2.398014e-12 | DG22: -1.259387e-13 | DH22: 316.23 | DI22: 2.393074e-12 | DJ22: -1.225971e-13 | DK22: 316.23 | DL22: 2.388787e-12 | DM22: -1.197235e-13 | DN22: 316.23 | DO22: 2.383456e-12 | DP22: -1.183242e-13 | DQ22: 316.23 | DR22: 2.379857e-12 | DS22: -1.168326e-13 | DT22: 316.23 | DU22: 2.373744e-12 | DV22: -1.169196e-13 | DW22: 316.23 | DX22: 2.370536e-12 | DY22: -1.151749e-13 | DZ22: 316.23 | EA22: 2.365302e-12 | EB22: -1.124493e-13 | EC22: 316.23 | ED22: 2.359537e-12 | EE22: -1.108449e-13 | EF22: 316.23 | EG22: 2.356238e-12 | EH22: -1.080609e-13 | EI22: 316.23 | EJ22: 2.349526e-12 | EK22: -1.076225e-13 | EL22: 316.23 | EM22: 2.344408e-12 | EN22: -1.057851e-13 | EO22: 316.23 | EP22: 2.340496e-12 | EQ22: -1.041559e-13 | ER22: 316.23 | ES22: 2.336974e-12 | ET22: -1.031894e-13 | EU22: 316.23 | EV22: 2.331998e-12 | EW22: -1.028093e-13 | EX22: 316.23 | EY22: 2.326492e-12 | EZ22: -1.01297e-13 | FA22: 316.23 | FB22: 2.322084e-12 | FC22: -1.010917e-13 | FD22: 316.23 | FE22: 2.319814e-12 | FF22: -1.011991e-13 | FG22: 316.23 | FH22: 2.317701e-12 | FI22: -1.007902e-13 | FJ22: 316.23 | FK22: 2.317265e-12 | FL22: -1.008691e-13 | FM22: 316.23 | FN22: 2.314338e-12 | FO22: -1.012519e-13 | FP22: 316.23 | FQ22: 2.310326e-12 | FR22: -9.947555e-14 | FS22: 316.23 | FT22: 2.308643e-12 | FU22: -1.004476e-13 | FV22: 316.23 | FW22: 2.308011e-12 | FX22: -9.913654e-14 | FY22: 316.23 | FZ22: 2.367993e-12 | GA22: -1.278752e-13 | GB22: 316.23 | GC22: 2.367566e-12 | GD22: -1.201816e-13 | GE22: 316.23 | GF22: 2.370153e-12 | GG22: -1.223464e-13 | GH22: 316.23 | GI22: 2.369588e-12 | GJ22: -1.266413e-13 | GK22: 316.23 | GL22: 2.372512e-12 | GM22: -1.348556e-13 | GN22: 316.23 | GO22: 2.370836e-12 | GP22: -1.497134e-13 | GQ22: 316.23 | GR22: 2.356086e-12 | GS22: -1.873481e-13 | GT22: 316.23 | GU22: 2.201983e-12 | GV22: -3.856349e-13 | GW22: 316.23 | GX22: 1.499545e-12 | GY22: -3.920871e-13 | GZ22: 316.23 | HA22: 1.338143e-12 | HB22: -2.482078e-13 | HC22: 316.23 | HD22: 1.300408e-12 | HE22: -2.367227e-13 | HF22: 316.23 | HG22: 1.276592e-12 | HH22: -2.550624e-13 | HI22: 316.23 | HJ22: 1.256902e-12 | HK22: -2.782728e-13 | HL22: 316.23 | HM22: 1.239649e-12 | HN22: -3.035252e-13 | HO22: 316.23 | HP22: 1.220869e-12 | HQ22: -3.313223e-13 | HR22: 316.23 | HS22: 1.199461e-12 | HT22: -3.63787e-13 | HU22: 316.23 | HV22: 1.172502e-12 | HW22: -3.953158e-13 | HX22: 316.23 | HY22: 1.14276e-12 | HZ22: -4.275772e-13 | IA22: 316.23 | IB22: 1.111021e-12 | IC22: -4.564825e-13 | ID22: 316.23 | IE22: 1.080808e-12 | IF22: -4.811813e-13 | IG22: 316.23 | IH22: 1.049134e-12 | II22: -5.029561e-13 | IJ22: 316.23 | IK22: 1.015353e-12 | IL22: -5.229419e-13 | IM22: 316.23 | IN22: 9.829589e-13 | IO22: -5.399489e-13 | IP22: 316.23 | IQ22: 9.522067e-13 | IR22: -5.533412e-13 | IS22: 316.23 | IT22: 9.258467e-13 | IU22: -5.640035e-13 | IV22: 316.23 | IW22: 9.003772e-13 | IX22: -5.723649e-13 | IY22: 316.23 | IZ22: 8.763661e-13 | JA22: -5.795575e-13 | JB22: 316.23 | JC22: 8.537443e-13 | JD22: -5.848307e-13 | JE22: 316.23 | JF22: 8.329552e-13 | JG22: -5.889743e-13 | JH22: 316.23 | JI22: 8.125721e-13 | JJ22: -5.925143e-13 | JK22: 316.23 | JL22: 7.934582e-13 | JM22: -5.950741e-13 | JN22: 316.23 | JO22: 7.768337e-13 | JP22: -5.969864e-13 | JQ22: 316.23 | JR22: 7.616545e-13 | JS22: -5.981167e-13 | JT22: 316.23 | JU22: 7.483097e-13 | JV22: -5.988011e-13 | JW22: 316.23 | JX22: 7.369037e-13 | JY22: -5.987589e-13 | JZ22: 316.23 | KA22: 7.270333e-13 | KB22: -5.990839e-13 | KC22: 316.23 | KD22: 7.176425e-13 | KE22: -5.987528e-13 | KF22: 316.23 | KG22: 7.08942e-13 | KH22: -5.987264e-13 | KI22: 316.23 | KJ22: 7.006266e-13 | KK22: -5.986256e-13 | KL22: 316.23 | KM22: 6.943279e-13 | KN22: -5.98185e-13 | KO22: 316.23 | KP22: 6.891486e-13 | KQ22: -5.979005e-13 | KR22: 316.23 | KS22: 6.839859e-13 | KT22: -5.974716e-13 | KU22: 316.23 | KV22: 6.784105e-13 | KW22: -5.971044e-13 | KX22: 316.23 | KY22: 6.733628e-13 | KZ22: -5.967076e-13 | LA22: 316.23 | LB22: 6.679811e-13 | LC22: -5.963081e-13 | LD22: 316.23 | LE22: 6.629685e-13 | LF22: -5.955544e-13 | LG22: 316.23 | LH22: 6.593493e-13 | LI22: -5.949705e-13 | LJ22: 316.23 | LK22: 6.560962e-13 | LL22: -5.947951e-13 | LM22: 316.23 | LN22: 6.530992e-13 | LO22: -5.944747e-13 | LP22: 316.23 | LQ22: 6.502246e-13 | LR22: -5.942739e-13 | LS22: 316.23 | LT22: 6.477888e-13 | LU22: -5.937949e-13 | LV22: 316.23 | LW22: 6.446323e-13 | LX22: -5.933265e-13 | LY22: 316.23 | LZ22: 6.414351e-13 | MA22: -5.928379e-13 | MB22: 316.23 | MC22: 6.392632e-13 | MD22: -5.924146e-13 | ME22: 316.23 | MF22: 6.370484e-13 | MG22: -5.920817e-13 | MH22: 316.23 | MI22: 6.349474e-13 | MJ22: -5.917215e-13 | MK22: 316.23 | ML22: 6.326657e-13 | MM22: -5.914149e-13 | MN22: 316.23 | MO22: 6.308536e-13 | MP22: -5.912962e-13 | MQ22: 316.23 | MR22: 6.289609e-13 | MS22: -5.907336e-13 | MT22: 316.23 | MU22: 6.28427e-13 | MV22: -5.904855e-13 | MW22: 316.23 | MX22: 6.27292e-13 | MY22: -5.90304e-13 | MZ22: 316.23 | NA22: 6.257204e-13 | NB22: -5.899116e-13 | NC22: 316.23 | ND22: 6.245098e-13 | NE22: -5.900846e-13 | NF22: 316.23 | NG22: 6.224622e-13 | NH22: -5.896411e-13 | NI22: 316.23 | NJ22: 6.220343e-13 | NK22: -5.892988e-13 | NL22: 316.23 | NM22: 6.211701e-13 | NN22: -5.895199e-13 | NO22: 316.23 | NP22: 6.205073e-13 | NQ22: -5.893939e-13 | NR22: 316.23 | NS22: 6.201393e-13 | NT22: -5.890342e-13 | NU22: 316.23 | NV22: 6.195052e-13 | NW22: -5.88863e-13 | NX22: 316.23 | NY22: 6.187387e-13 | NZ22: -5.889305e-13 | OA22: 316.23 | OB22: 6.192116e-13 | OC22: -5.888052e-13 | OD22: 316.23 | OE22: 6.183062e-13 | OF22: -5.886906e-13 | OG22: 316.23 | OH22: 6.181506e-13 | OI22: -5.887707e-13 | OJ22: 316.23 | OK22: 6.174271e-13 | OL22: -5.884871e-13 | OM22: 316.23 | ON22: 6.162316e-13 | OO22: -5.882689e-13 | OP22: 316.23 | OQ22: 6.151044e-13 | OR22: -5.882193e-13 | OS22: 316.23 | OT22: 6.145813e-13 | OU22: -5.881129e-13 | OV22: 316.23 | OW22: 6.142079e-13 | OX22: -5.877986e-13 | OY22: 316.23 | OZ22: 6.14087e-13 | PA22: -5.879907e-13 | PB22: 316.23 | PC22: 6.141593e-13 | PD22: -5.88002e-13 | PE22: 316.23 | PF22: 6.141762e-13 | PG22: -5.880587e-13 | PH22: 316.23 | PI22: 6.131213e-13 | PJ22: -5.875728e-13 | PK22: 316.23 | PL22: 6.123886e-13 | PM22: -5.875319e-13 | PN22: 316.23 | PO22: 6.115004e-13 | PP22: -5.871535e-13 | PQ22: 316.23 | PR22: 6.109817e-13 | PS22: -5.874028e-13 | PT22: 316.23 | PU22: 6.102492e-13 | PV22: -5.869178e-13 | PW22: 316.23 | PX22: 6.096971e-13 | PY22: -5.870103e-13 | PZ22: 316.23 | QA22: 6.119618e-13 | QB22: -5.87249e-13 | QC22: 316.23 | QD22: 6.184551e-13 | QE22: -5.887703e-13 | QF22: 316.23 | QG22: 6.266343e-13 | QH22: -5.901666e-13 | QI22: 316.23 | QJ22: 6.359807e-13 | QK22: -5.918882e-13
A23: 398.13 | B23: 2.529652e-12 | C23: -1.82487e-13 | D23: 398.13 | E23: 2.492956e-12 | F23: -1.758943e-13 | G23: 398.13 | H23: 2.486769e-12 | I23: -1.762271e-13 | J23: 398.13 | K23: 2.480903e-12 | L23: -1.722832e-13 | M23: 398.13 | N23: 2.477986e-12 | O23: -1.696951e-13 | P23: 398.13 | Q23: 2.474746e-12 | R23: -1.6723e-13 | S23: 398.13 | T23: 2.471716e-12 | U23: -1.66695e-13 | V23: 398.13 | W23: 1.929314e-16 | X23: -9.263868e-17 | Y23: 398.13 | Z23: 2.470003e-12 | AA23: -1.644676e-13 | AB23: 398.13 | AC23: 2.468736e-12 | AD23: -1.646998e-13 | AE23: 398.13 | AF23: 2.468426e-12 | AG23: -1.635463e-13 | AH23: 398.13 | AI23: 2.467695e-12 | AJ23: -1.620754e-13 | AK23: 398.13 | AL23: 2.467583e-12 | AM23: -1.617521e-13 | AN23: 398.13 | AO23: 2.466685e-12 | AP23: -1.627132e-13 | AQ23: 398.13 | AR23: 2.464896e-12 | AS23: -1.622606e-13 | AT23: 398.13 | AU23: 2.465462e-12 | AV23: -1.614729e-13 | AW23: 398.13 | AX23: 2.464012e-12 | AY23: -1.6079e-13 | AZ23: 398.13 | BA23: 2.462815e-12 | BB23: -1.617089e-13 | BC23: 398.13 | BD23: 2.460338e-12 | BE23: -1.595266e-13 | BF23: 398.13 | BG23: 2.458066e-12 | BH23: -1.581443e-13 | BI23: 398.13 | BJ23: 2.456003e-12 | BK23: -1.563503e-13 | BL23: 398.13 | BM23: 2.451577e-12 | BN23: -1.551916e-13 | BO23: 398.13 | BP23: 2.446949e-12 | BQ23: -1.509365e-13 | BR23: 398.13 | BS23: 2.443662e-12 | BT23: -1.49377e-13 | BU23: 398.13 | BV23: 2.439124e-12 | BW23: -1.482669e-13 | BX23: 398.13 | BY23: 2.434557e-12 | BZ23: -1.462996e-13 | CA23: 398.13 | CB23: 2.430547e-12 | CC23: -1.435476e-13 | CD23: 398.13 | CE23: 2.42557e-12 | CF23: -1.402536e-13 | CG23: 398.13 | CH23: 2.420454e-12 | CI23: -1.383108e-13 | CJ23: 398.13 | CK23: 2.416336e-12 | CL23: -1.368539e-13 | CM23: 398.13 | CN23: 2.412338e-12 | CO23: -1.344499e-13 | CP23: 398.13 | CQ23: 2.406499e-12 | CR23: -1.329263e-13 | CS23: 398.13 | CT23: 2.40244e-12 | CU23: -1.300208e-13 | CV23: 398.13 | CW23: 2.397591e-12 | CX23: -1.278109e-13 | CY23: 398.13 | CZ23: 2.392612e-12 | DA23: -1.270033e-13 | DB23: 398.13 | DC23: 2.38851e-12 | DD23: -1.248977e-13 | DE23: 398.13 | DF23: 2.38448e-12 | DG23: -1.222073e-13 | DH23: 398.13 | DI23: 2.378943e-12 | DJ23: -1.218129e-13 | DK23: 398.13 | DL23: 2.374221e-12 | DM23: -1.19244e-13 | DN23: 398.13 | DO23: 2.369417e-12 | DP23: -1.176585e-13 | DQ23: 398.13 | DR23: 2.365175e-12 | DS23: -1.162879e-13 | DT23: 398.13 | DU23: 2.361794e-12 | DV23: -1.148909e-13 | DW23: 398.13 | DX23: 2.357635e-12 | DY23: -1.143807e-13 | DZ23: 398.13 | EA23: 2.35239e-12 | EB23: -1.122723e-13 | EC23: 398.13 | ED23: 2.347869e-12 | EE23: -1.115431e-13 | EF23: 398.13 | EG23: 2.341964e-12 | EH23: -1.095534e-13 | EI23: 398.13 | EJ23: 2.337515e-12 | EK23: -1.084941e-13 | EL23: 398.13 | EM23: 2.333411e-12 | EN23: -1.083238e-13 | EO23: 398.13 | EP23: 2.328067e-12 | EQ23: -1.069579e-13 | ER23: 398.13 | ES23: 2.323454e-12 | ET23: -1.052808e-13 | EU23: 398.13 | EV23: 2.31963e-12 | EW23: -1.055689e-13 | EX23: 398.13 | EY23: 2.315126e-12 | EZ23: -1.045595e-13 | FA23: 398.13 | FB23: 2.310765e-12 | FC23: -1.036411e-13 | FD23: 398.13 | FE23: 2.308889e-12 | FF23: -1.050906e-13 | FG23: 398.13 | FH23: 2.307413e-12 | FI23: -1.036134e-13 | FJ23: 398.13 | FK23: 2.304945e-12 | FL23: -1.042645e-13 | FM23: 398.13 | FN23: 2.302372e-12 | FO23: -1.031815e-13 | FP23: 398.13 | FQ23: 2.299133e-12 | FR23: -1.036412e-13 | FS23: 398.13 | FT23: 2.296733e-12 | FU23: -1.037232e-13 | FV23: 398.13 | FW23: 2.296059e-12 | FX23: -1.038374e-13 | FY23: 398.13 | FZ23: 2.353085e-12 | GA23: -1.260373e-13 | GB23: 398.13 | GC23: 2.354857e-12 | GD23: -1.211532e-13 | GE23: 398.13 | GF23: 2.355737e-12 | GG23: -1.221103e-13 | GH23: 398.13 | GI23: 2.357651e-12 | GJ23: -1.265339e-13 | GK23: 398.13 | GL23: 2.356374e-12 | GM23: -1.366831e-13 | GN23: 398.13 | GO23: 2.355926e-12 | GP23: -1.549794e-13 | GQ23: 398.13 | GR23: 2.336883e-12 | GS23: -2.040109e-13 | GT23: 398.13 | GU23: 2.139387e-12 | GV23: -4.209797e-13 | GW23: 398.13 | GX23: 1.455832e-12 | GY23: -3.737601e-13 | GZ23: 398.13 | HA23: 1.319139e-12 | HB23: -2.635653e-13 | HC23: 398.13 | HD23: 1.2784e-12 | HE23: -2.716606e-13 | HF23: 398.13 | HG23: 1.249418e-12 | HH23: -2.985691e-13 | HI23: 398.13 | HJ23: 1.224155e-12 | HK23: -3.270598e-13 | HL23: 398.13 | HM23: 1.199966e-12 | HN23: -3.57578e-13 | HO23: 398.13 | HP23: 1.173858e-12 | HQ23: -3.909287e-13 | HR23: 398.13 | HS23: 1.142035e-12 | HT23: -4.25843e-13 | HU23: 398.13 | HV23: 1.105568e-12 | HW23: -4.59721e-13 | HX23: 398.13 | HY23: 1.065609e-12 | HZ23: -4.918857e-13 | IA23: 398.13 | IB23: 1.023571e-12 | IC23: -5.190668e-13 | ID23: 398.13 | IE23: 9.850221e-13 | IF23: -5.402325e-13 | IG23: 398.13 | IH23: 9.447606e-13 | II23: -5.584443e-13 | IJ23: 398.13 | IK23: 9.047821e-13 | IL23: -5.73599e-13 | IM23: 398.13 | IN23: 8.65614e-13 | IO23: -5.850677e-13 | IP23: 398.13 | IQ23: 8.30495e-13 | IR23: -5.930172e-13 | IS23: 398.13 | IT23: 7.999955e-13 | IU23: -5.980874e-13 | IV23: 398.13 | IW23: 7.7168e-13 | IX23: -6.01886e-13 | IY23: 398.13 | IZ23: 7.455541e-13 | JA23: -6.034627e-13 | JB23: 398.13 | JC23: 7.214577e-13 | JD23: -6.043759e-13 | JE23: 398.13 | JF23: 6.992804e-13 | JG23: -6.040764e-13 | JH23: 398.13 | JI23: 6.781441e-13 | JJ23: -6.03145e-13 | JK23: 398.13 | JL23: 6.58744e-13 | JM23: -6.014221e-13 | JN23: 398.13 | JO23: 6.419521e-13 | JP23: -5.997113e-13 | JQ23: 398.13 | JR23: 6.269483e-13 | JS23: -5.974009e-13 | JT23: 398.13 | JU23: 6.13529e-13 | JV23: -5.955335e-13 | JW23: 398.13 | JX23: 6.024418e-13 | JY23: -5.931619e-13 | JZ23: 398.13 | KA23: 5.92739e-13 | KB23: -5.912836e-13 | KC23: 398.13 | KD23: 5.838171e-13 | KE23: -5.891693e-13 | KF23: 398.13 | KG23: 5.752659e-13 | KH23: -5.872171e-13 | KI23: 398.13 | KJ23: 5.674529e-13 | KK23: -5.852221e-13 | KL23: 398.13 | KM23: 5.61646e-13 | KN23: -5.835015e-13 | KO23: 398.13 | KP23: 5.566311e-13 | KQ23: -5.823288e-13 | KR23: 398.13 | KS23: 5.516724e-13 | KT23: -5.809249e-13 | KU23: 398.13 | KV23: 5.466428e-13 | KW23: -5.793538e-13 | KX23: 398.13 | KY23: 5.418737e-13 | KZ23: -5.777025e-13 | LA23: 398.13 | LB23: 5.368272e-13 | LC23: -5.762359e-13 | LD23: 398.13 | LE23: 5.321009e-13 | LF23: -5.746641e-13 | LG23: 398.13 | LH23: 5.288255e-13 | LI23: -5.736226e-13 | LJ23: 398.13 | LK23: 5.257378e-13 | LL23: -5.724976e-13 | LM23: 398.13 | LN23: 5.229837e-13 | LO23: -5.716525e-13 | LP23: 398.13 | LQ23: 5.204343e-13 | LR23: -5.705949e-13 | LS23: 398.13 | LT23: 5.183336e-13 | LU23: -5.700393e-13 | LV23: 398.13 | LW23: 5.152627e-13 | LX23: -5.687603e-13 | LY23: 398.13 | LZ23: 5.12595e-13 | MA23: -5.678421e-13 | MB23: 398.13 | MC23: 5.103848e-13 | MD23: -5.669374e-13 | ME23: 398.13 | MF23: 5.082763e-13 | MG23: -5.661722e-13 | MH23: 398.13 | MI23: 5.064912e-13 | MJ23: -5.656135e-13 | MK23: 398.13 | ML23: 5.04315e-13 | MM23: -5.646321e-13 | MN23: 398.13 | MO23: 5.028647e-13 | MP23: -5.639626e-13 | MQ23: 398.13 | MR23: 5.011105e-13 | MS23: -5.635003e-13 | MT23: 398.13 | MU23: 5.006513e-13 | MV23: -5.631457e-13 | MW23: 398.13 | MX23: 4.996671e-13 | MY23: -5.627719e-13 | MZ23: 398.13 | NA23: 4.981466e-13 | NB23: -5.620339e-13 | NC23: 398.13 | ND23: 4.96849e-13 | NE23: -5.617337e-13 | NF23: 398.13 | NG23: 4.955836e-13 | NH23: -5.610959e-13 | NI23: 398.13 | NJ23: 4.947568e-13 | NK23: -5.607104e-13 | NL23: 398.13 | NM23: 4.940911e-13 | NN23: -5.606264e-13 | NO23: 398.13 | NP23: 4.93339e-13 | NQ23: -5.602354e-13 | NR23: 398.13 | NS23: 4.930596e-13 | NT23: -5.600032e-13 | NU23: 398.13 | NV23: 4.927267e-13 | NW23: -5.598624e-13 | NX23: 398.13 | NY23: 4.922586e-13 | NZ23: -5.59578e-13 | OA23: 398.13 | OB23: 4.922524e-13 | OC23: -5.598435e-13 | OD23: 398.13 | OE23: 4.916424e-13 | OF23: -5.594705e-13 | OG23: 398.13 | OH23: 4.914929e-13 | OI23: -5.594371e-13 | OJ23: 398.13 | OK23: 4.905593e-13 | OL23: -5.588824e-13 | OM23: 398.13 | ON23: 4.896638e-13 | OO23: -5.584861e-13 | OP23: 398.13 | OQ23: 4.886006e-13 | OR23: -5.582198e-13 | OS23: 398.13 | OT23: 4.884397e-13 | OU23: -5.580733e-13 | OV23: 398.13 | OW23: 4.879137e-13 | OX23: -5.579612e-13 | OY23: 398.13 | OZ23: 4.878293e-13 | PA23: -5.578666e-13 | PB23: 398.13 | PC23: 4.877903e-13 | PD23: -5.578475e-13 | PE23: 398.13 | PF23: 4.879472e-13 | PG23: -5.580211e-13 | PH23: 398.13 | PI23: 4.871297e-13 | PJ23: -5.575091e-13 | PK23: 398.13 | PL23: 4.861718e-13 | PM23: -5.570334e-13 | PN23: 398.13 | PO23: 4.854912e-13 | PP23: -5.569677e-13 | PQ23: 398.13 | PR23: 4.851149e-13 | PS23: -5.56599e-13 | PT23: 398.13 | PU23: 4.845884e-13 | PV23: -5.565261e-13 | PW23: 398.13 | PX23: 4.839476e-13 | PY23: -5.559974e-13 | PZ23: 398.13 | QA23: 4.858141e-13 | QB23: -5.570258e-13 | QC23: 398.13 | QD23: 4.917765e-13 | QE23: -5.595158e-13 | QF23: 398.13 | QG23: 4.992587e-13 | QH23: -5.62609e-13 | QI23: 398.13 | QJ23: 5.073775e-13 | QK23: -5.6574e-13
A24: 501.19 | B24: 2.506453e-12 | C24: -1.750024e-13 | D24: 501.19 | E24: 2.471144e-12 | F24: -1.68527e-13 | G24: 501.19 | H24: 2.465626e-12 | I24: -1.690374e-13 | J24: 501.19 | K24: 2.459278e-12 | L24: -1.65897e-13 | M24: 501.19 | N24: 2.456665e-12 | O24: -1.638229e-13 | P24: 501.19 | Q24: 2.454482e-12 | R24: -1.614314e-13 | S24: 501.19 | T24: 2.4512e-12 | U24: -1.601223e-13 | V24: 501.19 | W24: 1.696846e-16 | X24: -9.054075e-17 | Y24: 501.19 | Z24: 2.449115e-12 | AA24: -1.584926e-13 | AB24: 501.19 | AC24: 2.4484e-12 | AD24: -1.581091e-13 | AE24: 501.19 | AF24: 2.448062e-12 | AG24: -1.57769e-13 | AH24: 501.19 | AI24: 2.44722e-12 | AJ24: -1.568925e-13 | AK24: 501.19 | AL24: 2.447118e-12 | AM24: -1.562035e-13 | AN24: 501.19 | AO24: 2.445888e-12 | AP24: -1.568603e-13 | AQ24: 501.19 | AR24: 2.445363e-12 | AS24: -1.579766e-13 | AT24: 501.19 | AU24: 2.444669e-12 | AV24: -1.559679e-13 | AW24: 501.19 | AX24: 2.444307e-12 | AY24: -1.558168e-13 | AZ24: 501.19 | BA24: 2.443645e-12 | BB24: -1.550392e-13 | BC24: 501.19 | BD24: 2.441246e-12 | BE24: -1.544659e-13 | BF24: 501.19 | BG24: 2.438612e-12 | BH24: -1.527897e-13 | BI24: 501.19 | BJ24: 2.435779e-12 | BK24: -1.527454e-13 | BL24: 501.19 | BM24: 2.431925e-12 | BN24: -1.503632e-13 | BO24: 501.19 | BP24: 2.427752e-12 | BQ24: -1.476025e-13 | BR24: 501.19 | BS24: 2.425064e-12 | BT24: -1.465838e-13 | BU24: 501.19 | BV24: 2.419812e-12 | BW24: -1.436584e-13 | BX24: 501.19 | BY24: 2.416533e-12 | BZ24: -1.430672e-13 | CA24: 501.19 | CB24: 2.411999e-12 | CC24: -1.406243e-13 | CD24: 501.19 | CE24: 2.407092e-12 | CF24: -1.383533e-13 | CG24: 501.19 | CH24: 2.402203e-12 | CI24: -1.360835e-13 | CJ24: 501.19 | CK24: 2.398735e-12 | CL24: -1.343488e-13 | CM24: 501.19 | CN24: 2.394719e-12 | CO24: -1.327113e-13 | CP24: 501.19 | CQ24: 2.389788e-12 | CR24: -1.312543e-13 | CS24: 501.19 | CT24: 2.385925e-12 | CU24: -1.301345e-13 | CV24: 501.19 | CW24: 2.381115e-12 | CX24: -1.278923e-13 | CY24: 501.19 | CZ24: 2.37663e-12 | DA24: -1.26134e-13 | DB24: 501.19 | DC24: 2.372448e-12 | DD24: -1.250476e-13 | DE24: 501.19 | DF24: 2.367841e-12 | DG24: -1.230587e-13 | DH24: 501.19 | DI24: 2.363855e-12 | DJ24: -1.220919e-13 | DK24: 501.19 | DL24: 2.358912e-12 | DM24: -1.202488e-13 | DN24: 501.19 | DO24: 2.354239e-12 | DP24: -1.194006e-13 | DQ24: 501.19 | DR24: 2.350288e-12 | DS24: -1.185433e-13 | DT24: 501.19 | DU24: 2.346597e-12 | DV24: -1.169596e-13 | DW24: 501.19 | DX24: 2.342092e-12 | DY24: -1.166752e-13 | DZ24: 501.19 | EA24: 2.338055e-12 | EB24: -1.153462e-13 | EC24: 501.19 | ED24: 2.332337e-12 | EE24: -1.136943e-13 | EF24: 501.19 | EG24: 2.328044e-12 | EH24: -1.135623e-13 | EI24: 501.19 | EJ24: 2.323059e-12 | EK24: -1.119201e-13 | EL24: 501.19 | EM24: 2.319022e-12 | EN24: -1.130211e-13 | EO24: 501.19 | EP24: 2.313639e-12 | EQ24: -1.106303e-13 | ER24: 501.19 | ES24: 2.310583e-12 | ET24: -1.106845e-13 | EU24: 501.19 | EV24: 2.305687e-12 | EW24: -1.106448e-13 | EX24: 501.19 | EY24: 2.302136e-12 | EZ24: -1.108227e-13 | FA24: 501.19 | FB24: 2.297698e-12 | FC24: -1.098792e-13 | FD24: 501.19 | FE24: 2.294993e-12 | FF24: -1.101912e-13 | FG24: 501.19 | FH24: 2.29254e-12 | FI24: -1.096687e-13 | FJ24: 501.19 | FK24: 2.291146e-12 | FL24: -1.103173e-13 | FM24: 501.19 | FN24: 2.288848e-12 | FO24: -1.100026e-13 | FP24: 501.19 | FQ24: 2.286161e-12 | FR24: -1.103306e-13 | FS24: 501.19 | FT24: 2.283737e-12 | FU24: -1.097191e-13 | FV24: 501.19 | FW24: 2.282496e-12 | FX24: -1.105827e-13 | FY24: 501.19 | FZ24: 2.337611e-12 | GA24: -1.279162e-13 | GB24: 501.19 | GC24: 2.339771e-12 | GD24: -1.240075e-13 | GE24: 501.19 | GF24: 2.341277e-12 | GG24: -1.261907e-13 | GH24: 501.19 | GI24: 2.342522e-12 | GJ24: -1.322581e-13 | GK24: 501.19 | GL24: 2.342052e-12 | GM24: -1.436266e-13 | GN24: 501.19 | GO24: 2.338367e-12 | GP24: -1.660894e-13 | GQ24: 501.19 | GR24: 2.312394e-12 | GS24: -2.249161e-13 | GT24: 501.19 | GU24: 2.067007e-12 | GV24: -4.553285e-13 | GW24: 501.19 | GX24: 1.418211e-12 | GY24: -3.63202e-13 | GZ24: 501.19 | HA24: 1.296279e-12 | HB24: -2.900944e-13 | HC24: 501.19 | HD24: 1.248429e-12 | HE24: -3.14652e-13 | HF24: 501.19 | HG24: 1.210734e-12 | HH24: -3.494781e-13 | HI24: 501.19 | HJ24: 1.177414e-12 | HK24: -3.836327e-13 | HL24: 501.19 | HM24: 1.144475e-12 | HN24: -4.190906e-13 | HO24: 501.19 | HP24: 1.107504e-12 | HQ24: -4.552106e-13 | HR24: 501.19 | HS24: 1.064318e-12 | HT24: -4.90133e-13 | HU24: 501.19 | HV24: 1.016275e-12 | HW24: -5.224054e-13 | HX24: 501.19 | HY24: 9.647551e-13 | HZ24: -5.499904e-13 | IA24: 501.19 | IB24: 9.124081e-13 | IC24: -5.717382e-13 | ID24: 501.19 | IE24: 8.663298e-13 | IF24: -5.864683e-13 | IG24: 501.19 | IH24: 8.196263e-13 | II24: -5.970957e-13 | IJ24: 501.19 | IK24: 7.747624e-13 | IL24: -6.03947e-13 | IM24: 501.19 | IN24: 7.316625e-13 | IO24: -6.071993e-13 | IP24: 501.19 | IQ24: 6.940393e-13 | IR24: -6.075288e-13 | IS24: 501.19 | IT24: 6.625918e-13 | IU24: -6.060449e-13 | IV24: 501.19 | IW24: 6.33797e-13 | IX24: -6.031582e-13 | IY24: 501.19 | IZ24: 6.077703e-13 | JA24: -5.993951e-13 | JB24: 501.19 | JC24: 5.842033e-13 | JD24: -5.947974e-13 | JE24: 501.19 | JF24: 5.627192e-13 | JG24: -5.897535e-13 | JH24: 501.19 | JI24: 5.429731e-13 | JJ24: -5.844797e-13 | JK24: 501.19 | JL24: 5.248984e-13 | JM24: -5.788303e-13 | JN24: 501.19 | JO24: 5.096982e-13 | JP24: -5.734661e-13 | JQ24: 501.19 | JR24: 4.957742e-13 | JS24: -5.684187e-13 | JT24: 501.19 | JU24: 4.839554e-13 | JV24: -5.637252e-13 | JW24: 501.19 | JX24: 4.737236e-13 | JY24: -5.593952e-13 | JZ24: 501.19 | KA24: 4.651417e-13 | KB24: -5.556203e-13 | KC24: 501.19 | KD24: 4.573287e-13 | KE24: -5.520701e-13 | KF24: 501.19 | KG24: 4.497603e-13 | KH24: -5.4838e-13 | KI24: 501.19 | KJ24: 4.43078e-13 | KK24: -5.451104e-13 | KL24: 501.19 | KM24: 4.381688e-13 | KN24: -5.426026e-13 | KO24: 501.19 | KP24: 4.336909e-13 | KQ24: -5.400063e-13 | KR24: 501.19 | KS24: 4.294841e-13 | KT24: -5.381091e-13 | KU24: 501.19 | KV24: 4.252897e-13 | KW24: -5.358343e-13 | KX24: 501.19 | KY24: 4.211627e-13 | KZ24: -5.33432e-13 | LA24: 501.19 | LB24: 4.170838e-13 | LC24: -5.310506e-13 | LD24: 501.19 | LE24: 4.129627e-13 | LF24: -5.285798e-13 | LG24: 501.19 | LH24: 4.102646e-13 | LI24: -5.271017e-13 | LJ24: 501.19 | LK24: 4.076924e-13 | LL24: -5.256371e-13 | LM24: 501.19 | LN24: 4.053751e-13 | LO24: -5.240639e-13 | LP24: 501.19 | LQ24: 4.031287e-13 | LR24: -5.229072e-13 | LS24: 501.19 | LT24: 4.014832e-13 | LU24: -5.217931e-13 | LV24: 501.19 | LW24: 3.990186e-13 | LX24: -5.202212e-13 | LY24: 501.19 | LZ24: 3.966087e-13 | MA24: -5.188022e-13 | MB24: 501.19 | MC24: 3.948885e-13 | MD24: -5.176804e-13 | ME24: 501.19 | MF24: 3.932342e-13 | MG24: -5.166176e-13 | MH24: 501.19 | MI24: 3.916882e-13 | MJ24: -5.15653e-13 | MK24: 501.19 | ML24: 3.899419e-13 | MM24: -5.144677e-13 | MN24: 501.19 | MO24: 3.88716e-13 | MP24: -5.137958e-13 | MQ24: 501.19 | MR24: 3.872402e-13 | MS24: -5.127406e-13 | MT24: 501.19 | MU24: 3.869223e-13 | MV24: -5.125285e-13 | MW24: 501.19 | MX24: 3.860565e-13 | MY24: -5.119712e-13 | MZ24: 501.19 | NA24: 3.848084e-13 | NB24: -5.109818e-13 | NC24: 501.19 | ND24: 3.837792e-13 | NE24: -5.10511e-13 | NF24: 501.19 | NG24: 3.825767e-13 | NH24: -5.096418e-13 | NI24: 501.19 | NJ24: 3.819924e-13 | NK24: -5.092722e-13 | NL24: 501.19 | NM24: 3.815553e-13 | NN24: -5.088126e-13 | NO24: 501.19 | NP24: 3.809395e-13 | NQ24: -5.08606e-13 | NR24: 501.19 | NS24: 3.806503e-13 | NT24: -5.082829e-13 | NU24: 501.19 | NV24: 3.802913e-13 | NW24: -5.082436e-13 | NX24: 501.19 | NY24: 3.798736e-13 | NZ24: -5.077772e-13 | OA24: 501.19 | OB24: 3.798936e-13 | OC24: -5.078887e-13 | OD24: 501.19 | OE24: 3.793525e-13 | OF24: -5.075312e-13 | OG24: 501.19 | OH24: 3.791921e-13 | OI24: -5.074048e-13 | OJ24: 501.19 | OK24: 3.786267e-13 | OL24: -5.068692e-13 | OM24: 501.19 | ON24: 3.777645e-13 | OO24: -5.064559e-13 | OP24: 501.19 | OQ24: 3.770119e-13 | OR24: -5.059042e-13 | OS24: 501.19 | OT24: 3.766563e-13 | OU24: -5.055628e-13 | OV24: 501.19 | OW24: 3.763697e-13 | OX24: -5.053858e-13 | OY24: 501.19 | OZ24: 3.763122e-13 | PA24: -5.053164e-13 | PB24: 501.19 | PC24: 3.763134e-13 | PD24: -5.053559e-13 | PE24: 501.19 | PF24: 3.764129e-13 | PG24: -5.055031e-13 | PH24: 501.19 | PI24: 3.756184e-13 | PJ24: -5.048479e-13 | PK24: 501.19 | PL24: 3.749302e-13 | PM24: -5.04498e-13 | PN24: 501.19 | PO24: 3.744783e-13 | PP24: -5.041021e-13 | PQ24: 501.19 | PR24: 3.741163e-13 | PS24: -5.037984e-13 | PT24: 501.19 | PU24: 3.736767e-13 | PV24: -5.034972e-13 | PW24: 501.19 | PX24: 3.730645e-13 | PY24: -5.030017e-13 | PZ24: 501.19 | QA24: 3.746588e-13 | QB24: -5.043642e-13 | QC24: 501.19 | QD24: 3.796479e-13 | QE24: -5.077371e-13 | QF24: 501.19 | QG24: 3.856104e-13 | QH24: -5.118837e-13 | QI24: 501.19 | QJ24: 3.921549e-13 | QK24: -5.161946e-13
A25: 631.01 | B25: 2.483678e-12 | C25: -1.679093e-13 | D25: 631.01 | E25: 2.449174e-12 | F25: -1.6274e-13 | G25: 631.01 | H25: 2.444531e-12 | I25: -1.632852e-13 | J25: 631.01 | K25: 2.438011e-12 | L25: -1.601026e-13 | M25: 631.01 | N25: 2.436098e-12 | O25: -1.583251e-13 | P25: 631.01 | Q25: 2.433681e-12 | R25: -1.56771e-13 | S25: 631.01 | T25: 2.431704e-12 | U25: -1.555255e-13 | V25: 631.01 | W25: 1.519881e-16 | X25: -8.394366e-17 | Y25: 631.01 | Z25: 2.429618e-12 | AA25: -1.532915e-13 | AB25: 631.01 | AC25: 2.428456e-12 | AD25: -1.53116e-13 | AE25: 631.01 | AF25: 2.427611e-12 | AG25: -1.523163e-13 | AH25: 631.01 | AI25: 2.427595e-12 | AJ25: -1.524489e-13 | AK25: 631.01 | AL25: 2.427626e-12 | AM25: -1.522022e-13 | AN25: 631.01 | AO25: 2.426602e-12 | AP25: -1.528223e-13 | AQ25: 631.01 | AR25: 2.42649e-12 | AS25: -1.518419e-13 | AT25: 631.01 | AU25: 2.425879e-12 | AV25: -1.510617e-13 | AW25: 631.01 | AX25: 2.425419e-12 | AY25: -1.509688e-13 | AZ25: 631.01 | BA25: 2.424372e-12 | BB25: -1.517905e-13 | BC25: 631.01 | BD25: 2.422175e-12 | BE25: -1.505237e-13 | BF25: 631.01 | BG25: 2.419243e-12 | BH25: -1.495337e-13 | BI25: 631.01 | BJ25: 2.416145e-12 | BK25: -1.48047e-13 | BL25: 631.01 | BM25: 2.413826e-12 | BN25: -1.459819e-13 | BO25: 631.01 | BP25: 2.40952e-12 | BQ25: -1.449616e-13 | BR25: 631.01 | BS25: 2.405944e-12 | BT25: -1.437854e-13 | BU25: 631.01 | BV25: 2.402017e-12 | BW25: -1.417635e-13 | BX25: 631.01 | BY25: 2.398209e-12 | BZ25: -1.407898e-13 | CA25: 631.01 | CB25: 2.393857e-12 | CC25: -1.386755e-13 | CD25: 631.01 | CE25: 2.389955e-12 | CF25: -1.367539e-13 | CG25: 631.01 | CH25: 2.385981e-12 | CI25: -1.355709e-13 | CJ25: 631.01 | CK25: 2.382139e-12 | CL25: -1.333344e-13 | CM25: 631.01 | CN25: 2.37682e-12 | CO25: -1.32272e-13 | CP25: 631.01 | CQ25: 2.372487e-12 | CR25: -1.306602e-13 | CS25: 631.01 | CT25: 2.368544e-12 | CU25: -1.297133e-13 | CV25: 631.01 | CW25: 2.364167e-12 | CX25: -1.287767e-13 | CY25: 631.01 | CZ25: 2.360077e-12 | DA25: -1.273901e-13 | DB25: 631.01 | DC25: 2.356017e-12 | DD25: -1.258566e-13 | DE25: 631.01 | DF25: 2.352004e-12 | DG25: -1.240092e-13 | DH25: 631.01 | DI25: 2.347787e-12 | DJ25: -1.242182e-13 | DK25: 631.01 | DL25: 2.343421e-12 | DM25: -1.239046e-13 | DN25: 631.01 | DO25: 2.338419e-12 | DP25: -1.214795e-13 | DQ25: 631.01 | DR25: 2.334517e-12 | DS25: -1.212345e-13 | DT25: 631.01 | DU25: 2.330443e-12 | DV25: -1.20674e-13 | DW25: 631.01 | DX25: 2.327892e-12 | DY25: -1.201904e-13 | DZ25: 631.01 | EA25: 2.322966e-12 | EB25: -1.197543e-13 | EC25: 631.01 | ED25: 2.317758e-12 | EE25: -1.180959e-13 | EF25: 631.01 | EG25: 2.313495e-12 | EH25: -1.178789e-13 | EI25: 631.01 | EJ25: 2.30818e-12 | EK25: -1.176856e-13 | EL25: 631.01 | EM25: 2.304218e-12 | EN25: -1.169457e-13 | EO25: 631.01 | EP25: 2.300344e-12 | EQ25: -1.175498e-13 | ER25: 631.01 | ES25: 2.294512e-12 | ET25: -1.16833e-13 | EU25: 631.01 | EV25: 2.29141e-12 | EW25: -1.163508e-13 | EX25: 631.01 | EY25: 2.28767e-12 | EZ25: -1.16056e-13 | FA25: 631.01 | FB25: 2.284099e-12 | FC25: -1.162684e-13 | FD25: 631.01 | FE25: 2.280552e-12 | FF25: -1.163555e-13 | FG25: 631.01 | FH25: 2.279403e-12 | FI25: -1.174318e-13 | FJ25: 631.01 | FK25: 2.276742e-12 | FL25: -1.170825e-13 | FM25: 631.01 | FN25: 2.274645e-12 | FO25: -1.173523e-13 | FP25: 631.01 | FQ25: 2.271939e-12 | FR25: -1.175511e-13 | FS25: 631.01 | FT25: 2.270215e-12 | FU25: -1.182765e-13 | FV25: 631.01 | FW25: 2.269001e-12 | FX25: -1.180715e-13 | FY25: 631.01 | FZ25: 2.322356e-12 | GA25: -1.313549e-13 | GB25: 631.01 | GC25: 2.324222e-12 | GD25: -1.281963e-13 | GE25: 631.01 | GF25: 2.326068e-12 | GG25: -1.310315e-13 | GH25: 631.01 | GI25: 2.326343e-12 | GJ25: -1.380022e-13 | GK25: 631.01 | GL25: 2.325687e-12 | GM25: -1.519116e-13 | GN25: 631.01 | GO25: 2.319661e-12 | GP25: -1.802373e-13 | GQ25: 631.01 | GR25: 2.284176e-12 | GS25: -2.51406e-13 | GT25: 631.01 | GU25: 1.986908e-12 | GV25: -4.815309e-13 | GW25: 631.01 | GX25: 1.383013e-12 | GY25: -3.63129e-13 | GZ25: 631.01 | HA25: 1.267125e-12 | HB25: -3.256304e-13 | HC25: 631.01 | HD25: 1.207779e-12 | HE25: -3.650605e-13 | HF25: 631.01 | HG25: 1.158812e-12 | HH25: -4.065708e-13 | HI25: 631.01 | HJ25: 1.114395e-12 | HK25: -4.450388e-13 | HL25: 631.01 | HM25: 1.069074e-12 | HN25: -4.821492e-13 | HO25: 631.01 | HP25: 1.019938e-12 | HQ25: -5.168788e-13 | HR25: 631.01 | HS25: 9.633971e-13 | HT25: -5.478551e-13 | HU25: 631.01 | HV25: 9.036527e-13 | HW25: -5.733139e-13 | HX25: 631.01 | HY25: 8.424896e-13 | HZ25: -5.919958e-13 | IA25: 631.01 | IB25: 7.82485e-13 | IC25: -6.033438e-13 | ID25: 631.01 | IE25: 7.311409e-13 | IF25: -6.083336e-13 | IG25: 631.01 | IH25: 6.817347e-13 | II25: -6.088609e-13 | IJ25: 631.01 | IK25: 6.35236e-13 | IL25: -6.055829e-13 | IM25: 631.01 | IN25: 5.925075e-13 | IO25: -5.991797e-13 | IP25: 631.01 | IQ25: 5.559173e-13 | IR25: -5.913592e-13 | IS25: 631.01 | IT25: 5.262241e-13 | IU25: -5.832554e-13 | IV25: 631.01 | IW25: 4.995281e-13 | IX25: -5.743746e-13 | IY25: 631.01 | IZ25: 4.762445e-13 | JA25: -5.65298e-13 | JB25: 631.01 | JC25: 4.554184e-13 | JD25: -5.564107e-13 | JE25: 631.01 | JF25: 4.365506e-13 | JG25: -5.473157e-13 | JH25: 631.01 | JI25: 4.196724e-13 | JJ25: -5.382438e-13 | JK25: 631.01 | JL25: 4.045913e-13 | JM25: -5.297599e-13 | JN25: 631.01 | JO25: 3.916444e-13 | JP25: -5.219168e-13 | JQ25: 631.01 | JR25: 3.80427e-13 | JS25: -5.148617e-13 | JT25: 631.01 | JU25: 3.707071e-13 | JV25: -5.082943e-13 | JW25: 631.01 | JX25: 3.623803e-13 | JY25: -5.025804e-13 | JZ25: 631.01 | KA25: 3.555727e-13 | KB25: -4.975704e-13 | KC25: 631.01 | KD25: 3.493011e-13 | KE25: -4.928994e-13 | KF25: 631.01 | KG25: 3.434507e-13 | KH25: -4.883925e-13 | KI25: 631.01 | KJ25: 3.380732e-13 | KK25: -4.842378e-13 | KL25: 631.01 | KM25: 3.341677e-13 | KN25: -4.811553e-13 | KO25: 631.01 | KP25: 3.30753e-13 | KQ25: -4.783741e-13 | KR25: 631.01 | KS25: 3.275069e-13 | KT25: -4.75632e-13 | KU25: 631.01 | KV25: 3.242585e-13 | KW25: -4.729215e-13 | KX25: 631.01 | KY25: 3.211042e-13 | KZ25: -4.702099e-13 | LA25: 631.01 | LB25: 3.177046e-13 | LC25: -4.674198e-13 | LD25: 631.01 | LE25: 3.147078e-13 | LF25: -4.646447e-13 | LG25: 631.01 | LH25: 3.125819e-13 | LI25: -4.62868e-13 | LJ25: 631.01 | LK25: 3.106607e-13 | LL25: -4.610827e-13 | LM25: 631.01 | LN25: 3.08832e-13 | LO25: -4.594568e-13 | LP25: 631.01 | LQ25: 3.071404e-13 | LR25: -4.579022e-13 | LS25: 631.01 | LT25: 3.058806e-13 | LU25: -4.568257e-13 | LV25: 631.01 | LW25: 3.039915e-13 | LX25: -4.550256e-13 | LY25: 631.01 | LZ25: 3.02243e-13 | MA25: -4.53288e-13 | MB25: 631.01 | MC25: 3.008589e-13 | MD25: -4.520365e-13 | ME25: 631.01 | MF25: 2.996326e-13 | MG25: -4.508022e-13 | MH25: 631.01 | MI25: 2.985279e-13 | MJ25: -4.498722e-13 | MK25: 631.01 | ML25: 2.971704e-13 | MM25: -4.484985e-13 | MN25: 631.01 | MO25: 2.962455e-13 | MP25: -4.476586e-13 | MQ25: 631.01 | MR25: 2.951834e-13 | MS25: -4.465755e-13 | MT25: 631.01 | MU25: 2.948339e-13 | MV25: -4.462661e-13 | MW25: 631.01 | MX25: 2.941581e-13 | MY25: -4.456574e-13 | MZ25: 631.01 | NA25: 2.933119e-13 | NB25: -4.447677e-13 | NC25: 631.01 | ND25: 2.925791e-13 | NE25: -4.44111e-13 | NF25: 631.01 | NG25: 2.916829e-13 | NH25: -4.430804e-13 | NI25: 631.01 | NJ25: 2.912052e-13 | NK25: -4.426684e-13 | NL25: 631.01 | NM25: 2.908584e-13 | NN25: -4.423492e-13 | NO25: 631.01 | NP25: 2.904149e-13 | NQ25: -4.419762e-13 | NR25: 631.01 | NS25: 2.901595e-13 | NT25: -4.417571e-13 | NU25: 631.01 | NV25: 2.899309e-13 | NW25: -4.414772e-13 | NX25: 631.01 | NY25: 2.896031e-13 | NZ25: -4.410944e-13 | OA25: 631.01 | OB25: 2.895909e-13 | OC25: -4.412335e-13 | OD25: 631.01 | OE25: 2.891115e-13 | OF25: -4.405928e-13 | OG25: 631.01 | OH25: 2.89025e-13 | OI25: -4.405433e-13 | OJ25: 631.01 | OK25: 2.886675e-13 | OL25: -4.401243e-13 | OM25: 631.01 | ON25: 2.88044e-13 | OO25: -4.395781e-13 | OP25: 631.01 | OQ25: 2.877015e-13 | OR25: -4.389401e-13 | OS25: 631.01 | OT25: 2.871589e-13 | OU25: -4.38656e-13 | OV25: 631.01 | OW25: 2.869586e-13 | OX25: -4.384615e-13 | OY25: 631.01 | OZ25: 2.869168e-13 | PA25: -4.385027e-13 | PB25: 631.01 | PC25: 2.868713e-13 | PD25: -4.384709e-13 | PE25: 631.01 | PF25: 2.870073e-13 | PG25: -4.386492e-13 | PH25: 631.01 | PI25: 2.864684e-13 | PJ25: -4.37927e-13 | PK25: 631.01 | PL25: 2.859842e-13 | PM25: -4.373837e-13 | PN25: 631.01 | PO25: 2.854661e-13 | PP25: -4.370032e-13 | PQ25: 631.01 | PR25: 2.85326e-13 | PS25: -4.36812e-13 | PT25: 631.01 | PU25: 2.849487e-13 | PV25: -4.364108e-13 | PW25: 631.01 | PX25: 2.845047e-13 | PY25: -4.360041e-13 | PZ25: 631.01 | QA25: 2.856156e-13 | QB25: -4.372812e-13 | QC25: 631.01 | QD25: 2.892646e-13 | QE25: -4.409596e-13 | QF25: 631.01 | QG25: 2.937115e-13 | QH25: -4.455522e-13 | QI25: 631.01 | QJ25: 2.986718e-13 | QK25: -4.503347e-13
A26: 794.44 | B26: 2.462596e-12 | C26: -1.631626e-13 | D26: 794.44 | E26: 2.42887e-12 | F26: -1.590452e-13 | G26: 794.44 | H26: 2.423789e-12 | I26: -1.587489e-13 | J26: 794.44 | K26: 2.417949e-12 | L26: -1.562879e-13 | M26: 794.44 | N26: 2.415758e-12 | O26: -1.545083e-13 | P26: 794.44 | Q26: 2.413571e-12 | R26: -1.517849e-13 | S26: 794.44 | T26: 2.412545e-12 | U26: -1.512966e-13 | V26: 794.44 | W26: 1.391053e-16 | X26: -7.558401e-17 | Y26: 794.44 | Z26: 2.409599e-12 | AA26: -1.495009e-13 | AB26: 794.44 | AC26: 2.409554e-12 | AD26: -1.493927e-13 | AE26: 794.44 | AF26: 2.408231e-12 | AG26: -1.487157e-13 | AH26: 794.44 | AI26: 2.408446e-12 | AJ26: -1.488741e-13 | AK26: 794.44 | AL26: 2.408016e-12 | AM26: -1.480888e-13 | AN26: 794.44 | AO26: 2.407272e-12 | AP26: -1.491351e-13 | AQ26: 794.44 | AR26: 2.405909e-12 | AS26: -1.488078e-13 | AT26: 794.44 | AU26: 2.40648e-12 | AV26: -1.482063e-13 | AW26: 794.44 | AX26: 2.404923e-12 | AY26: -1.480372e-13 | AZ26: 794.44 | BA26: 2.404322e-12 | BB26: -1.479453e-13 | BC26: 794.44 | BD26: 2.402501e-12 | BE26: -1.471028e-13 | BF26: 794.44 | BG26: 2.399694e-12 | BH26: -1.46258e-13 | BI26: 794.44 | BJ26: 2.397341e-12 | BK26: -1.455583e-13 | BL26: 794.44 | BM26: 2.394318e-12 | BN26: -1.442093e-13 | BO26: 794.44 | BP26: 2.39113e-12 | BQ26: -1.426183e-13 | BR26: 794.44 | BS26: 2.387294e-12 | BT26: -1.41941e-13 | BU26: 794.44 | BV26: 2.383447e-12 | BW26: -1.402558e-13 | BX26: 794.44 | BY26: 2.380589e-12 | BZ26: -1.397413e-13 | CA26: 794.44 | CB26: 2.376463e-12 | CC26: -1.381876e-13 | CD26: 794.44 | CE26: 2.371417e-12 | CF26: -1.361223e-13 | CG26: 794.44 | CH26: 2.367598e-12 | CI26: -1.353719e-13 | CJ26: 794.44 | CK26: 2.364513e-12 | CL26: -1.349618e-13 | CM26: 794.44 | CN26: 2.359067e-12 | CO26: -1.324121e-13 | CP26: 794.44 | CQ26: 2.356326e-12 | CR26: -1.308811e-13 | CS26: 794.44 | CT26: 2.351042e-12 | CU26: -1.307079e-13 | CV26: 794.44 | CW26: 2.347577e-12 | CX26: -1.293611e-13 | CY26: 794.44 | CZ26: 2.343324e-12 | DA26: -1.289854e-13 | DB26: 794.44 | DC26: 2.339706e-12 | DD26: -1.277287e-13 | DE26: 794.44 | DF26: 2.335401e-12 | DG26: -1.268374e-13 | DH26: 794.44 | DI26: 2.331478e-12 | DJ26: -1.26602e-13 | DK26: 794.44 | DL26: 2.326917e-12 | DM26: -1.245708e-13 | DN26: 794.44 | DO26: 2.322198e-12 | DP26: -1.25186e-13 | DQ26: 794.44 | DR26: 2.318481e-12 | DS26: -1.244623e-13 | DT26: 794.44 | DU26: 2.315801e-12 | DV26: -1.232423e-13 | DW26: 794.44 | DX26: 2.311797e-12 | DY26: -1.241311e-13 | DZ26: 794.44 | EA26: 2.307795e-12 | EB26: -1.23132e-13 | EC26: 794.44 | ED26: 2.302088e-12 | EE26: -1.227221e-13 | EF26: 794.44 | EG26: 2.297612e-12 | EH26: -1.229935e-13 | EI26: 794.44 | EJ26: 2.29323e-12 | EK26: -1.220469e-13 | EL26: 794.44 | EM26: 2.289349e-12 | EN26: -1.220103e-13 | EO26: 794.44 | EP26: 2.284381e-12 | EQ26: -1.224256e-13 | ER26: 794.44 | ES26: 2.280556e-12 | ET26: -1.223788e-13 | EU26: 794.44 | EV26: 2.275869e-12 | EW26: -1.224668e-13 | EX26: 794.44 | EY26: 2.272814e-12 | EZ26: -1.232558e-13 | FA26: 794.44 | FB26: 2.268742e-12 | FC26: -1.239227e-13 | FD26: 794.44 | FE26: 2.2666e-12 | FF26: -1.250336e-13 | FG26: 794.44 | FH26: 2.264545e-12 | FI26: -1.244421e-13 | FJ26: 794.44 | FK26: 2.26186e-12 | FL26: -1.249271e-13 | FM26: 794.44 | FN26: 2.259563e-12 | FO26: -1.252027e-13 | FP26: 794.44 | FQ26: 2.256943e-12 | FR26: -1.263513e-13 | FS26: 794.44 | FT26: 2.254553e-12 | FU26: -1.268564e-13 | FV26: 794.44 | FW26: 2.254243e-12 | FX26: -1.261942e-13 | FY26: 794.44 | FZ26: 2.305276e-12 | GA26: -1.3529e-13 | GB26: 794.44 | GC26: 2.308013e-12 | GD26: -1.332166e-13 | GE26: 794.44 | GF26: 2.308603e-12 | GG26: -1.366634e-13 | GH26: 794.44 | GI26: 2.309672e-12 | GJ26: -1.452915e-13 | GK26: 794.44 | GL26: 2.307191e-12 | GM26: -1.622195e-13 | GN26: 794.44 | GO26: 2.298506e-12 | GP26: -1.961602e-13 | GQ26: 794.44 | GR26: 2.25035e-12 | GS26: -2.789677e-13 | GT26: 794.44 | GU26: 1.904486e-12 | GV26: -4.999103e-13 | GW26: 794.44 | GX26: 1.349564e-12 | GY26: -3.728131e-13 | GZ26: 794.44 | HA26: 1.228122e-12 | HB26: -3.697011e-13 | HC26: 794.44 | HD26: 1.152836e-12 | HE26: -4.208671e-13 | HF26: 794.44 | HG26: 1.089047e-12 | HH26: -4.667395e-13 | HI26: 794.44 | HJ26: 1.030717e-12 | HK26: -5.059155e-13 | HL26: 794.44 | HM26: 9.71928e-13 | HN26: -5.393679e-13 | HO26: 794.44 | HP26: 9.093323e-13 | HQ26: -5.679239e-13 | HR26: 794.44 | HS26: 8.418962e-13 | HT26: -5.892904e-13 | HU26: 794.44 | HV26: 7.724411e-13 | HW26: -6.028002e-13 | HX26: 794.44 | HY26: 7.052094e-13 | HZ26: -6.082377e-13 | IA26: 794.44 | IB26: 6.425444e-13 | IC26: -6.062761e-13 | ID26: 794.44 | IE26: 5.910072e-13 | IF26: -5.994254e-13 | IG26: 794.44 | IH26: 5.432036e-13 | II26: -5.889966e-13 | IJ26: 794.44 | IK26: 4.999027e-13 | IL26: -5.760045e-13 | IM26: 794.44 | IN26: 4.61366e-13 | IO26: -5.609542e-13 | IP26: 794.44 | IQ26: 4.294812e-13 | IR26: -5.461896e-13 | IS26: 794.44 | IT26: 4.043248e-13 | IU26: -5.32722e-13 | IV26: 794.44 | IW26: 3.822238e-13 | IX26: -5.194589e-13 | IY26: 794.44 | IZ26: 3.630999e-13 | JA26: -5.069386e-13 | JB26: 794.44 | JC26: 3.464586e-13 | JD26: -4.9492e-13 | JE26: 794.44 | JF26: 3.315934e-13 | JG26: -4.836002e-13 | JH26: 794.44 | JI26: 3.184261e-13 | JJ26: -4.727177e-13 | JK26: 794.44 | JL26: 3.068281e-13 | JM26: -4.625026e-13 | JN26: 794.44 | JO26: 2.973127e-13 | JP26: -4.535064e-13 | JQ26: 794.44 | JR26: 2.886859e-13 | JS26: -4.455064e-13 | JT26: 794.44 | JU26: 2.816139e-13 | JV26: -4.382632e-13 | JW26: 794.44 | JX26: 2.754743e-13 | JY26: -4.320719e-13 | JZ26: 794.44 | KA26: 2.704584e-13 | KB26: -4.266675e-13 | KC26: 794.44 | KD26: 2.660014e-13 | KE26: -4.218922e-13 | KF26: 794.44 | KG26: 2.616641e-13 | KH26: -4.169402e-13 | KI26: 794.44 | KJ26: 2.578377e-13 | KK26: -4.125853e-13 | KL26: 794.44 | KM26: 2.549976e-13 | KN26: -4.093825e-13 | KO26: 794.44 | KP26: 2.525996e-13 | KQ26: -4.064548e-13 | KR26: 794.44 | KS26: 2.501893e-13 | KT26: -4.03603e-13 | KU26: 794.44 | KV26: 2.479759e-13 | KW26: -4.007794e-13 | KX26: 794.44 | KY26: 2.456974e-13 | KZ26: -3.980772e-13 | LA26: 794.44 | LB26: 2.43358e-13 | LC26: -3.952028e-13 | LD26: 794.44 | LE26: 2.412547e-13 | LF26: -3.924546e-13 | LG26: 794.44 | LH26: 2.397235e-13 | LI26: -3.906268e-13 | LJ26: 794.44 | LK26: 2.383399e-13 | LL26: -3.889278e-13 | LM26: 794.44 | LN26: 2.370406e-13 | LO26: -3.872206e-13 | LP26: 794.44 | LQ26: 2.359677e-13 | LR26: -3.857171e-13 | LS26: 794.44 | LT26: 2.349925e-13 | LU26: -3.844752e-13 | LV26: 794.44 | LW26: 2.337777e-13 | LX26: -3.828202e-13 | LY26: 794.44 | LZ26: 2.324693e-13 | MA26: -3.811024e-13 | MB26: 794.44 | MC26: 2.315226e-13 | MD26: -3.798232e-13 | ME26: 794.44 | MF26: 2.305995e-13 | MG26: -3.78671e-13 | MH26: 794.44 | MI26: 2.298208e-13 | MJ26: -3.776847e-13 | MK26: 794.44 | ML26: 2.289523e-13 | MM26: -3.763594e-13 | MN26: 794.44 | MO26: 2.282632e-13 | MP26: -3.755886e-13 | MQ26: 794.44 | MR26: 2.275445e-13 | MS26: -3.744899e-13 | MT26: 794.44 | MU26: 2.275077e-13 | MV26: -3.740825e-13 | MW26: 794.44 | MX26: 2.268963e-13 | MY26: -3.735393e-13 | MZ26: 794.44 | NA26: 2.262585e-13 | NB26: -3.72704e-13 | NC26: 794.44 | ND26: 2.257911e-13 | NE26: -3.720018e-13 | NF26: 794.44 | NG26: 2.251697e-13 | NH26: -3.710514e-13 | NI26: 794.44 | NJ26: 2.248569e-13 | NK26: -3.706556e-13 | NL26: 794.44 | NM26: 2.245151e-13 | NN26: -3.702977e-13 | NO26: 794.44 | NP26: 2.2424e-13 | NQ26: -3.69996e-13 | NR26: 794.44 | NS26: 2.241658e-13 | NT26: -3.69694e-13 | NU26: 794.44 | NV26: 2.239326e-13 | NW26: -3.694357e-13 | NX26: 794.44 | NY26: 2.236596e-13 | NZ26: -3.690937e-13 | OA26: 794.44 | OB26: 2.236528e-13 | OC26: -3.692475e-13 | OD26: 794.44 | OE26: 2.234109e-13 | OF26: -3.688276e-13 | OG26: 794.44 | OH26: 2.232941e-13 | OI26: -3.686304e-13 | OJ26: 794.44 | OK26: 2.229875e-13 | OL26: -3.681776e-13 | OM26: 794.44 | ON26: 2.225598e-13 | OO26: -3.676205e-13 | OP26: 794.44 | OQ26: 2.22145e-13 | OR26: -3.671229e-13 | OS26: 794.44 | OT26: 2.220504e-13 | OU26: -3.669075e-13 | OV26: 794.44 | OW26: 2.218639e-13 | OX26: -3.665716e-13 | OY26: 794.44 | OZ26: 2.218759e-13 | PA26: -3.665883e-13 | PB26: 794.44 | PC26: 2.217545e-13 | PD26: -3.66504e-13 | PE26: 794.44 | PF26: 2.219149e-13 | PG26: -3.666915e-13 | PH26: 794.44 | PI26: 2.215221e-13 | PJ26: -3.660209e-13 | PK26: 794.44 | PL26: 2.210799e-13 | PM26: -3.656655e-13 | PN26: 794.44 | PO26: 2.208813e-13 | PP26: -3.652015e-13 | PQ26: 794.44 | PR26: 2.206706e-13 | PS26: -3.649577e-13 | PT26: 794.44 | PU26: 2.204711e-13 | PV26: -3.645765e-13 | PW26: 794.44 | PX26: 2.201793e-13 | PY26: -3.641781e-13 | PZ26: 794.44 | QA26: 2.209138e-13 | QB26: -3.654137e-13 | QC26: 794.44 | QD26: 2.233413e-13 | QE26: -3.690007e-13 | QF26: 794.44 | QG26: 2.263681e-13 | QH26: -3.735221e-13 | QI26: 794.44 | QJ26: 2.298035e-13 | QK26: -3.782698e-13
A27: 1000 | B27: 2.441638e-12 | C27: -1.582508e-13 | D27: 1000 | E27: 2.408185e-12 | F27: -1.542915e-13 | G27: 1000 | H27: 2.403828e-12 | I27: -1.540954e-13 | J27: 1000 | K27: 2.398089e-12 | L27: -1.51953e-13 | M27: 1000 | N27: 2.396013e-12 | O27: -1.50174e-13 | P27: 1000 | Q27: 2.394329e-12 | R27: -1.493499e-13 | S27: 1000 | T27: 2.392147e-12 | U27: -1.481674e-13 | V27: 1000 | W27: 1.30101e-16 | X27: -6.729911e-17 | Y27: 1000 | Z27: 2.390749e-12 | AA27: -1.474197e-13 | AB27: 1000 | AC27: 2.390072e-12 | AD27: -1.46432e-13 | AE27: 1000 | AF27: 2.389184e-12 | AG27: -1.465731e-13 | AH27: 1000 | AI27: 2.389e-12 | AJ27: -1.457091e-13 | AK27: 1000 | AL27: 2.388977e-12 | AM27: -1.461922e-13 | AN27: 1000 | AO27: 2.388019e-12 | AP27: -1.457303e-13 | AQ27: 1000 | AR27: 2.388183e-12 | AS27: -1.452757e-13 | AT27: 1000 | AU27: 2.387567e-12 | AV27: -1.461639e-13 | AW27: 1000 | AX27: 2.386922e-12 | AY27: -1.443291e-13 | AZ27: 1000 | BA27: 2.386281e-12 | BB27: -1.457309e-13 | BC27: 1000 | BD27: 2.383847e-12 | BE27: -1.446492e-13 | BF27: 1000 | BG27: 2.381247e-12 | BH27: -1.437888e-13 | BI27: 1000 | BJ27: 2.378833e-12 | BK27: -1.429177e-13 | BL27: 1000 | BM27: 2.37624e-12 | BN27: -1.4239e-13 | BO27: 1000 | BP27: 2.37263e-12 | BQ27: -1.408408e-13 | BR27: 1000 | BS27: 2.368974e-12 | BT27: -1.397783e-13 | BU27: 1000 | BV27: 2.365402e-12 | BW27: -1.389968e-13 | BX27: 1000 | BY27: 2.361618e-12 | BZ27: -1.376943e-13 | CA27: 1000 | CB27: 2.357797e-12 | CC27: -1.362137e-13 | CD27: 1000 | CE27: 2.354346e-12 | CF27: -1.358984e-13 | CG27: 1000 | CH27: 2.350214e-12 | CI27: -1.351958e-13 | CJ27: 1000 | CK27: 2.346745e-12 | CL27: -1.340129e-13 | CM27: 1000 | CN27: 2.342172e-12 | CO27: -1.328282e-13 | CP27: 1000 | CQ27: 2.338617e-12 | CR27: -1.326183e-13 | CS27: 1000 | CT27: 2.334517e-12 | CU27: -1.31516e-13 | CV27: 1000 | CW27: 2.331042e-12 | CX27: -1.311064e-13 | CY27: 1000 | CZ27: 2.327208e-12 | DA27: -1.303236e-13 | DB27: 1000 | DC27: 2.323236e-12 | DD27: -1.296621e-13 | DE27: 1000 | DF27: 2.319204e-12 | DG27: -1.284367e-13 | DH27: 1000 | DI27: 2.315643e-12 | DJ27: -1.286025e-13 | DK27: 1000 | DL27: 2.310999e-12 | DM27: -1.279501e-13 | DN27: 1000 | DO27: 2.306482e-12 | DP27: -1.281405e-13 | DQ27: 1000 | DR27: 2.302731e-12 | DS27: -1.285567e-13 | DT27: 1000 | DU27: 2.299129e-12 | DV27: -1.277346e-13 | DW27: 1000 | DX27: 2.296117e-12 | DY27: -1.286228e-13 | DZ27: 1000 | EA27: 2.291978e-12 | EB27: -1.274351e-13 | EC27: 1000 | ED27: 2.286168e-12 | EE27: -1.291547e-13 | EF27: 1000 | EG27: 2.282203e-12 | EH27: -1.282167e-13 | EI27: 1000 | EJ27: 2.277392e-12 | EK27: -1.279053e-13 | EL27: 1000 | EM27: 2.273379e-12 | EN27: -1.285419e-13 | EO27: 1000 | EP27: 2.268988e-12 | EQ27: -1.283056e-13 | ER27: 1000 | ES27: 2.265247e-12 | ET27: -1.296557e-13 | EU27: 1000 | EV27: 2.26111e-12 | EW27: -1.300212e-13 | EX27: 1000 | EY27: 2.256628e-12 | EZ27: -1.306939e-13 | FA27: 1000 | FB27: 2.252898e-12 | FC27: -1.316878e-13 | FD27: 1000 | FE27: 2.25098e-12 | FF27: -1.323862e-13 | FG27: 1000 | FH27: 2.249329e-12 | FI27: -1.327599e-13 | FJ27: 1000 | FK27: 2.246592e-12 | FL27: -1.333781e-13 | FM27: 1000 | FN27: 2.244091e-12 | FO27: -1.342155e-13 | FP27: 1000 | FQ27: 2.241833e-12 | FR27: -1.349245e-13 | FS27: 1000 | FT27: 2.239408e-12 | FU27: -1.359856e-13 | FV27: 1000 | FW27: 2.238425e-12 | FX27: -1.359486e-13 | FY27: 1000 | FZ27: 2.28858e-12 | GA27: -1.39956e-13 | GB27: 1000 | GC27: 2.291646e-12 | GD27: -1.383108e-13 | GE27: 1000 | GF27: 2.292945e-12 | GG27: -1.429451e-13 | GH27: 1000 | GI27: 2.293027e-12 | GJ27: -1.541395e-13 | GK27: 1000 | GL27: 2.288661e-12 | GM27: -1.746569e-13 | GN27: 1000 | GO27: 2.274516e-12 | GP27: -2.150743e-13 | GQ27: 1000 | GR27: 2.211987e-12 | GS27: -3.094493e-13 | GT27: 1000 | GU27: 1.822232e-12 | GV27: -5.116087e-13 | GW27: 1000 | GX27: 1.31305e-12 | GY27: -3.933129e-13 | GZ27: 1000 | HA27: 1.177349e-12 | HB27: -4.212383e-13 | HC27: 1000 | HD27: 1.080224e-12 | HE27: -4.793e-13 | HF27: 1000 | HG27: 9.992358e-13 | HH27: -5.241288e-13 | HI27: 1000 | HJ27: 9.254985e-13 | HK27: -5.575069e-13 | HL27: 1000 | HM27: 8.532835e-13 | HN27: -5.82134e-13 | HO27: 1000 | HP27: 7.800219e-13 | HQ27: -5.982435e-13 | HR27: 1000 | HS27: 7.060239e-13 | HT27: -6.049461e-13 | HU27: 1000 | HV27: 6.330264e-13 | HW27: -6.028731e-13 | HX27: 1000 | HY27: 5.661119e-13 | HZ27: -5.92748e-13 | IA27: 1000 | IB27: 5.071648e-13 | IC27: -5.772848e-13 | ID27: 1000 | IE27: 4.60399e-13 | IF27: -5.600349e-13 | IG27: 1000 | IH27: 4.185781e-13 | II27: -5.405802e-13 | IJ27: 1000 | IK27: 3.822177e-13 | IL27: -5.199951e-13 | IM27: 1000 | IN27: 3.50983e-13 | IO27: -4.992149e-13 | IP27: 1000 | IQ27: 3.258835e-13 | IR27: -4.802227e-13 | IS27: 1000 | IT27: 3.06478e-13 | IU27: -4.639814e-13 | IV27: 1000 | IW27: 2.897439e-13 | IX27: -4.486675e-13 | IY27: 1000 | IZ27: 2.755671e-13 | JA27: -4.347056e-13 | JB27: 1000 | JC27: 2.635298e-13 | JD27: -4.217596e-13 | JE27: 1000 | JF27: 2.528806e-13 | JG27: -4.09858e-13 | JH27: 1000 | JI27: 2.435957e-13 | JJ27: -3.986025e-13 | JK27: 1000 | JL27: 2.355112e-13 | JM27: -3.88375e-13 | JN27: 1000 | JO27: 2.286697e-13 | JP27: -3.794023e-13 | JQ27: 1000 | JR27: 2.229546e-13 | JS27: -3.714692e-13 | JT27: 1000 | JU27: 2.181433e-13 | JV27: -3.64646e-13 | JW27: 1000 | JX27: 2.139759e-13 | JY27: -3.585802e-13 | JZ27: 1000 | KA27: 2.106339e-13 | KB27: -3.53389e-13 | KC27: 1000 | KD27: 2.075468e-13 | KE27: -3.486281e-13 | KF27: 1000 | KG27: 2.04712e-13 | KH27: -3.442201e-13 | KI27: 1000 | KJ27: 2.021259e-13 | KK27: -3.400158e-13 | KL27: 1000 | KM27: 2.003105e-13 | KN27: -3.370316e-13 | KO27: 1000 | KP27: 1.987309e-13 | KQ27: -3.343614e-13 | KR27: 1000 | KS27: 1.971625e-13 | KT27: -3.317578e-13 | KU27: 1000 | KV27: 1.956018e-13 | KW27: -3.292062e-13 | KX27: 1000 | KY27: 1.941337e-13 | KZ27: -3.267204e-13 | LA27: 1000 | LB27: 1.926437e-13 | LC27: -3.240343e-13 | LD27: 1000 | LE27: 1.912341e-13 | LF27: -3.215435e-13 | LG27: 1000 | LH27: 1.901857e-13 | LI27: -3.198092e-13 | LJ27: 1000 | LK27: 1.894164e-13 | LL27: -3.182682e-13 | LM27: 1000 | LN27: 1.885687e-13 | LO27: -3.167544e-13 | LP27: 1000 | LQ27: 1.878085e-13 | LR27: -3.15356e-13 | LS27: 1000 | LT27: 1.871195e-13 | LU27: -3.142727e-13 | LV27: 1000 | LW27: 1.86405e-13 | LX27: -3.12763e-13 | LY27: 1000 | LZ27: 1.85536e-13 | MA27: -3.111812e-13 | MB27: 1000 | MC27: 1.849719e-13 | MD27: -3.100639e-13 | ME27: 1000 | MF27: 1.843037e-13 | MG27: -3.090166e-13 | MH27: 1000 | MI27: 1.838629e-13 | MJ27: -3.081425e-13 | MK27: 1000 | ML27: 1.832871e-13 | MM27: -3.069347e-13 | MN27: 1000 | MO27: 1.828927e-13 | MP27: -3.061128e-13 | MQ27: 1000 | MR27: 1.823729e-13 | MS27: -3.052631e-13 | MT27: 1000 | MU27: 1.821992e-13 | MV27: -3.050163e-13 | MW27: 1000 | MX27: 1.819443e-13 | MY27: -3.044207e-13 | MZ27: 1000 | NA27: 1.815748e-13 | NB27: -3.036761e-13 | NC27: 1000 | ND27: 1.81131e-13 | NE27: -3.030099e-13 | NF27: 1000 | NG27: 1.807778e-13 | NH27: -3.021818e-13 | NI27: 1000 | NJ27: 1.80596e-13 | NK27: -3.018458e-13 | NL27: 1000 | NM27: 1.804529e-13 | NN27: -3.015047e-13 | NO27: 1000 | NP27: 1.801884e-13 | NQ27: -3.011782e-13 | NR27: 1000 | NS27: 1.801461e-13 | NT27: -3.009624e-13 | NU27: 1000 | NV27: 1.800389e-13 | NW27: -3.007209e-13 | NX27: 1000 | NY27: 1.799046e-13 | NZ27: -3.004653e-13 | OA27: 1000 | OB27: 1.798636e-13 | OC27: -3.005744e-13 | OD27: 1000 | OE27: 1.797241e-13 | OF27: -3.001502e-13 | OG27: 1000 | OH27: 1.796181e-13 | OI27: -3.000062e-13 | OJ27: 1000 | OK27: 1.794869e-13 | OL27: -2.996661e-13 | OM27: 1000 | ON27: 1.792471e-13 | OO27: -2.991732e-13 | OP27: 1000 | OQ27: 1.789566e-13 | OR27: -2.98568e-13 | OS27: 1000 | OT27: 1.788194e-13 | OU27: -2.983566e-13 | OV27: 1000 | OW27: 1.78681e-13 | OX27: -2.981965e-13 | OY27: 1000 | OZ27: 1.786676e-13 | PA27: -2.981893e-13 | PB27: 1000 | PC27: 1.786833e-13 | PD27: -2.981117e-13 | PE27: 1000 | PF27: 1.78676e-13 | PG27: -2.982541e-13 | PH27: 1000 | PI27: 1.784438e-13 | PJ27: -2.976915e-13 | PK27: 1000 | PL27: 1.782813e-13 | PM27: -2.973218e-13 | PN27: 1000 | PO27: 1.780548e-13 | PP27: -2.969614e-13 | PQ27: 1000 | PR27: 1.779637e-13 | PS27: -2.967165e-13 | PT27: 1000 | PU27: 1.777777e-13 | PV27: -2.963788e-13 | PW27: 1000 | PX27: 1.776129e-13 | PY27: -2.960189e-13 | PZ27: 1000 | QA27: 1.779992e-13 | QB27: -2.971453e-13 | QC27: 1000 | QD27: 1.795581e-13 | QE27: -3.002968e-13 | QF27: 1000 | QG27: 1.81407e-13 | QH27: -3.043193e-13 | QI27: 1000 | QJ27: 1.835742e-13 | QK27: -3.085569e-13
A28: 1259 | B28: 2.424304e-12 | C28: -1.557567e-13 | D28: 1259 | E28: 2.390382e-12 | F28: -1.499701e-13 | G28: 1259 | H28: 2.385095e-12 | I28: -1.5242e-13 | J28: 1259 | K28: 2.38004e-12 | L28: -1.503569e-13 | M28: 1259 | N28: 2.376586e-12 | O28: -1.475863e-13 | P28: 1259 | Q28: 2.374989e-12 | R28: -1.4662e-13 | S28: 1259 | T28: 2.3731e-12 | U28: -1.462148e-13 | V28: 1259 | W28: 1.234499e-16 | X28: -6.007143e-17 | Y28: 1259 | Z28: 2.374326e-12 | AA28: -1.435705e-13 | AB28: 1259 | AC28: 2.373337e-12 | AD28: -1.453923e-13 | AE28: 1259 | AF28: 2.371907e-12 | AG28: -1.449375e-13 | AH28: 1259 | AI28: 2.371651e-12 | AJ28: -1.437183e-13 | AK28: 1259 | AL28: 2.371691e-12 | AM28: -1.45226e-13 | AN28: 1259 | AO28: 2.371648e-12 | AP28: -1.452117e-13 | AQ28: 1259 | AR28: 2.370672e-12 | AS28: -1.425161e-13 | AT28: 1259 | AU28: 2.36935e-12 | AV28: -1.445252e-13 | AW28: 1259 | AX28: 2.370303e-12 | AY28: -1.444442e-13 | AZ28: 1259 | BA28: 2.368636e-12 | BB28: -1.444916e-13 | BC28: 1259 | BD28: 2.365809e-12 | BE28: -1.437786e-13 | BF28: 1259 | BG28: 2.364438e-12 | BH28: -1.436515e-13 | BI28: 1259 | BJ28: 2.361579e-12 | BK28: -1.418134e-13 | BL28: 1259 | BM28: 2.358997e-12 | BN28: -1.406881e-13 | BO28: 1259 | BP28: 2.356612e-12 | BQ28: -1.401896e-13 | BR28: 1259 | BS28: 2.352474e-12 | BT28: -1.403243e-13 | BU28: 1259 | BV28: 2.348651e-12 | BW28: -1.394214e-13 | BX28: 1259 | BY28: 2.344719e-12 | BZ28: -1.387908e-13 | CA28: 1259 | CB28: 2.341433e-12 | CC28: -1.380063e-13 | CD28: 1259 | CE28: 2.337863e-12 | CF28: -1.363742e-13 | CG28: 1259 | CH28: 2.33436e-12 | CI28: -1.372318e-13 | CJ28: 1259 | CK28: 2.329934e-12 | CL28: -1.353132e-13 | CM28: 1259 | CN28: 2.325841e-12 | CO28: -1.343871e-13 | CP28: 1259 | CQ28: 2.32283e-12 | CR28: -1.339261e-13 | CS28: 1259 | CT28: 2.31935e-12 | CU28: -1.338676e-13 | CV28: 1259 | CW28: 2.315964e-12 | CX28: -1.342e-13 | CY28: 1259 | CZ28: 2.312006e-12 | DA28: -1.340135e-13 | DB28: 1259 | DC28: 2.306888e-12 | DD28: -1.344097e-13 | DE28: 1259 | DF28: 2.303834e-12 | DG28: -1.336541e-13 | DH28: 1259 | DI28: 2.299448e-12 | DJ28: -1.32054e-13 | DK28: 1259 | DL28: 2.295537e-12 | DM28: -1.3341e-13 | DN28: 1259 | DO28: 2.290314e-12 | DP28: -1.313515e-13 | DQ28: 1259 | DR28: 2.28841e-12 | DS28: -1.318897e-13 | DT28: 1259 | DU28: 2.285014e-12 | DV28: -1.334247e-13 | DW28: 1259 | DX28: 2.280692e-12 | DY28: -1.343988e-13 | DZ28: 1259 | EA28: 2.276492e-12 | EB28: -1.334138e-13 | EC28: 1259 | ED28: 2.272393e-12 | EE28: -1.345088e-13 | EF28: 1259 | EG28: 2.267092e-12 | EH28: -1.357905e-13 | EI28: 1259 | EJ28: 2.263009e-12 | EK28: -1.356236e-13 | EL28: 1259 | EM28: 2.25822e-12 | EN28: -1.370342e-13 | EO28: 1259 | EP28: 2.253909e-12 | EQ28: -1.36668e-13 | ER28: 1259 | ES28: 2.249871e-12 | ET28: -1.375131e-13 | EU28: 1259 | EV28: 2.246114e-12 | EW28: -1.391272e-13 | EX28: 1259 | EY28: 2.242239e-12 | EZ28: -1.407783e-13 | FA28: 1259 | FB28: 2.239385e-12 | FC28: -1.420486e-13 | FD28: 1259 | FE28: 2.236558e-12 | FF28: -1.434552e-13 | FG28: 1259 | FH28: 2.234386e-12 | FI28: -1.432236e-13 | FJ28: 1259 | FK28: 2.232808e-12 | FL28: -1.433798e-13 | FM28: 1259 | FN28: 2.230488e-12 | FO28: -1.455755e-13 | FP28: 1259 | FQ28: 2.227004e-12 | FR28: -1.472415e-13 | FS28: 1259 | FT28: 2.224221e-12 | FU28: -1.472686e-13 | FV28: 1259 | FW28: 2.224924e-12 | FX28: -1.476478e-13 | FY28: 1259 | FZ28: 2.27308e-12 | GA28: -1.456576e-13 | GB28: 1259 | GC28: 2.276987e-12 | GD28: -1.458951e-13 | GE28: 1259 | GF28: 2.277794e-12 | GG28: -1.511617e-13 | GH28: 1259 | GI28: 2.275887e-12 | GJ28: -1.651165e-13 | GK28: 1259 | GL28: 2.270372e-12 | GM28: -1.916055e-13 | GN28: 1259 | GO28: 2.248066e-12 | GP28: -2.372166e-13 | GQ28: 1259 | GR28: 2.167892e-12 | GS28: -3.41735e-13 | GT28: 1259 | GU28: 1.744243e-12 | GV28: -5.188142e-13 | GW28: 1259 | GX28: 1.27051e-12 | GY28: -4.25359e-13 | GZ28: 1259 | HA28: 1.109278e-12 | HB28: -4.779936e-13 | HC28: 1259 | HD28: 9.869611e-13 | HE28: -5.345038e-13 | HF28: 1259 | HG28: 8.879967e-13 | HH28: -5.706624e-13 | HI28: 1259 | HJ28: 8.004672e-13 | HK28: -5.912396e-13 | HL28: 1259 | HM28: 7.196628e-13 | HN28: -6.008941e-13 | HO28: 1259 | HP28: 6.418566e-13 | HQ28: -6.000351e-13 | HR28: 1259 | HS28: 5.674561e-13 | HT28: -5.902604e-13 | HU28: 1259 | HV28: 4.986255e-13 | HW28: -5.719005e-13 | HX28: 1259 | HY28: 4.386454e-13 | HZ28: -5.483263e-13 | IA28: 1259 | IB28: 3.885442e-13 | IC28: -5.216962e-13 | ID28: 1259 | IE28: 3.503409e-13 | IF28: -4.975245e-13 | IG28: 1259 | IH28: 3.176143e-13 | II28: -4.726126e-13 | IJ28: 1259 | IK28: 2.901017e-13 | IL28: -4.484908e-13 | IM28: 1259 | IN28: 2.670441e-13 | IO28: -4.25141e-13 | IP28: 1259 | IQ28: 2.489348e-13 | IR28: -4.053738e-13 | IS28: 1259 | IT28: 2.352857e-13 | IU28: -3.888154e-13 | IV28: 1259 | IW28: 2.238174e-13 | IX28: -3.735691e-13 | IY28: 1259 | IZ28: 2.143202e-13 | JA28: -3.599164e-13 | JB28: 1259 | JC28: 2.062713e-13 | JD28: -3.477425e-13 | JE28: 1259 | JF28: 1.991188e-13 | JG28: -3.365376e-13 | JH28: 1259 | JI28: 1.930393e-13 | JJ28: -3.262682e-13 | JK28: 1259 | JL28: 1.878859e-13 | JM28: -3.168682e-13 | JN28: 1259 | JO28: 1.83502e-13 | JP28: -3.087311e-13 | JQ28: 1259 | JR28: 1.797833e-13 | JS28: -3.016516e-13 | JT28: 1259 | JU28: 1.767736e-13 | JV28: -2.95382e-13 | JW28: 1259 | JX28: 1.741093e-13 | JY28: -2.90164e-13 | JZ28: 1259 | KA28: 1.720251e-13 | KB28: -2.856209e-13 | KC28: 1259 | KD28: 1.701229e-13 | KE28: -2.814901e-13 | KF28: 1259 | KG28: 1.682749e-13 | KH28: -2.77662e-13 | KI28: 1259 | KJ28: 1.666909e-13 | KK28: -2.741536e-13 | KL28: 1259 | KM28: 1.654674e-13 | KN28: -2.714772e-13 | KO28: 1259 | KP28: 1.644959e-13 | KQ28: -2.692023e-13 | KR28: 1259 | KS28: 1.635768e-13 | KT28: -2.668294e-13 | KU28: 1259 | KV28: 1.626411e-13 | KW28: -2.646124e-13 | KX28: 1259 | KY28: 1.617176e-13 | KZ28: -2.625419e-13 | LA28: 1259 | LB28: 1.608565e-13 | LC28: -2.602147e-13 | LD28: 1259 | LE28: 1.599956e-13 | LF28: -2.580538e-13 | LG28: 1259 | LH28: 1.592996e-13 | LI28: -2.566157e-13 | LJ28: 1259 | LK28: 1.588908e-13 | LL28: -2.552364e-13 | LM28: 1259 | LN28: 1.583164e-13 | LO28: -2.541289e-13 | LP28: 1259 | LQ28: 1.57899e-13 | LR28: -2.528943e-13 | LS28: 1259 | LT28: 1.574357e-13 | LU28: -2.519586e-13 | LV28: 1259 | LW28: 1.568834e-13 | LX28: -2.505848e-13 | LY28: 1259 | LZ28: 1.564632e-13 | MA28: -2.492572e-13 | MB28: 1259 | MC28: 1.561153e-13 | MD28: -2.484374e-13 | ME28: 1259 | MF28: 1.557109e-13 | MG28: -2.474149e-13 | MH28: 1259 | MI28: 1.554463e-13 | MJ28: -2.467496e-13 | MK28: 1259 | ML28: 1.550712e-13 | MM28: -2.45731e-13 | MN28: 1259 | MO28: 1.548157e-13 | MP28: -2.449969e-13 | MQ28: 1259 | MR28: 1.54497e-13 | MS28: -2.443393e-13 | MT28: 1259 | MU28: 1.543725e-13 | MV28: -2.440318e-13 | MW28: 1259 | MX28: 1.54271e-13 | MY28: -2.436921e-13 | MZ28: 1259 | NA28: 1.540719e-13 | NB28: -2.429303e-13 | NC28: 1259 | ND28: 1.538133e-13 | NE28: -2.423753e-13 | NF28: 1259 | NG28: 1.536135e-13 | NH28: -2.416994e-13 | NI28: 1259 | NJ28: 1.534657e-13 | NK28: -2.413582e-13 | NL28: 1259 | NM28: 1.533672e-13 | NN28: -2.411265e-13 | NO28: 1259 | NP28: 1.532264e-13 | NQ28: -2.408184e-13 | NR28: 1259 | NS28: 1.531743e-13 | NT28: -2.407016e-13 | NU28: 1259 | NV28: 1.531305e-13 | NW28: -2.40461e-13 | NX28: 1259 | NY28: 1.53004e-13 | NZ28: -2.40246e-13 | OA28: 1259 | OB28: 1.52928e-13 | OC28: -2.403026e-13 | OD28: 1259 | OE28: 1.528653e-13 | OF28: -2.399974e-13 | OG28: 1259 | OH28: 1.528792e-13 | OI28: -2.398767e-13 | OJ28: 1259 | OK28: 1.527237e-13 | OL28: -2.395292e-13 | OM28: 1259 | ON28: 1.525433e-13 | OO28: -2.391009e-13 | OP28: 1259 | OQ28: 1.523774e-13 | OR28: -2.386737e-13 | OS28: 1259 | OT28: 1.524055e-13 | OU28: -2.385679e-13 | OV28: 1259 | OW28: 1.523421e-13 | OX28: -2.383431e-13 | OY28: 1259 | OZ28: 1.521892e-13 | PA28: -2.38342e-13 | PB28: 1259 | PC28: 1.522446e-13 | PD28: -2.382073e-13 | PE28: 1259 | PF28: 1.523124e-13 | PG28: -2.383921e-13 | PH28: 1259 | PI28: 1.520878e-13 | PJ28: -2.378844e-13 | PK28: 1259 | PL28: 1.519587e-13 | PM28: -2.375333e-13 | PN28: 1259 | PO28: 1.518735e-13 | PP28: -2.37238e-13 | PQ28: 1259 | PR28: 1.518261e-13 | PS28: -2.371609e-13 | PT28: 1259 | PU28: 1.517296e-13 | PV28: -2.368612e-13 | PW28: 1259 | PX28: 1.515939e-13 | PY28: -2.365579e-13 | PZ28: 1259 | QA28: 1.518362e-13 | QB28: -2.373038e-13 | QC28: 1259 | QD28: 1.526061e-13 | QE28: -2.400529e-13 | QF28: 1259 | QG28: 1.537834e-13 | QH28: -2.434171e-13 | QI28: 1259 | QJ28: 1.54932e-13 | QK28: -2.4695e-13
A29: 1585.4 | B29: 2.404849e-12 | C29: -1.532972e-13 | D29: 1585.4 | E29: 2.372083e-12 | F29: -1.499997e-13 | G29: 1585.4 | H29: 2.366887e-12 | I29: -1.499111e-13 | J29: 1585.4 | K29: 2.362018e-12 | L29: -1.483082e-13 | M29: 1585.4 | N29: 2.35997e-12 | O29: -1.476123e-13 | P29: 1585.4 | Q29: 2.358139e-12 | R29: -1.465586e-13 | S29: 1585.4 | T29: 2.357437e-12 | U29: -1.458998e-13 | V29: 1585.4 | W29: 1.181521e-16 | X29: -5.391951e-17 | Y29: 1585.4 | Z29: 2.355748e-12 | AA29: -1.446276e-13 | AB29: 1585.4 | AC29: 2.354929e-12 | AD29: -1.440183e-13 | AE29: 1585.4 | AF29: 2.354566e-12 | AG29: -1.446943e-13 | AH29: 1585.4 | AI29: 2.353994e-12 | AJ29: -1.434403e-13 | AK29: 1585.4 | AL29: 2.354222e-12 | AM29: -1.443113e-13 | AN29: 1585.4 | AO29: 2.353814e-12 | AP29: -1.439987e-13 | AQ29: 1585.4 | AR29: 2.353187e-12 | AS29: -1.436539e-13 | AT29: 1585.4 | AU29: 2.352814e-12 | AV29: -1.435079e-13 | AW29: 1585.4 | AX29: 2.352667e-12 | AY29: -1.465068e-13 | AZ29: 1585.4 | BA29: 2.350417e-12 | BB29: -1.448841e-13 | BC29: 1585.4 | BD29: 2.349422e-12 | BE29: -1.430205e-13 | BF29: 1585.4 | BG29: 2.347025e-12 | BH29: -1.430939e-13 | BI29: 1585.4 | BJ29: 2.34487e-12 | BK29: -1.425811e-13 | BL29: 1585.4 | BM29: 2.34168e-12 | BN29: -1.415238e-13 | BO29: 1585.4 | BP29: 2.338789e-12 | BQ29: -1.421703e-13 | BR29: 1585.4 | BS29: 2.335794e-12 | BT29: -1.41459e-13 | BU29: 1585.4 | BV29: 2.332652e-12 | BW29: -1.406718e-13 | BX29: 1585.4 | BY29: 2.32902e-12 | BZ29: -1.399375e-13 | CA29: 1585.4 | CB29: 2.325503e-12 | CC29: -1.397097e-13 | CD29: 1585.4 | CE29: 2.322534e-12 | CF29: -1.395257e-13 | CG29: 1585.4 | CH29: 2.318484e-12 | CI29: -1.384857e-13 | CJ29: 1585.4 | CK29: 2.314529e-12 | CL29: -1.385729e-13 | CM29: 1585.4 | CN29: 2.310781e-12 | CO29: -1.379454e-13 | CP29: 1585.4 | CQ29: 2.307515e-12 | CR29: -1.378707e-13 | CS29: 1585.4 | CT29: 2.303627e-12 | CU29: -1.377094e-13 | CV29: 1585.4 | CW29: 2.300608e-12 | CX29: -1.370757e-13 | CY29: 1585.4 | CZ29: 2.295863e-12 | DA29: -1.380585e-13 | DB29: 1585.4 | DC29: 2.292142e-12 | DD29: -1.377207e-13 | DE29: 1585.4 | DF29: 2.288332e-12 | DG29: -1.382109e-13 | DH29: 1585.4 | DI29: 2.284683e-12 | DJ29: -1.38347e-13 | DK29: 1585.4 | DL29: 2.280802e-12 | DM29: -1.387507e-13 | DN29: 1585.4 | DO29: 2.276433e-12 | DP29: -1.385518e-13 | DQ29: 1585.4 | DR29: 2.272381e-12 | DS29: -1.397217e-13 | DT29: 1585.4 | DU29: 2.268964e-12 | DV29: -1.404724e-13 | DW29: 1585.4 | DX29: 2.265499e-12 | DY29: -1.408437e-13 | DZ29: 1585.4 | EA29: 2.261715e-12 | EB29: -1.417792e-13 | EC29: 1585.4 | ED29: 2.256661e-12 | EE29: -1.426889e-13 | EF29: 1585.4 | EG29: 2.252228e-12 | EH29: -1.436967e-13 | EI29: 1585.4 | EJ29: 2.247794e-12 | EK29: -1.448209e-13 | EL29: 1585.4 | EM29: 2.243659e-12 | EN29: -1.457132e-13 | EO29: 1585.4 | EP29: 2.239097e-12 | EQ29: -1.472635e-13 | ER29: 1585.4 | ES29: 2.23538e-12 | ET29: -1.482454e-13 | EU29: 1585.4 | EV29: 2.231108e-12 | EW29: -1.500638e-13 | EX29: 1585.4 | EY29: 2.22775e-12 | EZ29: -1.518659e-13 | FA29: 1585.4 | FB29: 2.223549e-12 | FC29: -1.536635e-13 | FD29: 1585.4 | FE29: 2.220427e-12 | FF29: -1.556471e-13 | FG29: 1585.4 | FH29: 2.219076e-12 | FI29: -1.563976e-13 | FJ29: 1585.4 | FK29: 2.216387e-12 | FL29: -1.574675e-13 | FM29: 1585.4 | FN29: 2.213964e-12 | FO29: -1.591345e-13 | FP29: 1585.4 | FQ29: 2.211422e-12 | FR29: -1.602618e-13 | FS29: 1585.4 | FT29: 2.209044e-12 | FU29: -1.613082e-13 | FV29: 1585.4 | FW29: 2.208076e-12 | FX29: -1.625184e-13 | FY29: 1585.4 | FZ29: 2.256844e-12 | GA29: -1.556305e-13 | GB29: 1585.4 | GC29: 2.259595e-12 | GD29: -1.554858e-13 | GE29: 1585.4 | GF29: 2.260013e-12 | GG29: -1.638173e-13 | GH29: 1585.4 | GI29: 2.257337e-12 | GJ29: -1.802652e-13 | GK29: 1585.4 | GL29: 2.247421e-12 | GM29: -2.095624e-13 | GN29: 1585.4 | GO29: 2.219235e-12 | GP29: -2.625414e-13 | GQ29: 1585.4 | GR29: 2.119548e-12 | GS29: -3.73693e-13 | GT29: 1585.4 | GU29: 1.672109e-12 | GV29: -5.277442e-13 | GW29: 1585.4 | GX29: 1.216044e-12 | GY29: -4.676988e-13 | GZ29: 1585.4 | HA29: 1.020736e-12 | HB29: -5.326246e-13 | HC29: 1585.4 | HD29: 8.729975e-13 | HE29: -5.772267e-13 | HF29: 1585.4 | HG29: 7.588968e-13 | HH29: -5.960859e-13 | HI29: 1585.4 | HJ29: 6.643286e-13 | HK29: -5.979371e-13 | HL29: 1585.4 | HM29: 5.817065e-13 | HN29: -5.888314e-13 | HO29: 1585.4 | HP29: 5.076142e-13 | HQ29: -5.706738e-13 | HR29: 1585.4 | HS29: 4.405564e-13 | HT29: -5.450566e-13 | HU29: 1585.4 | HV29: 3.825687e-13 | HW29: -5.144562e-13 | HX29: 1585.4 | HY29: 3.343441e-13 | HZ29: -4.820471e-13 | IA29: 1585.4 | IB29: 2.956511e-13 | IC29: -4.502393e-13 | ID29: 1585.4 | IE29: 2.67452e-13 | IF29: -4.229688e-13 | IG29: 1585.4 | IH29: 2.440004e-13 | II29: -3.967898e-13 | IJ29: 1585.4 | IK29: 2.248566e-13 | IL29: -3.726352e-13 | IM29: 1585.4 | IN29: 2.092219e-13 | IO29: -3.504289e-13 | IP29: 1585.4 | IQ29: 1.971632e-13 | IR29: -3.316804e-13 | IS29: 1585.4 | IT29: 1.883307e-13 | IU29: -3.165059e-13 | IV29: 1585.4 | IW29: 1.809259e-13 | IX29: -3.028241e-13 | IY29: 1585.4 | IZ29: 1.748203e-13 | JA29: -2.90851e-13 | JB29: 1585.4 | JC29: 1.697676e-13 | JD29: -2.800824e-13 | JE29: 1585.4 | JF29: 1.654051e-13 | JG29: -2.703682e-13 | JH29: 1585.4 | JI29: 1.616422e-13 | JJ29: -2.615468e-13 | JK29: 1585.4 | JL29: 1.584416e-13 | JM29: -2.53592e-13 | JN29: 1585.4 | JO29: 1.558113e-13 | JP29: -2.467564e-13 | JQ29: 1585.4 | JR29: 1.53597e-13 | JS29: -2.408141e-13 | JT29: 1585.4 | JU29: 1.517481e-13 | JV29: -2.356716e-13 | JW29: 1585.4 | JX29: 1.50162e-13 | JY29: -2.311855e-13 | JZ29: 1585.4 | KA29: 1.488965e-13 | KB29: -2.274301e-13 | KC29: 1585.4 | KD29: 1.477236e-13 | KE29: -2.240644e-13 | KF29: 1585.4 | KG29: 1.466809e-13 | KH29: -2.208265e-13 | KI29: 1585.4 | KJ29: 1.457336e-13 | KK29: -2.178817e-13 | KL29: 1585.4 | KM29: 1.450156e-13 | KN29: -2.157163e-13 | KO29: 1585.4 | KP29: 1.444184e-13 | KQ29: -2.138451e-13 | KR29: 1585.4 | KS29: 1.438391e-13 | KT29: -2.120313e-13 | KU29: 1585.4 | KV29: 1.433011e-13 | KW29: -2.102128e-13 | KX29: 1585.4 | KY29: 1.42705e-13 | KZ29: -2.084476e-13 | LA29: 1585.4 | LB29: 1.422235e-13 | LC29: -2.065715e-13 | LD29: 1585.4 | LE29: 1.417203e-13 | LF29: -2.048101e-13 | LG29: 1585.4 | LH29: 1.413002e-13 | LI29: -2.036541e-13 | LJ29: 1585.4 | LK29: 1.410387e-13 | LL29: -2.025038e-13 | LM29: 1585.4 | LN29: 1.40699e-13 | LO29: -2.015031e-13 | LP29: 1585.4 | LQ29: 1.404286e-13 | LR29: -2.005492e-13 | LS29: 1585.4 | LT29: 1.401689e-13 | LU29: -1.998343e-13 | LV29: 1585.4 | LW29: 1.398865e-13 | LX29: -1.987526e-13 | LY29: 1585.4 | LZ29: 1.396054e-13 | MA29: -1.976571e-13 | MB29: 1585.4 | MC29: 1.393784e-13 | MD29: -1.968861e-13 | ME29: 1585.4 | MF29: 1.391523e-13 | MG29: -1.961696e-13 | MH29: 1585.4 | MI29: 1.38989e-13 | MJ29: -1.955039e-13 | MK29: 1585.4 | ML29: 1.388244e-13 | MM29: -1.947394e-13 | MN29: 1585.4 | MO29: 1.386516e-13 | MP29: -1.942109e-13 | MQ29: 1585.4 | MR29: 1.384455e-13 | MS29: -1.936081e-13 | MT29: 1585.4 | MU29: 1.38413e-13 | MV29: -1.934063e-13 | MW29: 1585.4 | MX29: 1.383015e-13 | MY29: -1.930178e-13 | MZ29: 1585.4 | NA29: 1.381534e-13 | NB29: -1.924943e-13 | NC29: 1585.4 | ND29: 1.380277e-13 | NE29: -1.920807e-13 | NF29: 1585.4 | NG29: 1.379075e-13 | NH29: -1.91495e-13 | NI29: 1585.4 | NJ29: 1.378217e-13 | NK29: -1.912444e-13 | NL29: 1585.4 | NM29: 1.37778e-13 | NN29: -1.910433e-13 | NO29: 1585.4 | NP29: 1.376469e-13 | NQ29: -1.908077e-13 | NR29: 1585.4 | NS29: 1.376502e-13 | NT29: -1.906752e-13 | NU29: 1585.4 | NV29: 1.375924e-13 | NW29: -1.904821e-13 | NX29: 1585.4 | NY29: 1.375363e-13 | NZ29: -1.902841e-13 | OA29: 1585.4 | OB29: 1.375156e-13 | OC29: -1.903293e-13 | OD29: 1585.4 | OE29: 1.374698e-13 | OF29: -1.900831e-13 | OG29: 1585.4 | OH29: 1.374418e-13 | OI29: -1.900104e-13 | OJ29: 1585.4 | OK29: 1.373768e-13 | OL29: -1.897355e-13 | OM29: 1585.4 | ON29: 1.372904e-13 | OO29: -1.893683e-13 | OP29: 1585.4 | OQ29: 1.372091e-13 | OR29: -1.890211e-13 | OS29: 1585.4 | OT29: 1.371463e-13 | OU29: -1.888807e-13 | OV29: 1585.4 | OW29: 1.370922e-13 | OX29: -1.88749e-13 | OY29: 1585.4 | OZ29: 1.371573e-13 | PA29: -1.887417e-13 | PB29: 1585.4 | PC29: 1.370677e-13 | PD29: -1.886841e-13 | PE29: 1585.4 | PF29: 1.370836e-13 | PG29: -1.887577e-13 | PH29: 1585.4 | PI29: 1.369787e-13 | PJ29: -1.884674e-13 | PK29: 1585.4 | PL29: 1.368933e-13 | PM29: -1.880652e-13 | PN29: 1585.4 | PO29: 1.368576e-13 | PP29: -1.878952e-13 | PQ29: 1585.4 | PR29: 1.368118e-13 | PS29: -1.877392e-13 | PT29: 1585.4 | PU29: 1.367572e-13 | PV29: -1.87558e-13 | PW29: 1585.4 | PX29: 1.367079e-13 | PY29: -1.872551e-13 | PZ29: 1585.4 | QA29: 1.367428e-13 | QB29: -1.880053e-13 | QC29: 1585.4 | QD29: 1.372758e-13 | QE29: -1.900939e-13 | QF29: 1585.4 | QG29: 1.378867e-13 | QH29: -1.927404e-13 | QI29: 1585.4 | QJ29: 1.385575e-13 | QK29: -1.956443e-13
A30: 1996 | B30: 2.388562e-12 | C30: -1.543541e-13 | D30: 1996 | E30: 2.355889e-12 | F30: -1.511789e-13 | G30: 1996 | H30: 2.350534e-12 | I30: -1.512613e-13 | J30: 1996 | K30: 2.345775e-12 | L30: -1.501648e-13 | M30: 1996 | N30: 2.343791e-12 | O30: -1.4931e-13 | P30: 1996 | Q30: 2.342512e-12 | R30: -1.484081e-13 | S30: 1996 | T30: 2.341696e-12 | U30: -1.487986e-13 | V30: 1996 | W30: 1.134698e-16 | X30: -4.870724e-17 | Y30: 1996 | Z30: 2.340017e-12 | AA30: -1.472361e-13 | AB30: 1996 | AC30: 2.33921e-12 | AD30: -1.470231e-13 | AE30: 1996 | AF30: 2.338702e-12 | AG30: -1.466466e-13 | AH30: 1996 | AI30: 2.338393e-12 | AJ30: -1.463441e-13 | AK30: 1996 | AL30: 2.338653e-12 | AM30: -1.475844e-13 | AN30: 1996 | AO30: 2.337932e-12 | AP30: -1.467023e-13 | AQ30: 1996 | AR30: 2.337568e-12 | AS30: -1.462889e-13 | AT30: 1996 | AU30: 2.337178e-12 | AV30: -1.46635e-13 | AW30: 1996 | AX30: 2.336456e-12 | AY30: -1.463086e-13 | AZ30: 1996 | BA30: 2.336318e-12 | BB30: -1.468592e-13 | BC30: 1996 | BD30: 2.334268e-12 | BE30: -1.461027e-13 | BF30: 1996 | BG30: 2.331573e-12 | BH30: -1.461092e-13 | BI30: 1996 | BJ30: 2.329568e-12 | BK30: -1.456159e-13 | BL30: 1996 | BM30: 2.326988e-12 | BN30: -1.453405e-13 | BO30: 1996 | BP30: 2.32367e-12 | BQ30: -1.449931e-13 | BR30: 1996 | BS30: 2.320525e-12 | BT30: -1.449752e-13 | BU30: 1996 | BV30: 2.317611e-12 | BW30: -1.448143e-13 | BX30: 1996 | BY30: 2.314268e-12 | BZ30: -1.448778e-13 | CA30: 1996 | CB30: 2.310415e-12 | CC30: -1.431409e-13 | CD30: 1996 | CE30: 2.307139e-12 | CF30: -1.439156e-13 | CG30: 1996 | CH30: 2.303873e-12 | CI30: -1.441466e-13 | CJ30: 1996 | CK30: 2.300214e-12 | CL30: -1.43835e-13 | CM30: 1996 | CN30: 2.295816e-12 | CO30: -1.436378e-13 | CP30: 1996 | CQ30: 2.292994e-12 | CR30: -1.442911e-13 | CS30: 1996 | CT30: 2.289216e-12 | CU30: -1.446654e-13 | CV30: 1996 | CW30: 2.285488e-12 | CX30: -1.447429e-13 | CY30: 1996 | CZ30: 2.281635e-12 | DA30: -1.448481e-13 | DB30: 1996 | DC30: 2.277824e-12 | DD30: -1.45759e-13 | DE30: 1996 | DF30: 2.273983e-12 | DG30: -1.459683e-13 | DH30: 1996 | DI30: 2.269955e-12 | DJ30: -1.472031e-13 | DK30: 1996 | DL30: 2.266553e-12 | DM30: -1.477326e-13 | DN30: 1996 | DO30: 2.262264e-12 | DP30: -1.481597e-13 | DQ30: 1996 | DR30: 2.25854e-12 | DS30: -1.493164e-13 | DT30: 1996 | DU30: 2.255161e-12 | DV30: -1.508715e-13 | DW30: 1996 | DX30: 2.251172e-12 | DY30: -1.522106e-13 | DZ30: 1996 | EA30: 2.247519e-12 | EB30: -1.525818e-13 | EC30: 1996 | ED30: 2.242467e-12 | EE30: -1.543621e-13 | EF30: 1996 | EG30: 2.238835e-12 | EH30: -1.565896e-13 | EI30: 1996 | EJ30: 2.233481e-12 | EK30: -1.575458e-13 | EL30: 1996 | EM30: 2.229457e-12 | EN30: -1.590894e-13 | EO30: 1996 | EP30: 2.224673e-12 | EQ30: -1.611523e-13 | ER30: 1996 | ES30: 2.220797e-12 | ET30: -1.635359e-13 | EU30: 1996 | EV30: 2.21641e-12 | EW30: -1.651853e-13 | EX30: 1996 | EY30: 2.212385e-12 | EZ30: -1.669922e-13 | FA30: 1996 | FB30: 2.208476e-12 | FC30: -1.697166e-13 | FD30: 1996 | FE30: 2.20539e-12 | FF30: -1.723574e-13 | FG30: 1996 | FH30: 2.203258e-12 | FI30: -1.732811e-13 | FJ30: 1996 | FK30: 2.201478e-12 | FL30: -1.751175e-13 | FM30: 1996 | FN30: 2.198165e-12 | FO30: -1.768668e-13 | FP30: 1996 | FQ30: 2.195406e-12 | FR30: -1.786456e-13 | FS30: 1996 | FT30: 2.193567e-12 | FU30: -1.800867e-13 | FV30: 1996 | FW30: 2.192089e-12 | FX30: -1.812017e-13 | FY30: 1996 | FZ30: 2.241346e-12 | GA30: -1.683037e-13 | GB30: 1996 | GC30: 2.245045e-12 | GD30: -1.688885e-13 | GE30: 1996 | GF30: 2.243399e-12 | GG30: -1.7943e-13 | GH30: 1996 | GI30: 2.238127e-12 | GJ30: -1.99428e-13 | GK30: 1996 | GL30: 2.224246e-12 | GM30: -2.332576e-13 | GN30: 1996 | GO30: 2.187349e-12 | GP30: -2.918684e-13 | GQ30: 1996 | GR30: 2.066125e-12 | GS30: -4.085965e-13 | GT30: 1996 | GU30: 1.602775e-12 | GV30: -5.42181e-13 | GW30: 1996 | GX30: 1.146399e-12 | GY30: -5.174778e-13 | GZ30: 1996 | HA30: 9.109202e-13 | HB30: -5.780946e-13 | HC30: 1996 | HD30: 7.431849e-13 | HE30: -5.983887e-13 | HF30: 1996 | HG30: 6.224847e-13 | HH30: -5.928121e-13 | HI30: 1996 | HJ30: 5.297768e-13 | HK30: -5.737133e-13 | HL30: 1996 | HM30: 4.545871e-13 | HN30: -5.470336e-13 | HO30: 1996 | HP30: 3.912022e-13 | HQ30: -5.151847e-13 | HR30: 1996 | HS30: 3.372451e-13 | HT30: -4.794578e-13 | HU30: 1996 | HV30: 2.925268e-13 | HW30: -4.425508e-13 | HX30: 1996 | HY30: 2.573833e-13 | HZ30: -4.071804e-13 | IA30: 1996 | IB30: 2.299932e-13 | IC30: -3.747939e-13 | ID30: 1996 | IE30: 2.107447e-13 | IF30: -3.484338e-13 | IG30: 1996 | IH30: 1.951298e-13 | II30: -3.239905e-13 | IJ30: 1996 | IK30: 1.825455e-13 | IL30: -3.021895e-13 | IM30: 1996 | IN30: 1.726911e-13 | IO30: -2.825692e-13 | IP30: 1996 | IQ30: 1.650861e-13 | IR30: -2.663545e-13 | IS30: 1996 | IT30: 1.594857e-13 | IU30: -2.534186e-13 | IV30: 1996 | IW30: 1.550002e-13 | IX30: -2.418831e-13 | IY30: 1996 | IZ30: 1.51191e-13 | JA30: -2.319294e-13 | JB30: 1996 | JC30: 1.482049e-13 | JD30: -2.229726e-13 | JE30: 1996 | JF30: 1.455815e-13 | JG30: -2.149821e-13 | JH30: 1996 | JI30: 1.433593e-13 | JJ30: -2.077136e-13 | JK30: 1996 | JL30: 1.41462e-13 | JM30: -2.012354e-13 | JN30: 1996 | JO30: 1.39915e-13 | JP30: -1.956909e-13 | JQ30: 1996 | JR30: 1.385734e-13 | JS30: -1.908768e-13 | JT30: 1996 | JU30: 1.374735e-13 | JV30: -1.867118e-13 | JW30: 1996 | JX30: 1.365348e-13 | JY30: -1.831349e-13 | JZ30: 1996 | KA30: 1.357181e-13 | KB30: -1.801958e-13 | KC30: 1996 | KD30: 1.351411e-13 | KE30: -1.774246e-13 | KF30: 1996 | KG30: 1.344902e-13 | KH30: -1.748452e-13 | KI30: 1996 | KJ30: 1.339014e-13 | KK30: -1.724819e-13 | KL30: 1996 | KM30: 1.334234e-13 | KN30: -1.707879e-13 | KO30: 1996 | KP30: 1.331404e-13 | KQ30: -1.692177e-13 | KR30: 1996 | KS30: 1.327793e-13 | KT30: -1.677711e-13 | KU30: 1996 | KV30: 1.324678e-13 | KW30: -1.663161e-13 | KX30: 1996 | KY30: 1.321446e-13 | KZ30: -1.648854e-13 | LA30: 1996 | LB30: 1.318425e-13 | LC30: -1.634345e-13 | LD30: 1996 | LE30: 1.31514e-13 | LF30: -1.620773e-13 | LG30: 1996 | LH30: 1.312794e-13 | LI30: -1.611226e-13 | LJ30: 1996 | LK30: 1.311242e-13 | LL30: -1.602097e-13 | LM30: 1996 | LN30: 1.309297e-13 | LO30: -1.59379e-13 | LP30: 1996 | LQ30: 1.307568e-13 | LR30: -1.586028e-13 | LS30: 1996 | LT30: 1.306009e-13 | LU30: -1.58072e-13 | LV30: 1996 | LW30: 1.304339e-13 | LX30: -1.572062e-13 | LY30: 1996 | LZ30: 1.302887e-13 | MA30: -1.563309e-13 | MB30: 1996 | MC30: 1.301511e-13 | MD30: -1.557267e-13 | ME30: 1996 | MF30: 1.300036e-13 | MG30: -1.551768e-13 | MH30: 1996 | MI30: 1.298961e-13 | MJ30: -1.54606e-13 | MK30: 1996 | ML30: 1.298136e-13 | MM30: -1.540067e-13 | MN30: 1996 | MO30: 1.296784e-13 | MP30: -1.535921e-13 | MQ30: 1996 | MR30: 1.296054e-13 | MS30: -1.531131e-13 | MT30: 1996 | MU30: 1.295507e-13 | MV30: -1.529506e-13 | MW30: 1996 | MX30: 1.295215e-13 | MY30: -1.526346e-13 | MZ30: 1996 | NA30: 1.29419e-13 | NB30: -1.522061e-13 | NC30: 1996 | ND30: 1.293328e-13 | NE30: -1.51863e-13 | NF30: 1996 | NG30: 1.292679e-13 | NH30: -1.51449e-13 | NI30: 1996 | NJ30: 1.292221e-13 | NK30: -1.512306e-13 | NL30: 1996 | NM30: 1.291944e-13 | NN30: -1.510555e-13 | NO30: 1996 | NP30: 1.291291e-13 | NQ30: -1.508649e-13 | NR30: 1996 | NS30: 1.291116e-13 | NT30: -1.507521e-13 | NU30: 1996 | NV30: 1.290874e-13 | NW30: -1.506184e-13 | NX30: 1996 | NY30: 1.290257e-13 | NZ30: -1.504692e-13 | OA30: 1996 | OB30: 1.290406e-13 | OC30: -1.505014e-13 | OD30: 1996 | OE30: 1.290171e-13 | OF30: -1.502985e-13 | OG30: 1996 | OH30: 1.289733e-13 | OI30: -1.502271e-13 | OJ30: 1996 | OK30: 1.28932e-13 | OL30: -1.500419e-13 | OM30: 1996 | ON30: 1.288824e-13 | OO30: -1.497468e-13 | OP30: 1996 | OQ30: 1.288353e-13 | OR30: -1.494679e-13 | OS30: 1996 | OT30: 1.288001e-13 | OU30: -1.493393e-13 | OV30: 1996 | OW30: 1.287737e-13 | OX30: -1.492516e-13 | OY30: 1996 | OZ30: 1.287442e-13 | PA30: -1.492176e-13 | PB30: 1996 | PC30: 1.287526e-13 | PD30: -1.491943e-13 | PE30: 1996 | PF30: 1.287489e-13 | PG30: -1.492528e-13 | PH30: 1996 | PI30: 1.286764e-13 | PJ30: -1.490109e-13 | PK30: 1996 | PL30: 1.286861e-13 | PM30: -1.487767e-13 | PN30: 1996 | PO30: 1.286434e-13 | PP30: -1.485647e-13 | PQ30: 1996 | PR30: 1.286011e-13 | PS30: -1.48451e-13 | PT30: 1996 | PU30: 1.285411e-13 | PV30: -1.48291e-13 | PW30: 1996 | PX30: 1.285144e-13 | PY30: -1.480338e-13 | PZ30: 1996 | QA30: 1.285413e-13 | QB30: -1.48594e-13 | QC30: 1996 | QD30: 1.288219e-13 | QE30: -1.502734e-13 | QF30: 1996 | QG30: 1.291429e-13 | QH30: -1.524041e-13 | QI30: 1996 | QJ30: 1.295294e-13 | QK30: -1.546554e-13
A31: 2512.6 | B31: 2.370864e-12 | C31: -1.573416e-13 | D31: 2512.6 | E31: 2.338361e-12 | F31: -1.543504e-13 | G31: 2512.6 | H31: 2.333699e-12 | I31: -1.546214e-13 | J31: 2512.6 | K31: 2.328871e-12 | L31: -1.543178e-13 | M31: 2512.6 | N31: 2.328025e-12 | O31: -1.535031e-13 | P31: 2512.6 | Q31: 2.325781e-12 | R31: -1.527907e-13 | S31: 2512.6 | T31: 2.324633e-12 | U31: -1.523195e-13 | V31: 2512.6 | W31: 1.091131e-16 | X31: -4.398653e-17 | Y31: 2512.6 | Z31: 2.323983e-12 | AA31: -1.513445e-13 | AB31: 2512.6 | AC31: 2.323044e-12 | AD31: -1.512648e-13 | AE31: 2512.6 | AF31: 2.322327e-12 | AG31: -1.514728e-13 | AH31: 2512.6 | AI31: 2.322663e-12 | AJ31: -1.515427e-13 | AK31: 2512.6 | AL31: 2.322316e-12 | AM31: -1.515576e-13 | AN31: 2512.6 | AO31: 2.321457e-12 | AP31: -1.515313e-13 | AQ31: 2512.6 | AR31: 2.321403e-12 | AS31: -1.51283e-13 | AT31: 2512.6 | AU31: 2.320743e-12 | AV31: -1.510673e-13 | AW31: 2512.6 | AX31: 2.320407e-12 | AY31: -1.509976e-13 | AZ31: 2512.6 | BA31: 2.319613e-12 | BB31: -1.511519e-13 | BC31: 2512.6 | BD31: 2.318465e-12 | BE31: -1.513799e-13 | BF31: 2512.6 | BG31: 2.316412e-12 | BH31: -1.513167e-13 | BI31: 2512.6 | BJ31: 2.313791e-12 | BK31: -1.510415e-13 | BL31: 2512.6 | BM31: 2.311359e-12 | BN31: -1.513293e-13 | BO31: 2512.6 | BP31: 2.307932e-12 | BQ31: -1.514411e-13 | BR31: 2512.6 | BS31: 2.304913e-12 | BT31: -1.511114e-13 | BU31: 2512.6 | BV31: 2.302327e-12 | BW31: -1.514153e-13 | BX31: 2512.6 | BY31: 2.298937e-12 | BZ31: -1.514413e-13 | CA31: 2512.6 | CB31: 2.294849e-12 | CC31: -1.517263e-13 | CD31: 2512.6 | CE31: 2.29156e-12 | CF31: -1.517936e-13 | CG31: 2512.6 | CH31: 2.288389e-12 | CI31: -1.516652e-13 | CJ31: 2512.6 | CK31: 2.285103e-12 | CL31: -1.518461e-13 | CM31: 2512.6 | CN31: 2.280584e-12 | CO31: -1.525915e-13 | CP31: 2512.6 | CQ31: 2.277478e-12 | CR31: -1.528216e-13 | CS31: 2512.6 | CT31: 2.273801e-12 | CU31: -1.536585e-13 | CV31: 2512.6 | CW31: 2.270067e-12 | CX31: -1.543809e-13 | CY31: 2512.6 | CZ31: 2.266064e-12 | DA31: -1.55347e-13 | DB31: 2512.6 | DC31: 2.263013e-12 | DD31: -1.56034e-13 | DE31: 2512.6 | DF31: 2.258779e-12 | DG31: -1.570494e-13 | DH31: 2512.6 | DI31: 2.254205e-12 | DJ31: -1.588287e-13 | DK31: 2512.6 | DL31: 2.251153e-12 | DM31: -1.585592e-13 | DN31: 2512.6 | DO31: 2.247098e-12 | DP31: -1.602758e-13 | DQ31: 2512.6 | DR31: 2.242834e-12 | DS31: -1.618264e-13 | DT31: 2512.6 | DU31: 2.239617e-12 | DV31: -1.64538e-13 | DW31: 2512.6 | DX31: 2.235531e-12 | DY31: -1.650093e-13 | DZ31: 2512.6 | EA31: 2.232192e-12 | EB31: -1.675133e-13 | EC31: 2512.6 | ED31: 2.226867e-12 | EE31: -1.699836e-13 | EF31: 2512.6 | EG31: 2.222852e-12 | EH31: -1.722816e-13 | EI31: 2512.6 | EJ31: 2.217334e-12 | EK31: -1.741175e-13 | EL31: 2512.6 | EM31: 2.21315e-12 | EN31: -1.756078e-13 | EO31: 2512.6 | EP31: 2.20829e-12 | EQ31: -1.789136e-13 | ER31: 2512.6 | ES31: 2.204132e-12 | ET31: -1.822658e-13 | EU31: 2512.6 | EV31: 2.199242e-12 | EW31: -1.843992e-13 | EX31: 2512.6 | EY31: 2.195776e-12 | EZ31: -1.873682e-13 | FA31: 2512.6 | FB31: 2.190903e-12 | FC31: -1.903899e-13 | FD31: 2512.6 | FE31: 2.187954e-12 | FF31: -1.93493e-13 | FG31: 2512.6 | FH31: 2.186225e-12 | FI31: -1.949463e-13 | FJ31: 2512.6 | FK31: 2.183273e-12 | FL31: -1.971834e-13 | FM31: 2512.6 | FN31: 2.179943e-12 | FO31: -1.997997e-13 | FP31: 2512.6 | FQ31: 2.177129e-12 | FR31: -2.017054e-13 | FS31: 2512.6 | FT31: 2.175147e-12 | FU31: -2.036808e-13 | FV31: 2512.6 | FW31: 2.173808e-12 | FX31: -2.050825e-13 | FY31: 2512.6 | FZ31: 2.223622e-12 | GA31: -1.847451e-13 | GB31: 2512.6 | GC31: 2.2274e-12 | GD31: -1.874414e-13 | GE31: 2512.6 | GF31: 2.22476e-12 | GG31: -1.988784e-13 | GH31: 2512.6 | GI31: 2.216488e-12 | GJ31: -2.224479e-13 | GK31: 2512.6 | GL31: 2.196302e-12 | GM31: -2.606757e-13 | GN31: 2512.6 | GO31: 2.149655e-12 | GP31: -3.247428e-13 | GQ31: 2512.6 | GR31: 2.00759e-12 | GS31: -4.443691e-13 | GT31: 2512.6 | GU31: 1.53337e-12 | GV31: -5.627467e-13 | GW31: 2512.6 | GX31: 1.055999e-12 | GY31: -5.679112e-13 | GZ31: 2512.6 | HA31: 7.828573e-13 | HB31: -6.037338e-13 | HC31: 2512.6 | HD31: 6.070594e-13 | HE31: -5.905716e-13 | HF31: 2512.6 | HG31: 4.919062e-13 | HH31: -5.592223e-13 | HI31: 2512.6 | HJ31: 4.106892e-13 | HK31: -5.220792e-13 | HL31: 2512.6 | HM31: 3.492556e-13 | HN31: -4.834413e-13 | HO31: 2512.6 | HP31: 3.004731e-13 | HQ31: -4.443101e-13 | HR31: 2512.6 | HS31: 2.608091e-13 | HT31: -4.051297e-13 | HU31: 2512.6 | HV31: 2.293802e-13 | HW31: -3.677581e-13 | HX31: 2512.6 | HY31: 2.053922e-13 | HZ31: -3.338939e-13 | IA31: 2512.6 | IB31: 1.873031e-13 | IC31: -3.043167e-13 | ID31: 2512.6 | IE31: 1.746853e-13 | IF31: -2.809862e-13 | IG31: 2512.6 | IH31: 1.64843e-13 | II31: -2.599085e-13 | IJ31: 2512.6 | IK31: 1.56935e-13 | IL31: -2.415119e-13 | IM31: 2512.6 | IN31: 1.509215e-13 | IO31: -2.251355e-13 | IP31: 2512.6 | IQ31: 1.462084e-13 | IR31: -2.117347e-13 | IS31: 2512.6 | IT31: 1.427796e-13 | IU31: -2.012061e-13 | IV31: 2512.6 | IW31: 1.400332e-13 | IX31: -1.9181e-13 | IY31: 2512.6 | IZ31: 1.377245e-13 | JA31: -1.837909e-13 | JB31: 2512.6 | JC31: 1.359769e-13 | JD31: -1.765692e-13 | JE31: 2512.6 | JF31: 1.343857e-13 | JG31: -1.701907e-13 | JH31: 2512.6 | JI31: 1.330828e-13 | JJ31: -1.64418e-13 | JK31: 2512.6 | JL31: 1.319542e-13 | JM31: -1.59239e-13 | JN31: 2512.6 | JO31: 1.310137e-13 | JP31: -1.548598e-13 | JQ31: 2512.6 | JR31: 1.302131e-13 | JS31: -1.510156e-13 | JT31: 2512.6 | JU31: 1.295523e-13 | JV31: -1.477558e-13 | JW31: 2512.6 | JX31: 1.289864e-13 | JY31: -1.448899e-13 | JZ31: 2512.6 | KA31: 1.284421e-13 | KB31: -1.425945e-13 | KC31: 2512.6 | KD31: 1.281515e-13 | KE31: -1.403616e-13 | KF31: 2512.6 | KG31: 1.27768e-13 | KH31: -1.38344e-13 | KI31: 2512.6 | KJ31: 1.273867e-13 | KK31: -1.365121e-13 | KL31: 2512.6 | KM31: 1.270311e-13 | KN31: -1.351681e-13 | KO31: 2512.6 | KP31: 1.269204e-13 | KQ31: -1.339008e-13 | KR31: 2512.6 | KS31: 1.267041e-13 | KT31: -1.327713e-13 | KU31: 2512.6 | KV31: 1.26483e-13 | KW31: -1.316446e-13 | KX31: 2512.6 | KY31: 1.263046e-13 | KZ31: -1.305015e-13 | LA31: 2512.6 | LB31: 1.261357e-13 | LC31: -1.293514e-13 | LD31: 2512.6 | LE31: 1.259291e-13 | LF31: -1.282393e-13 | LG31: 2512.6 | LH31: 1.257115e-13 | LI31: -1.275598e-13 | LJ31: 2512.6 | LK31: 1.257003e-13 | LL31: -1.267873e-13 | LM31: 2512.6 | LN31: 1.25554e-13 | LO31: -1.261692e-13 | LP31: 2512.6 | LQ31: 1.254161e-13 | LR31: -1.255753e-13 | LS31: 2512.6 | LT31: 1.253267e-13 | LU31: -1.251188e-13 | LV31: 2512.6 | LW31: 1.252596e-13 | LX31: -1.244133e-13 | LY31: 2512.6 | LZ31: 1.25136e-13 | MA31: -1.23757e-13 | MB31: 2512.6 | MC31: 1.250766e-13 | MD31: -1.233039e-13 | ME31: 2512.6 | MF31: 1.249579e-13 | MG31: -1.228587e-13 | MH31: 2512.6 | MI31: 1.249208e-13 | MJ31: -1.224286e-13 | MK31: 2512.6 | ML31: 1.248424e-13 | MM31: -1.219291e-13 | MN31: 2512.6 | MO31: 1.247963e-13 | MP31: -1.216181e-13 | MQ31: 2512.6 | MR31: 1.246532e-13 | MS31: -1.212773e-13 | MT31: 2512.6 | MU31: 1.246766e-13 | MV31: -1.210904e-13 | MW31: 2512.6 | MX31: 1.246546e-13 | MY31: -1.208337e-13 | MZ31: 2512.6 | NA31: 1.245733e-13 | NB31: -1.205226e-13 | NC31: 2512.6 | ND31: 1.24476e-13 | NE31: -1.203079e-13 | NF31: 2512.6 | NG31: 1.245048e-13 | NH31: -1.199239e-13 | NI31: 2512.6 | NJ31: 1.244518e-13 | NK31: -1.197703e-13 | NL31: 2512.6 | NM31: 1.244362e-13 | NN31: -1.196107e-13 | NO31: 2512.6 | NP31: 1.243286e-13 | NQ31: -1.195068e-13 | NR31: 2512.6 | NS31: 1.24398e-13 | NT31: -1.193631e-13 | NU31: 2512.6 | NV31: 1.243888e-13 | NW31: -1.192555e-13 | NX31: 2512.6 | NY31: 1.24329e-13 | NZ31: -1.191736e-13 | OA31: 2512.6 | OB31: 1.243296e-13 | OC31: -1.191877e-13 | OD31: 2512.6 | OE31: 1.243356e-13 | OF31: -1.190001e-13 | OG31: 2512.6 | OH31: 1.243002e-13 | OI31: -1.189408e-13 | OJ31: 2512.6 | OK31: 1.242622e-13 | OL31: -1.188209e-13 | OM31: 2512.6 | ON31: 1.242768e-13 | OO31: -1.186289e-13 | OP31: 2512.6 | OQ31: 1.242361e-13 | OR31: -1.183606e-13 | OS31: 2512.6 | OT31: 1.242172e-13 | OU31: -1.182592e-13 | OV31: 2512.6 | OW31: 1.241498e-13 | OX31: -1.182114e-13 | OY31: 2512.6 | OZ31: 1.241651e-13 | PA31: -1.181456e-13 | PB31: 2512.6 | PC31: 1.241794e-13 | PD31: -1.181542e-13 | PE31: 2512.6 | PF31: 1.241625e-13 | PG31: -1.181875e-13 | PH31: 2512.6 | PI31: 1.241257e-13 | PJ31: -1.180084e-13 | PK31: 2512.6 | PL31: 1.241194e-13 | PM31: -1.177956e-13 | PN31: 2512.6 | PO31: 1.240934e-13 | PP31: -1.176535e-13 | PQ31: 2512.6 | PR31: 1.2407e-13 | PS31: -1.175624e-13 | PT31: 2512.6 | PU31: 1.240219e-13 | PV31: -1.174404e-13 | PW31: 2512.6 | PX31: 1.240166e-13 | PY31: -1.172609e-13 | PZ31: 2512.6 | QA31: 1.240233e-13 | QB31: -1.176388e-13 | QC31: 2512.6 | QD31: 1.241751e-13 | QE31: -1.189649e-13 | QF31: 2512.6 | QG31: 1.243952e-13 | QH31: -1.2059e-13 | QI31: 2512.6 | QJ31: 1.245773e-13 | QK31: -1.223724e-13
A32: 3164.6 | B32: 2.353696e-12 | C32: -1.624987e-13 | D32: 3164.6 | E32: 2.321776e-12 | F32: -1.597964e-13 | G32: 3164.6 | H32: 2.317535e-12 | I32: -1.598603e-13 | J32: 3164.6 | K32: 2.312478e-12 | L32: -1.604653e-13 | M32: 3164.6 | N32: 2.311309e-12 | O32: -1.595695e-13 | P32: 3164.6 | Q32: 2.310195e-12 | R32: -1.590598e-13 | S32: 3164.6 | T32: 2.309298e-12 | U32: -1.593229e-13 | V32: 3164.6 | W32: 1.050228e-16 | X32: -3.946771e-17 | Y32: 3164.6 | Z32: 2.307708e-12 | AA32: -1.607032e-13 | AB32: 3164.6 | AC32: 2.307588e-12 | AD32: -1.584738e-13 | AE32: 3164.6 | AF32: 2.307241e-12 | AG32: -1.586514e-13 | AH32: 3164.6 | AI32: 2.306738e-12 | AJ32: -1.584102e-13 | AK32: 3164.6 | AL32: 2.306623e-12 | AM32: -1.59242e-13 | AN32: 3164.6 | AO32: 2.305585e-12 | AP32: -1.589909e-13 | AQ32: 3164.6 | AR32: 2.306204e-12 | AS32: -1.583902e-13 | AT32: 3164.6 | AU32: 2.305556e-12 | AV32: -1.584293e-13 | AW32: 3164.6 | AX32: 2.305597e-12 | AY32: -1.589067e-13 | AZ32: 3164.6 | BA32: 2.304065e-12 | BB32: -1.591337e-13 | BC32: 3164.6 | BD32: 2.302493e-12 | BE32: -1.588942e-13 | BF32: 3164.6 | BG32: 2.300403e-12 | BH32: -1.593302e-13 | BI32: 3164.6 | BJ32: 2.298162e-12 | BK32: -1.593381e-13 | BL32: 3164.6 | BM32: 2.295699e-12 | BN32: -1.594522e-13 | BO32: 3164.6 | BP32: 2.29247e-12 | BQ32: -1.597651e-13 | BR32: 3164.6 | BS32: 2.289666e-12 | BT32: -1.601237e-13 | BU32: 3164.6 | BV32: 2.285728e-12 | BW32: -1.603402e-13 | BX32: 3164.6 | BY32: 2.283451e-12 | BZ32: -1.607981e-13 | CA32: 3164.6 | CB32: 2.279789e-12 | CC32: -1.61434e-13 | CD32: 3164.6 | CE32: 2.276818e-12 | CF32: -1.616916e-13 | CG32: 3164.6 | CH32: 2.273795e-12 | CI32: -1.638178e-13 | CJ32: 3164.6 | CK32: 2.26973e-12 | CL32: -1.630944e-13 | CM32: 3164.6 | CN32: 2.265966e-12 | CO32: -1.639821e-13 | CP32: 3164.6 | CQ32: 2.262161e-12 | CR32: -1.652174e-13 | CS32: 3164.6 | CT32: 2.25794e-12 | CU32: -1.672356e-13 | CV32: 3164.6 | CW32: 2.255196e-12 | CX32: -1.670019e-13 | CY32: 3164.6 | CZ32: 2.250701e-12 | DA32: -1.682379e-13 | DB32: 3164.6 | DC32: 2.246039e-12 | DD32: -1.706699e-13 | DE32: 3164.6 | DF32: 2.243843e-12 | DG32: -1.716893e-13 | DH32: 3164.6 | DI32: 2.239237e-12 | DJ32: -1.731933e-13 | DK32: 3164.6 | DL32: 2.235713e-12 | DM32: -1.749832e-13 | DN32: 3164.6 | DO32: 2.231064e-12 | DP32: -1.762682e-13 | DQ32: 3164.6 | DR32: 2.227096e-12 | DS32: -1.784119e-13 | DT32: 3164.6 | DU32: 2.223407e-12 | DV32: -1.813358e-13 | DW32: 3164.6 | DX32: 2.219903e-12 | DY32: -1.831504e-13 | DZ32: 3164.6 | EA32: 2.215454e-12 | EB32: -1.858693e-13 | EC32: 3164.6 | ED32: 2.210221e-12 | EE32: -1.891344e-13 | EF32: 3164.6 | EG32: 2.204869e-12 | EH32: -1.919886e-13 | EI32: 3164.6 | EJ32: 2.200188e-12 | EK32: -1.944578e-13 | EL32: 3164.6 | EM32: 2.195714e-12 | EN32: -1.974606e-13 | EO32: 3164.6 | EP32: 2.190765e-12 | EQ32: -2.014553e-13 | ER32: 3164.6 | ES32: 2.186063e-12 | ET32: -2.046498e-13 | EU32: 3164.6 | EV32: 2.181232e-12 | EW32: -2.080232e-13 | EX32: 3164.6 | EY32: 2.176732e-12 | EZ32: -2.117007e-13 | FA32: 3164.6 | FB32: 2.172005e-12 | FC32: -2.160069e-13 | FD32: 3164.6 | FE32: 2.168049e-12 | FF32: -2.202798e-13 | FG32: 3164.6 | FH32: 2.165979e-12 | FI32: -2.214429e-13 | FJ32: 3164.6 | FK32: 2.163223e-12 | FL32: -2.240622e-13 | FM32: 3164.6 | FN32: 2.160024e-12 | FO32: -2.273897e-13 | FP32: 3164.6 | FQ32: 2.15676e-12 | FR32: -2.296603e-13 | FS32: 3164.6 | FT32: 2.153737e-12 | FU32: -2.321404e-13 | FV32: 3164.6 | FW32: 2.152578e-12 | FX32: -2.356768e-13 | FY32: 3164.6 | FZ32: 2.20421e-12 | GA32: -2.059497e-13 | GB32: 3164.6 | GC32: 2.2076e-12 | GD32: -2.090273e-13 | GE32: 3164.6 | GF32: 2.203443e-12 | GG32: -2.229971e-13 | GH32: 3164.6 | GI32: 2.191453e-12 | GJ32: -2.493339e-13 | GK32: 3164.6 | GL32: 2.165221e-12 | GM32: -2.917965e-13 | GN32: 3164.6 | GO32: 2.109133e-12 | GP32: -3.613615e-13 | GQ32: 3164.6 | GR32: 1.945054e-12 | GS32: -4.810667e-13 | GT32: 3164.6 | GU32: 1.45874e-12 | GV32: -5.937847e-13 | GW32: 3164.6 | GX32: 9.435861e-13 | GY32: -6.101525e-13 | GZ32: 3164.6 | HA32: 6.462306e-13 | HB32: -6.023457e-13 | HC32: 3164.6 | HD32: 4.787586e-13 | HE32: -5.529652e-13 | HF32: 3164.6 | HG32: 3.801172e-13 | HH32: -5.010114e-13 | HI32: 3164.6 | HJ32: 3.163531e-13 | HK32: -4.532268e-13 | HL32: 3164.6 | HM32: 2.70672e-13 | HN32: -4.100327e-13 | HO32: 3164.6 | HP32: 2.36214e-13 | HQ32: -3.698346e-13 | HR32: 3164.6 | HS32: 2.091815e-13 | HT32: -3.323246e-13 | HU32: 3164.6 | HV32: 1.883468e-13 | HW32: -2.983041e-13 | HX32: 3164.6 | HY32: 1.727632e-13 | HZ32: -2.68626e-13 | IA32: 3164.6 | IB32: 1.612001e-13 | IC32: -2.433845e-13 | ID32: 3164.6 | IE32: 1.532183e-13 | IF32: -2.239423e-13 | IG32: 3164.6 | IH32: 1.470986e-13 | II32: -2.065928e-13 | IJ32: 3164.6 | IK32: 1.421123e-13 | IL32: -1.91641e-13 | IM32: 3164.6 | IN32: 1.384338e-13 | IO32: -1.784296e-13 | IP32: 3164.6 | IQ32: 1.355171e-13 | IR32: -1.676682e-13 | IS32: 3164.6 | IT32: 1.333446e-13 | IU32: -1.592825e-13 | IV32: 3164.6 | IW32: 1.316522e-13 | IX32: -1.518224e-13 | IY32: 3164.6 | IZ32: 1.301786e-13 | JA32: -1.454781e-13 | JB32: 3164.6 | JC32: 1.291136e-13 | JD32: -1.397603e-13 | JE32: 3164.6 | JF32: 1.281707e-13 | JG32: -1.347085e-13 | JH32: 3164.6 | JI32: 1.273358e-13 | JJ32: -1.302046e-13 | JK32: 3164.6 | JL32: 1.266477e-13 | JM32: -1.260888e-13 | JN32: 3164.6 | JO32: 1.260678e-13 | JP32: -1.226538e-13 | JQ32: 3164.6 | JR32: 1.255596e-13 | JS32: -1.196501e-13 | JT32: 3164.6 | JU32: 1.251507e-13 | JV32: -1.170689e-13 | JW32: 3164.6 | JX32: 1.247905e-13 | JY32: -1.148187e-13 | JZ32: 3164.6 | KA32: 1.243921e-13 | KB32: -1.130393e-13 | KC32: 3164.6 | KD32: 1.242331e-13 | KE32: -1.112793e-13 | KF32: 3164.6 | KG32: 1.239794e-13 | KH32: -1.096731e-13 | KI32: 3164.6 | KJ32: 1.236997e-13 | KK32: -1.08258e-13 | KL32: 3164.6 | KM32: 1.234578e-13 | KN32: -1.07207e-13 | KO32: 3164.6 | KP32: 1.234142e-13 | KQ32: -1.062129e-13 | KR32: 3164.6 | KS32: 1.23274e-13 | KT32: -1.053051e-13 | KU32: 3164.6 | KV32: 1.231113e-13 | KW32: -1.044614e-13 | KX32: 3164.6 | KY32: 1.230175e-13 | KZ32: -1.035349e-13 | LA32: 3164.6 | LB32: 1.228869e-13 | LC32: -1.026224e-13 | LD32: 3164.6 | LE32: 1.227699e-13 | LF32: -1.017664e-13 | LG32: 3164.6 | LH32: 1.225591e-13 | LI32: -1.012524e-13 | LJ32: 3164.6 | LK32: 1.225982e-13 | LL32: -1.006419e-13 | LM32: 3164.6 | LN32: 1.225097e-13 | LO32: -1.001252e-13 | LP32: 3164.6 | LQ32: 1.224285e-13 | LR32: -9.965521e-14 | LS32: 3164.6 | LT32: 1.222643e-13 | LU32: -9.937617e-14 | LV32: 3164.6 | LW32: 1.222921e-13 | LX32: -9.877121e-14 | LY32: 3164.6 | LZ32: 1.222146e-13 | MA32: -9.827638e-14 | MB32: 3164.6 | MC32: 1.221757e-13 | MD32: -9.787501e-14 | ME32: 3164.6 | MF32: 1.220221e-13 | MG32: -9.759048e-14 | MH32: 3164.6 | MI32: 1.220843e-13 | MJ32: -9.720836e-14 | MK32: 3164.6 | ML32: 1.220336e-13 | MM32: -9.681821e-14 | MN32: 3164.6 | MO32: 1.219824e-13 | MP32: -9.655799e-14 | MQ32: 3164.6 | MR32: 1.218514e-13 | MS32: -9.631742e-14 | MT32: 3164.6 | MU32: 1.219078e-13 | MV32: -9.616102e-14 | MW32: 3164.6 | MX32: 1.218921e-13 | MY32: -9.597268e-14 | MZ32: 3164.6 | NA32: 1.218265e-13 | NB32: -9.574266e-14 | NC32: 3164.6 | ND32: 1.217315e-13 | NE32: -9.557442e-14 | NF32: 3164.6 | NG32: 1.217961e-13 | NH32: -9.523998e-14 | NI32: 3164.6 | NJ32: 1.217675e-13 | NK32: -9.510517e-14 | NL32: 3164.6 | NM32: 1.217168e-13 | NN32: -9.503957e-14 | NO32: 3164.6 | NP32: 1.216329e-13 | NQ32: -9.493846e-14 | NR32: 3164.6 | NS32: 1.217223e-13 | NT32: -9.480861e-14 | NU32: 3164.6 | NV32: 1.216911e-13 | NW32: -9.470429e-14 | NX32: 3164.6 | NY32: 1.216405e-13 | NZ32: -9.46586e-14 | OA32: 3164.6 | OB32: 1.216336e-13 | OC32: -9.46506e-14 | OD32: 3164.6 | OE32: 1.216628e-13 | OF32: -9.451651e-14 | OG32: 3164.6 | OH32: 1.216638e-13 | OI32: -9.448217e-14 | OJ32: 3164.6 | OK32: 1.215981e-13 | OL32: -9.439676e-14 | OM32: 3164.6 | ON32: 1.216311e-13 | OO32: -9.420352e-14 | OP32: 3164.6 | OQ32: 1.216077e-13 | OR32: -9.400073e-14 | OS32: 3164.6 | OT32: 1.215775e-13 | OU32: -9.394067e-14 | OV32: 3164.6 | OW32: 1.215248e-13 | OX32: -9.390592e-14 | OY32: 3164.6 | OZ32: 1.21554e-13 | PA32: -9.386922e-14 | PB32: 3164.6 | PC32: 1.21549e-13 | PD32: -9.383174e-14 | PE32: 3164.6 | PF32: 1.215437e-13 | PG32: -9.386705e-14 | PH32: 3164.6 | PI32: 1.214427e-13 | PJ32: -9.377722e-14 | PK32: 3164.6 | PL32: 1.214959e-13 | PM32: -9.357458e-14 | PN32: 3164.6 | PO32: 1.214976e-13 | PP32: -9.345325e-14 | PQ32: 3164.6 | PR32: 1.214842e-13 | PS32: -9.338435e-14 | PT32: 3164.6 | PU32: 1.213736e-13 | PV32: -9.333169e-14 | PW32: 3164.6 | PX32: 1.21451e-13 | PY32: -9.315186e-14 | PZ32: 3164.6 | QA32: 1.214375e-13 | QB32: -9.344505e-14 | QC32: 3164.6 | QD32: 1.214912e-13 | QE32: -9.451151e-14 | QF32: 3164.6 | QG32: 1.21609e-13 | QH32: -9.575612e-14 | QI32: 3164.6 | QJ32: 1.217598e-13 | QK32: -9.713387e-14
A33: 3984.1 | B33: 2.337298e-12 | C33: -1.722552e-13 | D33: 3984.1 | E33: 2.305466e-12 | F33: -1.696392e-13 | G33: 3984.1 | H33: 2.300318e-12 | I33: -1.697803e-13 | J33: 3984.1 | K33: 2.296118e-12 | L33: -1.700027e-13 | M33: 3984.1 | N33: 2.294581e-12 | O33: -1.695194e-13 | P33: 3984.1 | Q33: 2.29359e-12 | R33: -1.689839e-13 | S33: 3984.1 | T33: 2.292e-12 | U33: -1.688821e-13 | V33: 3984.1 | W33: 1.014673e-16 | X33: -3.505428e-17 | Y33: 3984.1 | Z33: 2.291397e-12 | AA33: -1.693406e-13 | AB33: 3984.1 | AC33: 2.291173e-12 | AD33: -1.690534e-13 | AE33: 3984.1 | AF33: 2.290508e-12 | AG33: -1.690349e-13 | AH33: 3984.1 | AI33: 2.290927e-12 | AJ33: -1.680022e-13 | AK33: 3984.1 | AL33: 2.290134e-12 | AM33: -1.706478e-13 | AN33: 3984.1 | AO33: 2.291055e-12 | AP33: -1.689425e-13 | AQ33: 3984.1 | AR33: 2.289465e-12 | AS33: -1.688669e-13 | AT33: 3984.1 | AU33: 2.289154e-12 | AV33: -1.691674e-13 | AW33: 3984.1 | AX33: 2.28834e-12 | AY33: -1.692597e-13 | AZ33: 3984.1 | BA33: 2.286618e-12 | BB33: -1.700947e-13 | BC33: 3984.1 | BD33: 2.28581e-12 | BE33: -1.7016e-13 | BF33: 3984.1 | BG33: 2.284224e-12 | BH33: -1.709851e-13 | BI33: 3984.1 | BJ33: 2.281775e-12 | BK33: -1.713854e-13 | BL33: 3984.1 | BM33: 2.277551e-12 | BN33: -1.721876e-13 | BO33: 3984.1 | BP33: 2.275486e-12 | BQ33: -1.718868e-13 | BR33: 3984.1 | BS33: 2.27416e-12 | BT33: -1.728049e-13 | BU33: 3984.1 | BV33: 2.268661e-12 | BW33: -1.735255e-13 | BX33: 3984.1 | BY33: 2.266981e-12 | BZ33: -1.742229e-13 | CA33: 3984.1 | CB33: 2.263493e-12 | CC33: -1.756294e-13 | CD33: 3984.1 | CE33: 2.259979e-12 | CF33: -1.764221e-13 | CG33: 3984.1 | CH33: 2.256452e-12 | CI33: -1.773485e-13 | CJ33: 3984.1 | CK33: 2.253911e-12 | CL33: -1.770117e-13 | CM33: 3984.1 | CN33: 2.248765e-12 | CO33: -1.800948e-13 | CP33: 3984.1 | CQ33: 2.245444e-12 | CR33: -1.81503e-13 | CS33: 3984.1 | CT33: 2.241711e-12 | CU33: -1.838859e-13 | CV33: 3984.1 | CW33: 2.238424e-12 | CX33: -1.820511e-13 | CY33: 3984.1 | CZ33: 2.233934e-12 | DA33: -1.860207e-13 | DB33: 3984.1 | DC33: 2.230043e-12 | DD33: -1.879495e-13 | DE33: 3984.1 | DF33: 2.226135e-12 | DG33: -1.900118e-13 | DH33: 3984.1 | DI33: 2.223171e-12 | DJ33: -1.903118e-13 | DK33: 3984.1 | DL33: 2.218603e-12 | DM33: -1.94061e-13 | DN33: 3984.1 | DO33: 2.213804e-12 | DP33: -1.962798e-13 | DQ33: 3984.1 | DR33: 2.20947e-12 | DS33: -1.994486e-13 | DT33: 3984.1 | DU33: 2.206497e-12 | DV33: -2.020185e-13 | DW33: 3984.1 | DX33: 2.201618e-12 | DY33: -2.054378e-13 | DZ33: 3984.1 | EA33: 2.19676e-12 | EB33: -2.087544e-13 | EC33: 3984.1 | ED33: 2.191218e-12 | EE33: -2.130553e-13 | EF33: 3984.1 | EG33: 2.18401e-12 | EH33: -2.158329e-13 | EI33: 3984.1 | EJ33: 2.18068e-12 | EK33: -2.201604e-13 | EL33: 3984.1 | EM33: 2.175845e-12 | EN33: -2.240041e-13 | EO33: 3984.1 | EP33: 2.169843e-12 | EQ33: -2.287344e-13 | ER33: 3984.1 | ES33: 2.165156e-12 | ET33: -2.329807e-13 | EU33: 3984.1 | EV33: 2.159484e-12 | EW33: -2.372621e-13 | EX33: 3984.1 | EY33: 2.154327e-12 | EZ33: -2.419265e-13 | FA33: 3984.1 | FB33: 2.148991e-12 | FC33: -2.473108e-13 | FD33: 3984.1 | FE33: 2.144624e-12 | FF33: -2.515679e-13 | FG33: 3984.1 | FH33: 2.14198e-12 | FI33: -2.541003e-13 | FJ33: 3984.1 | FK33: 2.138697e-12 | FL33: -2.572778e-13 | FM33: 3984.1 | FN33: 2.134809e-12 | FO33: -2.614203e-13 | FP33: 3984.1 | FQ33: 2.130819e-12 | FR33: -2.640328e-13 | FS33: 3984.1 | FT33: 2.127496e-12 | FU33: -2.672922e-13 | FV33: 3984.1 | FW33: 2.125845e-12 | FX33: -2.695641e-13 | FY33: 3984.1 | FZ33: 2.183985e-12 | GA33: -2.302783e-13 | GB33: 3984.1 | GC33: 2.185686e-12 | GD33: -2.350084e-13 | GE33: 3984.1 | GF33: 2.179129e-12 | GG33: -2.514473e-13 | GH33: 3984.1 | GI33: 2.162808e-12 | GJ33: -2.812853e-13 | GK33: 3984.1 | GL33: 2.129514e-12 | GM33: -3.273288e-13 | GN33: 3984.1 | GO33: 2.059673e-12 | GP33: -4.015178e-13 | GQ33: 3984.1 | GR33: 1.877891e-12 | GS33: -5.241632e-13 | GT33: 3984.1 | GU33: 1.373432e-12 | GV33: -6.328482e-13 | GW33: 3984.1 | GX33: 8.12466e-13 | GY33: -6.336868e-13 | GZ33: 3984.1 | HA33: 5.145705e-13 | HB33: -5.705956e-13 | HC33: 3984.1 | HD33: 3.706255e-13 | HE33: -4.924336e-13 | HF33: 3984.1 | HG33: 2.94357e-13 | HH33: -4.297542e-13 | HI33: 3984.1 | HJ33: 2.485112e-13 | HK33: -3.794229e-13 | HL33: 3984.1 | HM33: 2.172392e-13 | HN33: -3.375332e-13 | HO33: 3984.1 | HP33: 1.943483e-13 | HQ33: -3.00779e-13 | HR33: 3984.1 | HS33: 1.767709e-13 | HT33: -2.678597e-13 | HU33: 3984.1 | HV33: 1.633345e-13 | HW33: -2.388998e-13 | HX33: 3984.1 | HY33: 1.533984e-13 | HZ33: -2.1422e-13 | IA33: 3984.1 | IB33: 1.459664e-13 | IC33: -1.935285e-13 | ID33: 3984.1 | IE33: 1.40827e-13 | IF33: -1.778176e-13 | IG33: 3984.1 | IH33: 1.369607e-13 | II33: -1.638733e-13 | IJ33: 3984.1 | IK33: 1.338352e-13 | IL33: -1.51844e-13 | IM33: 3984.1 | IN33: 1.313689e-13 | IO33: -1.414333e-13 | IP33: 3984.1 | IQ33: 1.295034e-13 | IR33: -1.329615e-13 | IS33: 3984.1 | IT33: 1.280822e-13 | IU33: -1.263242e-13 | IV33: 3984.1 | IW33: 1.269396e-13 | IX33: -1.204179e-13 | IY33: 3984.1 | IZ33: 1.260017e-13 | JA33: -1.154048e-13 | JB33: 3984.1 | JC33: 1.252675e-13 | JD33: -1.109408e-13 | JE33: 3984.1 | JF33: 1.246438e-13 | JG33: -1.069639e-13 | JH33: 3984.1 | JI33: 1.240702e-13 | JJ33: -1.033972e-13 | JK33: 3984.1 | JL33: 1.235881e-13 | JM33: -1.002204e-13 | JN33: 3984.1 | JO33: 1.231931e-13 | JP33: -9.750648e-14 | JQ33: 3984.1 | JR33: 1.228423e-13 | JS33: -9.514448e-14 | JT33: 3984.1 | JU33: 1.225651e-13 | JV33: -9.311747e-14 | JW33: 3984.1 | JX33: 1.223005e-13 | JY33: -9.136364e-14 | JZ33: 3984.1 | KA33: 1.221107e-13 | KB33: -8.991935e-14 | KC33: 3984.1 | KD33: 1.219088e-13 | KE33: -8.858495e-14 | KF33: 3984.1 | KG33: 1.217321e-13 | KH33: -8.73336e-14 | KI33: 3984.1 | KJ33: 1.214955e-13 | KK33: -8.62332e-14 | KL33: 3984.1 | KM33: 1.214018e-13 | KN33: -8.535618e-14 | KO33: 3984.1 | KP33: 1.213082e-13 | KQ33: -8.460092e-14 | KR33: 3984.1 | KS33: 1.212128e-13 | KT33: -8.389104e-14 | KU33: 3984.1 | KV33: 1.210521e-13 | KW33: -8.323882e-14 | KX33: 3984.1 | KY33: 1.210076e-13 | KZ33: -8.252812e-14 | LA33: 3984.1 | LB33: 1.209193e-13 | LC33: -8.179728e-14 | LD33: 3984.1 | LE33: 1.208324e-13 | LF33: -8.11152e-14 | LG33: 3984.1 | LH33: 1.206354e-13 | LI33: -8.073305e-14 | LJ33: 3984.1 | LK33: 1.206822e-13 | LL33: -8.022877e-14 | LM33: 3984.1 | LN33: 1.206299e-13 | LO33: -7.983503e-14 | LP33: 3984.1 | LQ33: 1.205632e-13 | LR33: -7.946556e-14 | LS33: 3984.1 | LT33: 1.204029e-13 | LU33: -7.92509e-14 | LV33: 3984.1 | LW33: 1.20462e-13 | LX33: -7.8761e-14 | LY33: 3984.1 | LZ33: 1.204092e-13 | MA33: -7.837138e-14 | MB33: 3984.1 | MC33: 1.203766e-13 | MD33: -7.806961e-14 | ME33: 3984.1 | MF33: 1.202314e-13 | MG33: -7.785842e-14 | MH33: 3984.1 | MI33: 1.203016e-13 | MJ33: -7.753966e-14 | MK33: 3984.1 | ML33: 1.202666e-13 | MM33: -7.724047e-14 | MN33: 3984.1 | MO33: 1.202368e-13 | MP33: -7.704055e-14 | MQ33: 3984.1 | MR33: 1.200988e-13 | MS33: -7.68628e-14 | MT33: 3984.1 | MU33: 1.201875e-13 | MV33: -7.67152e-14 | MW33: 3984.1 | MX33: 1.201619e-13 | MY33: -7.657568e-14 | MZ33: 3984.1 | NA33: 1.200913e-13 | NB33: -7.641251e-14 | NC33: 3984.1 | ND33: 1.199996e-13 | NE33: -7.627643e-14 | NF33: 3984.1 | NG33: 1.201349e-13 | NH33: -7.600567e-14 | NI33: 3984.1 | NJ33: 1.200762e-13 | NK33: -7.589367e-14 | NL33: 3984.1 | NM33: 1.200024e-13 | NN33: -7.585605e-14 | NO33: 3984.1 | NP33: 1.199275e-13 | NQ33: -7.576886e-14 | NR33: 3984.1 | NS33: 1.19979e-13 | NT33: -7.566619e-14 | NU33: 3984.1 | NV33: 1.200252e-13 | NW33: -7.559942e-14 | NX33: 3984.1 | NY33: 1.199492e-13 | NZ33: -7.556885e-14 | OA33: 3984.1 | OB33: 1.200072e-13 | OC33: -7.559686e-14 | OD33: 3984.1 | OE33: 1.199356e-13 | OF33: -7.543593e-14 | OG33: 3984.1 | OH33: 1.199856e-13 | OI33: -7.540073e-14 | OJ33: 3984.1 | OK33: 1.199167e-13 | OL33: -7.535027e-14 | OM33: 3984.1 | ON33: 1.199438e-13 | OO33: -7.517556e-14 | OP33: 3984.1 | OQ33: 1.199409e-13 | OR33: -7.504323e-14 | OS33: 3984.1 | OT33: 1.199192e-13 | OU33: -7.49758e-14 | OV33: 3984.1 | OW33: 1.198612e-13 | OX33: -7.495952e-14 | OY33: 3984.1 | OZ33: 1.198793e-13 | PA33: -7.493957e-14 | PB33: 3984.1 | PC33: 1.198795e-13 | PD33: -7.49172e-14 | PE33: 3984.1 | PF33: 1.198839e-13 | PG33: -7.492619e-14 | PH33: 3984.1 | PI33: 1.19775e-13 | PJ33: -7.48625e-14 | PK33: 3984.1 | PL33: 1.198614e-13 | PM33: -7.468682e-14 | PN33: 3984.1 | PO33: 1.19871e-13 | PP33: -7.459314e-14 | PQ33: 3984.1 | PR33: 1.197997e-13 | PS33: -7.457261e-14 | PT33: 3984.1 | PU33: 1.197199e-13 | PV33: -7.451196e-14 | PW33: 3984.1 | PX33: 1.198231e-13 | PY33: -7.436109e-14 | PZ33: 3984.1 | QA33: 1.198063e-13 | QB33: -7.458603e-14 | QC33: 3984.1 | QD33: 1.198346e-13 | QE33: -7.54343e-14 | QF33: 3984.1 | QG33: 1.199649e-13 | QH33: -7.639328e-14 | QI33: 3984.1 | QJ33: 1.200547e-13 | QK33: -7.746602e-14
